Workbook

Sheet DB
B5: Rezeptsammlung
B6: Weihnachtsplätzchen
G8: =COUNTA(Auswahl!$B$3:$B$32)-COUNTBLANK(Auswahl!$B$3:$B$32)&" Plätzchenrezepte enthalten" -> 20 Plätzchenrezepte enthalten
C11: Version | E11: =INDEX(Version!$A$3:$A$88,DCOUNTA(Version!$A$3:$A$88,1,Version!$A$3:$A$88)+1,0) -> 2.01
C13: Bearbeitungsstand: | E13: =MAX(Version!D3:D88) -> 2015-10-30
C15: Funktionen: | E15: - Mengenauswahl der Plätzchen
E16: - Erstellen ener Einkaufsliste
C18: Arbeitsblätter: | E18: Auswahl | F18: Auswahl der Plätzchen mit Mengenangabe
E19: Einkauf | F19: Einkaufsliste
E20: Liste | F20: Rezeptliste
E21: Zwtab | F21: Zwischentabelle
E22: 1-… | F22: Auflistung einzelner Rezepte
E24: Version | F24: Übersicht der Änderungen bzw. Erweiterungen
E27: Es sind noch nicht alle auswählbaren Rezepte als Anleitung aufgenommen. Ich hoffe ich schaffe
E28: es bis zum 06.12.2015.
I33: ="© Patek, 2006-"&YEAR(E13) -> © Patek, 2006-2015
B36: letzte Neuerung: | E36: =ROW(Version!A3:A88) -> 3

Sheet Auswahl
B1: Rezept | D1: Auswahl
C2: [St.] | D2: [St.] | E2: Ko. | F2: Rezept | G2: Quelle
A3: 1 | B3: =IF(INDEX(Liste!$E$3:$CF$3,A3)=0,"",INDEX(Liste!$E$3:$CF$3,A3)) -> Wiener Vanillekipfel | C3: =IF(INDEX(Liste!$E$5:$CF$5,A3)=0,"",INDEX(Liste!$E$5:$CF$5,A3)) -> 80 | E3: =IF(C3=0,"",IF(OR(D3/C3-INT(D3/C3)=0,D3/C3-INT(D3/C3)=0.5),"","Fehler")) -> 
A4: 2 | B4: =IF(INDEX(Liste!$E$3:$CF$3,A4)=0,"",INDEX(Liste!$E$3:$CF$3,A4)) -> Schwarzweißgebäck | C4: =IF(INDEX(Liste!$E$5:$CF$5,A4)=0,"",INDEX(Liste!$E$5:$CF$5,A4)) -> 80 | D4: 80 | E4: =IF(C4=0,"",IF(OR(D4/C4-INT(D4/C4)=0,D4/C4-INT(D4/C4)=0.5),"","Fehler")) -> 
A5: 3 | B5: =IF(INDEX(Liste!$E$3:$CF$3,A5)=0,"",INDEX(Liste!$E$3:$CF$3,A5)) -> Brune Kager | C5: =IF(INDEX(Liste!$E$5:$CF$5,A5)=0,"",INDEX(Liste!$E$5:$CF$5,A5)) -> 100
A6: 4 | B6: =IF(INDEX(Liste!$E$3:$CF$3,A6)=0,"",INDEX(Liste!$E$3:$CF$3,A6)) -> Italienische Pangani | C6: =IF(INDEX(Liste!$E$5:$CF$5,A6)=0,"",INDEX(Liste!$E$5:$CF$5,A6)) -> 80
A7: 5 | B7: =IF(INDEX(Liste!$E$3:$CF$3,A7)=0,"",INDEX(Liste!$E$3:$CF$3,A7)) -> Marillenringe | C7: =IF(INDEX(Liste!$E$5:$CF$5,A7)=0,0,INDEX(Liste!$E$5:$CF$5,A7)) -> 50
A8: 6 | B8: =IF(INDEX(Liste!$E$3:$CF$3,A8)=0,"",INDEX(Liste!$E$3:$CF$3,A8)) -> Elisenlebkuchen | C8: =IF(INDEX(Liste!$E$5:$CF$5,A8)=0,0,INDEX(Liste!$E$5:$CF$5,A8)) -> 42
A9: 7 | B9: =IF(INDEX(Liste!$E$3:$CF$3,A9)=0,"",INDEX(Liste!$E$3:$CF$3,A9)) -> Nusshäufchen | C9: =IF(INDEX(Liste!$E$5:$CF$5,A9)=0,0,INDEX(Liste!$E$5:$CF$5,A9)) -> 25 | D9: 25
A10: 8 | B10: =IF(INDEX(Liste!$E$3:$CF$3,A10)=0,"",INDEX(Liste!$E$3:$CF$3,A10)) -> Marzipanstangen | C10: =IF(INDEX(Liste!$E$5:$CF$5,A10)=0,0,INDEX(Liste!$E$5:$CF$5,A10)) -> 50 | D10: 50
A11: 9 | B11: =IF(INDEX(Liste!$E$3:$CF$3,A11)=0,"",INDEX(Liste!$E$3:$CF$3,A11)) -> Walnußbusserl | C11: =IF(INDEX(Liste!$E$5:$CF$5,A11)=0,0,INDEX(Liste!$E$5:$CF$5,A11)) -> 45
A12: 10 | B12: =IF(INDEX(Liste!$E$3:$CF$3,A12)=0,"",INDEX(Liste!$E$3:$CF$3,A12)) -> Kokosspiralen | C12: =IF(INDEX(Liste!$E$5:$CF$5,A12)=0,0,INDEX(Liste!$E$5:$CF$5,A12)) -> 40
A13: 11 | B13: =IF(INDEX(Liste!$E$3:$CF$3,A13)=0,"",INDEX(Liste!$E$3:$CF$3,A13)) -> Mandelplätzchen | C13: =IF(INDEX(Liste!$E$5:$CF$5,A13)=0,0,INDEX(Liste!$E$5:$CF$5,A13)) -> 35 | D13: 35 | F13: M | G13: =MID('11'!$H$57,8,100) -> LISA Kochen & Backen 11/2009
A14: 12 | B14: =IF(INDEX(Liste!$E$3:$CF$3,A14)=0,"",INDEX(Liste!$E$3:$CF$3,A14)) -> Trüffelmakronen | C14: =IF(INDEX(Liste!$E$5:$CF$5,A14)=0,0,INDEX(Liste!$E$5:$CF$5,A14)) -> 30 | D14: 30 | F14: M | G14: =MID('12'!$H$57,8,100) -> LISA Kochen & Backen 12/2007
A15: 13 | B15: =IF(INDEX(Liste!$E$3:$CF$3,A15)=0,"",INDEX(Liste!$E$3:$CF$3,A15)) -> Orangen-Schoko-Plätzchen | C15: =IF(INDEX(Liste!$E$5:$CF$5,A15)=0,0,INDEX(Liste!$E$5:$CF$5,A15)) -> 40
A16: 14 | B16: =IF(INDEX(Liste!$E$3:$CF$3,A16)=0,"",INDEX(Liste!$E$3:$CF$3,A16)) -> Kokos-Kipferln | C16: =IF(INDEX(Liste!$E$5:$CF$5,A16)=0,0,INDEX(Liste!$E$5:$CF$5,A16)) -> 50 | F16: M | G16: =MID('14'!$H$57,8,100) -> LISA Kochen & Backen Spezial/2012
A17: 15 | B17: =IF(INDEX(Liste!$E$3:$CF$3,A17)=0,"",INDEX(Liste!$E$3:$CF$3,A17)) -> Nusskipferln | C17: =IF(INDEX(Liste!$E$5:$CF$5,A17)=0,0,INDEX(Liste!$E$5:$CF$5,A17)) -> 60 | D17: 60 | E17: =IF(C17=0,"",IF(OR(D17/C17-INT(D17/C17)=0,D17/C17-INT(D17/C17)=0.5),"","Fehler")) -> 
A18: 16 | B18: =IF(INDEX(Liste!$E$3:$CF$3,A18)=0,"",INDEX(Liste!$E$3:$CF$3,A18)) -> Heidesand mit Meersalz | C18: =IF(INDEX(Liste!$E$5:$CF$5,A18)=0,0,INDEX(Liste!$E$5:$CF$5,A18)) -> 100
A19: 17 | B19: =IF(INDEX(Liste!$E$3:$CF$3,A19)=0,"",INDEX(Liste!$E$3:$CF$3,A19)) -> Pistazienschnitten | C19: =IF(INDEX(Liste!$E$5:$CF$5,A19)=0,0,INDEX(Liste!$E$5:$CF$5,A19)) -> 50 | F19: M | G19: =MID('17'!$H$57,8,100) -> LISA Kochen & Backen 11/2009
A20: 18 | B20: =IF(INDEX(Liste!$E$3:$CF$3,A20)=0,"",INDEX(Liste!$E$3:$CF$3,A20)) -> Marmeladenplätzchen | C20: =IF(INDEX(Liste!$E$5:$CF$5,A20)=0,0,INDEX(Liste!$E$5:$CF$5,A20)) -> 30 | D20: 30
A21: 19 | B21: =IF(INDEX(Liste!$E$3:$CF$3,A21)=0,"",INDEX(Liste!$E$3:$CF$3,A21)) -> Grazer Mandelrauten | C21: =IF(INDEX(Liste!$E$5:$CF$5,A21)=0,0,INDEX(Liste!$E$5:$CF$5,A21)) -> 50
A22: 20 | B22: =IF(INDEX(Liste!$E$3:$CF$3,A22)=0,"",INDEX(Liste!$E$3:$CF$3,A22)) -> Marmorhappen | C22: =IF(INDEX(Liste!$E$5:$CF$5,A22)=0,0,INDEX(Liste!$E$5:$CF$5,A22)) -> 40 | D22: 40 | F22: M | G22: =MID('20'!$H$57,8,100) -> LISA Kochen & Backen 11/2010
A23: 21 | B23: =IF(INDEX(Liste!$E$3:$CF$3,A23)=0,"",INDEX(Liste!$E$3:$CF$3,A23)) ->  | C23: =IF(INDEX(Liste!$E$5:$CF$5,A23)=0,0,INDEX(Liste!$E$5:$CF$5,A23)) -> 0
A24: 22 | B24: =IF(INDEX(Liste!$E$3:$CF$3,A24)=0,"",INDEX(Liste!$E$3:$CF$3,A24)) ->  | C24: =IF(INDEX(Liste!$E$5:$CF$5,A24)=0,0,INDEX(Liste!$E$5:$CF$5,A24)) -> 0
A25: 23 | B25: =IF(INDEX(Liste!$E$3:$CF$3,A25)=0,"",INDEX(Liste!$E$3:$CF$3,A25)) ->  | C25: =IF(INDEX(Liste!$E$5:$CF$5,A25)=0,0,INDEX(Liste!$E$5:$CF$5,A25)) -> 0
A26: 24 | B26: =IF(INDEX(Liste!$E$3:$CF$3,A26)=0,"",INDEX(Liste!$E$3:$CF$3,A26)) ->  | C26: =IF(INDEX(Liste!$E$5:$CF$5,A26)=0,0,INDEX(Liste!$E$5:$CF$5,A26)) -> 0
A27: 25 | B27: =IF(INDEX(Liste!$E$3:$CF$3,A27)=0,"",INDEX(Liste!$E$3:$CF$3,A27)) ->  | C27: =IF(INDEX(Liste!$E$5:$CF$5,A27)=0,0,INDEX(Liste!$E$5:$CF$5,A27)) -> 0
A28: 26 | B28: =IF(INDEX(Liste!$E$3:$CF$3,A28)=0,"",INDEX(Liste!$E$3:$CF$3,A28)) ->  | C28: =IF(INDEX(Liste!$E$5:$CF$5,A28)=0,0,INDEX(Liste!$E$5:$CF$5,A28)) -> 0
A29: 27 | B29: =IF(INDEX(Liste!$E$3:$CF$3,A29)=0,"",INDEX(Liste!$E$3:$CF$3,A29)) ->  | C29: =IF(INDEX(Liste!$E$5:$CF$5,A29)=0,0,INDEX(Liste!$E$5:$CF$5,A29)) -> 0
A30: 28 | B30: =IF(INDEX(Liste!$E$3:$CF$3,A30)=0,"",INDEX(Liste!$E$3:$CF$3,A30)) ->  | C30: =IF(INDEX(Liste!$E$5:$CF$5,A30)=0,0,INDEX(Liste!$E$5:$CF$5,A30)) -> 0
A31: 29 | B31: =IF(INDEX(Liste!$E$3:$CF$3,A31)=0,"",INDEX(Liste!$E$3:$CF$3,A31)) ->  | C31: =IF(INDEX(Liste!$E$5:$CF$5,A31)=0,0,INDEX(Liste!$E$5:$CF$5,A31)) -> 0
A32: 30 | B32: =IF(INDEX(Liste!$E$3:$CF$3,A32)=0,"",INDEX(Liste!$E$3:$CF$3,A32)) ->  | C32: =IF(INDEX(Liste!$E$5:$CF$5,A32)=0,0,INDEX(Liste!$E$5:$CF$5,A32)) -> 0

Sheet Einkauf
B2: Einkaufsliste
C5: =IF(Auswahl!D3=0,"",INDEX(Auswahl!$B$3:$B$32,MATCH(Auswahl!A3,Auswahl!$A$3:$A$32),0)) ->  | E5: =IF(C5="","",INDEX(Auswahl!$D$3:$D$32,MATCH(Auswahl!A3,Auswahl!$A$3:$A$32),0)) ->  | F5: =IF(C5="","","[St.]") ->  | H5: Zutaten
C6: =IF(Auswahl!D4=0,"",INDEX(Auswahl!$B$3:$B$32,MATCH(Auswahl!A4,Auswahl!$A$3:$A$32),0)) -> Schwarzweißgebäck | E6: =IF(C6="","",INDEX(Auswahl!$D$3:$D$32,MATCH(Auswahl!A4,Auswahl!$A$3:$A$32),0)) -> 80 | F6: =IF(C6="","","[St.]") -> [St.] | H6: Zutaten | I6: Zusatz | J6: Menge
C7: =IF(Auswahl!D5=0,"",INDEX(Auswahl!$B$3:$B$32,MATCH(Auswahl!A5,Auswahl!$A$3:$A$32),0)) ->  | E7: =IF(C7="","",INDEX(Auswahl!$D$3:$D$32,MATCH(Auswahl!A5,Auswahl!$A$3:$A$32),0)) ->  | F7: =IF(C7="","","[St.]") ->  | H7: =ZWtab!B7 -> Mehl | I7: =ZWtab!C7 ->  | J7: =IF(ZWtab!A7=0,"",ZWtab!A7) -> 1735 | K7: =ZWtab!D7 -> [g]
C8: =IF(Auswahl!D6=0,"",INDEX(Auswahl!$B$3:$B$32,MATCH(Auswahl!A6,Auswahl!$A$3:$A$32),0)) ->  | E8: =IF(C8="","",INDEX(Auswahl!$D$3:$D$32,MATCH(Auswahl!A6,Auswahl!$A$3:$A$32),0)) ->  | H8: =ZWtab!B8 -> Zucker | I8: =ZWtab!C8 ->  | J8: =IF(ZWtab!A8=0,"",ZWtab!A8) -> 460 | K8: =ZWtab!D8 -> [g]
C9: =IF(Auswahl!D7=0,"",INDEX(Auswahl!$B$3:$B$32,MATCH(Auswahl!A7,Auswahl!$A$3:$A$32),0)) ->  | E9: =IF(C9="","",INDEX(Auswahl!$D$3:$D$32,MATCH(Auswahl!A7,Auswahl!$A$3:$A$32),0)) ->  | H9: =ZWtab!B9 -> Butter | I9: =ZWtab!C9 ->  | J9: =IF(ZWtab!A9=0,"",ZWtab!A9) -> 1195 | K9: =ZWtab!D9 -> [g]
C10: =IF(Auswahl!D8=0,"",INDEX(Auswahl!$B$3:$B$32,MATCH(Auswahl!A8,Auswahl!$A$3:$A$32),0)) ->  | E10: =IF(C10="","",INDEX(Auswahl!$D$3:$D$32,MATCH(Auswahl!A8,Auswahl!$A$3:$A$32),0)) ->  | H10: =ZWtab!B10 -> Mandeln | I10: =ZWtab!C10 -> gerieben | J10: =IF(ZWtab!A10=0,"",ZWtab!A10) -> 200 | K10: =ZWtab!D10 -> [g]
C11: =IF(Auswahl!D9=0,"",INDEX(Auswahl!$B$3:$B$32,MATCH(Auswahl!A9,Auswahl!$A$3:$A$32),0)) -> Nusshäufchen | E11: =IF(C11="","",INDEX(Auswahl!$D$3:$D$32,MATCH(Auswahl!A9,Auswahl!$A$3:$A$32),0)) -> 25 | F11: [St.] | H11: =ZWtab!B11 -> Mandeln | I11: =ZWtab!C11 -> gehackt | J11: =IF(ZWtab!A11=0,"",ZWtab!A11) ->  | K11: =ZWtab!D11 -> [g]
C12: =IF(Auswahl!D10=0,"",INDEX(Auswahl!$B$3:$B$32,MATCH(Auswahl!A10,Auswahl!$A$3:$A$32),0)) -> Marzipanstangen | E12: =IF(C12="","",INDEX(Auswahl!$D$3:$D$32,MATCH(Auswahl!A10,Auswahl!$A$3:$A$32),0)) -> 50 | F12: [St.] | H12: =ZWtab!B12 -> Mandeln | I12: =ZWtab!C12 -> gehobelt | J12: =IF(ZWtab!A12=0,"",ZWtab!A12) -> 100 | K12: =ZWtab!D12 -> [g]
C13: =IF(Auswahl!D11=0,"",INDEX(Auswahl!$B$3:$B$32,MATCH(Auswahl!A11,Auswahl!$A$3:$A$32),0)) ->  | E13: =IF(C13="","",INDEX(Auswahl!$D$3:$D$32,MATCH(Auswahl!A11,Auswahl!$A$3:$A$32),0)) ->  | H13: =ZWtab!B13 -> Mandelblättchen | I13: =ZWtab!C13 ->  | J13: =IF(ZWtab!A13=0,"",ZWtab!A13) -> 60 | K13: =ZWtab!D13 -> [St.]
C14: =IF(Auswahl!D12=0,"",INDEX(Auswahl!$B$3:$B$32,MATCH(Auswahl!A12,Auswahl!$A$3:$A$32),0)) ->  | E14: =IF(C14="","",INDEX(Auswahl!$D$3:$D$32,MATCH(Auswahl!A12,Auswahl!$A$3:$A$32),0)) ->  | H14: =ZWtab!B14 -> Haselnüsse | I14: =ZWtab!C14 ->  | J14: =IF(ZWtab!A14=0,"",ZWtab!A14) ->  | K14: =ZWtab!D14 -> [g]
C15: =IF(Auswahl!D13=0,"",INDEX(Auswahl!$B$3:$B$32,MATCH(Auswahl!A13,Auswahl!$A$3:$A$32),0)) -> Mandelplätzchen | E15: =IF(C15="","",INDEX(Auswahl!$D$3:$D$32,MATCH(Auswahl!A13,Auswahl!$A$3:$A$32),0)) -> 35 | F15: [St.] | H15: =ZWtab!B15 -> Haselnüsse | I15: =ZWtab!C15 -> gehackt | J15: =IF(ZWtab!A15=0,"",ZWtab!A15) ->  | K15: =ZWtab!D15 -> [g]
C16: =IF(Auswahl!D14=0,"",INDEX(Auswahl!$B$3:$B$32,MATCH(Auswahl!A14,Auswahl!$A$3:$A$32),0)) -> Trüffelmakronen | E16: =IF(C16="","",INDEX(Auswahl!$D$3:$D$32,MATCH(Auswahl!A14,Auswahl!$A$3:$A$32),0)) -> 30 | F16: [St.] | H16: =ZWtab!B16 -> Kokosraspel | I16: =ZWtab!C16 ->  | J16: =IF(ZWtab!A16=0,"",ZWtab!A16) -> 125 | K16: =ZWtab!D16 -> [g]
C17: =IF(Auswahl!D15=0,"",INDEX(Auswahl!$B$3:$B$32,MATCH(Auswahl!A15,Auswahl!$A$3:$A$32),0)) ->  | E17: =IF(C17="","",INDEX(Auswahl!$D$3:$D$32,MATCH(Auswahl!A15,Auswahl!$A$3:$A$32),0)) ->  | H17: =ZWtab!B17 -> Pistazien | I17: =ZWtab!C17 -> gehackt | J17: =IF(ZWtab!A17=0,"",ZWtab!A17) ->  | K17: =ZWtab!D17 -> [g]
C18: =IF(Auswahl!D16=0,"",INDEX(Auswahl!$B$3:$B$32,MATCH(Auswahl!A16,Auswahl!$A$3:$A$32),0)) ->  | E18: =IF(C18="","",INDEX(Auswahl!$D$3:$D$32,MATCH(Auswahl!A16,Auswahl!$A$3:$A$32),0)) ->  | H18: =ZWtab!B18 -> Walnüsse | I18: =ZWtab!C18 -> gemahlen | J18: =IF(ZWtab!A18=0,"",ZWtab!A18) -> 200 | K18: =ZWtab!D18 -> [g]
C19: =IF(Auswahl!D17=0,"",INDEX(Auswahl!$B$3:$B$32,MATCH(Auswahl!A17,Auswahl!$A$3:$A$32),0)) -> Nusskipferln | E19: =IF(C19="","",INDEX(Auswahl!$D$3:$D$32,MATCH(Auswahl!A17,Auswahl!$A$3:$A$32),0)) -> 60 | F19: [St.] | H19: =ZWtab!B19 -> Marzipanrohmasse | I19: =ZWtab!C19 ->  | J19: =IF(ZWtab!A19=0,"",ZWtab!A19) -> 300 | K19: =ZWtab!D19 -> [g]
C20: =IF(Auswahl!D18=0,"",INDEX(Auswahl!$B$3:$B$32,MATCH(Auswahl!A18,Auswahl!$A$3:$A$32),0)) ->  | E20: =IF(C20="","",INDEX(Auswahl!$D$3:$D$32,MATCH(Auswahl!A18,Auswahl!$A$3:$A$32),0)) ->  | H20: =ZWtab!B20 -> Kakaopulver | I20: =ZWtab!C20 ->  | J20: =IF(ZWtab!A20=0,"",ZWtab!A20) -> 100 | K20: =ZWtab!D20 -> [g]
C21: =IF(Auswahl!D19=0,"",INDEX(Auswahl!$B$3:$B$32,MATCH(Auswahl!A19,Auswahl!$A$3:$A$32),0)) ->  | E21: =IF(C21="","",INDEX(Auswahl!$D$3:$D$32,MATCH(Auswahl!A19,Auswahl!$A$3:$A$32),0)) ->  | H21: =ZWtab!B21 -> Speisestärke | I21: =ZWtab!C21 ->  | J21: =IF(ZWtab!A21=0,"",ZWtab!A21) -> 150 | K21: =ZWtab!D21 -> [g]
C22: =IF(Auswahl!D20=0,"",INDEX(Auswahl!$B$3:$B$32,MATCH(Auswahl!A20,Auswahl!$A$3:$A$32),0)) -> Marmeladenplätzchen | E22: =IF(C22="","",INDEX(Auswahl!$D$3:$D$32,MATCH(Auswahl!A20,Auswahl!$A$3:$A$32),0)) -> 30 | F22: [St.] | H22: =ZWtab!B22 -> Ahornsirup | I22: =ZWtab!C22 ->  | J22: =IF(ZWtab!A22=0,"",ZWtab!A22) ->  | K22: =ZWtab!D22 -> [g]
C23: =IF(Auswahl!D21=0,"",INDEX(Auswahl!$B$3:$B$32,MATCH(Auswahl!A21,Auswahl!$A$3:$A$32),0)) ->  | E23: =IF(C23="","",INDEX(Auswahl!$D$3:$D$32,MATCH(Auswahl!A21,Auswahl!$A$3:$A$32),0)) ->  | H23: =ZWtab!B23 -> Zitronat | I23: =ZWtab!C23 -> gehackt | J23: =IF(ZWtab!A23=0,"",ZWtab!A23) ->  | K23: =ZWtab!D23 -> [g]
C24: =IF(Auswahl!D22=0,"",INDEX(Auswahl!$B$3:$B$32,MATCH(Auswahl!A22,Auswahl!$A$3:$A$32),0)) -> Marmorhappen | E24: =IF(C24="","",INDEX(Auswahl!$D$3:$D$32,MATCH(Auswahl!A22,Auswahl!$A$3:$A$32),0)) -> 40 | F24: [St.] | H24: =ZWtab!B24 -> Pottasche | I24: =ZWtab!C24 ->  | J24: =IF(ZWtab!A24=0,"",ZWtab!A24) ->  | K24: =ZWtab!D24 -> [g]
C25: =IF(Auswahl!D23=0,"",INDEX(Auswahl!$B$3:$B$32,MATCH(Auswahl!A23,Auswahl!$A$3:$A$32),0)) ->  | E25: =IF(C25="","",INDEX(Auswahl!$D$3:$D$32,MATCH(Auswahl!A23,Auswahl!$A$3:$A$32),0)) ->  | H25: =ZWtab!B25 -> Blockschokolade | I25: =ZWtab!C25 ->  | J25: =IF(ZWtab!A25=0,"",ZWtab!A25) -> 150 | K25: =ZWtab!D25 -> [g]
C26: =IF(Auswahl!D24=0,"",INDEX(Auswahl!$B$3:$B$32,MATCH(Auswahl!A24,Auswahl!$A$3:$A$32),0)) ->  | E26: =IF(C26="","",INDEX(Auswahl!$D$3:$D$32,MATCH(Auswahl!A24,Auswahl!$A$3:$A$32),0)) ->  | H26: =ZWtab!B26 -> Marmelade | I26: =ZWtab!C26 ->  | J26: =IF(ZWtab!A26=0,"",ZWtab!A26) -> 125 | K26: =ZWtab!D26 -> [g]
C27: =IF(Auswahl!D25=0,"",INDEX(Auswahl!$B$3:$B$32,MATCH(Auswahl!A25,Auswahl!$A$3:$A$32),0)) ->  | E27: =IF(C27="","",INDEX(Auswahl!$D$3:$D$32,MATCH(Auswahl!A25,Auswahl!$A$3:$A$32),0)) ->  | H27: =ZWtab!B27 -> Nüsse | I27: =ZWtab!C27 -> gerieben | J27: =IF(ZWtab!A27=0,"",ZWtab!A27) ->  | K27: =ZWtab!D27 -> [g]
C28: =IF(Auswahl!D26=0,"",INDEX(Auswahl!$B$3:$B$32,MATCH(Auswahl!A26,Auswahl!$A$3:$A$32),0)) ->  | E28: =IF(C28="","",INDEX(Auswahl!$D$3:$D$32,MATCH(Auswahl!A26,Auswahl!$A$3:$A$32),0)) ->  | H28: =ZWtab!B28 -> Orangeat | I28: =ZWtab!C28 -> gehackt | J28: =IF(ZWtab!A28=0,"",ZWtab!A28) ->  | K28: =ZWtab!D28 -> [g]
C29: =IF(Auswahl!D27=0,"",INDEX(Auswahl!$B$3:$B$32,MATCH(Auswahl!A27,Auswahl!$A$3:$A$32),0)) ->  | E29: =IF(C29="","",INDEX(Auswahl!$D$3:$D$32,MATCH(Auswahl!A27,Auswahl!$A$3:$A$32),0)) ->  | H29: =ZWtab!B29 -> Kurvertüre | I29: =ZWtab!C29 ->  | J29: =IF(ZWtab!A29=0,"",ZWtab!A29) -> 330 | K29: =ZWtab!D29 -> [g]
C30: =IF(Auswahl!D28=0,"",INDEX(Auswahl!$B$3:$B$32,MATCH(Auswahl!A28,Auswahl!$A$3:$A$32),0)) ->  | E30: =IF(C30="","",INDEX(Auswahl!$D$3:$D$32,MATCH(Auswahl!A28,Auswahl!$A$3:$A$32),0)) ->  | H30: =ZWtab!B30 -> Haselnusmus | I30: =ZWtab!C30 ->  | J30: =IF(ZWtab!A30=0,"",ZWtab!A30) -> 200 | K30: =ZWtab!D30 -> [g]
C31: =IF(Auswahl!D29=0,"",INDEX(Auswahl!$B$3:$B$32,MATCH(Auswahl!A29,Auswahl!$A$3:$A$32),0)) ->  | E31: =IF(C31="","",INDEX(Auswahl!$D$3:$D$32,MATCH(Auswahl!A29,Auswahl!$A$3:$A$32),0)) ->  | H31: =ZWtab!B31 -> Sucanat | I31: =ZWtab!C31 ->  | J31: =IF(ZWtab!A31=0,"",ZWtab!A31) -> 150 | K31: =ZWtab!D31 -> [g]
C32: =IF(A32="","",INDEX(Auswahl!$B$3:$B$32,MATCH($A32,Auswahl!$A$3:$A$32),0)) ->  | E32: =IF(C32="","",INDEX(Auswahl!$D$3:$D$32,MATCH(Auswahl!A30,Auswahl!$A$3:$A$32),0)) ->  | H32: =ZWtab!B32 -> Dopppelrahmfrischkäse | I32: =ZWtab!C32 ->  | J32: =IF(ZWtab!A32=0,"",ZWtab!A32) ->  | K32: =ZWtab!D32 -> [g]
H33: =ZWtab!B33 ->  | I33: =ZWtab!C33 ->  | J33: =IF(ZWtab!A33=0,"",ZWtab!A33) ->  | K33: =ZWtab!D33 -> 
H34: =ZWtab!B34 -> Eigelb | I34: =ZWtab!C34 ->  | J34: =IF(ZWtab!A34=0,"",ZWtab!A34) -> 7 | K34: =ZWtab!D34 -> [St.]
H35: =ZWtab!B35 -> Eiweiß | I35: =ZWtab!C35 ->  | J35: =IF(ZWtab!A35=0,"",ZWtab!A35) -> 14 | K35: =ZWtab!D35 -> [St.]
H36: =ZWtab!B36 -> Zitrone | I36: =ZWtab!C36 ->  | J36: =IF(ZWtab!A36=0,"",ZWtab!A36) -> 1 | K36: =ZWtab!D36 -> [St.]
H37: =ZWtab!B37 -> abgeriebene Schale Zitrone | I37: =ZWtab!C37 ->  | J37: =IF(ZWtab!A37=0,"",ZWtab!A37) -> 1 | K37: =ZWtab!D37 -> [St.]
H38: =ZWtab!B38 -> abgeriebene Schale Orange | I38: =ZWtab!C38 ->  | J38: =IF(ZWtab!A38=0,"",ZWtab!A38) ->  | K38: =ZWtab!D38 -> [St.]
H39: =ZWtab!B39 -> Vanillieschoten | I39: =ZWtab!C39 ->  | J39: =IF(ZWtab!A39=0,"",ZWtab!A39) ->  | K39: =ZWtab!D39 -> [St.]
H40: =ZWtab!B40 -> Backoblaten | I40: =ZWtab!C40 -> d = 5 cm | J40: =IF(ZWtab!A40=0,"",ZWtab!A40) ->  | K40: =ZWtab!D40 -> [St.]
H41: =ZWtab!B41 ->  | I41: =ZWtab!C41 ->  | J41: =IF(ZWtab!A41=0,"",ZWtab!A41) ->  | K41: =ZWtab!D41 -> 
H42: =ZWtab!B42 -> Vanilliezucker | I42: =ZWtab!C42 ->  | J42: =IF(ZWtab!A42=0,"",ZWtab!A42) -> 1 | K42: =ZWtab!D42 -> [Pck.]
H43: =ZWtab!B43 ->  | I43: =ZWtab!C43 ->  | J43: =IF(ZWtab!A43=0,"",ZWtab!A43) ->  | K43: =ZWtab!D43 -> 
H44: =ZWtab!B44 -> Puderzucker | I44: =ZWtab!C44 ->  | J44: =IF(ZWtab!A44=0,"",ZWtab!A44) ->  | K44: =ZWtab!D44 -> [Tasse]
H45: =ZWtab!B45 -> Puderzucker | I45: =ZWtab!C45 ->  | J45: =IF(ZWtab!A45=0,"",ZWtab!A45) -> 475 | K45: =ZWtab!D45 -> [g]
H46: =ZWtab!B46 ->  | I46: =ZWtab!C46 ->  | J46: =IF(ZWtab!A46=0,"",ZWtab!A46) ->  | K46: =ZWtab!D46 -> 
H47: =ZWtab!B47 -> Gewürznelken | I47: =ZWtab!C47 -> gemahlen | J47: =IF(ZWtab!A47=0,"",ZWtab!A47) ->  | K47: =ZWtab!D47 -> [Tl.]
H48: =ZWtab!B48 -> Zimt | I48: =ZWtab!C48 -> gemahlen | J48: =IF(ZWtab!A48=0,"",ZWtab!A48) ->  | K48: =ZWtab!D48 -> [Tl.]
H49: =ZWtab!B49 -> Ingverpulver | I49: =ZWtab!C49 ->  | J49: =IF(ZWtab!A49=0,"",ZWtab!A49) ->  | K49: =ZWtab!D49 -> [Tl.]
H50: =ZWtab!B50 -> Kardamon | I50: =ZWtab!C50 ->  | J50: =IF(ZWtab!A50=0,"",ZWtab!A50) ->  | K50: =ZWtab!D50 -> [Tl.]
H51: =ZWtab!B51 -> Backpulver | I51: =ZWtab!C51 ->  | J51: =IF(ZWtab!A51=0,"",ZWtab!A51) -> 4 | K51: =ZWtab!D51 -> [Tl.]
H52: =ZWtab!B52 -> Milch | I52: =ZWtab!C52 ->  | J52: =IF(ZWtab!A52=0,"",ZWtab!A52) ->  | K52: =ZWtab!D52 -> [Eßl.]
H53: =ZWtab!B53 -> Sahne | I53: =ZWtab!C53 -> (1 Eß = 15 ml = 10 g) | J53: =IF(ZWtab!A53=0,"",ZWtab!A53) -> 100 | K53: =ZWtab!D53 -> [g]
H54: =ZWtab!B54 -> Salz | I54: =ZWtab!C54 ->  | J54: =IF(ZWtab!A54=0,"",ZWtab!A54) -> 3 | K54: =ZWtab!D54 -> [Pr.]
H55: =ZWtab!B55 -> Rum | I55: =ZWtab!C55 -> (Tl = 5 ml) | J55: =IF(ZWtab!A55=0,"",ZWtab!A55) ->  | K55: =ZWtab!D55 -> [cl]
H56: =ZWtab!B56 -> Hirschhornsalz | I56: =ZWtab!C56 ->  | J56: =IF(ZWtab!A56=0,"",ZWtab!A56) ->  | K56: =ZWtab!D56 -> [g]
H57: =ZWtab!B57 -> Muskat | I57: =ZWtab!C57 ->  | J57: =IF(ZWtab!A57=0,"",ZWtab!A57) ->  | K57: =ZWtab!D57 -> [Tl.]
H58: =ZWtab!B58 -> Macis | I58: =ZWtab!C58 ->  | J58: =IF(ZWtab!A58=0,"",ZWtab!A58) ->  | K58: =ZWtab!D58 -> [Pr.]
H59: =ZWtab!B59 -> Natron | I59: =ZWtab!C59 ->  | J59: =IF(ZWtab!A59=0,"",ZWtab!A59) ->  | K59: =ZWtab!D59 -> [TL]
H60: =ZWtab!B60 -> Buttermandelaroma | I60: =ZWtab!C60 ->  | J60: =IF(ZWtab!A60=0,"",ZWtab!A60) -> 2 | K60: =ZWtab!D60 -> [Tr]
H61: =ZWtab!B61 ->  | I61: =ZWtab!C61 ->  | J61: =IF(ZWtab!A61=0,"",ZWtab!A61) ->  | K61: =ZWtab!D61 -> 
H62: =ZWtab!B62 ->  | I62: =ZWtab!C62 ->  | J62: =IF(ZWtab!A62=0,"",ZWtab!A62) ->  | K62: =ZWtab!D62 -> 
H63: =ZWtab!B63 ->  | I63: =ZWtab!C63 ->  | J63: =IF(ZWtab!A63=0,"",ZWtab!A63) ->  | K63: =ZWtab!D63 -> 
H64: =ZWtab!B64 ->  | I64: =ZWtab!C64 ->  | J64: =IF(ZWtab!A64=0,"",ZWtab!A64) ->  | K64: =ZWtab!D64 -> 

Sheet Liste (hidden)
D1: =MAX(E1:AH1) -> 15 | E1: =COUNTIF(E$7:E$100,">0") -> 8 | F1: 5 | G1: 10 | H1: 12 | I1: 10 | J1: 15 | K1: 8 | L1: 11 | M1: 10 | N1: 12 | O1: =COUNTIF(O$7:O$100,">0") -> 9 | P1: =COUNTIF(P$7:P$100,">0") -> 7 | Q1: 10 | R1: 6 | S1: 8 | T1: 5 | U1: 11 | V1: 8 | W1: 12 | X1: 7 | Y1: 0 | Z1: 0 | AA1: 0 | AB1: 0 | AC1: 0 | AD1: 0 | AE1: 0 | AF1: 0 | AG1: 0 | AH1: 0
E2: =COLUMN(E3)-4 -> 1 | F2: =COLUMN(F3)-4 -> 2 | G2: 3 | H2: 4 | I2: 5 | J2: 6 | K2: 7 | L2: 8 | M2: 9 | N2: 10 | O2: 11 | P2: 12 | Q2: 13 | R2: 14 | S2: 15 | T2: 16 | U2: 17 | V2: 18 | W2: 19 | X2: =COLUMN(X3)-4 -> 20 | Y2: =COLUMN(Y3)-4 -> 21 | Z2: =COLUMN(Z3)-4 -> 22 | AA2: =COLUMN(AA3)-4 -> 23 | AB2: =COLUMN(AB3)-4 -> 24 | AC2: =COLUMN(AC3)-4 -> 25 | AD2: =COLUMN(AD3)-4 -> 26 | AE2: =COLUMN(AE3)-4 -> 27 | AF2: =COLUMN(AF3)-4 -> 28 | AG2: =COLUMN(AG3)-4 -> 29 | AH2: =COLUMN(AH3)-4 -> 30
B3: Zutaten | C3: Zusatz | D3: Mengen | E3: Wiener Vanillekipfel | F3: Schwarzweißgebäck | G3: Brune Kager | H3: Italienische Pangani | I3: Marillenringe | J3: Elisenlebkuchen | K3: Nusshäufchen | L3: Marzipanstangen | M3: Walnußbusserl | N3: Kokosspiralen | O3: Mandelplätzchen | P3: Trüffelmakronen | Q3: Orangen-Schoko-Plätzchen | R3: Kokos-Kipferln | S3: Nusskipferln | T3: Heidesand mit Meersalz | U3: Pistazienschnitten | V3: Marmeladenplätzchen | W3: Grazer Mandelrauten | X3: Marmorhappen
D5: Stück | E5: 80 | F5: 80 | G5: 100 | H5: 80 | I5: 50 | J5: 42 | K5: 25 | L5: 50 | M5: 45 | N5: 40 | O5: 35 | P5: 30 | Q5: 40 | R5: 50 | S5: 60 | T5: 100 | U5: 50 | V5: 30 | W5: 50 | X5: 40
B7: Mehl | D7: [g] | E7: 300 | F7: 400 | G7: 500 | H7: 500 | I7: 400 | J7: 30 | K7: 250 | L7: 200 | M7: 250 | N7: 220 | O7: 350 | Q7: 200 | R7: 225 | S7: 200 | T7: 400 | U7: 250 | V7: 45 | W7: 300 | X7: 290
B8: Zucker | D8: [g] | E8: 100 | G8: 200 | H8: 300 | I8: 120 | J8: 150 | L8: 100 | M8: 70 | N8: 120 | O8: 200 | Q8: 100 | S8: 100 | T8: 210 | V8: 60
B9: Butter | D9: [g] | E9: 200 | F9: 300 | G9: 250 | H9: 200 | I9: 250 | K9: 150 | L9: 125 | M9: 125 | N9: 150 | O9: 200 | P9: 20 | Q9: 125 | R9: 200 | S9: 250 | T9: 250 | U9: 100 | W9: 225 | X9: 150
B10: Mandeln | C10: gerieben | D10: [g] | E10: 50 | H10: 9 | J10: 150 | P10: 200
B11: Mandeln | C11: gehackt | D11: [g] | G11: 75 | W11: 60
B12: Mandeln | C12: gehobelt | D12: [g] | K12: 30 | O12: 70
B13: Mandelblättchen | D13: [St.] | S13: 60
B14: Haselnüsse | D14: [g] | E14: 50
B15: Haselnüsse | C15: gehackt | D15: [g] | N15: 50
B16: Kokosraspel | D16: [g] | N16: 75 | R16: 60 | V16: 125
B17: Pistazien | C17: gehackt | D17: [g] | U17: 100
B18: Walnüsse | C18: gemahlen | D18: [g] | M18: 100 | S18: 200
B19: Marzipanrohmasse | D19: [g] | J19: 100 | L19: 200 | U19: 450 | V19: 100
B20: Kakaopulver | D20: [g] | F20: 40 | N20: 25 | P20: 30 | X20: 30
B21: Speisestärke | D21: [g] | O21: 150 | Q21: 60
B22: Ahornsirup | D22: [g] | G22: 125
B23: Zitronat | C23: gehackt | D23: [g] | G23: 75
B24: Pottasche | D24: [g] | G24: 7
B25: Blockschokolade | D25: [g] | H25: 100 | P25: 150 | Q25: 100
B26: Marmelade | D26: [g] | I26: 250 | V26: 125
B27: Nüsse | C27: gerieben | D27: [g] | J27: 150
B28: Orangeat | C28: gehackt | D28: [g] | J28: 70
B29: Kurvertüre | D29: [g] | J29: 250 | L29: 100 | M29: 100 | O29: 150 | S29: 80 | W29: 100
B30: Haselnusmus | D30: [g] | K30: 200
B31: Sucanat | D31: [g] | K31: 150
B32: Dopppelrahmfrischkäse | D32: [g] | N32: 100
B34: Eigelb | D34: [St.] | E34: 2 | H34: 1 | I34: 1 | K34: 2 | L34: 2 | M34: 1 | N34: 1 | O34: 2 | Q34: 1 | U34: 1 | W34: 1 | X34: 1
B35: Eiweiß | D35: [St.] | F35: 2 | H35: 1 | J35: 4 | K35: 2 | L35: 2 | M35: 1 | N35: 1 | O35: 2 | P35: 4 | Q35: 1 | U35: 1 | V35: 2 | W35: 1
B36: Zitrone | D36: [St.] | H36: 1 | V36: 0.5
B37: abgeriebene Schale Zitrone | D37: [St.] | I37: 1 | J37: 0.25 | L37: 1 | R37: 0.5 | W37: 0.5
B38: abgeriebene Schale Orange | D38: [St.] | Q38: 1
B39: Vanillieschoten | D39: [St.] | R39: 2
B40: Backoblaten | C40: d = 5 cm | D40: [St.] | J40: 42
B42: Vanilliezucker | D42: [Pck.] | E42: 5 | H42: 1 | I42: 1 | L42: 1 | N42: 1 | Q42: 1 | T42: 1 | W42: 1
B44: Puderzucker | D44: [Tasse] | E44: 0.5 | I44: 0.5
B45: Puderzucker | D45: [g] | F45: 150 | P45: 200 | R45: 75 | U45: 130 | W45: 100 | X45: 125
B47: Gewürznelken | C47: gemahlen | D47: [Tl.] | G47: 0.5 | J47: 0.5
B48: Zimt | C48: gemahlen | D48: [Tl.] | G48: 2 | H48: 0.25 | J48: 0.25 | M48: 1 | U48: 2
B49: Ingverpulver | D49: [Tl.] | G49: 0.5
B50: Kardamon | D50: [Tl.] | H50: 0.25 | J50: 0.25
B51: Backpulver | D51: [Tl.] | K51: 1 | L51: 1 | M51: 1 | O51: 1 | Q51: 1 | X51: 1
B52: Milch | D52: [Eßl.] | H52: 3 | N52: 1 | W52: 5
B53: Sahne | C53: (1 Eß = 15 ml = 10 g) | D53: [g] | P53: 80 | S53: 20 | U53: 50 | W53: 50
B54: Salz | D54: [Pr.] | I54: 1 | L54: 1 | T54: 1 | U54: 1 | V54: 1 | W54: 1 | X54: 1
B55: Rum | C55: (Tl = 5 ml) | D55: [cl] | I55: 2 | U55: 1
B56: Hirschhornsalz | D56: [g] | J56: 5
B57: Muskat | D57: [Tl.] | J57: 0.25
B58: Macis | D58: [Pr.] | M58: 1
B59: Natron | D59: [TL] | N59: 0.5
B60: Buttermandelaroma | D60: [Tr] | S60: 2

Sheet ZWtab (hidden)
E1: =COLUMN(E2)-4 -> 1 | F1: =COLUMN(F2)-4 -> 2 | G1: 3 | H1: 4 | I1: 5 | J1: 6 | K1: 7 | L1: 8 | M1: 9 | N1: 10 | O1: 11 | P1: 12 | Q1: 13 | R1: 14 | S1: 15 | T1: 16 | U1: 17 | V1: 18 | W1: 19 | X1: 20 | Y1: 21 | Z1: 22 | AA1: 23 | AB1: 24 | AC1: 25 | AD1: 26 | AE1: 27 | AF1: 28 | AG1: 29 | AH1: 30
E2: =IF(Liste!E3="","",Liste!E3) -> Wiener Vanillekipfel | F2: =IF(Liste!F3="","",Liste!F3) -> Schwarzweißgebäck | G2: =IF(Liste!G3="","",Liste!G3) -> Brune Kager | H2: =IF(Liste!H3="","",Liste!H3) -> Italienische Pangani | I2: =IF(Liste!I3="","",Liste!I3) -> Marillenringe | J2: =IF(Liste!J3="","",Liste!J3) -> Elisenlebkuchen | K2: =IF(Liste!K3="","",Liste!K3) -> Nusshäufchen | L2: =IF(Liste!L3="","",Liste!L3) -> Marzipanstangen | M2: =IF(Liste!M3="","",Liste!M3) -> Walnußbusserl | N2: =IF(Liste!N3="","",Liste!N3) -> Kokosspiralen | O2: =IF(Liste!O3="","",Liste!O3) -> Mandelplätzchen | P2: =IF(Liste!P3="","",Liste!P3) -> Trüffelmakronen | Q2: =IF(Liste!Q3="","",Liste!Q3) -> Orangen-Schoko-Plätzchen | R2: =IF(Liste!R3="","",Liste!R3) -> Kokos-Kipferln | S2: =IF(Liste!S3="","",Liste!S3) -> Nusskipferln | T2: =IF(Liste!T3="","",Liste!T3) -> Heidesand mit Meersalz | U2: =IF(Liste!U3="","",Liste!U3) -> Pistazienschnitten | V2: =IF(Liste!V3="","",Liste!V3) -> Marmeladenplätzchen | W2: =IF(Liste!W3="","",Liste!W3) -> Grazer Mandelrauten | X2: =IF(Liste!X3="","",Liste!X3) -> Marmorhappen | Y2: =IF(Liste!Y3="","",Liste!Y3) ->  | Z2: =IF(Liste!Z3="","",Liste!Z3) ->  | AA2: =IF(Liste!AA3="","",Liste!AA3) ->  | AB2: =IF(Liste!AB3="","",Liste!AB3) ->  | AC2: =IF(Liste!AC3="","",Liste!AC3) ->  | AD2: =IF(Liste!AD3="","",Liste!AD3) ->  | AE2: =IF(Liste!AE3="","",Liste!AE3) ->  | AF2: =IF(Liste!AF3="","",Liste!AF3) ->  | AG2: =IF(Liste!AG3="","",Liste!AG3) ->  | AH2: =IF(Liste!AH3="","",Liste!AH3) -> 
A4: SUMME | B4: Stück | E4: =IF(Auswahl!$D3="",0,Auswahl!$D3) -> 0 | F4: =IF(Auswahl!$D4="",0,Auswahl!$D4) -> 80 | G4: =IF(Auswahl!$D5="",0,Auswahl!$D5) -> 0 | H4: =IF(Auswahl!$D6="",0,Auswahl!$D6) -> 0 | I4: =IF(Auswahl!$D7="",0,Auswahl!$D7) -> 0 | J4: =IF(Auswahl!$D8="",0,Auswahl!$D8) -> 0 | K4: =IF(Auswahl!$D9="",0,Auswahl!$D9) -> 25 | L4: =IF(Auswahl!$D10="",0,Auswahl!$D10) -> 50 | M4: =IF(Auswahl!$D11="",0,Auswahl!$D11) -> 0 | N4: =IF(Auswahl!$D12="",0,Auswahl!$D12) -> 0 | O4: =IF(Auswahl!$D13="",0,Auswahl!$D13) -> 35 | P4: =IF(Auswahl!$D14="",0,Auswahl!$D14) -> 30 | Q4: =IF(Auswahl!$D15="",0,Auswahl!$D15) -> 0 | R4: =IF(Auswahl!$D16="",0,Auswahl!$D16) -> 0 | S4: =IF(Auswahl!$D17="",0,Auswahl!$D17) -> 60 | T4: =IF(Auswahl!$D18="",0,Auswahl!$D18) -> 0 | U4: =IF(Auswahl!$D19="",0,Auswahl!$D19) -> 0 | V4: =IF(Auswahl!$D20="",0,Auswahl!$D20) -> 30 | W4: =IF(Auswahl!$D21="",0,Auswahl!$D21) -> 0 | X4: =IF(Auswahl!$D22="",0,Auswahl!$D22) -> 40 | Y4: =IF(Auswahl!$D23="",0,Auswahl!$D23) -> 0 | Z4: =IF(Auswahl!$D24="",0,Auswahl!$D24) -> 0 | AA4: =IF(Auswahl!$D25="",0,Auswahl!$D25) -> 0 | AB4: =IF(Auswahl!$D26="",0,Auswahl!$D26) -> 0 | AC4: =IF(Auswahl!$D27="",0,Auswahl!$D27) -> 0 | AD4: =IF(Auswahl!$D28="",0,Auswahl!$D28) -> 0 | AE4: =IF(Auswahl!$D29="",0,Auswahl!$D29) -> 0 | AF4: =IF(Auswahl!$D30="",0,Auswahl!$D30) -> 0 | AG4: =IF(Auswahl!$D31="",0,Auswahl!$D31) -> 0 | AH4: =IF(Auswahl!$D32="",0,Auswahl!$D32) -> 0
B5: Zutaten
C6: Zusatz | D6: Runden | E6: 0 | F6: 0 | G6: 0 | H6: 0 | I6: 0 | J6: 0 | K6: 0 | L6: 0 | M6: 0 | N6: 0 | O6: 0 | P6: 0 | Q6: 0 | R6: 0 | S6: 0 | T6: 0 | U6: 0 | V6: 0 | W6: 0 | X6: 0 | Y6: 0 | Z6: 0 | AA6: 0 | AB6: 0 | AC6: 0 | AD6: 0 | AE6: 0 | AF6: 0 | AG6: 0 | AH6: 0
A7: =IF(SUM($E7:$AH7)=0,"",SUM($E7:$AH7)) -> 1735 | B7: =IF(Liste!B7="","",Liste!B7) -> Mehl | C7: =IF(Liste!C7="","",Liste!C7) ->  | D7: =IF(Liste!D7="","",Liste!D7) -> [g] | E7: =IF(E$4=0,"",IF(Liste!E7="","",ROUND(E$4/Liste!E$5*Liste!E7,E$6))) ->  | F7: =IF(F$4=0,"",IF(Liste!F7="","",ROUND(F$4/Liste!F$5*Liste!F7,F$6))) -> 400 | G7: =IF(G$4=0,"",IF(Liste!G7="","",ROUND(G$4/Liste!G$5*Liste!G7,G$6))) ->  | H7: =IF(H$4=0,"",IF(Liste!H7="","",ROUND(H$4/Liste!H$5*Liste!H7,H$6))) ->  | I7: =IF(I$4=0,"",IF(Liste!I7="","",ROUND(I$4/Liste!I$5*Liste!I7,I$6))) ->  | J7: =IF(J$4=0,"",IF(Liste!J7="","",ROUND(J$4/Liste!J$5*Liste!J7,J$6))) ->  | K7: =IF(K$4=0,"",IF(Liste!K7="","",ROUND(K$4/Liste!K$5*Liste!K7,K$6))) -> 250 | L7: =IF(L$4=0,"",IF(Liste!L7="","",ROUND(L$4/Liste!L$5*Liste!L7,L$6))) -> 200 | M7: =IF(M$4=0,"",IF(Liste!M7="","",ROUND(M$4/Liste!M$5*Liste!M7,M$6))) ->  | N7: =IF(N$4=0,"",IF(Liste!N7="","",ROUND(N$4/Liste!N$5*Liste!N7,N$6))) ->  | O7: =IF(O$4=0,"",IF(Liste!O7="","",ROUND(O$4/Liste!O$5*Liste!O7,O$6))) -> 350 | P7: =IF(P$4=0,"",IF(Liste!P7="","",ROUND(P$4/Liste!P$5*Liste!P7,P$6))) ->  | Q7: =IF(Q$4=0,"",IF(Liste!Q7="","",ROUND(Q$4/Liste!Q$5*Liste!Q7,Q$6))) ->  | R7: =IF(R$4=0,"",IF(Liste!R7="","",ROUND(R$4/Liste!R$5*Liste!R7,R$6))) ->  | S7: =IF(S$4=0,"",IF(Liste!S7="","",ROUND(S$4/Liste!S$5*Liste!S7,S$6))) -> 200 | T7: =IF(T$4=0,"",IF(Liste!T7="","",ROUND(T$4/Liste!T$5*Liste!T7,T$6))) ->  | U7: =IF(U$4=0,"",IF(Liste!U7="","",ROUND(U$4/Liste!U$5*Liste!U7,U$6))) ->  | V7: =IF(V$4=0,"",IF(Liste!V7="","",ROUND(V$4/Liste!V$5*Liste!V7,V$6))) -> 45 | W7: =IF(W$4=0,"",IF(Liste!W7="","",ROUND(W$4/Liste!W$5*Liste!W7,W$6))) ->  | X7: =IF(X$4=0,"",IF(Liste!X7="","",ROUND(X$4/Liste!X$5*Liste!X7,X$6))) -> 290 | Y7: =IF(Y$4=0,"",IF(Liste!Y7="","",ROUND(Y$4/Liste!Y$5*Liste!Y7,Y$6))) ->  | Z7: =IF(Z$4=0,"",IF(Liste!Z7="","",ROUND(Z$4/Liste!Z$5*Liste!Z7,Z$6))) ->  | AA7: =IF(AA$4=0,"",IF(Liste!AA7="","",ROUND(AA$4/Liste!AA$5*Liste!AA7,AA$6))) ->  | AB7: =IF(AB$4=0,"",IF(Liste!AB7="","",ROUND(AB$4/Liste!AB$5*Liste!AB7,AB$6))) ->  | AC7: =IF(AC$4=0,"",IF(Liste!AC7="","",ROUND(AC$4/Liste!AC$5*Liste!AC7,AC$6))) ->  | AD7: =IF(AD$4=0,"",IF(Liste!AD7="","",ROUND(AD$4/Liste!AD$5*Liste!AD7,AD$6))) ->  | AE7: =IF(AE$4=0,"",IF(Liste!AE7="","",ROUND(AE$4/Liste!AE$5*Liste!AE7,AE$6))) ->  | AF7: =IF(AF$4=0,"",IF(Liste!AF7="","",ROUND(AF$4/Liste!AF$5*Liste!AF7,AF$6))) ->  | AG7: =IF(AG$4=0,"",IF(Liste!AG7="","",ROUND(AG$4/Liste!AG$5*Liste!AG7,AG$6))) ->  | AH7: =IF(AH$4=0,"",IF(Liste!AH7="","",ROUND(AH$4/Liste!AH$5*Liste!AH7,AH$6))) -> 
A8: =IF(SUM($E8:$AH8)=0,"",SUM($E8:$AH8)) -> 460 | B8: =IF(Liste!B8="","",Liste!B8) -> Zucker | C8: =IF(Liste!C8="","",Liste!C8) ->  | D8: =IF(Liste!D8="","",Liste!D8) -> [g] | E8: =IF(E$4=0,"",IF(Liste!E8="","",ROUND(E$4/Liste!E$5*Liste!E8,E$6))) ->  | F8: =IF(F$4=0,"",IF(Liste!F8="","",ROUND(F$4/Liste!F$5*Liste!F8,F$6))) ->  | G8: =IF(G$4=0,"",IF(Liste!G8="","",ROUND(G$4/Liste!G$5*Liste!G8,G$6))) ->  | H8: =IF(H$4=0,"",IF(Liste!H8="","",ROUND(H$4/Liste!H$5*Liste!H8,H$6))) ->  | I8: =IF(I$4=0,"",IF(Liste!I8="","",ROUND(I$4/Liste!I$5*Liste!I8,I$6))) ->  | J8: =IF(J$4=0,"",IF(Liste!J8="","",ROUND(J$4/Liste!J$5*Liste!J8,J$6))) ->  | K8: =IF(K$4=0,"",IF(Liste!K8="","",ROUND(K$4/Liste!K$5*Liste!K8,K$6))) ->  | L8: =IF(L$4=0,"",IF(Liste!L8="","",ROUND(L$4/Liste!L$5*Liste!L8,L$6))) -> 100 | M8: =IF(M$4=0,"",IF(Liste!M8="","",ROUND(M$4/Liste!M$5*Liste!M8,M$6))) ->  | N8: =IF(N$4=0,"",IF(Liste!N8="","",ROUND(N$4/Liste!N$5*Liste!N8,N$6))) ->  | O8: =IF(O$4=0,"",IF(Liste!O8="","",ROUND(O$4/Liste!O$5*Liste!O8,O$6))) -> 200 | P8: =IF(P$4=0,"",IF(Liste!P8="","",ROUND(P$4/Liste!P$5*Liste!P8,P$6))) ->  | Q8: =IF(Q$4=0,"",IF(Liste!Q8="","",ROUND(Q$4/Liste!Q$5*Liste!Q8,Q$6))) ->  | R8: =IF(R$4=0,"",IF(Liste!R8="","",ROUND(R$4/Liste!R$5*Liste!R8,R$6))) ->  | S8: =IF(S$4=0,"",IF(Liste!S8="","",ROUND(S$4/Liste!S$5*Liste!S8,S$6))) -> 100 | T8: =IF(T$4=0,"",IF(Liste!T8="","",ROUND(T$4/Liste!T$5*Liste!T8,T$6))) ->  | U8: =IF(U$4=0,"",IF(Liste!U8="","",ROUND(U$4/Liste!U$5*Liste!U8,U$6))) ->  | V8: =IF(V$4=0,"",IF(Liste!V8="","",ROUND(V$4/Liste!V$5*Liste!V8,V$6))) -> 60 | W8: =IF(W$4=0,"",IF(Liste!W8="","",ROUND(W$4/Liste!W$5*Liste!W8,W$6))) ->  | X8: =IF(X$4=0,"",IF(Liste!X8="","",ROUND(X$4/Liste!X$5*Liste!X8,X$6))) ->  | Y8: =IF(Y$4=0,"",IF(Liste!Y8="","",ROUND(Y$4/Liste!Y$5*Liste!Y8,Y$6))) ->  | Z8: =IF(Z$4=0,"",IF(Liste!Z8="","",ROUND(Z$4/Liste!Z$5*Liste!Z8,Z$6))) ->  | AA8: =IF(AA$4=0,"",IF(Liste!AA8="","",ROUND(AA$4/Liste!AA$5*Liste!AA8,AA$6))) ->  | AB8: =IF(AB$4=0,"",IF(Liste!AB8="","",ROUND(AB$4/Liste!AB$5*Liste!AB8,AB$6))) ->  | AC8: =IF(AC$4=0,"",IF(Liste!AC8="","",ROUND(AC$4/Liste!AC$5*Liste!AC8,AC$6))) ->  | AD8: =IF(AD$4=0,"",IF(Liste!AD8="","",ROUND(AD$4/Liste!AD$5*Liste!AD8,AD$6))) ->  | AE8: =IF(AE$4=0,"",IF(Liste!AE8="","",ROUND(AE$4/Liste!AE$5*Liste!AE8,AE$6))) ->  | AF8: =IF(AF$4=0,"",IF(Liste!AF8="","",ROUND(AF$4/Liste!AF$5*Liste!AF8,AF$6))) ->  | AG8: =IF(AG$4=0,"",IF(Liste!AG8="","",ROUND(AG$4/Liste!AG$5*Liste!AG8,AG$6))) ->  | AH8: =IF(AH$4=0,"",IF(Liste!AH8="","",ROUND(AH$4/Liste!AH$5*Liste!AH8,AH$6))) -> 
A9: 1195 | B9: =IF(Liste!B9="","",Liste!B9) -> Butter | C9: =IF(Liste!C9="","",Liste!C9) ->  | D9: =IF(Liste!D9="","",Liste!D9) -> [g] | E9: =IF(E$4=0,"",IF(Liste!E9="","",ROUND(E$4/Liste!E$5*Liste!E9,E$6))) ->  | F9: =IF(F$4=0,"",IF(Liste!F9="","",ROUND(F$4/Liste!F$5*Liste!F9,F$6))) -> 300 | G9: =IF(G$4=0,"",IF(Liste!G9="","",ROUND(G$4/Liste!G$5*Liste!G9,G$6))) ->  | H9: =IF(H$4=0,"",IF(Liste!H9="","",ROUND(H$4/Liste!H$5*Liste!H9,H$6))) ->  | I9: =IF(I$4=0,"",IF(Liste!I9="","",ROUND(I$4/Liste!I$5*Liste!I9,I$6))) ->  | J9: =IF(J$4=0,"",IF(Liste!J9="","",ROUND(J$4/Liste!J$5*Liste!J9,J$6))) ->  | K9: =IF(K$4=0,"",IF(Liste!K9="","",ROUND(K$4/Liste!K$5*Liste!K9,K$6))) -> 150 | L9: =IF(L$4=0,"",IF(Liste!L9="","",ROUND(L$4/Liste!L$5*Liste!L9,L$6))) -> 125 | M9: =IF(M$4=0,"",IF(Liste!M9="","",ROUND(M$4/Liste!M$5*Liste!M9,M$6))) ->  | N9: =IF(N$4=0,"",IF(Liste!N9="","",ROUND(N$4/Liste!N$5*Liste!N9,N$6))) ->  | O9: =IF(O$4=0,"",IF(Liste!O9="","",ROUND(O$4/Liste!O$5*Liste!O9,O$6))) -> 200 | P9: =IF(P$4=0,"",IF(Liste!P9="","",ROUND(P$4/Liste!P$5*Liste!P9,P$6))) -> 20 | Q9: =IF(Q$4=0,"",IF(Liste!Q9="","",ROUND(Q$4/Liste!Q$5*Liste!Q9,Q$6))) ->  | R9: =IF(R$4=0,"",IF(Liste!R9="","",ROUND(R$4/Liste!R$5*Liste!R9,R$6))) ->  | S9: =IF(S$4=0,"",IF(Liste!S9="","",ROUND(S$4/Liste!S$5*Liste!S9,S$6))) -> 250 | T9: =IF(T$4=0,"",IF(Liste!T9="","",ROUND(T$4/Liste!T$5*Liste!T9,T$6))) ->  | U9: =IF(U$4=0,"",IF(Liste!U9="","",ROUND(U$4/Liste!U$5*Liste!U9,U$6))) ->  | V9: =IF(V$4=0,"",IF(Liste!V9="","",ROUND(V$4/Liste!V$5*Liste!V9,V$6))) ->  | W9: =IF(W$4=0,"",IF(Liste!W9="","",ROUND(W$4/Liste!W$5*Liste!W9,W$6))) ->  | X9: =IF(X$4=0,"",IF(Liste!X9="","",ROUND(X$4/Liste!X$5*Liste!X9,X$6))) -> 150 | Y9: =IF(Y$4=0,"",IF(Liste!Y9="","",ROUND(Y$4/Liste!Y$5*Liste!Y9,Y$6))) ->  | Z9: =IF(Z$4=0,"",IF(Liste!Z9="","",ROUND(Z$4/Liste!Z$5*Liste!Z9,Z$6))) ->  | AA9: =IF(AA$4=0,"",IF(Liste!AA9="","",ROUND(AA$4/Liste!AA$5*Liste!AA9,AA$6))) ->  | AB9: =IF(AB$4=0,"",IF(Liste!AB9="","",ROUND(AB$4/Liste!AB$5*Liste!AB9,AB$6))) ->  | AC9: =IF(AC$4=0,"",IF(Liste!AC9="","",ROUND(AC$4/Liste!AC$5*Liste!AC9,AC$6))) ->  | AD9: =IF(AD$4=0,"",IF(Liste!AD9="","",ROUND(AD$4/Liste!AD$5*Liste!AD9,AD$6))) ->  | AE9: =IF(AE$4=0,"",IF(Liste!AE9="","",ROUND(AE$4/Liste!AE$5*Liste!AE9,AE$6))) ->  | AF9: =IF(AF$4=0,"",IF(Liste!AF9="","",ROUND(AF$4/Liste!AF$5*Liste!AF9,AF$6))) ->  | AG9: =IF(AG$4=0,"",IF(Liste!AG9="","",ROUND(AG$4/Liste!AG$5*Liste!AG9,AG$6))) ->  | AH9: =IF(AH$4=0,"",IF(Liste!AH9="","",ROUND(AH$4/Liste!AH$5*Liste!AH9,AH$6))) -> 
A10: 200 | B10: =IF(Liste!B10="","",Liste!B10) -> Mandeln | C10: =IF(Liste!C10="","",Liste!C10) -> gerieben | D10: =IF(Liste!D10="","",Liste!D10) -> [g] | E10: =IF(E$4=0,"",IF(Liste!E10="","",ROUND(E$4/Liste!E$5*Liste!E10,E$6))) ->  | F10: =IF(F$4=0,"",IF(Liste!F10="","",ROUND(F$4/Liste!F$5*Liste!F10,F$6))) ->  | G10: =IF(G$4=0,"",IF(Liste!G10="","",ROUND(G$4/Liste!G$5*Liste!G10,G$6))) ->  | H10: =IF(H$4=0,"",IF(Liste!H10="","",ROUND(H$4/Liste!H$5*Liste!H10,H$6))) ->  | I10: =IF(I$4=0,"",IF(Liste!I10="","",ROUND(I$4/Liste!I$5*Liste!I10,I$6))) ->  | J10: =IF(J$4=0,"",IF(Liste!J10="","",ROUND(J$4/Liste!J$5*Liste!J10,J$6))) ->  | K10: =IF(K$4=0,"",IF(Liste!K10="","",ROUND(K$4/Liste!K$5*Liste!K10,K$6))) ->  | L10: =IF(L$4=0,"",IF(Liste!L10="","",ROUND(L$4/Liste!L$5*Liste!L10,L$6))) ->  | M10: =IF(M$4=0,"",IF(Liste!M10="","",ROUND(M$4/Liste!M$5*Liste!M10,M$6))) ->  | N10: =IF(N$4=0,"",IF(Liste!N10="","",ROUND(N$4/Liste!N$5*Liste!N10,N$6))) ->  | O10: =IF(O$4=0,"",IF(Liste!O10="","",ROUND(O$4/Liste!O$5*Liste!O10,O$6))) ->  | P10: =IF(P$4=0,"",IF(Liste!P10="","",ROUND(P$4/Liste!P$5*Liste!P10,P$6))) -> 200 | Q10: =IF(Q$4=0,"",IF(Liste!Q10="","",ROUND(Q$4/Liste!Q$5*Liste!Q10,Q$6))) ->  | R10: =IF(R$4=0,"",IF(Liste!R10="","",ROUND(R$4/Liste!R$5*Liste!R10,R$6))) ->  | S10: =IF(S$4=0,"",IF(Liste!S10="","",ROUND(S$4/Liste!S$5*Liste!S10,S$6))) ->  | T10: =IF(T$4=0,"",IF(Liste!T10="","",ROUND(T$4/Liste!T$5*Liste!T10,T$6))) ->  | U10: =IF(U$4=0,"",IF(Liste!U10="","",ROUND(U$4/Liste!U$5*Liste!U10,U$6))) ->  | V10: =IF(V$4=0,"",IF(Liste!V10="","",ROUND(V$4/Liste!V$5*Liste!V10,V$6))) ->  | W10: =IF(W$4=0,"",IF(Liste!W10="","",ROUND(W$4/Liste!W$5*Liste!W10,W$6))) ->  | X10: =IF(X$4=0,"",IF(Liste!X10="","",ROUND(X$4/Liste!X$5*Liste!X10,X$6))) ->  | Y10: =IF(Y$4=0,"",IF(Liste!Y10="","",ROUND(Y$4/Liste!Y$5*Liste!Y10,Y$6))) ->  | Z10: =IF(Z$4=0,"",IF(Liste!Z10="","",ROUND(Z$4/Liste!Z$5*Liste!Z10,Z$6))) ->  | AA10: =IF(AA$4=0,"",IF(Liste!AA10="","",ROUND(AA$4/Liste!AA$5*Liste!AA10,AA$6))) ->  | AB10: =IF(AB$4=0,"",IF(Liste!AB10="","",ROUND(AB$4/Liste!AB$5*Liste!AB10,AB$6))) ->  | AC10: =IF(AC$4=0,"",IF(Liste!AC10="","",ROUND(AC$4/Liste!AC$5*Liste!AC10,AC$6))) ->  | AD10: =IF(AD$4=0,"",IF(Liste!AD10="","",ROUND(AD$4/Liste!AD$5*Liste!AD10,AD$6))) ->  | AE10: =IF(AE$4=0,"",IF(Liste!AE10="","",ROUND(AE$4/Liste!AE$5*Liste!AE10,AE$6))) ->  | AF10: =IF(AF$4=0,"",IF(Liste!AF10="","",ROUND(AF$4/Liste!AF$5*Liste!AF10,AF$6))) ->  | AG10: =IF(AG$4=0,"",IF(Liste!AG10="","",ROUND(AG$4/Liste!AG$5*Liste!AG10,AG$6))) ->  | AH10: =IF(AH$4=0,"",IF(Liste!AH10="","",ROUND(AH$4/Liste!AH$5*Liste!AH10,AH$6))) -> 
B11: =IF(Liste!B11="","",Liste!B11) -> Mandeln | C11: =IF(Liste!C11="","",Liste!C11) -> gehackt | D11: =IF(Liste!D11="","",Liste!D11) -> [g] | E11: =IF(E$4=0,"",IF(Liste!E11="","",ROUND(E$4/Liste!E$5*Liste!E11,E$6))) ->  | F11: =IF(F$4=0,"",IF(Liste!F11="","",ROUND(F$4/Liste!F$5*Liste!F11,F$6))) ->  | G11: =IF(G$4=0,"",IF(Liste!G11="","",ROUND(G$4/Liste!G$5*Liste!G11,G$6))) ->  | H11: =IF(H$4=0,"",IF(Liste!H11="","",ROUND(H$4/Liste!H$5*Liste!H11,H$6))) ->  | I11: =IF(I$4=0,"",IF(Liste!I11="","",ROUND(I$4/Liste!I$5*Liste!I11,I$6))) ->  | J11: =IF(J$4=0,"",IF(Liste!J11="","",ROUND(J$4/Liste!J$5*Liste!J11,J$6))) ->  | K11: =IF(K$4=0,"",IF(Liste!K11="","",ROUND(K$4/Liste!K$5*Liste!K11,K$6))) ->  | L11: =IF(L$4=0,"",IF(Liste!L11="","",ROUND(L$4/Liste!L$5*Liste!L11,L$6))) ->  | M11: =IF(M$4=0,"",IF(Liste!M11="","",ROUND(M$4/Liste!M$5*Liste!M11,M$6))) ->  | N11: =IF(N$4=0,"",IF(Liste!N11="","",ROUND(N$4/Liste!N$5*Liste!N11,N$6))) ->  | O11: =IF(O$4=0,"",IF(Liste!O11="","",ROUND(O$4/Liste!O$5*Liste!O11,O$6))) ->  | P11: =IF(P$4=0,"",IF(Liste!P11="","",ROUND(P$4/Liste!P$5*Liste!P11,P$6))) ->  | Q11: =IF(Q$4=0,"",IF(Liste!Q11="","",ROUND(Q$4/Liste!Q$5*Liste!Q11,Q$6))) ->  | R11: =IF(R$4=0,"",IF(Liste!R11="","",ROUND(R$4/Liste!R$5*Liste!R11,R$6))) ->  | S11: =IF(S$4=0,"",IF(Liste!S11="","",ROUND(S$4/Liste!S$5*Liste!S11,S$6))) ->  | T11: =IF(T$4=0,"",IF(Liste!T11="","",ROUND(T$4/Liste!T$5*Liste!T11,T$6))) ->  | U11: =IF(U$4=0,"",IF(Liste!U11="","",ROUND(U$4/Liste!U$5*Liste!U11,U$6))) ->  | V11: =IF(V$4=0,"",IF(Liste!V11="","",ROUND(V$4/Liste!V$5*Liste!V11,V$6))) ->  | W11: =IF(W$4=0,"",IF(Liste!W11="","",ROUND(W$4/Liste!W$5*Liste!W11,W$6))) ->  | X11: =IF(X$4=0,"",IF(Liste!X11="","",ROUND(X$4/Liste!X$5*Liste!X11,X$6))) ->  | Y11: =IF(Y$4=0,"",IF(Liste!Y11="","",ROUND(Y$4/Liste!Y$5*Liste!Y11,Y$6))) ->  | Z11: =IF(Z$4=0,"",IF(Liste!Z11="","",ROUND(Z$4/Liste!Z$5*Liste!Z11,Z$6))) ->  | AA11: =IF(AA$4=0,"",IF(Liste!AA11="","",ROUND(AA$4/Liste!AA$5*Liste!AA11,AA$6))) ->  | AB11: =IF(AB$4=0,"",IF(Liste!AB11="","",ROUND(AB$4/Liste!AB$5*Liste!AB11,AB$6))) ->  | AC11: =IF(AC$4=0,"",IF(Liste!AC11="","",ROUND(AC$4/Liste!AC$5*Liste!AC11,AC$6))) ->  | AD11: =IF(AD$4=0,"",IF(Liste!AD11="","",ROUND(AD$4/Liste!AD$5*Liste!AD11,AD$6))) ->  | AE11: =IF(AE$4=0,"",IF(Liste!AE11="","",ROUND(AE$4/Liste!AE$5*Liste!AE11,AE$6))) ->  | AF11: =IF(AF$4=0,"",IF(Liste!AF11="","",ROUND(AF$4/Liste!AF$5*Liste!AF11,AF$6))) ->  | AG11: =IF(AG$4=0,"",IF(Liste!AG11="","",ROUND(AG$4/Liste!AG$5*Liste!AG11,AG$6))) ->  | AH11: =IF(AH$4=0,"",IF(Liste!AH11="","",ROUND(AH$4/Liste!AH$5*Liste!AH11,AH$6))) -> 
A12: 100 | B12: =IF(Liste!B12="","",Liste!B12) -> Mandeln | C12: =IF(Liste!C12="","",Liste!C12) -> gehobelt | D12: =IF(Liste!D12="","",Liste!D12) -> [g] | E12: =IF(E$4=0,"",IF(Liste!E12="","",ROUND(E$4/Liste!E$5*Liste!E12,E$6))) ->  | F12: =IF(F$4=0,"",IF(Liste!F12="","",ROUND(F$4/Liste!F$5*Liste!F12,F$6))) ->  | G12: =IF(G$4=0,"",IF(Liste!G12="","",ROUND(G$4/Liste!G$5*Liste!G12,G$6))) ->  | H12: =IF(H$4=0,"",IF(Liste!H12="","",ROUND(H$4/Liste!H$5*Liste!H12,H$6))) ->  | I12: =IF(I$4=0,"",IF(Liste!I12="","",ROUND(I$4/Liste!I$5*Liste!I12,I$6))) ->  | J12: =IF(J$4=0,"",IF(Liste!J12="","",ROUND(J$4/Liste!J$5*Liste!J12,J$6))) ->  | K12: =IF(K$4=0,"",IF(Liste!K12="","",ROUND(K$4/Liste!K$5*Liste!K12,K$6))) -> 30 | L12: =IF(L$4=0,"",IF(Liste!L12="","",ROUND(L$4/Liste!L$5*Liste!L12,L$6))) ->  | M12: =IF(M$4=0,"",IF(Liste!M12="","",ROUND(M$4/Liste!M$5*Liste!M12,M$6))) ->  | N12: =IF(N$4=0,"",IF(Liste!N12="","",ROUND(N$4/Liste!N$5*Liste!N12,N$6))) ->  | O12: =IF(O$4=0,"",IF(Liste!O12="","",ROUND(O$4/Liste!O$5*Liste!O12,O$6))) -> 70 | P12: =IF(P$4=0,"",IF(Liste!P12="","",ROUND(P$4/Liste!P$5*Liste!P12,P$6))) ->  | Q12: =IF(Q$4=0,"",IF(Liste!Q12="","",ROUND(Q$4/Liste!Q$5*Liste!Q12,Q$6))) ->  | R12: =IF(R$4=0,"",IF(Liste!R12="","",ROUND(R$4/Liste!R$5*Liste!R12,R$6))) ->  | S12: =IF(S$4=0,"",IF(Liste!S12="","",ROUND(S$4/Liste!S$5*Liste!S12,S$6))) ->  | T12: =IF(T$4=0,"",IF(Liste!T12="","",ROUND(T$4/Liste!T$5*Liste!T12,T$6))) ->  | U12: =IF(U$4=0,"",IF(Liste!U12="","",ROUND(U$4/Liste!U$5*Liste!U12,U$6))) ->  | V12: =IF(V$4=0,"",IF(Liste!V12="","",ROUND(V$4/Liste!V$5*Liste!V12,V$6))) ->  | W12: =IF(W$4=0,"",IF(Liste!W12="","",ROUND(W$4/Liste!W$5*Liste!W12,W$6))) ->  | X12: =IF(X$4=0,"",IF(Liste!X12="","",ROUND(X$4/Liste!X$5*Liste!X12,X$6))) ->  | Y12: =IF(Y$4=0,"",IF(Liste!Y12="","",ROUND(Y$4/Liste!Y$5*Liste!Y12,Y$6))) ->  | Z12: =IF(Z$4=0,"",IF(Liste!Z12="","",ROUND(Z$4/Liste!Z$5*Liste!Z12,Z$6))) ->  | AA12: =IF(AA$4=0,"",IF(Liste!AA12="","",ROUND(AA$4/Liste!AA$5*Liste!AA12,AA$6))) ->  | AB12: =IF(AB$4=0,"",IF(Liste!AB12="","",ROUND(AB$4/Liste!AB$5*Liste!AB12,AB$6))) ->  | AC12: =IF(AC$4=0,"",IF(Liste!AC12="","",ROUND(AC$4/Liste!AC$5*Liste!AC12,AC$6))) ->  | AD12: =IF(AD$4=0,"",IF(Liste!AD12="","",ROUND(AD$4/Liste!AD$5*Liste!AD12,AD$6))) ->  | AE12: =IF(AE$4=0,"",IF(Liste!AE12="","",ROUND(AE$4/Liste!AE$5*Liste!AE12,AE$6))) ->  | AF12: =IF(AF$4=0,"",IF(Liste!AF12="","",ROUND(AF$4/Liste!AF$5*Liste!AF12,AF$6))) ->  | AG12: =IF(AG$4=0,"",IF(Liste!AG12="","",ROUND(AG$4/Liste!AG$5*Liste!AG12,AG$6))) ->  | AH12: =IF(AH$4=0,"",IF(Liste!AH12="","",ROUND(AH$4/Liste!AH$5*Liste!AH12,AH$6))) -> 
A13: 60 | B13: =IF(Liste!B13="","",Liste!B13) -> Mandelblättchen | C13: =IF(Liste!C13="","",Liste!C13) ->  | D13: =IF(Liste!D13="","",Liste!D13) -> [St.] | E13: =IF(E$4=0,"",IF(Liste!E13="","",ROUND(E$4/Liste!E$5*Liste!E13,E$6))) ->  | F13: =IF(F$4=0,"",IF(Liste!F13="","",ROUND(F$4/Liste!F$5*Liste!F13,F$6))) ->  | G13: =IF(G$4=0,"",IF(Liste!G13="","",ROUND(G$4/Liste!G$5*Liste!G13,G$6))) ->  | H13: =IF(H$4=0,"",IF(Liste!H13="","",ROUND(H$4/Liste!H$5*Liste!H13,H$6))) ->  | I13: =IF(I$4=0,"",IF(Liste!I13="","",ROUND(I$4/Liste!I$5*Liste!I13,I$6))) ->  | J13: =IF(J$4=0,"",IF(Liste!J13="","",ROUND(J$4/Liste!J$5*Liste!J13,J$6))) ->  | K13: =IF(K$4=0,"",IF(Liste!K13="","",ROUND(K$4/Liste!K$5*Liste!K13,K$6))) ->  | L13: =IF(L$4=0,"",IF(Liste!L13="","",ROUND(L$4/Liste!L$5*Liste!L13,L$6))) ->  | M13: =IF(M$4=0,"",IF(Liste!M13="","",ROUND(M$4/Liste!M$5*Liste!M13,M$6))) ->  | N13: =IF(N$4=0,"",IF(Liste!N13="","",ROUND(N$4/Liste!N$5*Liste!N13,N$6))) ->  | O13: =IF(O$4=0,"",IF(Liste!O13="","",ROUND(O$4/Liste!O$5*Liste!O13,O$6))) ->  | P13: =IF(P$4=0,"",IF(Liste!P13="","",ROUND(P$4/Liste!P$5*Liste!P13,P$6))) ->  | Q13: =IF(Q$4=0,"",IF(Liste!Q13="","",ROUND(Q$4/Liste!Q$5*Liste!Q13,Q$6))) ->  | R13: =IF(R$4=0,"",IF(Liste!R13="","",ROUND(R$4/Liste!R$5*Liste!R13,R$6))) ->  | S13: =IF(S$4=0,"",IF(Liste!S13="","",ROUND(S$4/Liste!S$5*Liste!S13,S$6))) -> 60 | T13: =IF(T$4=0,"",IF(Liste!T13="","",ROUND(T$4/Liste!T$5*Liste!T13,T$6))) ->  | U13: =IF(U$4=0,"",IF(Liste!U13="","",ROUND(U$4/Liste!U$5*Liste!U13,U$6))) ->  | V13: =IF(V$4=0,"",IF(Liste!V13="","",ROUND(V$4/Liste!V$5*Liste!V13,V$6))) ->  | W13: =IF(W$4=0,"",IF(Liste!W13="","",ROUND(W$4/Liste!W$5*Liste!W13,W$6))) ->  | X13: =IF(X$4=0,"",IF(Liste!X13="","",ROUND(X$4/Liste!X$5*Liste!X13,X$6))) ->  | Y13: =IF(Y$4=0,"",IF(Liste!Y13="","",ROUND(Y$4/Liste!Y$5*Liste!Y13,Y$6))) ->  | Z13: =IF(Z$4=0,"",IF(Liste!Z13="","",ROUND(Z$4/Liste!Z$5*Liste!Z13,Z$6))) ->  | AA13: =IF(AA$4=0,"",IF(Liste!AA13="","",ROUND(AA$4/Liste!AA$5*Liste!AA13,AA$6))) ->  | AB13: =IF(AB$4=0,"",IF(Liste!AB13="","",ROUND(AB$4/Liste!AB$5*Liste!AB13,AB$6))) ->  | AC13: =IF(AC$4=0,"",IF(Liste!AC13="","",ROUND(AC$4/Liste!AC$5*Liste!AC13,AC$6))) ->  | AD13: =IF(AD$4=0,"",IF(Liste!AD13="","",ROUND(AD$4/Liste!AD$5*Liste!AD13,AD$6))) ->  | AE13: =IF(AE$4=0,"",IF(Liste!AE13="","",ROUND(AE$4/Liste!AE$5*Liste!AE13,AE$6))) ->  | AF13: =IF(AF$4=0,"",IF(Liste!AF13="","",ROUND(AF$4/Liste!AF$5*Liste!AF13,AF$6))) ->  | AG13: =IF(AG$4=0,"",IF(Liste!AG13="","",ROUND(AG$4/Liste!AG$5*Liste!AG13,AG$6))) ->  | AH13: =IF(AH$4=0,"",IF(Liste!AH13="","",ROUND(AH$4/Liste!AH$5*Liste!AH13,AH$6))) -> 
B14: =IF(Liste!B14="","",Liste!B14) -> Haselnüsse | C14: =IF(Liste!C14="","",Liste!C14) ->  | D14: =IF(Liste!D14="","",Liste!D14) -> [g] | E14: =IF(E$4=0,"",IF(Liste!E14="","",ROUND(E$4/Liste!E$5*Liste!E14,E$6))) ->  | F14: =IF(F$4=0,"",IF(Liste!F14="","",ROUND(F$4/Liste!F$5*Liste!F14,F$6))) ->  | G14: =IF(G$4=0,"",IF(Liste!G14="","",ROUND(G$4/Liste!G$5*Liste!G14,G$6))) ->  | H14: =IF(H$4=0,"",IF(Liste!H14="","",ROUND(H$4/Liste!H$5*Liste!H14,H$6))) ->  | I14: =IF(I$4=0,"",IF(Liste!I14="","",ROUND(I$4/Liste!I$5*Liste!I14,I$6))) ->  | J14: =IF(J$4=0,"",IF(Liste!J14="","",ROUND(J$4/Liste!J$5*Liste!J14,J$6))) ->  | K14: =IF(K$4=0,"",IF(Liste!K14="","",ROUND(K$4/Liste!K$5*Liste!K14,K$6))) ->  | L14: =IF(L$4=0,"",IF(Liste!L14="","",ROUND(L$4/Liste!L$5*Liste!L14,L$6))) ->  | M14: =IF(M$4=0,"",IF(Liste!M14="","",ROUND(M$4/Liste!M$5*Liste!M14,M$6))) ->  | N14: =IF(N$4=0,"",IF(Liste!N14="","",ROUND(N$4/Liste!N$5*Liste!N14,N$6))) ->  | O14: =IF(O$4=0,"",IF(Liste!O14="","",ROUND(O$4/Liste!O$5*Liste!O14,O$6))) ->  | P14: =IF(P$4=0,"",IF(Liste!P14="","",ROUND(P$4/Liste!P$5*Liste!P14,P$6))) ->  | Q14: =IF(Q$4=0,"",IF(Liste!Q14="","",ROUND(Q$4/Liste!Q$5*Liste!Q14,Q$6))) ->  | R14: =IF(R$4=0,"",IF(Liste!R14="","",ROUND(R$4/Liste!R$5*Liste!R14,R$6))) ->  | S14: =IF(S$4=0,"",IF(Liste!S14="","",ROUND(S$4/Liste!S$5*Liste!S14,S$6))) ->  | T14: =IF(T$4=0,"",IF(Liste!T14="","",ROUND(T$4/Liste!T$5*Liste!T14,T$6))) ->  | U14: =IF(U$4=0,"",IF(Liste!U14="","",ROUND(U$4/Liste!U$5*Liste!U14,U$6))) ->  | V14: =IF(V$4=0,"",IF(Liste!V14="","",ROUND(V$4/Liste!V$5*Liste!V14,V$6))) ->  | W14: =IF(W$4=0,"",IF(Liste!W14="","",ROUND(W$4/Liste!W$5*Liste!W14,W$6))) ->  | X14: =IF(X$4=0,"",IF(Liste!X14="","",ROUND(X$4/Liste!X$5*Liste!X14,X$6))) ->  | Y14: =IF(Y$4=0,"",IF(Liste!Y14="","",ROUND(Y$4/Liste!Y$5*Liste!Y14,Y$6))) ->  | Z14: =IF(Z$4=0,"",IF(Liste!Z14="","",ROUND(Z$4/Liste!Z$5*Liste!Z14,Z$6))) ->  | AA14: =IF(AA$4=0,"",IF(Liste!AA14="","",ROUND(AA$4/Liste!AA$5*Liste!AA14,AA$6))) ->  | AB14: =IF(AB$4=0,"",IF(Liste!AB14="","",ROUND(AB$4/Liste!AB$5*Liste!AB14,AB$6))) ->  | AC14: =IF(AC$4=0,"",IF(Liste!AC14="","",ROUND(AC$4/Liste!AC$5*Liste!AC14,AC$6))) ->  | AD14: =IF(AD$4=0,"",IF(Liste!AD14="","",ROUND(AD$4/Liste!AD$5*Liste!AD14,AD$6))) ->  | AE14: =IF(AE$4=0,"",IF(Liste!AE14="","",ROUND(AE$4/Liste!AE$5*Liste!AE14,AE$6))) ->  | AF14: =IF(AF$4=0,"",IF(Liste!AF14="","",ROUND(AF$4/Liste!AF$5*Liste!AF14,AF$6))) ->  | AG14: =IF(AG$4=0,"",IF(Liste!AG14="","",ROUND(AG$4/Liste!AG$5*Liste!AG14,AG$6))) ->  | AH14: =IF(AH$4=0,"",IF(Liste!AH14="","",ROUND(AH$4/Liste!AH$5*Liste!AH14,AH$6))) -> 
B15: =IF(Liste!B15="","",Liste!B15) -> Haselnüsse | C15: =IF(Liste!C15="","",Liste!C15) -> gehackt | D15: =IF(Liste!D15="","",Liste!D15) -> [g] | E15: =IF(E$4=0,"",IF(Liste!E15="","",ROUND(E$4/Liste!E$5*Liste!E15,E$6))) ->  | F15: =IF(F$4=0,"",IF(Liste!F15="","",ROUND(F$4/Liste!F$5*Liste!F15,F$6))) ->  | G15: =IF(G$4=0,"",IF(Liste!G15="","",ROUND(G$4/Liste!G$5*Liste!G15,G$6))) ->  | H15: =IF(H$4=0,"",IF(Liste!H15="","",ROUND(H$4/Liste!H$5*Liste!H15,H$6))) ->  | I15: =IF(I$4=0,"",IF(Liste!I15="","",ROUND(I$4/Liste!I$5*Liste!I15,I$6))) ->  | J15: =IF(J$4=0,"",IF(Liste!J15="","",ROUND(J$4/Liste!J$5*Liste!J15,J$6))) ->  | K15: =IF(K$4=0,"",IF(Liste!K15="","",ROUND(K$4/Liste!K$5*Liste!K15,K$6))) ->  | L15: =IF(L$4=0,"",IF(Liste!L15="","",ROUND(L$4/Liste!L$5*Liste!L15,L$6))) ->  | M15: =IF(M$4=0,"",IF(Liste!M15="","",ROUND(M$4/Liste!M$5*Liste!M15,M$6))) ->  | N15: =IF(N$4=0,"",IF(Liste!N15="","",ROUND(N$4/Liste!N$5*Liste!N15,N$6))) ->  | O15: =IF(O$4=0,"",IF(Liste!O15="","",ROUND(O$4/Liste!O$5*Liste!O15,O$6))) ->  | P15: =IF(P$4=0,"",IF(Liste!P15="","",ROUND(P$4/Liste!P$5*Liste!P15,P$6))) ->  | Q15: =IF(Q$4=0,"",IF(Liste!Q15="","",ROUND(Q$4/Liste!Q$5*Liste!Q15,Q$6))) ->  | R15: =IF(R$4=0,"",IF(Liste!R15="","",ROUND(R$4/Liste!R$5*Liste!R15,R$6))) ->  | S15: =IF(S$4=0,"",IF(Liste!S15="","",ROUND(S$4/Liste!S$5*Liste!S15,S$6))) ->  | T15: =IF(T$4=0,"",IF(Liste!T15="","",ROUND(T$4/Liste!T$5*Liste!T15,T$6))) ->  | U15: =IF(U$4=0,"",IF(Liste!U15="","",ROUND(U$4/Liste!U$5*Liste!U15,U$6))) ->  | V15: =IF(V$4=0,"",IF(Liste!V15="","",ROUND(V$4/Liste!V$5*Liste!V15,V$6))) ->  | W15: =IF(W$4=0,"",IF(Liste!W15="","",ROUND(W$4/Liste!W$5*Liste!W15,W$6))) ->  | X15: =IF(X$4=0,"",IF(Liste!X15="","",ROUND(X$4/Liste!X$5*Liste!X15,X$6))) ->  | Y15: =IF(Y$4=0,"",IF(Liste!Y15="","",ROUND(Y$4/Liste!Y$5*Liste!Y15,Y$6))) ->  | Z15: =IF(Z$4=0,"",IF(Liste!Z15="","",ROUND(Z$4/Liste!Z$5*Liste!Z15,Z$6))) ->  | AA15: =IF(AA$4=0,"",IF(Liste!AA15="","",ROUND(AA$4/Liste!AA$5*Liste!AA15,AA$6))) ->  | AB15: =IF(AB$4=0,"",IF(Liste!AB15="","",ROUND(AB$4/Liste!AB$5*Liste!AB15,AB$6))) ->  | AC15: =IF(AC$4=0,"",IF(Liste!AC15="","",ROUND(AC$4/Liste!AC$5*Liste!AC15,AC$6))) ->  | AD15: =IF(AD$4=0,"",IF(Liste!AD15="","",ROUND(AD$4/Liste!AD$5*Liste!AD15,AD$6))) ->  | AE15: =IF(AE$4=0,"",IF(Liste!AE15="","",ROUND(AE$4/Liste!AE$5*Liste!AE15,AE$6))) ->  | AF15: =IF(AF$4=0,"",IF(Liste!AF15="","",ROUND(AF$4/Liste!AF$5*Liste!AF15,AF$6))) ->  | AG15: =IF(AG$4=0,"",IF(Liste!AG15="","",ROUND(AG$4/Liste!AG$5*Liste!AG15,AG$6))) ->  | AH15: =IF(AH$4=0,"",IF(Liste!AH15="","",ROUND(AH$4/Liste!AH$5*Liste!AH15,AH$6))) -> 
A16: 125 | B16: =IF(Liste!B16="","",Liste!B16) -> Kokosraspel | C16: =IF(Liste!C16="","",Liste!C16) ->  | D16: =IF(Liste!D16="","",Liste!D16) -> [g] | E16: =IF(E$4=0,"",IF(Liste!E16="","",ROUND(E$4/Liste!E$5*Liste!E16,E$6))) ->  | F16: =IF(F$4=0,"",IF(Liste!F16="","",ROUND(F$4/Liste!F$5*Liste!F16,F$6))) ->  | G16: =IF(G$4=0,"",IF(Liste!G16="","",ROUND(G$4/Liste!G$5*Liste!G16,G$6))) ->  | H16: =IF(H$4=0,"",IF(Liste!H16="","",ROUND(H$4/Liste!H$5*Liste!H16,H$6))) ->  | I16: =IF(I$4=0,"",IF(Liste!I16="","",ROUND(I$4/Liste!I$5*Liste!I16,I$6))) ->  | J16: =IF(J$4=0,"",IF(Liste!J16="","",ROUND(J$4/Liste!J$5*Liste!J16,J$6))) ->  | K16: =IF(K$4=0,"",IF(Liste!K16="","",ROUND(K$4/Liste!K$5*Liste!K16,K$6))) ->  | L16: =IF(L$4=0,"",IF(Liste!L16="","",ROUND(L$4/Liste!L$5*Liste!L16,L$6))) ->  | M16: =IF(M$4=0,"",IF(Liste!M16="","",ROUND(M$4/Liste!M$5*Liste!M16,M$6))) ->  | N16: =IF(N$4=0,"",IF(Liste!N16="","",ROUND(N$4/Liste!N$5*Liste!N16,N$6))) ->  | O16: =IF(O$4=0,"",IF(Liste!O16="","",ROUND(O$4/Liste!O$5*Liste!O16,O$6))) ->  | P16: =IF(P$4=0,"",IF(Liste!P16="","",ROUND(P$4/Liste!P$5*Liste!P16,P$6))) ->  | Q16: =IF(Q$4=0,"",IF(Liste!Q16="","",ROUND(Q$4/Liste!Q$5*Liste!Q16,Q$6))) ->  | R16: =IF(R$4=0,"",IF(Liste!R16="","",ROUND(R$4/Liste!R$5*Liste!R16,R$6))) ->  | S16: =IF(S$4=0,"",IF(Liste!S16="","",ROUND(S$4/Liste!S$5*Liste!S16,S$6))) ->  | T16: =IF(T$4=0,"",IF(Liste!T16="","",ROUND(T$4/Liste!T$5*Liste!T16,T$6))) ->  | U16: =IF(U$4=0,"",IF(Liste!U16="","",ROUND(U$4/Liste!U$5*Liste!U16,U$6))) ->  | V16: =IF(V$4=0,"",IF(Liste!V16="","",ROUND(V$4/Liste!V$5*Liste!V16,V$6))) -> 125 | W16: =IF(W$4=0,"",IF(Liste!W16="","",ROUND(W$4/Liste!W$5*Liste!W16,W$6))) ->  | X16: =IF(X$4=0,"",IF(Liste!X16="","",ROUND(X$4/Liste!X$5*Liste!X16,X$6))) ->  | Y16: =IF(Y$4=0,"",IF(Liste!Y16="","",ROUND(Y$4/Liste!Y$5*Liste!Y16,Y$6))) ->  | Z16: =IF(Z$4=0,"",IF(Liste!Z16="","",ROUND(Z$4/Liste!Z$5*Liste!Z16,Z$6))) ->  | AA16: =IF(AA$4=0,"",IF(Liste!AA16="","",ROUND(AA$4/Liste!AA$5*Liste!AA16,AA$6))) ->  | AB16: =IF(AB$4=0,"",IF(Liste!AB16="","",ROUND(AB$4/Liste!AB$5*Liste!AB16,AB$6))) ->  | AC16: =IF(AC$4=0,"",IF(Liste!AC16="","",ROUND(AC$4/Liste!AC$5*Liste!AC16,AC$6))) ->  | AD16: =IF(AD$4=0,"",IF(Liste!AD16="","",ROUND(AD$4/Liste!AD$5*Liste!AD16,AD$6))) ->  | AE16: =IF(AE$4=0,"",IF(Liste!AE16="","",ROUND(AE$4/Liste!AE$5*Liste!AE16,AE$6))) ->  | AF16: =IF(AF$4=0,"",IF(Liste!AF16="","",ROUND(AF$4/Liste!AF$5*Liste!AF16,AF$6))) ->  | AG16: =IF(AG$4=0,"",IF(Liste!AG16="","",ROUND(AG$4/Liste!AG$5*Liste!AG16,AG$6))) ->  | AH16: =IF(AH$4=0,"",IF(Liste!AH16="","",ROUND(AH$4/Liste!AH$5*Liste!AH16,AH$6))) -> 
A17: =IF(SUM($E17:$AH17)=0,"",SUM($E17:$AH17)) ->  | B17: =IF(Liste!B17="","",Liste!B17) -> Pistazien | C17: =IF(Liste!C17="","",Liste!C17) -> gehackt | D17: =IF(Liste!D17="","",Liste!D17) -> [g] | E17: =IF(E$4=0,"",IF(Liste!E17="","",ROUND(E$4/Liste!E$5*Liste!E17,E$6))) ->  | F17: =IF(F$4=0,"",IF(Liste!F17="","",ROUND(F$4/Liste!F$5*Liste!F17,F$6))) ->  | G17: =IF(G$4=0,"",IF(Liste!G17="","",ROUND(G$4/Liste!G$5*Liste!G17,G$6))) ->  | H17: =IF(H$4=0,"",IF(Liste!H17="","",ROUND(H$4/Liste!H$5*Liste!H17,H$6))) ->  | I17: =IF(I$4=0,"",IF(Liste!I17="","",ROUND(I$4/Liste!I$5*Liste!I17,I$6))) ->  | J17: =IF(J$4=0,"",IF(Liste!J17="","",ROUND(J$4/Liste!J$5*Liste!J17,J$6))) ->  | K17: =IF(K$4=0,"",IF(Liste!K17="","",ROUND(K$4/Liste!K$5*Liste!K17,K$6))) ->  | L17: =IF(L$4=0,"",IF(Liste!L17="","",ROUND(L$4/Liste!L$5*Liste!L17,L$6))) ->  | M17: =IF(M$4=0,"",IF(Liste!M17="","",ROUND(M$4/Liste!M$5*Liste!M17,M$6))) ->  | N17: =IF(N$4=0,"",IF(Liste!N17="","",ROUND(N$4/Liste!N$5*Liste!N17,N$6))) ->  | O17: =IF(O$4=0,"",IF(Liste!O17="","",ROUND(O$4/Liste!O$5*Liste!O17,O$6))) ->  | P17: =IF(P$4=0,"",IF(Liste!P17="","",ROUND(P$4/Liste!P$5*Liste!P17,P$6))) ->  | Q17: =IF(Q$4=0,"",IF(Liste!Q17="","",ROUND(Q$4/Liste!Q$5*Liste!Q17,Q$6))) ->  | R17: =IF(R$4=0,"",IF(Liste!R17="","",ROUND(R$4/Liste!R$5*Liste!R17,R$6))) ->  | S17: =IF(S$4=0,"",IF(Liste!S17="","",ROUND(S$4/Liste!S$5*Liste!S17,S$6))) ->  | T17: =IF(T$4=0,"",IF(Liste!T17="","",ROUND(T$4/Liste!T$5*Liste!T17,T$6))) ->  | U17: =IF(U$4=0,"",IF(Liste!U17="","",ROUND(U$4/Liste!U$5*Liste!U17,U$6))) ->  | V17: =IF(V$4=0,"",IF(Liste!V17="","",ROUND(V$4/Liste!V$5*Liste!V17,V$6))) ->  | W17: =IF(W$4=0,"",IF(Liste!W17="","",ROUND(W$4/Liste!W$5*Liste!W17,W$6))) ->  | X17: =IF(X$4=0,"",IF(Liste!X17="","",ROUND(X$4/Liste!X$5*Liste!X17,X$6))) ->  | Y17: =IF(Y$4=0,"",IF(Liste!Y17="","",ROUND(Y$4/Liste!Y$5*Liste!Y17,Y$6))) ->  | Z17: =IF(Z$4=0,"",IF(Liste!Z17="","",ROUND(Z$4/Liste!Z$5*Liste!Z17,Z$6))) ->  | AA17: =IF(AA$4=0,"",IF(Liste!AA17="","",ROUND(AA$4/Liste!AA$5*Liste!AA17,AA$6))) ->  | AB17: =IF(AB$4=0,"",IF(Liste!AB17="","",ROUND(AB$4/Liste!AB$5*Liste!AB17,AB$6))) ->  | AC17: =IF(AC$4=0,"",IF(Liste!AC17="","",ROUND(AC$4/Liste!AC$5*Liste!AC17,AC$6))) ->  | AD17: =IF(AD$4=0,"",IF(Liste!AD17="","",ROUND(AD$4/Liste!AD$5*Liste!AD17,AD$6))) ->  | AE17: =IF(AE$4=0,"",IF(Liste!AE17="","",ROUND(AE$4/Liste!AE$5*Liste!AE17,AE$6))) ->  | AF17: =IF(AF$4=0,"",IF(Liste!AF17="","",ROUND(AF$4/Liste!AF$5*Liste!AF17,AF$6))) ->  | AG17: =IF(AG$4=0,"",IF(Liste!AG17="","",ROUND(AG$4/Liste!AG$5*Liste!AG17,AG$6))) ->  | AH17: =IF(AH$4=0,"",IF(Liste!AH17="","",ROUND(AH$4/Liste!AH$5*Liste!AH17,AH$6))) -> 
A18: 200 | B18: =IF(Liste!B18="","",Liste!B18) -> Walnüsse | C18: =IF(Liste!C18="","",Liste!C18) -> gemahlen | D18: =IF(Liste!D18="","",Liste!D18) -> [g] | E18: =IF(E$4=0,"",IF(Liste!E18="","",ROUND(E$4/Liste!E$5*Liste!E18,E$6))) ->  | F18: =IF(F$4=0,"",IF(Liste!F18="","",ROUND(F$4/Liste!F$5*Liste!F18,F$6))) ->  | G18: =IF(G$4=0,"",IF(Liste!G18="","",ROUND(G$4/Liste!G$5*Liste!G18,G$6))) ->  | H18: =IF(H$4=0,"",IF(Liste!H18="","",ROUND(H$4/Liste!H$5*Liste!H18,H$6))) ->  | I18: =IF(I$4=0,"",IF(Liste!I18="","",ROUND(I$4/Liste!I$5*Liste!I18,I$6))) ->  | J18: =IF(J$4=0,"",IF(Liste!J18="","",ROUND(J$4/Liste!J$5*Liste!J18,J$6))) ->  | K18: =IF(K$4=0,"",IF(Liste!K18="","",ROUND(K$4/Liste!K$5*Liste!K18,K$6))) ->  | L18: =IF(L$4=0,"",IF(Liste!L18="","",ROUND(L$4/Liste!L$5*Liste!L18,L$6))) ->  | M18: =IF(M$4=0,"",IF(Liste!M18="","",ROUND(M$4/Liste!M$5*Liste!M18,M$6))) ->  | N18: =IF(N$4=0,"",IF(Liste!N18="","",ROUND(N$4/Liste!N$5*Liste!N18,N$6))) ->  | O18: =IF(O$4=0,"",IF(Liste!O18="","",ROUND(O$4/Liste!O$5*Liste!O18,O$6))) ->  | P18: =IF(P$4=0,"",IF(Liste!P18="","",ROUND(P$4/Liste!P$5*Liste!P18,P$6))) ->  | Q18: =IF(Q$4=0,"",IF(Liste!Q18="","",ROUND(Q$4/Liste!Q$5*Liste!Q18,Q$6))) ->  | R18: =IF(R$4=0,"",IF(Liste!R18="","",ROUND(R$4/Liste!R$5*Liste!R18,R$6))) ->  | S18: =IF(S$4=0,"",IF(Liste!S18="","",ROUND(S$4/Liste!S$5*Liste!S18,S$6))) -> 200 | T18: =IF(T$4=0,"",IF(Liste!T18="","",ROUND(T$4/Liste!T$5*Liste!T18,T$6))) ->  | U18: =IF(U$4=0,"",IF(Liste!U18="","",ROUND(U$4/Liste!U$5*Liste!U18,U$6))) ->  | V18: =IF(V$4=0,"",IF(Liste!V18="","",ROUND(V$4/Liste!V$5*Liste!V18,V$6))) ->  | W18: =IF(W$4=0,"",IF(Liste!W18="","",ROUND(W$4/Liste!W$5*Liste!W18,W$6))) ->  | X18: =IF(X$4=0,"",IF(Liste!X18="","",ROUND(X$4/Liste!X$5*Liste!X18,X$6))) ->  | Y18: =IF(Y$4=0,"",IF(Liste!Y18="","",ROUND(Y$4/Liste!Y$5*Liste!Y18,Y$6))) ->  | Z18: =IF(Z$4=0,"",IF(Liste!Z18="","",ROUND(Z$4/Liste!Z$5*Liste!Z18,Z$6))) ->  | AA18: =IF(AA$4=0,"",IF(Liste!AA18="","",ROUND(AA$4/Liste!AA$5*Liste!AA18,AA$6))) ->  | AB18: =IF(AB$4=0,"",IF(Liste!AB18="","",ROUND(AB$4/Liste!AB$5*Liste!AB18,AB$6))) ->  | AC18: =IF(AC$4=0,"",IF(Liste!AC18="","",ROUND(AC$4/Liste!AC$5*Liste!AC18,AC$6))) ->  | AD18: =IF(AD$4=0,"",IF(Liste!AD18="","",ROUND(AD$4/Liste!AD$5*Liste!AD18,AD$6))) ->  | AE18: =IF(AE$4=0,"",IF(Liste!AE18="","",ROUND(AE$4/Liste!AE$5*Liste!AE18,AE$6))) ->  | AF18: =IF(AF$4=0,"",IF(Liste!AF18="","",ROUND(AF$4/Liste!AF$5*Liste!AF18,AF$6))) ->  | AG18: =IF(AG$4=0,"",IF(Liste!AG18="","",ROUND(AG$4/Liste!AG$5*Liste!AG18,AG$6))) ->  | AH18: =IF(AH$4=0,"",IF(Liste!AH18="","",ROUND(AH$4/Liste!AH$5*Liste!AH18,AH$6))) -> 
A19: 300 | B19: =IF(Liste!B19="","",Liste!B19) -> Marzipanrohmasse | C19: =IF(Liste!C19="","",Liste!C19) ->  | D19: =IF(Liste!D19="","",Liste!D19) -> [g] | E19: =IF(E$4=0,"",IF(Liste!E19="","",ROUND(E$4/Liste!E$5*Liste!E19,E$6))) ->  | F19: =IF(F$4=0,"",IF(Liste!F19="","",ROUND(F$4/Liste!F$5*Liste!F19,F$6))) ->  | G19: =IF(G$4=0,"",IF(Liste!G19="","",ROUND(G$4/Liste!G$5*Liste!G19,G$6))) ->  | H19: =IF(H$4=0,"",IF(Liste!H19="","",ROUND(H$4/Liste!H$5*Liste!H19,H$6))) ->  | I19: =IF(I$4=0,"",IF(Liste!I19="","",ROUND(I$4/Liste!I$5*Liste!I19,I$6))) ->  | J19: =IF(J$4=0,"",IF(Liste!J19="","",ROUND(J$4/Liste!J$5*Liste!J19,J$6))) ->  | K19: =IF(K$4=0,"",IF(Liste!K19="","",ROUND(K$4/Liste!K$5*Liste!K19,K$6))) ->  | L19: =IF(L$4=0,"",IF(Liste!L19="","",ROUND(L$4/Liste!L$5*Liste!L19,L$6))) -> 200 | M19: =IF(M$4=0,"",IF(Liste!M19="","",ROUND(M$4/Liste!M$5*Liste!M19,M$6))) ->  | N19: =IF(N$4=0,"",IF(Liste!N19="","",ROUND(N$4/Liste!N$5*Liste!N19,N$6))) ->  | O19: =IF(O$4=0,"",IF(Liste!O19="","",ROUND(O$4/Liste!O$5*Liste!O19,O$6))) ->  | P19: =IF(P$4=0,"",IF(Liste!P19="","",ROUND(P$4/Liste!P$5*Liste!P19,P$6))) ->  | Q19: =IF(Q$4=0,"",IF(Liste!Q19="","",ROUND(Q$4/Liste!Q$5*Liste!Q19,Q$6))) ->  | R19: =IF(R$4=0,"",IF(Liste!R19="","",ROUND(R$4/Liste!R$5*Liste!R19,R$6))) ->  | S19: =IF(S$4=0,"",IF(Liste!S19="","",ROUND(S$4/Liste!S$5*Liste!S19,S$6))) ->  | T19: =IF(T$4=0,"",IF(Liste!T19="","",ROUND(T$4/Liste!T$5*Liste!T19,T$6))) ->  | U19: =IF(U$4=0,"",IF(Liste!U19="","",ROUND(U$4/Liste!U$5*Liste!U19,U$6))) ->  | V19: =IF(V$4=0,"",IF(Liste!V19="","",ROUND(V$4/Liste!V$5*Liste!V19,V$6))) -> 100 | W19: =IF(W$4=0,"",IF(Liste!W19="","",ROUND(W$4/Liste!W$5*Liste!W19,W$6))) ->  | X19: =IF(X$4=0,"",IF(Liste!X19="","",ROUND(X$4/Liste!X$5*Liste!X19,X$6))) ->  | Y19: =IF(Y$4=0,"",IF(Liste!Y19="","",ROUND(Y$4/Liste!Y$5*Liste!Y19,Y$6))) ->  | Z19: =IF(Z$4=0,"",IF(Liste!Z19="","",ROUND(Z$4/Liste!Z$5*Liste!Z19,Z$6))) ->  | AA19: =IF(AA$4=0,"",IF(Liste!AA19="","",ROUND(AA$4/Liste!AA$5*Liste!AA19,AA$6))) ->  | AB19: =IF(AB$4=0,"",IF(Liste!AB19="","",ROUND(AB$4/Liste!AB$5*Liste!AB19,AB$6))) ->  | AC19: =IF(AC$4=0,"",IF(Liste!AC19="","",ROUND(AC$4/Liste!AC$5*Liste!AC19,AC$6))) ->  | AD19: =IF(AD$4=0,"",IF(Liste!AD19="","",ROUND(AD$4/Liste!AD$5*Liste!AD19,AD$6))) ->  | AE19: =IF(AE$4=0,"",IF(Liste!AE19="","",ROUND(AE$4/Liste!AE$5*Liste!AE19,AE$6))) ->  | AF19: =IF(AF$4=0,"",IF(Liste!AF19="","",ROUND(AF$4/Liste!AF$5*Liste!AF19,AF$6))) ->  | AG19: =IF(AG$4=0,"",IF(Liste!AG19="","",ROUND(AG$4/Liste!AG$5*Liste!AG19,AG$6))) ->  | AH19: =IF(AH$4=0,"",IF(Liste!AH19="","",ROUND(AH$4/Liste!AH$5*Liste!AH19,AH$6))) -> 
A20: 100 | B20: =IF(Liste!B20="","",Liste!B20) -> Kakaopulver | C20: =IF(Liste!C20="","",Liste!C20) ->  | D20: =IF(Liste!D20="","",Liste!D20) -> [g] | E20: =IF(E$4=0,"",IF(Liste!E20="","",ROUND(E$4/Liste!E$5*Liste!E20,E$6))) ->  | F20: =IF(F$4=0,"",IF(Liste!F20="","",ROUND(F$4/Liste!F$5*Liste!F20,F$6))) -> 40 | G20: =IF(G$4=0,"",IF(Liste!G20="","",ROUND(G$4/Liste!G$5*Liste!G20,G$6))) ->  | H20: =IF(H$4=0,"",IF(Liste!H20="","",ROUND(H$4/Liste!H$5*Liste!H20,H$6))) ->  | I20: =IF(I$4=0,"",IF(Liste!I20="","",ROUND(I$4/Liste!I$5*Liste!I20,I$6))) ->  | J20: =IF(J$4=0,"",IF(Liste!J20="","",ROUND(J$4/Liste!J$5*Liste!J20,J$6))) ->  | K20: =IF(K$4=0,"",IF(Liste!K20="","",ROUND(K$4/Liste!K$5*Liste!K20,K$6))) ->  | L20: =IF(L$4=0,"",IF(Liste!L20="","",ROUND(L$4/Liste!L$5*Liste!L20,L$6))) ->  | M20: =IF(M$4=0,"",IF(Liste!M20="","",ROUND(M$4/Liste!M$5*Liste!M20,M$6))) ->  | N20: =IF(N$4=0,"",IF(Liste!N20="","",ROUND(N$4/Liste!N$5*Liste!N20,N$6))) ->  | O20: =IF(O$4=0,"",IF(Liste!O20="","",ROUND(O$4/Liste!O$5*Liste!O20,O$6))) ->  | P20: =IF(P$4=0,"",IF(Liste!P20="","",ROUND(P$4/Liste!P$5*Liste!P20,P$6))) -> 30 | Q20: =IF(Q$4=0,"",IF(Liste!Q20="","",ROUND(Q$4/Liste!Q$5*Liste!Q20,Q$6))) ->  | R20: =IF(R$4=0,"",IF(Liste!R20="","",ROUND(R$4/Liste!R$5*Liste!R20,R$6))) ->  | S20: =IF(S$4=0,"",IF(Liste!S20="","",ROUND(S$4/Liste!S$5*Liste!S20,S$6))) ->  | T20: =IF(T$4=0,"",IF(Liste!T20="","",ROUND(T$4/Liste!T$5*Liste!T20,T$6))) ->  | U20: =IF(U$4=0,"",IF(Liste!U20="","",ROUND(U$4/Liste!U$5*Liste!U20,U$6))) ->  | V20: =IF(V$4=0,"",IF(Liste!V20="","",ROUND(V$4/Liste!V$5*Liste!V20,V$6))) ->  | W20: =IF(W$4=0,"",IF(Liste!W20="","",ROUND(W$4/Liste!W$5*Liste!W20,W$6))) ->  | X20: =IF(X$4=0,"",IF(Liste!X20="","",ROUND(X$4/Liste!X$5*Liste!X20,X$6))) -> 30 | Y20: =IF(Y$4=0,"",IF(Liste!Y20="","",ROUND(Y$4/Liste!Y$5*Liste!Y20,Y$6))) ->  | Z20: =IF(Z$4=0,"",IF(Liste!Z20="","",ROUND(Z$4/Liste!Z$5*Liste!Z20,Z$6))) ->  | AA20: =IF(AA$4=0,"",IF(Liste!AA20="","",ROUND(AA$4/Liste!AA$5*Liste!AA20,AA$6))) ->  | AB20: =IF(AB$4=0,"",IF(Liste!AB20="","",ROUND(AB$4/Liste!AB$5*Liste!AB20,AB$6))) ->  | AC20: =IF(AC$4=0,"",IF(Liste!AC20="","",ROUND(AC$4/Liste!AC$5*Liste!AC20,AC$6))) ->  | AD20: =IF(AD$4=0,"",IF(Liste!AD20="","",ROUND(AD$4/Liste!AD$5*Liste!AD20,AD$6))) ->  | AE20: =IF(AE$4=0,"",IF(Liste!AE20="","",ROUND(AE$4/Liste!AE$5*Liste!AE20,AE$6))) ->  | AF20: =IF(AF$4=0,"",IF(Liste!AF20="","",ROUND(AF$4/Liste!AF$5*Liste!AF20,AF$6))) ->  | AG20: =IF(AG$4=0,"",IF(Liste!AG20="","",ROUND(AG$4/Liste!AG$5*Liste!AG20,AG$6))) ->  | AH20: =IF(AH$4=0,"",IF(Liste!AH20="","",ROUND(AH$4/Liste!AH$5*Liste!AH20,AH$6))) -> 
A21: 150 | B21: =IF(Liste!B21="","",Liste!B21) -> Speisestärke | C21: =IF(Liste!C21="","",Liste!C21) ->  | D21: =IF(Liste!D21="","",Liste!D21) -> [g] | E21: =IF(E$4=0,"",IF(Liste!E21="","",ROUND(E$4/Liste!E$5*Liste!E21,E$6))) ->  | F21: =IF(F$4=0,"",IF(Liste!F21="","",ROUND(F$4/Liste!F$5*Liste!F21,F$6))) ->  | G21: =IF(G$4=0,"",IF(Liste!G21="","",ROUND(G$4/Liste!G$5*Liste!G21,G$6))) ->  | H21: =IF(H$4=0,"",IF(Liste!H21="","",ROUND(H$4/Liste!H$5*Liste!H21,H$6))) ->  | I21: =IF(I$4=0,"",IF(Liste!I21="","",ROUND(I$4/Liste!I$5*Liste!I21,I$6))) ->  | J21: =IF(J$4=0,"",IF(Liste!J21="","",ROUND(J$4/Liste!J$5*Liste!J21,J$6))) ->  | K21: =IF(K$4=0,"",IF(Liste!K21="","",ROUND(K$4/Liste!K$5*Liste!K21,K$6))) ->  | L21: =IF(L$4=0,"",IF(Liste!L21="","",ROUND(L$4/Liste!L$5*Liste!L21,L$6))) ->  | M21: =IF(M$4=0,"",IF(Liste!M21="","",ROUND(M$4/Liste!M$5*Liste!M21,M$6))) ->  | N21: =IF(N$4=0,"",IF(Liste!N21="","",ROUND(N$4/Liste!N$5*Liste!N21,N$6))) ->  | O21: =IF(O$4=0,"",IF(Liste!O21="","",ROUND(O$4/Liste!O$5*Liste!O21,O$6))) -> 150 | P21: =IF(P$4=0,"",IF(Liste!P21="","",ROUND(P$4/Liste!P$5*Liste!P21,P$6))) ->  | Q21: =IF(Q$4=0,"",IF(Liste!Q21="","",ROUND(Q$4/Liste!Q$5*Liste!Q21,Q$6))) ->  | R21: =IF(R$4=0,"",IF(Liste!R21="","",ROUND(R$4/Liste!R$5*Liste!R21,R$6))) ->  | S21: =IF(S$4=0,"",IF(Liste!S21="","",ROUND(S$4/Liste!S$5*Liste!S21,S$6))) ->  | T21: =IF(T$4=0,"",IF(Liste!T21="","",ROUND(T$4/Liste!T$5*Liste!T21,T$6))) ->  | U21: =IF(U$4=0,"",IF(Liste!U21="","",ROUND(U$4/Liste!U$5*Liste!U21,U$6))) ->  | V21: =IF(V$4=0,"",IF(Liste!V21="","",ROUND(V$4/Liste!V$5*Liste!V21,V$6))) ->  | W21: =IF(W$4=0,"",IF(Liste!W21="","",ROUND(W$4/Liste!W$5*Liste!W21,W$6))) ->  | X21: =IF(X$4=0,"",IF(Liste!X21="","",ROUND(X$4/Liste!X$5*Liste!X21,X$6))) ->  | Y21: =IF(Y$4=0,"",IF(Liste!Y21="","",ROUND(Y$4/Liste!Y$5*Liste!Y21,Y$6))) ->  | Z21: =IF(Z$4=0,"",IF(Liste!Z21="","",ROUND(Z$4/Liste!Z$5*Liste!Z21,Z$6))) ->  | AA21: =IF(AA$4=0,"",IF(Liste!AA21="","",ROUND(AA$4/Liste!AA$5*Liste!AA21,AA$6))) ->  | AB21: =IF(AB$4=0,"",IF(Liste!AB21="","",ROUND(AB$4/Liste!AB$5*Liste!AB21,AB$6))) ->  | AC21: =IF(AC$4=0,"",IF(Liste!AC21="","",ROUND(AC$4/Liste!AC$5*Liste!AC21,AC$6))) ->  | AD21: =IF(AD$4=0,"",IF(Liste!AD21="","",ROUND(AD$4/Liste!AD$5*Liste!AD21,AD$6))) ->  | AE21: =IF(AE$4=0,"",IF(Liste!AE21="","",ROUND(AE$4/Liste!AE$5*Liste!AE21,AE$6))) ->  | AF21: =IF(AF$4=0,"",IF(Liste!AF21="","",ROUND(AF$4/Liste!AF$5*Liste!AF21,AF$6))) ->  | AG21: =IF(AG$4=0,"",IF(Liste!AG21="","",ROUND(AG$4/Liste!AG$5*Liste!AG21,AG$6))) ->  | AH21: =IF(AH$4=0,"",IF(Liste!AH21="","",ROUND(AH$4/Liste!AH$5*Liste!AH21,AH$6))) -> 
B22: =IF(Liste!B22="","",Liste!B22) -> Ahornsirup | C22: =IF(Liste!C22="","",Liste!C22) ->  | D22: =IF(Liste!D22="","",Liste!D22) -> [g] | E22: =IF(E$4=0,"",IF(Liste!E22="","",ROUND(E$4/Liste!E$5*Liste!E22,E$6))) ->  | F22: =IF(F$4=0,"",IF(Liste!F22="","",ROUND(F$4/Liste!F$5*Liste!F22,F$6))) ->  | G22: =IF(G$4=0,"",IF(Liste!G22="","",ROUND(G$4/Liste!G$5*Liste!G22,G$6))) ->  | H22: =IF(H$4=0,"",IF(Liste!H22="","",ROUND(H$4/Liste!H$5*Liste!H22,H$6))) ->  | I22: =IF(I$4=0,"",IF(Liste!I22="","",ROUND(I$4/Liste!I$5*Liste!I22,I$6))) ->  | J22: =IF(J$4=0,"",IF(Liste!J22="","",ROUND(J$4/Liste!J$5*Liste!J22,J$6))) ->  | K22: =IF(K$4=0,"",IF(Liste!K22="","",ROUND(K$4/Liste!K$5*Liste!K22,K$6))) ->  | L22: =IF(L$4=0,"",IF(Liste!L22="","",ROUND(L$4/Liste!L$5*Liste!L22,L$6))) ->  | M22: =IF(M$4=0,"",IF(Liste!M22="","",ROUND(M$4/Liste!M$5*Liste!M22,M$6))) ->  | N22: =IF(N$4=0,"",IF(Liste!N22="","",ROUND(N$4/Liste!N$5*Liste!N22,N$6))) ->  | O22: =IF(O$4=0,"",IF(Liste!O22="","",ROUND(O$4/Liste!O$5*Liste!O22,O$6))) ->  | P22: =IF(P$4=0,"",IF(Liste!P22="","",ROUND(P$4/Liste!P$5*Liste!P22,P$6))) ->  | Q22: =IF(Q$4=0,"",IF(Liste!Q22="","",ROUND(Q$4/Liste!Q$5*Liste!Q22,Q$6))) ->  | R22: =IF(R$4=0,"",IF(Liste!R22="","",ROUND(R$4/Liste!R$5*Liste!R22,R$6))) ->  | S22: =IF(S$4=0,"",IF(Liste!S22="","",ROUND(S$4/Liste!S$5*Liste!S22,S$6))) ->  | T22: =IF(T$4=0,"",IF(Liste!T22="","",ROUND(T$4/Liste!T$5*Liste!T22,T$6))) ->  | U22: =IF(U$4=0,"",IF(Liste!U22="","",ROUND(U$4/Liste!U$5*Liste!U22,U$6))) ->  | V22: =IF(V$4=0,"",IF(Liste!V22="","",ROUND(V$4/Liste!V$5*Liste!V22,V$6))) ->  | W22: =IF(W$4=0,"",IF(Liste!W22="","",ROUND(W$4/Liste!W$5*Liste!W22,W$6))) ->  | X22: =IF(X$4=0,"",IF(Liste!X22="","",ROUND(X$4/Liste!X$5*Liste!X22,X$6))) ->  | Y22: =IF(Y$4=0,"",IF(Liste!Y22="","",ROUND(Y$4/Liste!Y$5*Liste!Y22,Y$6))) ->  | Z22: =IF(Z$4=0,"",IF(Liste!Z22="","",ROUND(Z$4/Liste!Z$5*Liste!Z22,Z$6))) ->  | AA22: =IF(AA$4=0,"",IF(Liste!AA22="","",ROUND(AA$4/Liste!AA$5*Liste!AA22,AA$6))) ->  | AB22: =IF(AB$4=0,"",IF(Liste!AB22="","",ROUND(AB$4/Liste!AB$5*Liste!AB22,AB$6))) ->  | AC22: =IF(AC$4=0,"",IF(Liste!AC22="","",ROUND(AC$4/Liste!AC$5*Liste!AC22,AC$6))) ->  | AD22: =IF(AD$4=0,"",IF(Liste!AD22="","",ROUND(AD$4/Liste!AD$5*Liste!AD22,AD$6))) ->  | AE22: =IF(AE$4=0,"",IF(Liste!AE22="","",ROUND(AE$4/Liste!AE$5*Liste!AE22,AE$6))) ->  | AF22: =IF(AF$4=0,"",IF(Liste!AF22="","",ROUND(AF$4/Liste!AF$5*Liste!AF22,AF$6))) ->  | AG22: =IF(AG$4=0,"",IF(Liste!AG22="","",ROUND(AG$4/Liste!AG$5*Liste!AG22,AG$6))) ->  | AH22: =IF(AH$4=0,"",IF(Liste!AH22="","",ROUND(AH$4/Liste!AH$5*Liste!AH22,AH$6))) -> 
B23: =IF(Liste!B23="","",Liste!B23) -> Zitronat | C23: =IF(Liste!C23="","",Liste!C23) -> gehackt | D23: =IF(Liste!D23="","",Liste!D23) -> [g] | E23: =IF(E$4=0,"",IF(Liste!E23="","",ROUND(E$4/Liste!E$5*Liste!E23,E$6))) ->  | F23: =IF(F$4=0,"",IF(Liste!F23="","",ROUND(F$4/Liste!F$5*Liste!F23,F$6))) ->  | G23: =IF(G$4=0,"",IF(Liste!G23="","",ROUND(G$4/Liste!G$5*Liste!G23,G$6))) ->  | H23: =IF(H$4=0,"",IF(Liste!H23="","",ROUND(H$4/Liste!H$5*Liste!H23,H$6))) ->  | I23: =IF(I$4=0,"",IF(Liste!I23="","",ROUND(I$4/Liste!I$5*Liste!I23,I$6))) ->  | J23: =IF(J$4=0,"",IF(Liste!J23="","",ROUND(J$4/Liste!J$5*Liste!J23,J$6))) ->  | K23: =IF(K$4=0,"",IF(Liste!K23="","",ROUND(K$4/Liste!K$5*Liste!K23,K$6))) ->  | L23: =IF(L$4=0,"",IF(Liste!L23="","",ROUND(L$4/Liste!L$5*Liste!L23,L$6))) ->  | M23: =IF(M$4=0,"",IF(Liste!M23="","",ROUND(M$4/Liste!M$5*Liste!M23,M$6))) ->  | N23: =IF(N$4=0,"",IF(Liste!N23="","",ROUND(N$4/Liste!N$5*Liste!N23,N$6))) ->  | O23: =IF(O$4=0,"",IF(Liste!O23="","",ROUND(O$4/Liste!O$5*Liste!O23,O$6))) ->  | P23: =IF(P$4=0,"",IF(Liste!P23="","",ROUND(P$4/Liste!P$5*Liste!P23,P$6))) ->  | Q23: =IF(Q$4=0,"",IF(Liste!Q23="","",ROUND(Q$4/Liste!Q$5*Liste!Q23,Q$6))) ->  | R23: =IF(R$4=0,"",IF(Liste!R23="","",ROUND(R$4/Liste!R$5*Liste!R23,R$6))) ->  | S23: =IF(S$4=0,"",IF(Liste!S23="","",ROUND(S$4/Liste!S$5*Liste!S23,S$6))) ->  | T23: =IF(T$4=0,"",IF(Liste!T23="","",ROUND(T$4/Liste!T$5*Liste!T23,T$6))) ->  | U23: =IF(U$4=0,"",IF(Liste!U23="","",ROUND(U$4/Liste!U$5*Liste!U23,U$6))) ->  | V23: =IF(V$4=0,"",IF(Liste!V23="","",ROUND(V$4/Liste!V$5*Liste!V23,V$6))) ->  | W23: =IF(W$4=0,"",IF(Liste!W23="","",ROUND(W$4/Liste!W$5*Liste!W23,W$6))) ->  | X23: =IF(X$4=0,"",IF(Liste!X23="","",ROUND(X$4/Liste!X$5*Liste!X23,X$6))) ->  | Y23: =IF(Y$4=0,"",IF(Liste!Y23="","",ROUND(Y$4/Liste!Y$5*Liste!Y23,Y$6))) ->  | Z23: =IF(Z$4=0,"",IF(Liste!Z23="","",ROUND(Z$4/Liste!Z$5*Liste!Z23,Z$6))) ->  | AA23: =IF(AA$4=0,"",IF(Liste!AA23="","",ROUND(AA$4/Liste!AA$5*Liste!AA23,AA$6))) ->  | AB23: =IF(AB$4=0,"",IF(Liste!AB23="","",ROUND(AB$4/Liste!AB$5*Liste!AB23,AB$6))) ->  | AC23: =IF(AC$4=0,"",IF(Liste!AC23="","",ROUND(AC$4/Liste!AC$5*Liste!AC23,AC$6))) ->  | AD23: =IF(AD$4=0,"",IF(Liste!AD23="","",ROUND(AD$4/Liste!AD$5*Liste!AD23,AD$6))) ->  | AE23: =IF(AE$4=0,"",IF(Liste!AE23="","",ROUND(AE$4/Liste!AE$5*Liste!AE23,AE$6))) ->  | AF23: =IF(AF$4=0,"",IF(Liste!AF23="","",ROUND(AF$4/Liste!AF$5*Liste!AF23,AF$6))) ->  | AG23: =IF(AG$4=0,"",IF(Liste!AG23="","",ROUND(AG$4/Liste!AG$5*Liste!AG23,AG$6))) ->  | AH23: =IF(AH$4=0,"",IF(Liste!AH23="","",ROUND(AH$4/Liste!AH$5*Liste!AH23,AH$6))) -> 
B24: =IF(Liste!B24="","",Liste!B24) -> Pottasche | C24: =IF(Liste!C24="","",Liste!C24) ->  | D24: =IF(Liste!D24="","",Liste!D24) -> [g] | E24: =IF(E$4=0,"",IF(Liste!E24="","",ROUND(E$4/Liste!E$5*Liste!E24,E$6))) ->  | F24: =IF(F$4=0,"",IF(Liste!F24="","",ROUND(F$4/Liste!F$5*Liste!F24,F$6))) ->  | G24: =IF(G$4=0,"",IF(Liste!G24="","",ROUND(G$4/Liste!G$5*Liste!G24,G$6))) ->  | H24: =IF(H$4=0,"",IF(Liste!H24="","",ROUND(H$4/Liste!H$5*Liste!H24,H$6))) ->  | I24: =IF(I$4=0,"",IF(Liste!I24="","",ROUND(I$4/Liste!I$5*Liste!I24,I$6))) ->  | J24: =IF(J$4=0,"",IF(Liste!J24="","",ROUND(J$4/Liste!J$5*Liste!J24,J$6))) ->  | K24: =IF(K$4=0,"",IF(Liste!K24="","",ROUND(K$4/Liste!K$5*Liste!K24,K$6))) ->  | L24: =IF(L$4=0,"",IF(Liste!L24="","",ROUND(L$4/Liste!L$5*Liste!L24,L$6))) ->  | M24: =IF(M$4=0,"",IF(Liste!M24="","",ROUND(M$4/Liste!M$5*Liste!M24,M$6))) ->  | N24: =IF(N$4=0,"",IF(Liste!N24="","",ROUND(N$4/Liste!N$5*Liste!N24,N$6))) ->  | O24: =IF(O$4=0,"",IF(Liste!O24="","",ROUND(O$4/Liste!O$5*Liste!O24,O$6))) ->  | P24: =IF(P$4=0,"",IF(Liste!P24="","",ROUND(P$4/Liste!P$5*Liste!P24,P$6))) ->  | Q24: =IF(Q$4=0,"",IF(Liste!Q24="","",ROUND(Q$4/Liste!Q$5*Liste!Q24,Q$6))) ->  | R24: =IF(R$4=0,"",IF(Liste!R24="","",ROUND(R$4/Liste!R$5*Liste!R24,R$6))) ->  | S24: =IF(S$4=0,"",IF(Liste!S24="","",ROUND(S$4/Liste!S$5*Liste!S24,S$6))) ->  | T24: =IF(T$4=0,"",IF(Liste!T24="","",ROUND(T$4/Liste!T$5*Liste!T24,T$6))) ->  | U24: =IF(U$4=0,"",IF(Liste!U24="","",ROUND(U$4/Liste!U$5*Liste!U24,U$6))) ->  | V24: =IF(V$4=0,"",IF(Liste!V24="","",ROUND(V$4/Liste!V$5*Liste!V24,V$6))) ->  | W24: =IF(W$4=0,"",IF(Liste!W24="","",ROUND(W$4/Liste!W$5*Liste!W24,W$6))) ->  | X24: =IF(X$4=0,"",IF(Liste!X24="","",ROUND(X$4/Liste!X$5*Liste!X24,X$6))) ->  | Y24: =IF(Y$4=0,"",IF(Liste!Y24="","",ROUND(Y$4/Liste!Y$5*Liste!Y24,Y$6))) ->  | Z24: =IF(Z$4=0,"",IF(Liste!Z24="","",ROUND(Z$4/Liste!Z$5*Liste!Z24,Z$6))) ->  | AA24: =IF(AA$4=0,"",IF(Liste!AA24="","",ROUND(AA$4/Liste!AA$5*Liste!AA24,AA$6))) ->  | AB24: =IF(AB$4=0,"",IF(Liste!AB24="","",ROUND(AB$4/Liste!AB$5*Liste!AB24,AB$6))) ->  | AC24: =IF(AC$4=0,"",IF(Liste!AC24="","",ROUND(AC$4/Liste!AC$5*Liste!AC24,AC$6))) ->  | AD24: =IF(AD$4=0,"",IF(Liste!AD24="","",ROUND(AD$4/Liste!AD$5*Liste!AD24,AD$6))) ->  | AE24: =IF(AE$4=0,"",IF(Liste!AE24="","",ROUND(AE$4/Liste!AE$5*Liste!AE24,AE$6))) ->  | AF24: =IF(AF$4=0,"",IF(Liste!AF24="","",ROUND(AF$4/Liste!AF$5*Liste!AF24,AF$6))) ->  | AG24: =IF(AG$4=0,"",IF(Liste!AG24="","",ROUND(AG$4/Liste!AG$5*Liste!AG24,AG$6))) ->  | AH24: =IF(AH$4=0,"",IF(Liste!AH24="","",ROUND(AH$4/Liste!AH$5*Liste!AH24,AH$6))) -> 
A25: 150 | B25: =IF(Liste!B25="","",Liste!B25) -> Blockschokolade | C25: =IF(Liste!C25="","",Liste!C25) ->  | D25: =IF(Liste!D25="","",Liste!D25) -> [g] | E25: =IF(E$4=0,"",IF(Liste!E25="","",ROUND(E$4/Liste!E$5*Liste!E25,E$6))) ->  | F25: =IF(F$4=0,"",IF(Liste!F25="","",ROUND(F$4/Liste!F$5*Liste!F25,F$6))) ->  | G25: =IF(G$4=0,"",IF(Liste!G25="","",ROUND(G$4/Liste!G$5*Liste!G25,G$6))) ->  | H25: =IF(H$4=0,"",IF(Liste!H25="","",ROUND(H$4/Liste!H$5*Liste!H25,H$6))) ->  | I25: =IF(I$4=0,"",IF(Liste!I25="","",ROUND(I$4/Liste!I$5*Liste!I25,I$6))) ->  | J25: =IF(J$4=0,"",IF(Liste!J25="","",ROUND(J$4/Liste!J$5*Liste!J25,J$6))) ->  | K25: =IF(K$4=0,"",IF(Liste!K25="","",ROUND(K$4/Liste!K$5*Liste!K25,K$6))) ->  | L25: =IF(L$4=0,"",IF(Liste!L25="","",ROUND(L$4/Liste!L$5*Liste!L25,L$6))) ->  | M25: =IF(M$4=0,"",IF(Liste!M25="","",ROUND(M$4/Liste!M$5*Liste!M25,M$6))) ->  | N25: =IF(N$4=0,"",IF(Liste!N25="","",ROUND(N$4/Liste!N$5*Liste!N25,N$6))) ->  | O25: =IF(O$4=0,"",IF(Liste!O25="","",ROUND(O$4/Liste!O$5*Liste!O25,O$6))) ->  | P25: =IF(P$4=0,"",IF(Liste!P25="","",ROUND(P$4/Liste!P$5*Liste!P25,P$6))) -> 150 | Q25: =IF(Q$4=0,"",IF(Liste!Q25="","",ROUND(Q$4/Liste!Q$5*Liste!Q25,Q$6))) ->  | R25: =IF(R$4=0,"",IF(Liste!R25="","",ROUND(R$4/Liste!R$5*Liste!R25,R$6))) ->  | S25: =IF(S$4=0,"",IF(Liste!S25="","",ROUND(S$4/Liste!S$5*Liste!S25,S$6))) ->  | T25: =IF(T$4=0,"",IF(Liste!T25="","",ROUND(T$4/Liste!T$5*Liste!T25,T$6))) ->  | U25: =IF(U$4=0,"",IF(Liste!U25="","",ROUND(U$4/Liste!U$5*Liste!U25,U$6))) ->  | V25: =IF(V$4=0,"",IF(Liste!V25="","",ROUND(V$4/Liste!V$5*Liste!V25,V$6))) ->  | W25: =IF(W$4=0,"",IF(Liste!W25="","",ROUND(W$4/Liste!W$5*Liste!W25,W$6))) ->  | X25: =IF(X$4=0,"",IF(Liste!X25="","",ROUND(X$4/Liste!X$5*Liste!X25,X$6))) ->  | Y25: =IF(Y$4=0,"",IF(Liste!Y25="","",ROUND(Y$4/Liste!Y$5*Liste!Y25,Y$6))) ->  | Z25: =IF(Z$4=0,"",IF(Liste!Z25="","",ROUND(Z$4/Liste!Z$5*Liste!Z25,Z$6))) ->  | AA25: =IF(AA$4=0,"",IF(Liste!AA25="","",ROUND(AA$4/Liste!AA$5*Liste!AA25,AA$6))) ->  | AB25: =IF(AB$4=0,"",IF(Liste!AB25="","",ROUND(AB$4/Liste!AB$5*Liste!AB25,AB$6))) ->  | AC25: =IF(AC$4=0,"",IF(Liste!AC25="","",ROUND(AC$4/Liste!AC$5*Liste!AC25,AC$6))) ->  | AD25: =IF(AD$4=0,"",IF(Liste!AD25="","",ROUND(AD$4/Liste!AD$5*Liste!AD25,AD$6))) ->  | AE25: =IF(AE$4=0,"",IF(Liste!AE25="","",ROUND(AE$4/Liste!AE$5*Liste!AE25,AE$6))) ->  | AF25: =IF(AF$4=0,"",IF(Liste!AF25="","",ROUND(AF$4/Liste!AF$5*Liste!AF25,AF$6))) ->  | AG25: =IF(AG$4=0,"",IF(Liste!AG25="","",ROUND(AG$4/Liste!AG$5*Liste!AG25,AG$6))) ->  | AH25: =IF(AH$4=0,"",IF(Liste!AH25="","",ROUND(AH$4/Liste!AH$5*Liste!AH25,AH$6))) -> 
A26: 125 | B26: =IF(Liste!B26="","",Liste!B26) -> Marmelade | C26: =IF(Liste!C26="","",Liste!C26) ->  | D26: =IF(Liste!D26="","",Liste!D26) -> [g] | E26: =IF(E$4=0,"",IF(Liste!E26="","",ROUND(E$4/Liste!E$5*Liste!E26,E$6))) ->  | F26: =IF(F$4=0,"",IF(Liste!F26="","",ROUND(F$4/Liste!F$5*Liste!F26,F$6))) ->  | G26: =IF(G$4=0,"",IF(Liste!G26="","",ROUND(G$4/Liste!G$5*Liste!G26,G$6))) ->  | H26: =IF(H$4=0,"",IF(Liste!H26="","",ROUND(H$4/Liste!H$5*Liste!H26,H$6))) ->  | I26: =IF(I$4=0,"",IF(Liste!I26="","",ROUND(I$4/Liste!I$5*Liste!I26,I$6))) ->  | J26: =IF(J$4=0,"",IF(Liste!J26="","",ROUND(J$4/Liste!J$5*Liste!J26,J$6))) ->  | K26: =IF(K$4=0,"",IF(Liste!K26="","",ROUND(K$4/Liste!K$5*Liste!K26,K$6))) ->  | L26: =IF(L$4=0,"",IF(Liste!L26="","",ROUND(L$4/Liste!L$5*Liste!L26,L$6))) ->  | M26: =IF(M$4=0,"",IF(Liste!M26="","",ROUND(M$4/Liste!M$5*Liste!M26,M$6))) ->  | N26: =IF(N$4=0,"",IF(Liste!N26="","",ROUND(N$4/Liste!N$5*Liste!N26,N$6))) ->  | O26: =IF(O$4=0,"",IF(Liste!O26="","",ROUND(O$4/Liste!O$5*Liste!O26,O$6))) ->  | P26: =IF(P$4=0,"",IF(Liste!P26="","",ROUND(P$4/Liste!P$5*Liste!P26,P$6))) ->  | Q26: =IF(Q$4=0,"",IF(Liste!Q26="","",ROUND(Q$4/Liste!Q$5*Liste!Q26,Q$6))) ->  | R26: =IF(R$4=0,"",IF(Liste!R26="","",ROUND(R$4/Liste!R$5*Liste!R26,R$6))) ->  | S26: =IF(S$4=0,"",IF(Liste!S26="","",ROUND(S$4/Liste!S$5*Liste!S26,S$6))) ->  | T26: =IF(T$4=0,"",IF(Liste!T26="","",ROUND(T$4/Liste!T$5*Liste!T26,T$6))) ->  | U26: =IF(U$4=0,"",IF(Liste!U26="","",ROUND(U$4/Liste!U$5*Liste!U26,U$6))) ->  | V26: =IF(V$4=0,"",IF(Liste!V26="","",ROUND(V$4/Liste!V$5*Liste!V26,V$6))) -> 125 | W26: =IF(W$4=0,"",IF(Liste!W26="","",ROUND(W$4/Liste!W$5*Liste!W26,W$6))) ->  | X26: =IF(X$4=0,"",IF(Liste!X26="","",ROUND(X$4/Liste!X$5*Liste!X26,X$6))) ->  | Y26: =IF(Y$4=0,"",IF(Liste!Y26="","",ROUND(Y$4/Liste!Y$5*Liste!Y26,Y$6))) ->  | Z26: =IF(Z$4=0,"",IF(Liste!Z26="","",ROUND(Z$4/Liste!Z$5*Liste!Z26,Z$6))) ->  | AA26: =IF(AA$4=0,"",IF(Liste!AA26="","",ROUND(AA$4/Liste!AA$5*Liste!AA26,AA$6))) ->  | AB26: =IF(AB$4=0,"",IF(Liste!AB26="","",ROUND(AB$4/Liste!AB$5*Liste!AB26,AB$6))) ->  | AC26: =IF(AC$4=0,"",IF(Liste!AC26="","",ROUND(AC$4/Liste!AC$5*Liste!AC26,AC$6))) ->  | AD26: =IF(AD$4=0,"",IF(Liste!AD26="","",ROUND(AD$4/Liste!AD$5*Liste!AD26,AD$6))) ->  | AE26: =IF(AE$4=0,"",IF(Liste!AE26="","",ROUND(AE$4/Liste!AE$5*Liste!AE26,AE$6))) ->  | AF26: =IF(AF$4=0,"",IF(Liste!AF26="","",ROUND(AF$4/Liste!AF$5*Liste!AF26,AF$6))) ->  | AG26: =IF(AG$4=0,"",IF(Liste!AG26="","",ROUND(AG$4/Liste!AG$5*Liste!AG26,AG$6))) ->  | AH26: =IF(AH$4=0,"",IF(Liste!AH26="","",ROUND(AH$4/Liste!AH$5*Liste!AH26,AH$6))) -> 
B27: =IF(Liste!B27="","",Liste!B27) -> Nüsse | C27: =IF(Liste!C27="","",Liste!C27) -> gerieben | D27: =IF(Liste!D27="","",Liste!D27) -> [g] | E27: =IF(E$4=0,"",IF(Liste!E27="","",ROUND(E$4/Liste!E$5*Liste!E27,E$6))) ->  | F27: =IF(F$4=0,"",IF(Liste!F27="","",ROUND(F$4/Liste!F$5*Liste!F27,F$6))) ->  | G27: =IF(G$4=0,"",IF(Liste!G27="","",ROUND(G$4/Liste!G$5*Liste!G27,G$6))) ->  | H27: =IF(H$4=0,"",IF(Liste!H27="","",ROUND(H$4/Liste!H$5*Liste!H27,H$6))) ->  | I27: =IF(I$4=0,"",IF(Liste!I27="","",ROUND(I$4/Liste!I$5*Liste!I27,I$6))) ->  | J27: =IF(J$4=0,"",IF(Liste!J27="","",ROUND(J$4/Liste!J$5*Liste!J27,J$6))) ->  | K27: =IF(K$4=0,"",IF(Liste!K27="","",ROUND(K$4/Liste!K$5*Liste!K27,K$6))) ->  | L27: =IF(L$4=0,"",IF(Liste!L27="","",ROUND(L$4/Liste!L$5*Liste!L27,L$6))) ->  | M27: =IF(M$4=0,"",IF(Liste!M27="","",ROUND(M$4/Liste!M$5*Liste!M27,M$6))) ->  | N27: =IF(N$4=0,"",IF(Liste!N27="","",ROUND(N$4/Liste!N$5*Liste!N27,N$6))) ->  | O27: =IF(O$4=0,"",IF(Liste!O27="","",ROUND(O$4/Liste!O$5*Liste!O27,O$6))) ->  | P27: =IF(P$4=0,"",IF(Liste!P27="","",ROUND(P$4/Liste!P$5*Liste!P27,P$6))) ->  | Q27: =IF(Q$4=0,"",IF(Liste!Q27="","",ROUND(Q$4/Liste!Q$5*Liste!Q27,Q$6))) ->  | R27: =IF(R$4=0,"",IF(Liste!R27="","",ROUND(R$4/Liste!R$5*Liste!R27,R$6))) ->  | S27: =IF(S$4=0,"",IF(Liste!S27="","",ROUND(S$4/Liste!S$5*Liste!S27,S$6))) ->  | T27: =IF(T$4=0,"",IF(Liste!T27="","",ROUND(T$4/Liste!T$5*Liste!T27,T$6))) ->  | U27: =IF(U$4=0,"",IF(Liste!U27="","",ROUND(U$4/Liste!U$5*Liste!U27,U$6))) ->  | V27: =IF(V$4=0,"",IF(Liste!V27="","",ROUND(V$4/Liste!V$5*Liste!V27,V$6))) ->  | W27: =IF(W$4=0,"",IF(Liste!W27="","",ROUND(W$4/Liste!W$5*Liste!W27,W$6))) ->  | X27: =IF(X$4=0,"",IF(Liste!X27="","",ROUND(X$4/Liste!X$5*Liste!X27,X$6))) ->  | Y27: =IF(Y$4=0,"",IF(Liste!Y27="","",ROUND(Y$4/Liste!Y$5*Liste!Y27,Y$6))) ->  | Z27: =IF(Z$4=0,"",IF(Liste!Z27="","",ROUND(Z$4/Liste!Z$5*Liste!Z27,Z$6))) ->  | AA27: =IF(AA$4=0,"",IF(Liste!AA27="","",ROUND(AA$4/Liste!AA$5*Liste!AA27,AA$6))) ->  | AB27: =IF(AB$4=0,"",IF(Liste!AB27="","",ROUND(AB$4/Liste!AB$5*Liste!AB27,AB$6))) ->  | AC27: =IF(AC$4=0,"",IF(Liste!AC27="","",ROUND(AC$4/Liste!AC$5*Liste!AC27,AC$6))) ->  | AD27: =IF(AD$4=0,"",IF(Liste!AD27="","",ROUND(AD$4/Liste!AD$5*Liste!AD27,AD$6))) ->  | AE27: =IF(AE$4=0,"",IF(Liste!AE27="","",ROUND(AE$4/Liste!AE$5*Liste!AE27,AE$6))) ->  | AF27: =IF(AF$4=0,"",IF(Liste!AF27="","",ROUND(AF$4/Liste!AF$5*Liste!AF27,AF$6))) ->  | AG27: =IF(AG$4=0,"",IF(Liste!AG27="","",ROUND(AG$4/Liste!AG$5*Liste!AG27,AG$6))) ->  | AH27: =IF(AH$4=0,"",IF(Liste!AH27="","",ROUND(AH$4/Liste!AH$5*Liste!AH27,AH$6))) -> 
B28: =IF(Liste!B28="","",Liste!B28) -> Orangeat | C28: =IF(Liste!C28="","",Liste!C28) -> gehackt | D28: =IF(Liste!D28="","",Liste!D28) -> [g] | E28: =IF(E$4=0,"",IF(Liste!E28="","",ROUND(E$4/Liste!E$5*Liste!E28,E$6))) ->  | F28: =IF(F$4=0,"",IF(Liste!F28="","",ROUND(F$4/Liste!F$5*Liste!F28,F$6))) ->  | G28: =IF(G$4=0,"",IF(Liste!G28="","",ROUND(G$4/Liste!G$5*Liste!G28,G$6))) ->  | H28: =IF(H$4=0,"",IF(Liste!H28="","",ROUND(H$4/Liste!H$5*Liste!H28,H$6))) ->  | I28: =IF(I$4=0,"",IF(Liste!I28="","",ROUND(I$4/Liste!I$5*Liste!I28,I$6))) ->  | J28: =IF(J$4=0,"",IF(Liste!J28="","",ROUND(J$4/Liste!J$5*Liste!J28,J$6))) ->  | K28: =IF(K$4=0,"",IF(Liste!K28="","",ROUND(K$4/Liste!K$5*Liste!K28,K$6))) ->  | L28: =IF(L$4=0,"",IF(Liste!L28="","",ROUND(L$4/Liste!L$5*Liste!L28,L$6))) ->  | M28: =IF(M$4=0,"",IF(Liste!M28="","",ROUND(M$4/Liste!M$5*Liste!M28,M$6))) ->  | N28: =IF(N$4=0,"",IF(Liste!N28="","",ROUND(N$4/Liste!N$5*Liste!N28,N$6))) ->  | O28: =IF(O$4=0,"",IF(Liste!O28="","",ROUND(O$4/Liste!O$5*Liste!O28,O$6))) ->  | P28: =IF(P$4=0,"",IF(Liste!P28="","",ROUND(P$4/Liste!P$5*Liste!P28,P$6))) ->  | Q28: =IF(Q$4=0,"",IF(Liste!Q28="","",ROUND(Q$4/Liste!Q$5*Liste!Q28,Q$6))) ->  | R28: =IF(R$4=0,"",IF(Liste!R28="","",ROUND(R$4/Liste!R$5*Liste!R28,R$6))) ->  | S28: =IF(S$4=0,"",IF(Liste!S28="","",ROUND(S$4/Liste!S$5*Liste!S28,S$6))) ->  | T28: =IF(T$4=0,"",IF(Liste!T28="","",ROUND(T$4/Liste!T$5*Liste!T28,T$6))) ->  | U28: =IF(U$4=0,"",IF(Liste!U28="","",ROUND(U$4/Liste!U$5*Liste!U28,U$6))) ->  | V28: =IF(V$4=0,"",IF(Liste!V28="","",ROUND(V$4/Liste!V$5*Liste!V28,V$6))) ->  | W28: =IF(W$4=0,"",IF(Liste!W28="","",ROUND(W$4/Liste!W$5*Liste!W28,W$6))) ->  | X28: =IF(X$4=0,"",IF(Liste!X28="","",ROUND(X$4/Liste!X$5*Liste!X28,X$6))) ->  | Y28: =IF(Y$4=0,"",IF(Liste!Y28="","",ROUND(Y$4/Liste!Y$5*Liste!Y28,Y$6))) ->  | Z28: =IF(Z$4=0,"",IF(Liste!Z28="","",ROUND(Z$4/Liste!Z$5*Liste!Z28,Z$6))) ->  | AA28: =IF(AA$4=0,"",IF(Liste!AA28="","",ROUND(AA$4/Liste!AA$5*Liste!AA28,AA$6))) ->  | AB28: =IF(AB$4=0,"",IF(Liste!AB28="","",ROUND(AB$4/Liste!AB$5*Liste!AB28,AB$6))) ->  | AC28: =IF(AC$4=0,"",IF(Liste!AC28="","",ROUND(AC$4/Liste!AC$5*Liste!AC28,AC$6))) ->  | AD28: =IF(AD$4=0,"",IF(Liste!AD28="","",ROUND(AD$4/Liste!AD$5*Liste!AD28,AD$6))) ->  | AE28: =IF(AE$4=0,"",IF(Liste!AE28="","",ROUND(AE$4/Liste!AE$5*Liste!AE28,AE$6))) ->  | AF28: =IF(AF$4=0,"",IF(Liste!AF28="","",ROUND(AF$4/Liste!AF$5*Liste!AF28,AF$6))) ->  | AG28: =IF(AG$4=0,"",IF(Liste!AG28="","",ROUND(AG$4/Liste!AG$5*Liste!AG28,AG$6))) ->  | AH28: =IF(AH$4=0,"",IF(Liste!AH28="","",ROUND(AH$4/Liste!AH$5*Liste!AH28,AH$6))) -> 
A29: 330 | B29: =IF(Liste!B29="","",Liste!B29) -> Kurvertüre | C29: =IF(Liste!C29="","",Liste!C29) ->  | D29: =IF(Liste!D29="","",Liste!D29) -> [g] | E29: =IF(E$4=0,"",IF(Liste!E29="","",ROUND(E$4/Liste!E$5*Liste!E29,E$6))) ->  | F29: =IF(F$4=0,"",IF(Liste!F29="","",ROUND(F$4/Liste!F$5*Liste!F29,F$6))) ->  | G29: =IF(G$4=0,"",IF(Liste!G29="","",ROUND(G$4/Liste!G$5*Liste!G29,G$6))) ->  | H29: =IF(H$4=0,"",IF(Liste!H29="","",ROUND(H$4/Liste!H$5*Liste!H29,H$6))) ->  | I29: =IF(I$4=0,"",IF(Liste!I29="","",ROUND(I$4/Liste!I$5*Liste!I29,I$6))) ->  | J29: =IF(J$4=0,"",IF(Liste!J29="","",ROUND(J$4/Liste!J$5*Liste!J29,J$6))) ->  | K29: =IF(K$4=0,"",IF(Liste!K29="","",ROUND(K$4/Liste!K$5*Liste!K29,K$6))) ->  | L29: =IF(L$4=0,"",IF(Liste!L29="","",ROUND(L$4/Liste!L$5*Liste!L29,L$6))) -> 100 | M29: =IF(M$4=0,"",IF(Liste!M29="","",ROUND(M$4/Liste!M$5*Liste!M29,M$6))) ->  | N29: =IF(N$4=0,"",IF(Liste!N29="","",ROUND(N$4/Liste!N$5*Liste!N29,N$6))) ->  | O29: =IF(O$4=0,"",IF(Liste!O29="","",ROUND(O$4/Liste!O$5*Liste!O29,O$6))) -> 150 | P29: =IF(P$4=0,"",IF(Liste!P29="","",ROUND(P$4/Liste!P$5*Liste!P29,P$6))) ->  | Q29: =IF(Q$4=0,"",IF(Liste!Q29="","",ROUND(Q$4/Liste!Q$5*Liste!Q29,Q$6))) ->  | R29: =IF(R$4=0,"",IF(Liste!R29="","",ROUND(R$4/Liste!R$5*Liste!R29,R$6))) ->  | S29: =IF(S$4=0,"",IF(Liste!S29="","",ROUND(S$4/Liste!S$5*Liste!S29,S$6))) -> 80 | T29: =IF(T$4=0,"",IF(Liste!T29="","",ROUND(T$4/Liste!T$5*Liste!T29,T$6))) ->  | U29: =IF(U$4=0,"",IF(Liste!U29="","",ROUND(U$4/Liste!U$5*Liste!U29,U$6))) ->  | V29: =IF(V$4=0,"",IF(Liste!V29="","",ROUND(V$4/Liste!V$5*Liste!V29,V$6))) ->  | W29: =IF(W$4=0,"",IF(Liste!W29="","",ROUND(W$4/Liste!W$5*Liste!W29,W$6))) ->  | X29: =IF(X$4=0,"",IF(Liste!X29="","",ROUND(X$4/Liste!X$5*Liste!X29,X$6))) ->  | Y29: =IF(Y$4=0,"",IF(Liste!Y29="","",ROUND(Y$4/Liste!Y$5*Liste!Y29,Y$6))) ->  | Z29: =IF(Z$4=0,"",IF(Liste!Z29="","",ROUND(Z$4/Liste!Z$5*Liste!Z29,Z$6))) ->  | AA29: =IF(AA$4=0,"",IF(Liste!AA29="","",ROUND(AA$4/Liste!AA$5*Liste!AA29,AA$6))) ->  | AB29: =IF(AB$4=0,"",IF(Liste!AB29="","",ROUND(AB$4/Liste!AB$5*Liste!AB29,AB$6))) ->  | AC29: =IF(AC$4=0,"",IF(Liste!AC29="","",ROUND(AC$4/Liste!AC$5*Liste!AC29,AC$6))) ->  | AD29: =IF(AD$4=0,"",IF(Liste!AD29="","",ROUND(AD$4/Liste!AD$5*Liste!AD29,AD$6))) ->  | AE29: =IF(AE$4=0,"",IF(Liste!AE29="","",ROUND(AE$4/Liste!AE$5*Liste!AE29,AE$6))) ->  | AF29: =IF(AF$4=0,"",IF(Liste!AF29="","",ROUND(AF$4/Liste!AF$5*Liste!AF29,AF$6))) ->  | AG29: =IF(AG$4=0,"",IF(Liste!AG29="","",ROUND(AG$4/Liste!AG$5*Liste!AG29,AG$6))) ->  | AH29: =IF(AH$4=0,"",IF(Liste!AH29="","",ROUND(AH$4/Liste!AH$5*Liste!AH29,AH$6))) -> 
A30: 200 | B30: =IF(Liste!B30="","",Liste!B30) -> Haselnusmus | C30: =IF(Liste!C30="","",Liste!C30) ->  | D30: =IF(Liste!D30="","",Liste!D30) -> [g] | E30: =IF(E$4=0,"",IF(Liste!E30="","",ROUND(E$4/Liste!E$5*Liste!E30,E$6))) ->  | F30: =IF(F$4=0,"",IF(Liste!F30="","",ROUND(F$4/Liste!F$5*Liste!F30,F$6))) ->  | G30: =IF(G$4=0,"",IF(Liste!G30="","",ROUND(G$4/Liste!G$5*Liste!G30,G$6))) ->  | H30: =IF(H$4=0,"",IF(Liste!H30="","",ROUND(H$4/Liste!H$5*Liste!H30,H$6))) ->  | I30: =IF(I$4=0,"",IF(Liste!I30="","",ROUND(I$4/Liste!I$5*Liste!I30,I$6))) ->  | J30: =IF(J$4=0,"",IF(Liste!J30="","",ROUND(J$4/Liste!J$5*Liste!J30,J$6))) ->  | K30: =IF(K$4=0,"",IF(Liste!K30="","",ROUND(K$4/Liste!K$5*Liste!K30,K$6))) -> 200 | L30: =IF(L$4=0,"",IF(Liste!L30="","",ROUND(L$4/Liste!L$5*Liste!L30,L$6))) ->  | M30: =IF(M$4=0,"",IF(Liste!M30="","",ROUND(M$4/Liste!M$5*Liste!M30,M$6))) ->  | N30: =IF(N$4=0,"",IF(Liste!N30="","",ROUND(N$4/Liste!N$5*Liste!N30,N$6))) ->  | O30: =IF(O$4=0,"",IF(Liste!O30="","",ROUND(O$4/Liste!O$5*Liste!O30,O$6))) ->  | P30: =IF(P$4=0,"",IF(Liste!P30="","",ROUND(P$4/Liste!P$5*Liste!P30,P$6))) ->  | Q30: =IF(Q$4=0,"",IF(Liste!Q30="","",ROUND(Q$4/Liste!Q$5*Liste!Q30,Q$6))) ->  | R30: =IF(R$4=0,"",IF(Liste!R30="","",ROUND(R$4/Liste!R$5*Liste!R30,R$6))) ->  | S30: =IF(S$4=0,"",IF(Liste!S30="","",ROUND(S$4/Liste!S$5*Liste!S30,S$6))) ->  | T30: =IF(T$4=0,"",IF(Liste!T30="","",ROUND(T$4/Liste!T$5*Liste!T30,T$6))) ->  | U30: =IF(U$4=0,"",IF(Liste!U30="","",ROUND(U$4/Liste!U$5*Liste!U30,U$6))) ->  | V30: =IF(V$4=0,"",IF(Liste!V30="","",ROUND(V$4/Liste!V$5*Liste!V30,V$6))) ->  | W30: =IF(W$4=0,"",IF(Liste!W30="","",ROUND(W$4/Liste!W$5*Liste!W30,W$6))) ->  | X30: =IF(X$4=0,"",IF(Liste!X30="","",ROUND(X$4/Liste!X$5*Liste!X30,X$6))) ->  | Y30: =IF(Y$4=0,"",IF(Liste!Y30="","",ROUND(Y$4/Liste!Y$5*Liste!Y30,Y$6))) ->  | Z30: =IF(Z$4=0,"",IF(Liste!Z30="","",ROUND(Z$4/Liste!Z$5*Liste!Z30,Z$6))) ->  | AA30: =IF(AA$4=0,"",IF(Liste!AA30="","",ROUND(AA$4/Liste!AA$5*Liste!AA30,AA$6))) ->  | AB30: =IF(AB$4=0,"",IF(Liste!AB30="","",ROUND(AB$4/Liste!AB$5*Liste!AB30,AB$6))) ->  | AC30: =IF(AC$4=0,"",IF(Liste!AC30="","",ROUND(AC$4/Liste!AC$5*Liste!AC30,AC$6))) ->  | AD30: =IF(AD$4=0,"",IF(Liste!AD30="","",ROUND(AD$4/Liste!AD$5*Liste!AD30,AD$6))) ->  | AE30: =IF(AE$4=0,"",IF(Liste!AE30="","",ROUND(AE$4/Liste!AE$5*Liste!AE30,AE$6))) ->  | AF30: =IF(AF$4=0,"",IF(Liste!AF30="","",ROUND(AF$4/Liste!AF$5*Liste!AF30,AF$6))) ->  | AG30: =IF(AG$4=0,"",IF(Liste!AG30="","",ROUND(AG$4/Liste!AG$5*Liste!AG30,AG$6))) ->  | AH30: =IF(AH$4=0,"",IF(Liste!AH30="","",ROUND(AH$4/Liste!AH$5*Liste!AH30,AH$6))) -> 
A31: 150 | B31: =IF(Liste!B31="","",Liste!B31) -> Sucanat | C31: =IF(Liste!C31="","",Liste!C31) ->  | D31: =IF(Liste!D31="","",Liste!D31) -> [g] | E31: =IF(E$4=0,"",IF(Liste!E31="","",ROUND(E$4/Liste!E$5*Liste!E31,E$6))) ->  | F31: =IF(F$4=0,"",IF(Liste!F31="","",ROUND(F$4/Liste!F$5*Liste!F31,F$6))) ->  | G31: =IF(G$4=0,"",IF(Liste!G31="","",ROUND(G$4/Liste!G$5*Liste!G31,G$6))) ->  | H31: =IF(H$4=0,"",IF(Liste!H31="","",ROUND(H$4/Liste!H$5*Liste!H31,H$6))) ->  | I31: =IF(I$4=0,"",IF(Liste!I31="","",ROUND(I$4/Liste!I$5*Liste!I31,I$6))) ->  | J31: =IF(J$4=0,"",IF(Liste!J31="","",ROUND(J$4/Liste!J$5*Liste!J31,J$6))) ->  | K31: =IF(K$4=0,"",IF(Liste!K31="","",ROUND(K$4/Liste!K$5*Liste!K31,K$6))) -> 150 | L31: =IF(L$4=0,"",IF(Liste!L31="","",ROUND(L$4/Liste!L$5*Liste!L31,L$6))) ->  | M31: =IF(M$4=0,"",IF(Liste!M31="","",ROUND(M$4/Liste!M$5*Liste!M31,M$6))) ->  | N31: =IF(N$4=0,"",IF(Liste!N31="","",ROUND(N$4/Liste!N$5*Liste!N31,N$6))) ->  | O31: =IF(O$4=0,"",IF(Liste!O31="","",ROUND(O$4/Liste!O$5*Liste!O31,O$6))) ->  | P31: =IF(P$4=0,"",IF(Liste!P31="","",ROUND(P$4/Liste!P$5*Liste!P31,P$6))) ->  | Q31: =IF(Q$4=0,"",IF(Liste!Q31="","",ROUND(Q$4/Liste!Q$5*Liste!Q31,Q$6))) ->  | R31: =IF(R$4=0,"",IF(Liste!R31="","",ROUND(R$4/Liste!R$5*Liste!R31,R$6))) ->  | S31: =IF(S$4=0,"",IF(Liste!S31="","",ROUND(S$4/Liste!S$5*Liste!S31,S$6))) ->  | T31: =IF(T$4=0,"",IF(Liste!T31="","",ROUND(T$4/Liste!T$5*Liste!T31,T$6))) ->  | U31: =IF(U$4=0,"",IF(Liste!U31="","",ROUND(U$4/Liste!U$5*Liste!U31,U$6))) ->  | V31: =IF(V$4=0,"",IF(Liste!V31="","",ROUND(V$4/Liste!V$5*Liste!V31,V$6))) ->  | W31: =IF(W$4=0,"",IF(Liste!W31="","",ROUND(W$4/Liste!W$5*Liste!W31,W$6))) ->  | X31: =IF(X$4=0,"",IF(Liste!X31="","",ROUND(X$4/Liste!X$5*Liste!X31,X$6))) ->  | Y31: =IF(Y$4=0,"",IF(Liste!Y31="","",ROUND(Y$4/Liste!Y$5*Liste!Y31,Y$6))) ->  | Z31: =IF(Z$4=0,"",IF(Liste!Z31="","",ROUND(Z$4/Liste!Z$5*Liste!Z31,Z$6))) ->  | AA31: =IF(AA$4=0,"",IF(Liste!AA31="","",ROUND(AA$4/Liste!AA$5*Liste!AA31,AA$6))) ->  | AB31: =IF(AB$4=0,"",IF(Liste!AB31="","",ROUND(AB$4/Liste!AB$5*Liste!AB31,AB$6))) ->  | AC31: =IF(AC$4=0,"",IF(Liste!AC31="","",ROUND(AC$4/Liste!AC$5*Liste!AC31,AC$6))) ->  | AD31: =IF(AD$4=0,"",IF(Liste!AD31="","",ROUND(AD$4/Liste!AD$5*Liste!AD31,AD$6))) ->  | AE31: =IF(AE$4=0,"",IF(Liste!AE31="","",ROUND(AE$4/Liste!AE$5*Liste!AE31,AE$6))) ->  | AF31: =IF(AF$4=0,"",IF(Liste!AF31="","",ROUND(AF$4/Liste!AF$5*Liste!AF31,AF$6))) ->  | AG31: =IF(AG$4=0,"",IF(Liste!AG31="","",ROUND(AG$4/Liste!AG$5*Liste!AG31,AG$6))) ->  | AH31: =IF(AH$4=0,"",IF(Liste!AH31="","",ROUND(AH$4/Liste!AH$5*Liste!AH31,AH$6))) -> 
B32: =IF(Liste!B32="","",Liste!B32) -> Dopppelrahmfrischkäse | C32: =IF(Liste!C32="","",Liste!C32) ->  | D32: =IF(Liste!D32="","",Liste!D32) -> [g] | E32: =IF(E$4=0,"",IF(Liste!E32="","",ROUND(E$4/Liste!E$5*Liste!E32,E$6))) ->  | F32: =IF(F$4=0,"",IF(Liste!F32="","",ROUND(F$4/Liste!F$5*Liste!F32,F$6))) ->  | G32: =IF(G$4=0,"",IF(Liste!G32="","",ROUND(G$4/Liste!G$5*Liste!G32,G$6))) ->  | H32: =IF(H$4=0,"",IF(Liste!H32="","",ROUND(H$4/Liste!H$5*Liste!H32,H$6))) ->  | I32: =IF(I$4=0,"",IF(Liste!I32="","",ROUND(I$4/Liste!I$5*Liste!I32,I$6))) ->  | J32: =IF(J$4=0,"",IF(Liste!J32="","",ROUND(J$4/Liste!J$5*Liste!J32,J$6))) ->  | K32: =IF(K$4=0,"",IF(Liste!K32="","",ROUND(K$4/Liste!K$5*Liste!K32,K$6))) ->  | L32: =IF(L$4=0,"",IF(Liste!L32="","",ROUND(L$4/Liste!L$5*Liste!L32,L$6))) ->  | M32: =IF(M$4=0,"",IF(Liste!M32="","",ROUND(M$4/Liste!M$5*Liste!M32,M$6))) ->  | N32: =IF(N$4=0,"",IF(Liste!N32="","",ROUND(N$4/Liste!N$5*Liste!N32,N$6))) ->  | O32: =IF(O$4=0,"",IF(Liste!O32="","",ROUND(O$4/Liste!O$5*Liste!O32,O$6))) ->  | P32: =IF(P$4=0,"",IF(Liste!P32="","",ROUND(P$4/Liste!P$5*Liste!P32,P$6))) ->  | Q32: =IF(Q$4=0,"",IF(Liste!Q32="","",ROUND(Q$4/Liste!Q$5*Liste!Q32,Q$6))) ->  | R32: =IF(R$4=0,"",IF(Liste!R32="","",ROUND(R$4/Liste!R$5*Liste!R32,R$6))) ->  | S32: =IF(S$4=0,"",IF(Liste!S32="","",ROUND(S$4/Liste!S$5*Liste!S32,S$6))) ->  | T32: =IF(T$4=0,"",IF(Liste!T32="","",ROUND(T$4/Liste!T$5*Liste!T32,T$6))) ->  | U32: =IF(U$4=0,"",IF(Liste!U32="","",ROUND(U$4/Liste!U$5*Liste!U32,U$6))) ->  | V32: =IF(V$4=0,"",IF(Liste!V32="","",ROUND(V$4/Liste!V$5*Liste!V32,V$6))) ->  | W32: =IF(W$4=0,"",IF(Liste!W32="","",ROUND(W$4/Liste!W$5*Liste!W32,W$6))) ->  | X32: =IF(X$4=0,"",IF(Liste!X32="","",ROUND(X$4/Liste!X$5*Liste!X32,X$6))) ->  | Y32: =IF(Y$4=0,"",IF(Liste!Y32="","",ROUND(Y$4/Liste!Y$5*Liste!Y32,Y$6))) ->  | Z32: =IF(Z$4=0,"",IF(Liste!Z32="","",ROUND(Z$4/Liste!Z$5*Liste!Z32,Z$6))) ->  | AA32: =IF(AA$4=0,"",IF(Liste!AA32="","",ROUND(AA$4/Liste!AA$5*Liste!AA32,AA$6))) ->  | AB32: =IF(AB$4=0,"",IF(Liste!AB32="","",ROUND(AB$4/Liste!AB$5*Liste!AB32,AB$6))) ->  | AC32: =IF(AC$4=0,"",IF(Liste!AC32="","",ROUND(AC$4/Liste!AC$5*Liste!AC32,AC$6))) ->  | AD32: =IF(AD$4=0,"",IF(Liste!AD32="","",ROUND(AD$4/Liste!AD$5*Liste!AD32,AD$6))) ->  | AE32: =IF(AE$4=0,"",IF(Liste!AE32="","",ROUND(AE$4/Liste!AE$5*Liste!AE32,AE$6))) ->  | AF32: =IF(AF$4=0,"",IF(Liste!AF32="","",ROUND(AF$4/Liste!AF$5*Liste!AF32,AF$6))) ->  | AG32: =IF(AG$4=0,"",IF(Liste!AG32="","",ROUND(AG$4/Liste!AG$5*Liste!AG32,AG$6))) ->  | AH32: =IF(AH$4=0,"",IF(Liste!AH32="","",ROUND(AH$4/Liste!AH$5*Liste!AH32,AH$6))) -> 
B33: =IF(Liste!B33="","",Liste!B33) ->  | C33: =IF(Liste!C33="","",Liste!C33) ->  | D33: =IF(Liste!D33="","",Liste!D33) ->  | E33: =IF(E$4=0,"",IF(Liste!E33="","",ROUND(E$4/Liste!E$5*Liste!E33,E$6))) ->  | F33: =IF(F$4=0,"",IF(Liste!F33="","",ROUND(F$4/Liste!F$5*Liste!F33,F$6))) ->  | G33: =IF(G$4=0,"",IF(Liste!G33="","",ROUND(G$4/Liste!G$5*Liste!G33,G$6))) ->  | H33: =IF(H$4=0,"",IF(Liste!H33="","",ROUND(H$4/Liste!H$5*Liste!H33,H$6))) ->  | I33: =IF(I$4=0,"",IF(Liste!I33="","",ROUND(I$4/Liste!I$5*Liste!I33,I$6))) ->  | J33: =IF(J$4=0,"",IF(Liste!J33="","",ROUND(J$4/Liste!J$5*Liste!J33,J$6))) ->  | K33: =IF(K$4=0,"",IF(Liste!K33="","",ROUND(K$4/Liste!K$5*Liste!K33,K$6))) ->  | L33: =IF(L$4=0,"",IF(Liste!L33="","",ROUND(L$4/Liste!L$5*Liste!L33,L$6))) ->  | M33: =IF(M$4=0,"",IF(Liste!M33="","",ROUND(M$4/Liste!M$5*Liste!M33,M$6))) ->  | N33: =IF(N$4=0,"",IF(Liste!N33="","",ROUND(N$4/Liste!N$5*Liste!N33,N$6))) ->  | O33: =IF(O$4=0,"",IF(Liste!O33="","",ROUND(O$4/Liste!O$5*Liste!O33,O$6))) ->  | P33: =IF(P$4=0,"",IF(Liste!P33="","",ROUND(P$4/Liste!P$5*Liste!P33,P$6))) ->  | Q33: =IF(Q$4=0,"",IF(Liste!Q33="","",ROUND(Q$4/Liste!Q$5*Liste!Q33,Q$6))) ->  | R33: =IF(R$4=0,"",IF(Liste!R33="","",ROUND(R$4/Liste!R$5*Liste!R33,R$6))) ->  | S33: =IF(S$4=0,"",IF(Liste!S33="","",ROUND(S$4/Liste!S$5*Liste!S33,S$6))) ->  | T33: =IF(T$4=0,"",IF(Liste!T33="","",ROUND(T$4/Liste!T$5*Liste!T33,T$6))) ->  | U33: =IF(U$4=0,"",IF(Liste!U33="","",ROUND(U$4/Liste!U$5*Liste!U33,U$6))) ->  | V33: =IF(V$4=0,"",IF(Liste!V33="","",ROUND(V$4/Liste!V$5*Liste!V33,V$6))) ->  | W33: =IF(W$4=0,"",IF(Liste!W33="","",ROUND(W$4/Liste!W$5*Liste!W33,W$6))) ->  | X33: =IF(X$4=0,"",IF(Liste!X33="","",ROUND(X$4/Liste!X$5*Liste!X33,X$6))) ->  | Y33: =IF(Y$4=0,"",IF(Liste!Y33="","",ROUND(Y$4/Liste!Y$5*Liste!Y33,Y$6))) ->  | Z33: =IF(Z$4=0,"",IF(Liste!Z33="","",ROUND(Z$4/Liste!Z$5*Liste!Z33,Z$6))) ->  | AA33: =IF(AA$4=0,"",IF(Liste!AA33="","",ROUND(AA$4/Liste!AA$5*Liste!AA33,AA$6))) ->  | AB33: =IF(AB$4=0,"",IF(Liste!AB33="","",ROUND(AB$4/Liste!AB$5*Liste!AB33,AB$6))) ->  | AC33: =IF(AC$4=0,"",IF(Liste!AC33="","",ROUND(AC$4/Liste!AC$5*Liste!AC33,AC$6))) ->  | AD33: =IF(AD$4=0,"",IF(Liste!AD33="","",ROUND(AD$4/Liste!AD$5*Liste!AD33,AD$6))) ->  | AE33: =IF(AE$4=0,"",IF(Liste!AE33="","",ROUND(AE$4/Liste!AE$5*Liste!AE33,AE$6))) ->  | AF33: =IF(AF$4=0,"",IF(Liste!AF33="","",ROUND(AF$4/Liste!AF$5*Liste!AF33,AF$6))) ->  | AG33: =IF(AG$4=0,"",IF(Liste!AG33="","",ROUND(AG$4/Liste!AG$5*Liste!AG33,AG$6))) ->  | AH33: =IF(AH$4=0,"",IF(Liste!AH33="","",ROUND(AH$4/Liste!AH$5*Liste!AH33,AH$6))) -> 
A34: 7 | B34: =IF(Liste!B34="","",Liste!B34) -> Eigelb | C34: =IF(Liste!C34="","",Liste!C34) ->  | D34: =IF(Liste!D34="","",Liste!D34) -> [St.] | E34: =IF(E$4=0,"",IF(Liste!E34="","",ROUND(E$4/Liste!E$5*Liste!E34,E$6))) ->  | F34: =IF(F$4=0,"",IF(Liste!F34="","",ROUND(F$4/Liste!F$5*Liste!F34,F$6))) ->  | G34: =IF(G$4=0,"",IF(Liste!G34="","",ROUND(G$4/Liste!G$5*Liste!G34,G$6))) ->  | H34: =IF(H$4=0,"",IF(Liste!H34="","",ROUND(H$4/Liste!H$5*Liste!H34,H$6))) ->  | I34: =IF(I$4=0,"",IF(Liste!I34="","",ROUND(I$4/Liste!I$5*Liste!I34,I$6))) ->  | J34: =IF(J$4=0,"",IF(Liste!J34="","",ROUND(J$4/Liste!J$5*Liste!J34,J$6))) ->  | K34: =IF(K$4=0,"",IF(Liste!K34="","",ROUND(K$4/Liste!K$5*Liste!K34,K$6))) -> 2 | L34: =IF(L$4=0,"",IF(Liste!L34="","",ROUND(L$4/Liste!L$5*Liste!L34,L$6))) -> 2 | M34: =IF(M$4=0,"",IF(Liste!M34="","",ROUND(M$4/Liste!M$5*Liste!M34,M$6))) ->  | N34: =IF(N$4=0,"",IF(Liste!N34="","",ROUND(N$4/Liste!N$5*Liste!N34,N$6))) ->  | O34: =IF(O$4=0,"",IF(Liste!O34="","",ROUND(O$4/Liste!O$5*Liste!O34,O$6))) -> 2 | P34: =IF(P$4=0,"",IF(Liste!P34="","",ROUND(P$4/Liste!P$5*Liste!P34,P$6))) ->  | Q34: =IF(Q$4=0,"",IF(Liste!Q34="","",ROUND(Q$4/Liste!Q$5*Liste!Q34,Q$6))) ->  | R34: =IF(R$4=0,"",IF(Liste!R34="","",ROUND(R$4/Liste!R$5*Liste!R34,R$6))) ->  | S34: =IF(S$4=0,"",IF(Liste!S34="","",ROUND(S$4/Liste!S$5*Liste!S34,S$6))) ->  | T34: =IF(T$4=0,"",IF(Liste!T34="","",ROUND(T$4/Liste!T$5*Liste!T34,T$6))) ->  | U34: =IF(U$4=0,"",IF(Liste!U34="","",ROUND(U$4/Liste!U$5*Liste!U34,U$6))) ->  | V34: =IF(V$4=0,"",IF(Liste!V34="","",ROUND(V$4/Liste!V$5*Liste!V34,V$6))) ->  | W34: =IF(W$4=0,"",IF(Liste!W34="","",ROUND(W$4/Liste!W$5*Liste!W34,W$6))) ->  | X34: =IF(X$4=0,"",IF(Liste!X34="","",ROUND(X$4/Liste!X$5*Liste!X34,X$6))) -> 1 | Y34: =IF(Y$4=0,"",IF(Liste!Y34="","",ROUND(Y$4/Liste!Y$5*Liste!Y34,Y$6))) ->  | Z34: =IF(Z$4=0,"",IF(Liste!Z34="","",ROUND(Z$4/Liste!Z$5*Liste!Z34,Z$6))) ->  | AA34: =IF(AA$4=0,"",IF(Liste!AA34="","",ROUND(AA$4/Liste!AA$5*Liste!AA34,AA$6))) ->  | AB34: =IF(AB$4=0,"",IF(Liste!AB34="","",ROUND(AB$4/Liste!AB$5*Liste!AB34,AB$6))) ->  | AC34: =IF(AC$4=0,"",IF(Liste!AC34="","",ROUND(AC$4/Liste!AC$5*Liste!AC34,AC$6))) ->  | AD34: =IF(AD$4=0,"",IF(Liste!AD34="","",ROUND(AD$4/Liste!AD$5*Liste!AD34,AD$6))) ->  | AE34: =IF(AE$4=0,"",IF(Liste!AE34="","",ROUND(AE$4/Liste!AE$5*Liste!AE34,AE$6))) ->  | AF34: =IF(AF$4=0,"",IF(Liste!AF34="","",ROUND(AF$4/Liste!AF$5*Liste!AF34,AF$6))) ->  | AG34: =IF(AG$4=0,"",IF(Liste!AG34="","",ROUND(AG$4/Liste!AG$5*Liste!AG34,AG$6))) ->  | AH34: =IF(AH$4=0,"",IF(Liste!AH34="","",ROUND(AH$4/Liste!AH$5*Liste!AH34,AH$6))) -> 
A35: 14 | B35: =IF(Liste!B35="","",Liste!B35) -> Eiweiß | C35: =IF(Liste!C35="","",Liste!C35) ->  | D35: =IF(Liste!D35="","",Liste!D35) -> [St.] | E35: =IF(E$4=0,"",IF(Liste!E35="","",ROUND(E$4/Liste!E$5*Liste!E35,E$6))) ->  | F35: =IF(F$4=0,"",IF(Liste!F35="","",ROUND(F$4/Liste!F$5*Liste!F35,F$6))) -> 2 | G35: =IF(G$4=0,"",IF(Liste!G35="","",ROUND(G$4/Liste!G$5*Liste!G35,G$6))) ->  | H35: =IF(H$4=0,"",IF(Liste!H35="","",ROUND(H$4/Liste!H$5*Liste!H35,H$6))) ->  | I35: =IF(I$4=0,"",IF(Liste!I35="","",ROUND(I$4/Liste!I$5*Liste!I35,I$6))) ->  | J35: =IF(J$4=0,"",IF(Liste!J35="","",ROUND(J$4/Liste!J$5*Liste!J35,J$6))) ->  | K35: =IF(K$4=0,"",IF(Liste!K35="","",ROUND(K$4/Liste!K$5*Liste!K35,K$6))) -> 2 | L35: =IF(L$4=0,"",IF(Liste!L35="","",ROUND(L$4/Liste!L$5*Liste!L35,L$6))) -> 2 | M35: =IF(M$4=0,"",IF(Liste!M35="","",ROUND(M$4/Liste!M$5*Liste!M35,M$6))) ->  | N35: =IF(N$4=0,"",IF(Liste!N35="","",ROUND(N$4/Liste!N$5*Liste!N35,N$6))) ->  | O35: =IF(O$4=0,"",IF(Liste!O35="","",ROUND(O$4/Liste!O$5*Liste!O35,O$6))) -> 2 | P35: =IF(P$4=0,"",IF(Liste!P35="","",ROUND(P$4/Liste!P$5*Liste!P35,P$6))) -> 4 | Q35: =IF(Q$4=0,"",IF(Liste!Q35="","",ROUND(Q$4/Liste!Q$5*Liste!Q35,Q$6))) ->  | R35: =IF(R$4=0,"",IF(Liste!R35="","",ROUND(R$4/Liste!R$5*Liste!R35,R$6))) ->  | S35: =IF(S$4=0,"",IF(Liste!S35="","",ROUND(S$4/Liste!S$5*Liste!S35,S$6))) ->  | T35: =IF(T$4=0,"",IF(Liste!T35="","",ROUND(T$4/Liste!T$5*Liste!T35,T$6))) ->  | U35: =IF(U$4=0,"",IF(Liste!U35="","",ROUND(U$4/Liste!U$5*Liste!U35,U$6))) ->  | V35: =IF(V$4=0,"",IF(Liste!V35="","",ROUND(V$4/Liste!V$5*Liste!V35,V$6))) -> 2 | W35: =IF(W$4=0,"",IF(Liste!W35="","",ROUND(W$4/Liste!W$5*Liste!W35,W$6))) ->  | X35: =IF(X$4=0,"",IF(Liste!X35="","",ROUND(X$4/Liste!X$5*Liste!X35,X$6))) ->  | Y35: =IF(Y$4=0,"",IF(Liste!Y35="","",ROUND(Y$4/Liste!Y$5*Liste!Y35,Y$6))) ->  | Z35: =IF(Z$4=0,"",IF(Liste!Z35="","",ROUND(Z$4/Liste!Z$5*Liste!Z35,Z$6))) ->  | AA35: =IF(AA$4=0,"",IF(Liste!AA35="","",ROUND(AA$4/Liste!AA$5*Liste!AA35,AA$6))) ->  | AB35: =IF(AB$4=0,"",IF(Liste!AB35="","",ROUND(AB$4/Liste!AB$5*Liste!AB35,AB$6))) ->  | AC35: =IF(AC$4=0,"",IF(Liste!AC35="","",ROUND(AC$4/Liste!AC$5*Liste!AC35,AC$6))) ->  | AD35: =IF(AD$4=0,"",IF(Liste!AD35="","",ROUND(AD$4/Liste!AD$5*Liste!AD35,AD$6))) ->  | AE35: =IF(AE$4=0,"",IF(Liste!AE35="","",ROUND(AE$4/Liste!AE$5*Liste!AE35,AE$6))) ->  | AF35: =IF(AF$4=0,"",IF(Liste!AF35="","",ROUND(AF$4/Liste!AF$5*Liste!AF35,AF$6))) ->  | AG35: =IF(AG$4=0,"",IF(Liste!AG35="","",ROUND(AG$4/Liste!AG$5*Liste!AG35,AG$6))) ->  | AH35: =IF(AH$4=0,"",IF(Liste!AH35="","",ROUND(AH$4/Liste!AH$5*Liste!AH35,AH$6))) -> 
A36: 1 | B36: =IF(Liste!B36="","",Liste!B36) -> Zitrone | C36: =IF(Liste!C36="","",Liste!C36) ->  | D36: =IF(Liste!D36="","",Liste!D36) -> [St.] | E36: =IF(E$4=0,"",IF(Liste!E36="","",ROUND(E$4/Liste!E$5*Liste!E36,E$6))) ->  | F36: =IF(F$4=0,"",IF(Liste!F36="","",ROUND(F$4/Liste!F$5*Liste!F36,F$6))) ->  | G36: =IF(G$4=0,"",IF(Liste!G36="","",ROUND(G$4/Liste!G$5*Liste!G36,G$6))) ->  | H36: =IF(H$4=0,"",IF(Liste!H36="","",ROUND(H$4/Liste!H$5*Liste!H36,H$6))) ->  | I36: =IF(I$4=0,"",IF(Liste!I36="","",ROUND(I$4/Liste!I$5*Liste!I36,I$6))) ->  | J36: =IF(J$4=0,"",IF(Liste!J36="","",ROUND(J$4/Liste!J$5*Liste!J36,J$6))) ->  | K36: =IF(K$4=0,"",IF(Liste!K36="","",ROUND(K$4/Liste!K$5*Liste!K36,K$6))) ->  | L36: =IF(L$4=0,"",IF(Liste!L36="","",ROUND(L$4/Liste!L$5*Liste!L36,L$6))) ->  | M36: =IF(M$4=0,"",IF(Liste!M36="","",ROUND(M$4/Liste!M$5*Liste!M36,M$6))) ->  | N36: =IF(N$4=0,"",IF(Liste!N36="","",ROUND(N$4/Liste!N$5*Liste!N36,N$6))) ->  | O36: =IF(O$4=0,"",IF(Liste!O36="","",ROUND(O$4/Liste!O$5*Liste!O36,O$6))) ->  | P36: =IF(P$4=0,"",IF(Liste!P36="","",ROUND(P$4/Liste!P$5*Liste!P36,P$6))) ->  | Q36: =IF(Q$4=0,"",IF(Liste!Q36="","",ROUND(Q$4/Liste!Q$5*Liste!Q36,Q$6))) ->  | R36: =IF(R$4=0,"",IF(Liste!R36="","",ROUND(R$4/Liste!R$5*Liste!R36,R$6))) ->  | S36: =IF(S$4=0,"",IF(Liste!S36="","",ROUND(S$4/Liste!S$5*Liste!S36,S$6))) ->  | T36: =IF(T$4=0,"",IF(Liste!T36="","",ROUND(T$4/Liste!T$5*Liste!T36,T$6))) ->  | U36: =IF(U$4=0,"",IF(Liste!U36="","",ROUND(U$4/Liste!U$5*Liste!U36,U$6))) ->  | V36: =IF(V$4=0,"",IF(Liste!V36="","",ROUND(V$4/Liste!V$5*Liste!V36,V$6))) -> 1 | W36: =IF(W$4=0,"",IF(Liste!W36="","",ROUND(W$4/Liste!W$5*Liste!W36,W$6))) ->  | X36: =IF(X$4=0,"",IF(Liste!X36="","",ROUND(X$4/Liste!X$5*Liste!X36,X$6))) ->  | Y36: =IF(Y$4=0,"",IF(Liste!Y36="","",ROUND(Y$4/Liste!Y$5*Liste!Y36,Y$6))) ->  | Z36: =IF(Z$4=0,"",IF(Liste!Z36="","",ROUND(Z$4/Liste!Z$5*Liste!Z36,Z$6))) ->  | AA36: =IF(AA$4=0,"",IF(Liste!AA36="","",ROUND(AA$4/Liste!AA$5*Liste!AA36,AA$6))) ->  | AB36: =IF(AB$4=0,"",IF(Liste!AB36="","",ROUND(AB$4/Liste!AB$5*Liste!AB36,AB$6))) ->  | AC36: =IF(AC$4=0,"",IF(Liste!AC36="","",ROUND(AC$4/Liste!AC$5*Liste!AC36,AC$6))) ->  | AD36: =IF(AD$4=0,"",IF(Liste!AD36="","",ROUND(AD$4/Liste!AD$5*Liste!AD36,AD$6))) ->  | AE36: =IF(AE$4=0,"",IF(Liste!AE36="","",ROUND(AE$4/Liste!AE$5*Liste!AE36,AE$6))) ->  | AF36: =IF(AF$4=0,"",IF(Liste!AF36="","",ROUND(AF$4/Liste!AF$5*Liste!AF36,AF$6))) ->  | AG36: =IF(AG$4=0,"",IF(Liste!AG36="","",ROUND(AG$4/Liste!AG$5*Liste!AG36,AG$6))) ->  | AH36: =IF(AH$4=0,"",IF(Liste!AH36="","",ROUND(AH$4/Liste!AH$5*Liste!AH36,AH$6))) -> 
A37: 1 | B37: =IF(Liste!B37="","",Liste!B37) -> abgeriebene Schale Zitrone | C37: =IF(Liste!C37="","",Liste!C37) ->  | D37: =IF(Liste!D37="","",Liste!D37) -> [St.] | E37: =IF(E$4=0,"",IF(Liste!E37="","",ROUND(E$4/Liste!E$5*Liste!E37,E$6))) ->  | F37: =IF(F$4=0,"",IF(Liste!F37="","",ROUND(F$4/Liste!F$5*Liste!F37,F$6))) ->  | G37: =IF(G$4=0,"",IF(Liste!G37="","",ROUND(G$4/Liste!G$5*Liste!G37,G$6))) ->  | H37: =IF(H$4=0,"",IF(Liste!H37="","",ROUND(H$4/Liste!H$5*Liste!H37,H$6))) ->  | I37: =IF(I$4=0,"",IF(Liste!I37="","",ROUND(I$4/Liste!I$5*Liste!I37,I$6))) ->  | J37: =IF(J$4=0,"",IF(Liste!J37="","",ROUND(J$4/Liste!J$5*Liste!J37,J$6))) ->  | K37: =IF(K$4=0,"",IF(Liste!K37="","",ROUND(K$4/Liste!K$5*Liste!K37,K$6))) ->  | L37: =IF(L$4=0,"",IF(Liste!L37="","",ROUND(L$4/Liste!L$5*Liste!L37,L$6))) -> 1 | M37: =IF(M$4=0,"",IF(Liste!M37="","",ROUND(M$4/Liste!M$5*Liste!M37,M$6))) ->  | N37: =IF(N$4=0,"",IF(Liste!N37="","",ROUND(N$4/Liste!N$5*Liste!N37,N$6))) ->  | O37: =IF(O$4=0,"",IF(Liste!O37="","",ROUND(O$4/Liste!O$5*Liste!O37,O$6))) ->  | P37: =IF(P$4=0,"",IF(Liste!P37="","",ROUND(P$4/Liste!P$5*Liste!P37,P$6))) ->  | Q37: =IF(Q$4=0,"",IF(Liste!Q37="","",ROUND(Q$4/Liste!Q$5*Liste!Q37,Q$6))) ->  | R37: =IF(R$4=0,"",IF(Liste!R37="","",ROUND(R$4/Liste!R$5*Liste!R37,R$6))) ->  | S37: =IF(S$4=0,"",IF(Liste!S37="","",ROUND(S$4/Liste!S$5*Liste!S37,S$6))) ->  | T37: =IF(T$4=0,"",IF(Liste!T37="","",ROUND(T$4/Liste!T$5*Liste!T37,T$6))) ->  | U37: =IF(U$4=0,"",IF(Liste!U37="","",ROUND(U$4/Liste!U$5*Liste!U37,U$6))) ->  | V37: =IF(V$4=0,"",IF(Liste!V37="","",ROUND(V$4/Liste!V$5*Liste!V37,V$6))) ->  | W37: =IF(W$4=0,"",IF(Liste!W37="","",ROUND(W$4/Liste!W$5*Liste!W37,W$6))) ->  | X37: =IF(X$4=0,"",IF(Liste!X37="","",ROUND(X$4/Liste!X$5*Liste!X37,X$6))) ->  | Y37: =IF(Y$4=0,"",IF(Liste!Y37="","",ROUND(Y$4/Liste!Y$5*Liste!Y37,Y$6))) ->  | Z37: =IF(Z$4=0,"",IF(Liste!Z37="","",ROUND(Z$4/Liste!Z$5*Liste!Z37,Z$6))) ->  | AA37: =IF(AA$4=0,"",IF(Liste!AA37="","",ROUND(AA$4/Liste!AA$5*Liste!AA37,AA$6))) ->  | AB37: =IF(AB$4=0,"",IF(Liste!AB37="","",ROUND(AB$4/Liste!AB$5*Liste!AB37,AB$6))) ->  | AC37: =IF(AC$4=0,"",IF(Liste!AC37="","",ROUND(AC$4/Liste!AC$5*Liste!AC37,AC$6))) ->  | AD37: =IF(AD$4=0,"",IF(Liste!AD37="","",ROUND(AD$4/Liste!AD$5*Liste!AD37,AD$6))) ->  | AE37: =IF(AE$4=0,"",IF(Liste!AE37="","",ROUND(AE$4/Liste!AE$5*Liste!AE37,AE$6))) ->  | AF37: =IF(AF$4=0,"",IF(Liste!AF37="","",ROUND(AF$4/Liste!AF$5*Liste!AF37,AF$6))) ->  | AG37: =IF(AG$4=0,"",IF(Liste!AG37="","",ROUND(AG$4/Liste!AG$5*Liste!AG37,AG$6))) ->  | AH37: =IF(AH$4=0,"",IF(Liste!AH37="","",ROUND(AH$4/Liste!AH$5*Liste!AH37,AH$6))) -> 
B38: =IF(Liste!B38="","",Liste!B38) -> abgeriebene Schale Orange | C38: =IF(Liste!C38="","",Liste!C38) ->  | D38: =IF(Liste!D38="","",Liste!D38) -> [St.] | E38: =IF(E$4=0,"",IF(Liste!E38="","",ROUND(E$4/Liste!E$5*Liste!E38,E$6))) ->  | F38: =IF(F$4=0,"",IF(Liste!F38="","",ROUND(F$4/Liste!F$5*Liste!F38,F$6))) ->  | G38: =IF(G$4=0,"",IF(Liste!G38="","",ROUND(G$4/Liste!G$5*Liste!G38,G$6))) ->  | H38: =IF(H$4=0,"",IF(Liste!H38="","",ROUND(H$4/Liste!H$5*Liste!H38,H$6))) ->  | I38: =IF(I$4=0,"",IF(Liste!I38="","",ROUND(I$4/Liste!I$5*Liste!I38,I$6))) ->  | J38: =IF(J$4=0,"",IF(Liste!J38="","",ROUND(J$4/Liste!J$5*Liste!J38,J$6))) ->  | K38: =IF(K$4=0,"",IF(Liste!K38="","",ROUND(K$4/Liste!K$5*Liste!K38,K$6))) ->  | L38: =IF(L$4=0,"",IF(Liste!L38="","",ROUND(L$4/Liste!L$5*Liste!L38,L$6))) ->  | M38: =IF(M$4=0,"",IF(Liste!M38="","",ROUND(M$4/Liste!M$5*Liste!M38,M$6))) ->  | N38: =IF(N$4=0,"",IF(Liste!N38="","",ROUND(N$4/Liste!N$5*Liste!N38,N$6))) ->  | O38: =IF(O$4=0,"",IF(Liste!O38="","",ROUND(O$4/Liste!O$5*Liste!O38,O$6))) ->  | P38: =IF(P$4=0,"",IF(Liste!P38="","",ROUND(P$4/Liste!P$5*Liste!P38,P$6))) ->  | Q38: =IF(Q$4=0,"",IF(Liste!Q38="","",ROUND(Q$4/Liste!Q$5*Liste!Q38,Q$6))) ->  | R38: =IF(R$4=0,"",IF(Liste!R38="","",ROUND(R$4/Liste!R$5*Liste!R38,R$6))) ->  | S38: =IF(S$4=0,"",IF(Liste!S38="","",ROUND(S$4/Liste!S$5*Liste!S38,S$6))) ->  | T38: =IF(T$4=0,"",IF(Liste!T38="","",ROUND(T$4/Liste!T$5*Liste!T38,T$6))) ->  | U38: =IF(U$4=0,"",IF(Liste!U38="","",ROUND(U$4/Liste!U$5*Liste!U38,U$6))) ->  | V38: =IF(V$4=0,"",IF(Liste!V38="","",ROUND(V$4/Liste!V$5*Liste!V38,V$6))) ->  | W38: =IF(W$4=0,"",IF(Liste!W38="","",ROUND(W$4/Liste!W$5*Liste!W38,W$6))) ->  | X38: =IF(X$4=0,"",IF(Liste!X38="","",ROUND(X$4/Liste!X$5*Liste!X38,X$6))) ->  | Y38: =IF(Y$4=0,"",IF(Liste!Y38="","",ROUND(Y$4/Liste!Y$5*Liste!Y38,Y$6))) ->  | Z38: =IF(Z$4=0,"",IF(Liste!Z38="","",ROUND(Z$4/Liste!Z$5*Liste!Z38,Z$6))) ->  | AA38: =IF(AA$4=0,"",IF(Liste!AA38="","",ROUND(AA$4/Liste!AA$5*Liste!AA38,AA$6))) ->  | AB38: =IF(AB$4=0,"",IF(Liste!AB38="","",ROUND(AB$4/Liste!AB$5*Liste!AB38,AB$6))) ->  | AC38: =IF(AC$4=0,"",IF(Liste!AC38="","",ROUND(AC$4/Liste!AC$5*Liste!AC38,AC$6))) ->  | AD38: =IF(AD$4=0,"",IF(Liste!AD38="","",ROUND(AD$4/Liste!AD$5*Liste!AD38,AD$6))) ->  | AE38: =IF(AE$4=0,"",IF(Liste!AE38="","",ROUND(AE$4/Liste!AE$5*Liste!AE38,AE$6))) ->  | AF38: =IF(AF$4=0,"",IF(Liste!AF38="","",ROUND(AF$4/Liste!AF$5*Liste!AF38,AF$6))) ->  | AG38: =IF(AG$4=0,"",IF(Liste!AG38="","",ROUND(AG$4/Liste!AG$5*Liste!AG38,AG$6))) ->  | AH38: =IF(AH$4=0,"",IF(Liste!AH38="","",ROUND(AH$4/Liste!AH$5*Liste!AH38,AH$6))) -> 
B39: =IF(Liste!B39="","",Liste!B39) -> Vanillieschoten | C39: =IF(Liste!C39="","",Liste!C39) ->  | D39: =IF(Liste!D39="","",Liste!D39) -> [St.] | E39: =IF(E$4=0,"",IF(Liste!E39="","",ROUND(E$4/Liste!E$5*Liste!E39,E$6))) ->  | F39: =IF(F$4=0,"",IF(Liste!F39="","",ROUND(F$4/Liste!F$5*Liste!F39,F$6))) ->  | G39: =IF(G$4=0,"",IF(Liste!G39="","",ROUND(G$4/Liste!G$5*Liste!G39,G$6))) ->  | H39: =IF(H$4=0,"",IF(Liste!H39="","",ROUND(H$4/Liste!H$5*Liste!H39,H$6))) ->  | I39: =IF(I$4=0,"",IF(Liste!I39="","",ROUND(I$4/Liste!I$5*Liste!I39,I$6))) ->  | J39: =IF(J$4=0,"",IF(Liste!J39="","",ROUND(J$4/Liste!J$5*Liste!J39,J$6))) ->  | K39: =IF(K$4=0,"",IF(Liste!K39="","",ROUND(K$4/Liste!K$5*Liste!K39,K$6))) ->  | L39: =IF(L$4=0,"",IF(Liste!L39="","",ROUND(L$4/Liste!L$5*Liste!L39,L$6))) ->  | M39: =IF(M$4=0,"",IF(Liste!M39="","",ROUND(M$4/Liste!M$5*Liste!M39,M$6))) ->  | N39: =IF(N$4=0,"",IF(Liste!N39="","",ROUND(N$4/Liste!N$5*Liste!N39,N$6))) ->  | O39: =IF(O$4=0,"",IF(Liste!O39="","",ROUND(O$4/Liste!O$5*Liste!O39,O$6))) ->  | P39: =IF(P$4=0,"",IF(Liste!P39="","",ROUND(P$4/Liste!P$5*Liste!P39,P$6))) ->  | Q39: =IF(Q$4=0,"",IF(Liste!Q39="","",ROUND(Q$4/Liste!Q$5*Liste!Q39,Q$6))) ->  | R39: =IF(R$4=0,"",IF(Liste!R39="","",ROUND(R$4/Liste!R$5*Liste!R39,R$6))) ->  | S39: =IF(S$4=0,"",IF(Liste!S39="","",ROUND(S$4/Liste!S$5*Liste!S39,S$6))) ->  | T39: =IF(T$4=0,"",IF(Liste!T39="","",ROUND(T$4/Liste!T$5*Liste!T39,T$6))) ->  | U39: =IF(U$4=0,"",IF(Liste!U39="","",ROUND(U$4/Liste!U$5*Liste!U39,U$6))) ->  | V39: =IF(V$4=0,"",IF(Liste!V39="","",ROUND(V$4/Liste!V$5*Liste!V39,V$6))) ->  | W39: =IF(W$4=0,"",IF(Liste!W39="","",ROUND(W$4/Liste!W$5*Liste!W39,W$6))) ->  | X39: =IF(X$4=0,"",IF(Liste!X39="","",ROUND(X$4/Liste!X$5*Liste!X39,X$6))) ->  | Y39: =IF(Y$4=0,"",IF(Liste!Y39="","",ROUND(Y$4/Liste!Y$5*Liste!Y39,Y$6))) ->  | Z39: =IF(Z$4=0,"",IF(Liste!Z39="","",ROUND(Z$4/Liste!Z$5*Liste!Z39,Z$6))) ->  | AA39: =IF(AA$4=0,"",IF(Liste!AA39="","",ROUND(AA$4/Liste!AA$5*Liste!AA39,AA$6))) ->  | AB39: =IF(AB$4=0,"",IF(Liste!AB39="","",ROUND(AB$4/Liste!AB$5*Liste!AB39,AB$6))) ->  | AC39: =IF(AC$4=0,"",IF(Liste!AC39="","",ROUND(AC$4/Liste!AC$5*Liste!AC39,AC$6))) ->  | AD39: =IF(AD$4=0,"",IF(Liste!AD39="","",ROUND(AD$4/Liste!AD$5*Liste!AD39,AD$6))) ->  | AE39: =IF(AE$4=0,"",IF(Liste!AE39="","",ROUND(AE$4/Liste!AE$5*Liste!AE39,AE$6))) ->  | AF39: =IF(AF$4=0,"",IF(Liste!AF39="","",ROUND(AF$4/Liste!AF$5*Liste!AF39,AF$6))) ->  | AG39: =IF(AG$4=0,"",IF(Liste!AG39="","",ROUND(AG$4/Liste!AG$5*Liste!AG39,AG$6))) ->  | AH39: =IF(AH$4=0,"",IF(Liste!AH39="","",ROUND(AH$4/Liste!AH$5*Liste!AH39,AH$6))) -> 
B40: =IF(Liste!B40="","",Liste!B40) -> Backoblaten | C40: =IF(Liste!C40="","",Liste!C40) -> d = 5 cm | D40: =IF(Liste!D40="","",Liste!D40) -> [St.] | E40: =IF(E$4=0,"",IF(Liste!E40="","",ROUND(E$4/Liste!E$5*Liste!E40,E$6))) ->  | F40: =IF(F$4=0,"",IF(Liste!F40="","",ROUND(F$4/Liste!F$5*Liste!F40,F$6))) ->  | G40: =IF(G$4=0,"",IF(Liste!G40="","",ROUND(G$4/Liste!G$5*Liste!G40,G$6))) ->  | H40: =IF(H$4=0,"",IF(Liste!H40="","",ROUND(H$4/Liste!H$5*Liste!H40,H$6))) ->  | I40: =IF(I$4=0,"",IF(Liste!I40="","",ROUND(I$4/Liste!I$5*Liste!I40,I$6))) ->  | J40: =IF(J$4=0,"",IF(Liste!J40="","",ROUND(J$4/Liste!J$5*Liste!J40,J$6))) ->  | K40: =IF(K$4=0,"",IF(Liste!K40="","",ROUND(K$4/Liste!K$5*Liste!K40,K$6))) ->  | L40: =IF(L$4=0,"",IF(Liste!L40="","",ROUND(L$4/Liste!L$5*Liste!L40,L$6))) ->  | M40: =IF(M$4=0,"",IF(Liste!M40="","",ROUND(M$4/Liste!M$5*Liste!M40,M$6))) ->  | N40: =IF(N$4=0,"",IF(Liste!N40="","",ROUND(N$4/Liste!N$5*Liste!N40,N$6))) ->  | O40: =IF(O$4=0,"",IF(Liste!O40="","",ROUND(O$4/Liste!O$5*Liste!O40,O$6))) ->  | P40: =IF(P$4=0,"",IF(Liste!P40="","",ROUND(P$4/Liste!P$5*Liste!P40,P$6))) ->  | Q40: =IF(Q$4=0,"",IF(Liste!Q40="","",ROUND(Q$4/Liste!Q$5*Liste!Q40,Q$6))) ->  | R40: =IF(R$4=0,"",IF(Liste!R40="","",ROUND(R$4/Liste!R$5*Liste!R40,R$6))) ->  | S40: =IF(S$4=0,"",IF(Liste!S40="","",ROUND(S$4/Liste!S$5*Liste!S40,S$6))) ->  | T40: =IF(T$4=0,"",IF(Liste!T40="","",ROUND(T$4/Liste!T$5*Liste!T40,T$6))) ->  | U40: =IF(U$4=0,"",IF(Liste!U40="","",ROUND(U$4/Liste!U$5*Liste!U40,U$6))) ->  | V40: =IF(V$4=0,"",IF(Liste!V40="","",ROUND(V$4/Liste!V$5*Liste!V40,V$6))) ->  | W40: =IF(W$4=0,"",IF(Liste!W40="","",ROUND(W$4/Liste!W$5*Liste!W40,W$6))) ->  | X40: =IF(X$4=0,"",IF(Liste!X40="","",ROUND(X$4/Liste!X$5*Liste!X40,X$6))) ->  | Y40: =IF(Y$4=0,"",IF(Liste!Y40="","",ROUND(Y$4/Liste!Y$5*Liste!Y40,Y$6))) ->  | Z40: =IF(Z$4=0,"",IF(Liste!Z40="","",ROUND(Z$4/Liste!Z$5*Liste!Z40,Z$6))) ->  | AA40: =IF(AA$4=0,"",IF(Liste!AA40="","",ROUND(AA$4/Liste!AA$5*Liste!AA40,AA$6))) ->  | AB40: =IF(AB$4=0,"",IF(Liste!AB40="","",ROUND(AB$4/Liste!AB$5*Liste!AB40,AB$6))) ->  | AC40: =IF(AC$4=0,"",IF(Liste!AC40="","",ROUND(AC$4/Liste!AC$5*Liste!AC40,AC$6))) ->  | AD40: =IF(AD$4=0,"",IF(Liste!AD40="","",ROUND(AD$4/Liste!AD$5*Liste!AD40,AD$6))) ->  | AE40: =IF(AE$4=0,"",IF(Liste!AE40="","",ROUND(AE$4/Liste!AE$5*Liste!AE40,AE$6))) ->  | AF40: =IF(AF$4=0,"",IF(Liste!AF40="","",ROUND(AF$4/Liste!AF$5*Liste!AF40,AF$6))) ->  | AG40: =IF(AG$4=0,"",IF(Liste!AG40="","",ROUND(AG$4/Liste!AG$5*Liste!AG40,AG$6))) ->  | AH40: =IF(AH$4=0,"",IF(Liste!AH40="","",ROUND(AH$4/Liste!AH$5*Liste!AH40,AH$6))) -> 
B41: =IF(Liste!B41="","",Liste!B41) ->  | C41: =IF(Liste!C41="","",Liste!C41) ->  | D41: =IF(Liste!D41="","",Liste!D41) ->  | E41: =IF(E$4=0,"",IF(Liste!E41="","",ROUND(E$4/Liste!E$5*Liste!E41,E$6))) ->  | F41: =IF(F$4=0,"",IF(Liste!F41="","",ROUND(F$4/Liste!F$5*Liste!F41,F$6))) ->  | G41: =IF(G$4=0,"",IF(Liste!G41="","",ROUND(G$4/Liste!G$5*Liste!G41,G$6))) ->  | H41: =IF(H$4=0,"",IF(Liste!H41="","",ROUND(H$4/Liste!H$5*Liste!H41,H$6))) ->  | I41: =IF(I$4=0,"",IF(Liste!I41="","",ROUND(I$4/Liste!I$5*Liste!I41,I$6))) ->  | J41: =IF(J$4=0,"",IF(Liste!J41="","",ROUND(J$4/Liste!J$5*Liste!J41,J$6))) ->  | K41: =IF(K$4=0,"",IF(Liste!K41="","",ROUND(K$4/Liste!K$5*Liste!K41,K$6))) ->  | L41: =IF(L$4=0,"",IF(Liste!L41="","",ROUND(L$4/Liste!L$5*Liste!L41,L$6))) ->  | M41: =IF(M$4=0,"",IF(Liste!M41="","",ROUND(M$4/Liste!M$5*Liste!M41,M$6))) ->  | N41: =IF(N$4=0,"",IF(Liste!N41="","",ROUND(N$4/Liste!N$5*Liste!N41,N$6))) ->  | O41: =IF(O$4=0,"",IF(Liste!O41="","",ROUND(O$4/Liste!O$5*Liste!O41,O$6))) ->  | P41: =IF(P$4=0,"",IF(Liste!P41="","",ROUND(P$4/Liste!P$5*Liste!P41,P$6))) ->  | Q41: =IF(Q$4=0,"",IF(Liste!Q41="","",ROUND(Q$4/Liste!Q$5*Liste!Q41,Q$6))) ->  | R41: =IF(R$4=0,"",IF(Liste!R41="","",ROUND(R$4/Liste!R$5*Liste!R41,R$6))) ->  | S41: =IF(S$4=0,"",IF(Liste!S41="","",ROUND(S$4/Liste!S$5*Liste!S41,S$6))) ->  | T41: =IF(T$4=0,"",IF(Liste!T41="","",ROUND(T$4/Liste!T$5*Liste!T41,T$6))) ->  | U41: =IF(U$4=0,"",IF(Liste!U41="","",ROUND(U$4/Liste!U$5*Liste!U41,U$6))) ->  | V41: =IF(V$4=0,"",IF(Liste!V41="","",ROUND(V$4/Liste!V$5*Liste!V41,V$6))) ->  | W41: =IF(W$4=0,"",IF(Liste!W41="","",ROUND(W$4/Liste!W$5*Liste!W41,W$6))) ->  | X41: =IF(X$4=0,"",IF(Liste!X41="","",ROUND(X$4/Liste!X$5*Liste!X41,X$6))) ->  | Y41: =IF(Y$4=0,"",IF(Liste!Y41="","",ROUND(Y$4/Liste!Y$5*Liste!Y41,Y$6))) ->  | Z41: =IF(Z$4=0,"",IF(Liste!Z41="","",ROUND(Z$4/Liste!Z$5*Liste!Z41,Z$6))) ->  | AA41: =IF(AA$4=0,"",IF(Liste!AA41="","",ROUND(AA$4/Liste!AA$5*Liste!AA41,AA$6))) ->  | AB41: =IF(AB$4=0,"",IF(Liste!AB41="","",ROUND(AB$4/Liste!AB$5*Liste!AB41,AB$6))) ->  | AC41: =IF(AC$4=0,"",IF(Liste!AC41="","",ROUND(AC$4/Liste!AC$5*Liste!AC41,AC$6))) ->  | AD41: =IF(AD$4=0,"",IF(Liste!AD41="","",ROUND(AD$4/Liste!AD$5*Liste!AD41,AD$6))) ->  | AE41: =IF(AE$4=0,"",IF(Liste!AE41="","",ROUND(AE$4/Liste!AE$5*Liste!AE41,AE$6))) ->  | AF41: =IF(AF$4=0,"",IF(Liste!AF41="","",ROUND(AF$4/Liste!AF$5*Liste!AF41,AF$6))) ->  | AG41: =IF(AG$4=0,"",IF(Liste!AG41="","",ROUND(AG$4/Liste!AG$5*Liste!AG41,AG$6))) ->  | AH41: =IF(AH$4=0,"",IF(Liste!AH41="","",ROUND(AH$4/Liste!AH$5*Liste!AH41,AH$6))) -> 
A42: 1 | B42: =IF(Liste!B42="","",Liste!B42) -> Vanilliezucker | C42: =IF(Liste!C42="","",Liste!C42) ->  | D42: =IF(Liste!D42="","",Liste!D42) -> [Pck.] | E42: =IF(E$4=0,"",IF(Liste!E42="","",ROUND(E$4/Liste!E$5*Liste!E42,E$6))) ->  | F42: =IF(F$4=0,"",IF(Liste!F42="","",ROUND(F$4/Liste!F$5*Liste!F42,F$6))) ->  | G42: =IF(G$4=0,"",IF(Liste!G42="","",ROUND(G$4/Liste!G$5*Liste!G42,G$6))) ->  | H42: =IF(H$4=0,"",IF(Liste!H42="","",ROUND(H$4/Liste!H$5*Liste!H42,H$6))) ->  | I42: =IF(I$4=0,"",IF(Liste!I42="","",ROUND(I$4/Liste!I$5*Liste!I42,I$6))) ->  | J42: =IF(J$4=0,"",IF(Liste!J42="","",ROUND(J$4/Liste!J$5*Liste!J42,J$6))) ->  | K42: =IF(K$4=0,"",IF(Liste!K42="","",ROUND(K$4/Liste!K$5*Liste!K42,K$6))) ->  | L42: =IF(L$4=0,"",IF(Liste!L42="","",ROUND(L$4/Liste!L$5*Liste!L42,L$6))) -> 1 | M42: =IF(M$4=0,"",IF(Liste!M42="","",ROUND(M$4/Liste!M$5*Liste!M42,M$6))) ->  | N42: =IF(N$4=0,"",IF(Liste!N42="","",ROUND(N$4/Liste!N$5*Liste!N42,N$6))) ->  | O42: =IF(O$4=0,"",IF(Liste!O42="","",ROUND(O$4/Liste!O$5*Liste!O42,O$6))) ->  | P42: =IF(P$4=0,"",IF(Liste!P42="","",ROUND(P$4/Liste!P$5*Liste!P42,P$6))) ->  | Q42: =IF(Q$4=0,"",IF(Liste!Q42="","",ROUND(Q$4/Liste!Q$5*Liste!Q42,Q$6))) ->  | R42: =IF(R$4=0,"",IF(Liste!R42="","",ROUND(R$4/Liste!R$5*Liste!R42,R$6))) ->  | S42: =IF(S$4=0,"",IF(Liste!S42="","",ROUND(S$4/Liste!S$5*Liste!S42,S$6))) ->  | T42: =IF(T$4=0,"",IF(Liste!T42="","",ROUND(T$4/Liste!T$5*Liste!T42,T$6))) ->  | U42: =IF(U$4=0,"",IF(Liste!U42="","",ROUND(U$4/Liste!U$5*Liste!U42,U$6))) ->  | V42: =IF(V$4=0,"",IF(Liste!V42="","",ROUND(V$4/Liste!V$5*Liste!V42,V$6))) ->  | W42: =IF(W$4=0,"",IF(Liste!W42="","",ROUND(W$4/Liste!W$5*Liste!W42,W$6))) ->  | X42: =IF(X$4=0,"",IF(Liste!X42="","",ROUND(X$4/Liste!X$5*Liste!X42,X$6))) ->  | Y42: =IF(Y$4=0,"",IF(Liste!Y42="","",ROUND(Y$4/Liste!Y$5*Liste!Y42,Y$6))) ->  | Z42: =IF(Z$4=0,"",IF(Liste!Z42="","",ROUND(Z$4/Liste!Z$5*Liste!Z42,Z$6))) ->  | AA42: =IF(AA$4=0,"",IF(Liste!AA42="","",ROUND(AA$4/Liste!AA$5*Liste!AA42,AA$6))) ->  | AB42: =IF(AB$4=0,"",IF(Liste!AB42="","",ROUND(AB$4/Liste!AB$5*Liste!AB42,AB$6))) ->  | AC42: =IF(AC$4=0,"",IF(Liste!AC42="","",ROUND(AC$4/Liste!AC$5*Liste!AC42,AC$6))) ->  | AD42: =IF(AD$4=0,"",IF(Liste!AD42="","",ROUND(AD$4/Liste!AD$5*Liste!AD42,AD$6))) ->  | AE42: =IF(AE$4=0,"",IF(Liste!AE42="","",ROUND(AE$4/Liste!AE$5*Liste!AE42,AE$6))) ->  | AF42: =IF(AF$4=0,"",IF(Liste!AF42="","",ROUND(AF$4/Liste!AF$5*Liste!AF42,AF$6))) ->  | AG42: =IF(AG$4=0,"",IF(Liste!AG42="","",ROUND(AG$4/Liste!AG$5*Liste!AG42,AG$6))) ->  | AH42: =IF(AH$4=0,"",IF(Liste!AH42="","",ROUND(AH$4/Liste!AH$5*Liste!AH42,AH$6))) -> 
B43: =IF(Liste!B43="","",Liste!B43) ->  | C43: =IF(Liste!C43="","",Liste!C43) ->  | D43: =IF(Liste!D43="","",Liste!D43) ->  | E43: =IF(E$4=0,"",IF(Liste!E43="","",ROUND(E$4/Liste!E$5*Liste!E43,E$6))) ->  | F43: =IF(F$4=0,"",IF(Liste!F43="","",ROUND(F$4/Liste!F$5*Liste!F43,F$6))) ->  | G43: =IF(G$4=0,"",IF(Liste!G43="","",ROUND(G$4/Liste!G$5*Liste!G43,G$6))) ->  | H43: =IF(H$4=0,"",IF(Liste!H43="","",ROUND(H$4/Liste!H$5*Liste!H43,H$6))) ->  | I43: =IF(I$4=0,"",IF(Liste!I43="","",ROUND(I$4/Liste!I$5*Liste!I43,I$6))) ->  | J43: =IF(J$4=0,"",IF(Liste!J43="","",ROUND(J$4/Liste!J$5*Liste!J43,J$6))) ->  | K43: =IF(K$4=0,"",IF(Liste!K43="","",ROUND(K$4/Liste!K$5*Liste!K43,K$6))) ->  | L43: =IF(L$4=0,"",IF(Liste!L43="","",ROUND(L$4/Liste!L$5*Liste!L43,L$6))) ->  | M43: =IF(M$4=0,"",IF(Liste!M43="","",ROUND(M$4/Liste!M$5*Liste!M43,M$6))) ->  | N43: =IF(N$4=0,"",IF(Liste!N43="","",ROUND(N$4/Liste!N$5*Liste!N43,N$6))) ->  | O43: =IF(O$4=0,"",IF(Liste!O43="","",ROUND(O$4/Liste!O$5*Liste!O43,O$6))) ->  | P43: =IF(P$4=0,"",IF(Liste!P43="","",ROUND(P$4/Liste!P$5*Liste!P43,P$6))) ->  | Q43: =IF(Q$4=0,"",IF(Liste!Q43="","",ROUND(Q$4/Liste!Q$5*Liste!Q43,Q$6))) ->  | R43: =IF(R$4=0,"",IF(Liste!R43="","",ROUND(R$4/Liste!R$5*Liste!R43,R$6))) ->  | S43: =IF(S$4=0,"",IF(Liste!S43="","",ROUND(S$4/Liste!S$5*Liste!S43,S$6))) ->  | T43: =IF(T$4=0,"",IF(Liste!T43="","",ROUND(T$4/Liste!T$5*Liste!T43,T$6))) ->  | U43: =IF(U$4=0,"",IF(Liste!U43="","",ROUND(U$4/Liste!U$5*Liste!U43,U$6))) ->  | V43: =IF(V$4=0,"",IF(Liste!V43="","",ROUND(V$4/Liste!V$5*Liste!V43,V$6))) ->  | W43: =IF(W$4=0,"",IF(Liste!W43="","",ROUND(W$4/Liste!W$5*Liste!W43,W$6))) ->  | X43: =IF(X$4=0,"",IF(Liste!X43="","",ROUND(X$4/Liste!X$5*Liste!X43,X$6))) ->  | Y43: =IF(Y$4=0,"",IF(Liste!Y43="","",ROUND(Y$4/Liste!Y$5*Liste!Y43,Y$6))) ->  | Z43: =IF(Z$4=0,"",IF(Liste!Z43="","",ROUND(Z$4/Liste!Z$5*Liste!Z43,Z$6))) ->  | AA43: =IF(AA$4=0,"",IF(Liste!AA43="","",ROUND(AA$4/Liste!AA$5*Liste!AA43,AA$6))) ->  | AB43: =IF(AB$4=0,"",IF(Liste!AB43="","",ROUND(AB$4/Liste!AB$5*Liste!AB43,AB$6))) ->  | AC43: =IF(AC$4=0,"",IF(Liste!AC43="","",ROUND(AC$4/Liste!AC$5*Liste!AC43,AC$6))) ->  | AD43: =IF(AD$4=0,"",IF(Liste!AD43="","",ROUND(AD$4/Liste!AD$5*Liste!AD43,AD$6))) ->  | AE43: =IF(AE$4=0,"",IF(Liste!AE43="","",ROUND(AE$4/Liste!AE$5*Liste!AE43,AE$6))) ->  | AF43: =IF(AF$4=0,"",IF(Liste!AF43="","",ROUND(AF$4/Liste!AF$5*Liste!AF43,AF$6))) ->  | AG43: =IF(AG$4=0,"",IF(Liste!AG43="","",ROUND(AG$4/Liste!AG$5*Liste!AG43,AG$6))) ->  | AH43: =IF(AH$4=0,"",IF(Liste!AH43="","",ROUND(AH$4/Liste!AH$5*Liste!AH43,AH$6))) -> 
B44: =IF(Liste!B44="","",Liste!B44) -> Puderzucker | C44: =IF(Liste!C44="","",Liste!C44) ->  | D44: =IF(Liste!D44="","",Liste!D44) -> [Tasse] | E44: =IF(E$4=0,"",IF(Liste!E44="","",ROUND(E$4/Liste!E$5*Liste!E44,E$6))) ->  | F44: =IF(F$4=0,"",IF(Liste!F44="","",ROUND(F$4/Liste!F$5*Liste!F44,F$6))) ->  | G44: =IF(G$4=0,"",IF(Liste!G44="","",ROUND(G$4/Liste!G$5*Liste!G44,G$6))) ->  | H44: =IF(H$4=0,"",IF(Liste!H44="","",ROUND(H$4/Liste!H$5*Liste!H44,H$6))) ->  | I44: =IF(I$4=0,"",IF(Liste!I44="","",ROUND(I$4/Liste!I$5*Liste!I44,I$6))) ->  | J44: =IF(J$4=0,"",IF(Liste!J44="","",ROUND(J$4/Liste!J$5*Liste!J44,J$6))) ->  | K44: =IF(K$4=0,"",IF(Liste!K44="","",ROUND(K$4/Liste!K$5*Liste!K44,K$6))) ->  | L44: =IF(L$4=0,"",IF(Liste!L44="","",ROUND(L$4/Liste!L$5*Liste!L44,L$6))) ->  | M44: =IF(M$4=0,"",IF(Liste!M44="","",ROUND(M$4/Liste!M$5*Liste!M44,M$6))) ->  | N44: =IF(N$4=0,"",IF(Liste!N44="","",ROUND(N$4/Liste!N$5*Liste!N44,N$6))) ->  | O44: =IF(O$4=0,"",IF(Liste!O44="","",ROUND(O$4/Liste!O$5*Liste!O44,O$6))) ->  | P44: =IF(P$4=0,"",IF(Liste!P44="","",ROUND(P$4/Liste!P$5*Liste!P44,P$6))) ->  | Q44: =IF(Q$4=0,"",IF(Liste!Q44="","",ROUND(Q$4/Liste!Q$5*Liste!Q44,Q$6))) ->  | R44: =IF(R$4=0,"",IF(Liste!R44="","",ROUND(R$4/Liste!R$5*Liste!R44,R$6))) ->  | S44: =IF(S$4=0,"",IF(Liste!S44="","",ROUND(S$4/Liste!S$5*Liste!S44,S$6))) ->  | T44: =IF(T$4=0,"",IF(Liste!T44="","",ROUND(T$4/Liste!T$5*Liste!T44,T$6))) ->  | U44: =IF(U$4=0,"",IF(Liste!U44="","",ROUND(U$4/Liste!U$5*Liste!U44,U$6))) ->  | V44: =IF(V$4=0,"",IF(Liste!V44="","",ROUND(V$4/Liste!V$5*Liste!V44,V$6))) ->  | W44: =IF(W$4=0,"",IF(Liste!W44="","",ROUND(W$4/Liste!W$5*Liste!W44,W$6))) ->  | X44: =IF(X$4=0,"",IF(Liste!X44="","",ROUND(X$4/Liste!X$5*Liste!X44,X$6))) ->  | Y44: =IF(Y$4=0,"",IF(Liste!Y44="","",ROUND(Y$4/Liste!Y$5*Liste!Y44,Y$6))) ->  | Z44: =IF(Z$4=0,"",IF(Liste!Z44="","",ROUND(Z$4/Liste!Z$5*Liste!Z44,Z$6))) ->  | AA44: =IF(AA$4=0,"",IF(Liste!AA44="","",ROUND(AA$4/Liste!AA$5*Liste!AA44,AA$6))) ->  | AB44: =IF(AB$4=0,"",IF(Liste!AB44="","",ROUND(AB$4/Liste!AB$5*Liste!AB44,AB$6))) ->  | AC44: =IF(AC$4=0,"",IF(Liste!AC44="","",ROUND(AC$4/Liste!AC$5*Liste!AC44,AC$6))) ->  | AD44: =IF(AD$4=0,"",IF(Liste!AD44="","",ROUND(AD$4/Liste!AD$5*Liste!AD44,AD$6))) ->  | AE44: =IF(AE$4=0,"",IF(Liste!AE44="","",ROUND(AE$4/Liste!AE$5*Liste!AE44,AE$6))) ->  | AF44: =IF(AF$4=0,"",IF(Liste!AF44="","",ROUND(AF$4/Liste!AF$5*Liste!AF44,AF$6))) ->  | AG44: =IF(AG$4=0,"",IF(Liste!AG44="","",ROUND(AG$4/Liste!AG$5*Liste!AG44,AG$6))) ->  | AH44: =IF(AH$4=0,"",IF(Liste!AH44="","",ROUND(AH$4/Liste!AH$5*Liste!AH44,AH$6))) -> 
A45: 475 | B45: =IF(Liste!B45="","",Liste!B45) -> Puderzucker | C45: =IF(Liste!C45="","",Liste!C45) ->  | D45: =IF(Liste!D45="","",Liste!D45) -> [g] | E45: =IF(E$4=0,"",IF(Liste!E45="","",ROUND(E$4/Liste!E$5*Liste!E45,E$6))) ->  | F45: =IF(F$4=0,"",IF(Liste!F45="","",ROUND(F$4/Liste!F$5*Liste!F45,F$6))) -> 150 | G45: =IF(G$4=0,"",IF(Liste!G45="","",ROUND(G$4/Liste!G$5*Liste!G45,G$6))) ->  | H45: =IF(H$4=0,"",IF(Liste!H45="","",ROUND(H$4/Liste!H$5*Liste!H45,H$6))) ->  | I45: =IF(I$4=0,"",IF(Liste!I45="","",ROUND(I$4/Liste!I$5*Liste!I45,I$6))) ->  | J45: =IF(J$4=0,"",IF(Liste!J45="","",ROUND(J$4/Liste!J$5*Liste!J45,J$6))) ->  | K45: =IF(K$4=0,"",IF(Liste!K45="","",ROUND(K$4/Liste!K$5*Liste!K45,K$6))) ->  | L45: =IF(L$4=0,"",IF(Liste!L45="","",ROUND(L$4/Liste!L$5*Liste!L45,L$6))) ->  | M45: =IF(M$4=0,"",IF(Liste!M45="","",ROUND(M$4/Liste!M$5*Liste!M45,M$6))) ->  | N45: =IF(N$4=0,"",IF(Liste!N45="","",ROUND(N$4/Liste!N$5*Liste!N45,N$6))) ->  | O45: =IF(O$4=0,"",IF(Liste!O45="","",ROUND(O$4/Liste!O$5*Liste!O45,O$6))) ->  | P45: =IF(P$4=0,"",IF(Liste!P45="","",ROUND(P$4/Liste!P$5*Liste!P45,P$6))) -> 200 | Q45: =IF(Q$4=0,"",IF(Liste!Q45="","",ROUND(Q$4/Liste!Q$5*Liste!Q45,Q$6))) ->  | R45: =IF(R$4=0,"",IF(Liste!R45="","",ROUND(R$4/Liste!R$5*Liste!R45,R$6))) ->  | S45: =IF(S$4=0,"",IF(Liste!S45="","",ROUND(S$4/Liste!S$5*Liste!S45,S$6))) ->  | T45: =IF(T$4=0,"",IF(Liste!T45="","",ROUND(T$4/Liste!T$5*Liste!T45,T$6))) ->  | U45: =IF(U$4=0,"",IF(Liste!U45="","",ROUND(U$4/Liste!U$5*Liste!U45,U$6))) ->  | V45: =IF(V$4=0,"",IF(Liste!V45="","",ROUND(V$4/Liste!V$5*Liste!V45,V$6))) ->  | W45: =IF(W$4=0,"",IF(Liste!W45="","",ROUND(W$4/Liste!W$5*Liste!W45,W$6))) ->  | X45: =IF(X$4=0,"",IF(Liste!X45="","",ROUND(X$4/Liste!X$5*Liste!X45,X$6))) -> 125 | Y45: =IF(Y$4=0,"",IF(Liste!Y45="","",ROUND(Y$4/Liste!Y$5*Liste!Y45,Y$6))) ->  | Z45: =IF(Z$4=0,"",IF(Liste!Z45="","",ROUND(Z$4/Liste!Z$5*Liste!Z45,Z$6))) ->  | AA45: =IF(AA$4=0,"",IF(Liste!AA45="","",ROUND(AA$4/Liste!AA$5*Liste!AA45,AA$6))) ->  | AB45: =IF(AB$4=0,"",IF(Liste!AB45="","",ROUND(AB$4/Liste!AB$5*Liste!AB45,AB$6))) ->  | AC45: =IF(AC$4=0,"",IF(Liste!AC45="","",ROUND(AC$4/Liste!AC$5*Liste!AC45,AC$6))) ->  | AD45: =IF(AD$4=0,"",IF(Liste!AD45="","",ROUND(AD$4/Liste!AD$5*Liste!AD45,AD$6))) ->  | AE45: =IF(AE$4=0,"",IF(Liste!AE45="","",ROUND(AE$4/Liste!AE$5*Liste!AE45,AE$6))) ->  | AF45: =IF(AF$4=0,"",IF(Liste!AF45="","",ROUND(AF$4/Liste!AF$5*Liste!AF45,AF$6))) ->  | AG45: =IF(AG$4=0,"",IF(Liste!AG45="","",ROUND(AG$4/Liste!AG$5*Liste!AG45,AG$6))) ->  | AH45: =IF(AH$4=0,"",IF(Liste!AH45="","",ROUND(AH$4/Liste!AH$5*Liste!AH45,AH$6))) -> 
B46: =IF(Liste!B46="","",Liste!B46) ->  | C46: =IF(Liste!C46="","",Liste!C46) ->  | D46: =IF(Liste!D46="","",Liste!D46) ->  | E46: =IF(E$4=0,"",IF(Liste!E46="","",ROUND(E$4/Liste!E$5*Liste!E46,E$6))) ->  | F46: =IF(F$4=0,"",IF(Liste!F46="","",ROUND(F$4/Liste!F$5*Liste!F46,F$6))) ->  | G46: =IF(G$4=0,"",IF(Liste!G46="","",ROUND(G$4/Liste!G$5*Liste!G46,G$6))) ->  | H46: =IF(H$4=0,"",IF(Liste!H46="","",ROUND(H$4/Liste!H$5*Liste!H46,H$6))) ->  | I46: =IF(I$4=0,"",IF(Liste!I46="","",ROUND(I$4/Liste!I$5*Liste!I46,I$6))) ->  | J46: =IF(J$4=0,"",IF(Liste!J46="","",ROUND(J$4/Liste!J$5*Liste!J46,J$6))) ->  | K46: =IF(K$4=0,"",IF(Liste!K46="","",ROUND(K$4/Liste!K$5*Liste!K46,K$6))) ->  | L46: =IF(L$4=0,"",IF(Liste!L46="","",ROUND(L$4/Liste!L$5*Liste!L46,L$6))) ->  | M46: =IF(M$4=0,"",IF(Liste!M46="","",ROUND(M$4/Liste!M$5*Liste!M46,M$6))) ->  | N46: =IF(N$4=0,"",IF(Liste!N46="","",ROUND(N$4/Liste!N$5*Liste!N46,N$6))) ->  | O46: =IF(O$4=0,"",IF(Liste!O46="","",ROUND(O$4/Liste!O$5*Liste!O46,O$6))) ->  | P46: =IF(P$4=0,"",IF(Liste!P46="","",ROUND(P$4/Liste!P$5*Liste!P46,P$6))) ->  | Q46: =IF(Q$4=0,"",IF(Liste!Q46="","",ROUND(Q$4/Liste!Q$5*Liste!Q46,Q$6))) ->  | R46: =IF(R$4=0,"",IF(Liste!R46="","",ROUND(R$4/Liste!R$5*Liste!R46,R$6))) ->  | S46: =IF(S$4=0,"",IF(Liste!S46="","",ROUND(S$4/Liste!S$5*Liste!S46,S$6))) ->  | T46: =IF(T$4=0,"",IF(Liste!T46="","",ROUND(T$4/Liste!T$5*Liste!T46,T$6))) ->  | U46: =IF(U$4=0,"",IF(Liste!U46="","",ROUND(U$4/Liste!U$5*Liste!U46,U$6))) ->  | V46: =IF(V$4=0,"",IF(Liste!V46="","",ROUND(V$4/Liste!V$5*Liste!V46,V$6))) ->  | W46: =IF(W$4=0,"",IF(Liste!W46="","",ROUND(W$4/Liste!W$5*Liste!W46,W$6))) ->  | X46: =IF(X$4=0,"",IF(Liste!X46="","",ROUND(X$4/Liste!X$5*Liste!X46,X$6))) ->  | Y46: =IF(Y$4=0,"",IF(Liste!Y46="","",ROUND(Y$4/Liste!Y$5*Liste!Y46,Y$6))) ->  | Z46: =IF(Z$4=0,"",IF(Liste!Z46="","",ROUND(Z$4/Liste!Z$5*Liste!Z46,Z$6))) ->  | AA46: =IF(AA$4=0,"",IF(Liste!AA46="","",ROUND(AA$4/Liste!AA$5*Liste!AA46,AA$6))) ->  | AB46: =IF(AB$4=0,"",IF(Liste!AB46="","",ROUND(AB$4/Liste!AB$5*Liste!AB46,AB$6))) ->  | AC46: =IF(AC$4=0,"",IF(Liste!AC46="","",ROUND(AC$4/Liste!AC$5*Liste!AC46,AC$6))) ->  | AD46: =IF(AD$4=0,"",IF(Liste!AD46="","",ROUND(AD$4/Liste!AD$5*Liste!AD46,AD$6))) ->  | AE46: =IF(AE$4=0,"",IF(Liste!AE46="","",ROUND(AE$4/Liste!AE$5*Liste!AE46,AE$6))) ->  | AF46: =IF(AF$4=0,"",IF(Liste!AF46="","",ROUND(AF$4/Liste!AF$5*Liste!AF46,AF$6))) ->  | AG46: =IF(AG$4=0,"",IF(Liste!AG46="","",ROUND(AG$4/Liste!AG$5*Liste!AG46,AG$6))) ->  | AH46: =IF(AH$4=0,"",IF(Liste!AH46="","",ROUND(AH$4/Liste!AH$5*Liste!AH46,AH$6))) -> 
B47: =IF(Liste!B47="","",Liste!B47) -> Gewürznelken | C47: =IF(Liste!C47="","",Liste!C47) -> gemahlen | D47: =IF(Liste!D47="","",Liste!D47) -> [Tl.] | E47: =IF(E$4=0,"",IF(Liste!E47="","",ROUND(E$4/Liste!E$5*Liste!E47,E$6))) ->  | F47: =IF(F$4=0,"",IF(Liste!F47="","",ROUND(F$4/Liste!F$5*Liste!F47,F$6))) ->  | G47: =IF(G$4=0,"",IF(Liste!G47="","",ROUND(G$4/Liste!G$5*Liste!G47,G$6))) ->  | H47: =IF(H$4=0,"",IF(Liste!H47="","",ROUND(H$4/Liste!H$5*Liste!H47,H$6))) ->  | I47: =IF(I$4=0,"",IF(Liste!I47="","",ROUND(I$4/Liste!I$5*Liste!I47,I$6))) ->  | J47: =IF(J$4=0,"",IF(Liste!J47="","",ROUND(J$4/Liste!J$5*Liste!J47,J$6))) ->  | K47: =IF(K$4=0,"",IF(Liste!K47="","",ROUND(K$4/Liste!K$5*Liste!K47,K$6))) ->  | L47: =IF(L$4=0,"",IF(Liste!L47="","",ROUND(L$4/Liste!L$5*Liste!L47,L$6))) ->  | M47: =IF(M$4=0,"",IF(Liste!M47="","",ROUND(M$4/Liste!M$5*Liste!M47,M$6))) ->  | N47: =IF(N$4=0,"",IF(Liste!N47="","",ROUND(N$4/Liste!N$5*Liste!N47,N$6))) ->  | O47: =IF(O$4=0,"",IF(Liste!O47="","",ROUND(O$4/Liste!O$5*Liste!O47,O$6))) ->  | P47: =IF(P$4=0,"",IF(Liste!P47="","",ROUND(P$4/Liste!P$5*Liste!P47,P$6))) ->  | Q47: =IF(Q$4=0,"",IF(Liste!Q47="","",ROUND(Q$4/Liste!Q$5*Liste!Q47,Q$6))) ->  | R47: =IF(R$4=0,"",IF(Liste!R47="","",ROUND(R$4/Liste!R$5*Liste!R47,R$6))) ->  | S47: =IF(S$4=0,"",IF(Liste!S47="","",ROUND(S$4/Liste!S$5*Liste!S47,S$6))) ->  | T47: =IF(T$4=0,"",IF(Liste!T47="","",ROUND(T$4/Liste!T$5*Liste!T47,T$6))) ->  | U47: =IF(U$4=0,"",IF(Liste!U47="","",ROUND(U$4/Liste!U$5*Liste!U47,U$6))) ->  | V47: =IF(V$4=0,"",IF(Liste!V47="","",ROUND(V$4/Liste!V$5*Liste!V47,V$6))) ->  | W47: =IF(W$4=0,"",IF(Liste!W47="","",ROUND(W$4/Liste!W$5*Liste!W47,W$6))) ->  | X47: =IF(X$4=0,"",IF(Liste!X47="","",ROUND(X$4/Liste!X$5*Liste!X47,X$6))) ->  | Y47: =IF(Y$4=0,"",IF(Liste!Y47="","",ROUND(Y$4/Liste!Y$5*Liste!Y47,Y$6))) ->  | Z47: =IF(Z$4=0,"",IF(Liste!Z47="","",ROUND(Z$4/Liste!Z$5*Liste!Z47,Z$6))) ->  | AA47: =IF(AA$4=0,"",IF(Liste!AA47="","",ROUND(AA$4/Liste!AA$5*Liste!AA47,AA$6))) ->  | AB47: =IF(AB$4=0,"",IF(Liste!AB47="","",ROUND(AB$4/Liste!AB$5*Liste!AB47,AB$6))) ->  | AC47: =IF(AC$4=0,"",IF(Liste!AC47="","",ROUND(AC$4/Liste!AC$5*Liste!AC47,AC$6))) ->  | AD47: =IF(AD$4=0,"",IF(Liste!AD47="","",ROUND(AD$4/Liste!AD$5*Liste!AD47,AD$6))) ->  | AE47: =IF(AE$4=0,"",IF(Liste!AE47="","",ROUND(AE$4/Liste!AE$5*Liste!AE47,AE$6))) ->  | AF47: =IF(AF$4=0,"",IF(Liste!AF47="","",ROUND(AF$4/Liste!AF$5*Liste!AF47,AF$6))) ->  | AG47: =IF(AG$4=0,"",IF(Liste!AG47="","",ROUND(AG$4/Liste!AG$5*Liste!AG47,AG$6))) ->  | AH47: =IF(AH$4=0,"",IF(Liste!AH47="","",ROUND(AH$4/Liste!AH$5*Liste!AH47,AH$6))) -> 
B48: =IF(Liste!B48="","",Liste!B48) -> Zimt | C48: =IF(Liste!C48="","",Liste!C48) -> gemahlen | D48: =IF(Liste!D48="","",Liste!D48) -> [Tl.] | E48: =IF(E$4=0,"",IF(Liste!E48="","",ROUND(E$4/Liste!E$5*Liste!E48,E$6))) ->  | F48: =IF(F$4=0,"",IF(Liste!F48="","",ROUND(F$4/Liste!F$5*Liste!F48,F$6))) ->  | G48: =IF(G$4=0,"",IF(Liste!G48="","",ROUND(G$4/Liste!G$5*Liste!G48,G$6))) ->  | H48: =IF(H$4=0,"",IF(Liste!H48="","",ROUND(H$4/Liste!H$5*Liste!H48,H$6))) ->  | I48: =IF(I$4=0,"",IF(Liste!I48="","",ROUND(I$4/Liste!I$5*Liste!I48,I$6))) ->  | J48: =IF(J$4=0,"",IF(Liste!J48="","",ROUND(J$4/Liste!J$5*Liste!J48,J$6))) ->  | K48: =IF(K$4=0,"",IF(Liste!K48="","",ROUND(K$4/Liste!K$5*Liste!K48,K$6))) ->  | L48: =IF(L$4=0,"",IF(Liste!L48="","",ROUND(L$4/Liste!L$5*Liste!L48,L$6))) ->  | M48: =IF(M$4=0,"",IF(Liste!M48="","",ROUND(M$4/Liste!M$5*Liste!M48,M$6))) ->  | N48: =IF(N$4=0,"",IF(Liste!N48="","",ROUND(N$4/Liste!N$5*Liste!N48,N$6))) ->  | O48: =IF(O$4=0,"",IF(Liste!O48="","",ROUND(O$4/Liste!O$5*Liste!O48,O$6))) ->  | P48: =IF(P$4=0,"",IF(Liste!P48="","",ROUND(P$4/Liste!P$5*Liste!P48,P$6))) ->  | Q48: =IF(Q$4=0,"",IF(Liste!Q48="","",ROUND(Q$4/Liste!Q$5*Liste!Q48,Q$6))) ->  | R48: =IF(R$4=0,"",IF(Liste!R48="","",ROUND(R$4/Liste!R$5*Liste!R48,R$6))) ->  | S48: =IF(S$4=0,"",IF(Liste!S48="","",ROUND(S$4/Liste!S$5*Liste!S48,S$6))) ->  | T48: =IF(T$4=0,"",IF(Liste!T48="","",ROUND(T$4/Liste!T$5*Liste!T48,T$6))) ->  | U48: =IF(U$4=0,"",IF(Liste!U48="","",ROUND(U$4/Liste!U$5*Liste!U48,U$6))) ->  | V48: =IF(V$4=0,"",IF(Liste!V48="","",ROUND(V$4/Liste!V$5*Liste!V48,V$6))) ->  | W48: =IF(W$4=0,"",IF(Liste!W48="","",ROUND(W$4/Liste!W$5*Liste!W48,W$6))) ->  | X48: =IF(X$4=0,"",IF(Liste!X48="","",ROUND(X$4/Liste!X$5*Liste!X48,X$6))) ->  | Y48: =IF(Y$4=0,"",IF(Liste!Y48="","",ROUND(Y$4/Liste!Y$5*Liste!Y48,Y$6))) ->  | Z48: =IF(Z$4=0,"",IF(Liste!Z48="","",ROUND(Z$4/Liste!Z$5*Liste!Z48,Z$6))) ->  | AA48: =IF(AA$4=0,"",IF(Liste!AA48="","",ROUND(AA$4/Liste!AA$5*Liste!AA48,AA$6))) ->  | AB48: =IF(AB$4=0,"",IF(Liste!AB48="","",ROUND(AB$4/Liste!AB$5*Liste!AB48,AB$6))) ->  | AC48: =IF(AC$4=0,"",IF(Liste!AC48="","",ROUND(AC$4/Liste!AC$5*Liste!AC48,AC$6))) ->  | AD48: =IF(AD$4=0,"",IF(Liste!AD48="","",ROUND(AD$4/Liste!AD$5*Liste!AD48,AD$6))) ->  | AE48: =IF(AE$4=0,"",IF(Liste!AE48="","",ROUND(AE$4/Liste!AE$5*Liste!AE48,AE$6))) ->  | AF48: =IF(AF$4=0,"",IF(Liste!AF48="","",ROUND(AF$4/Liste!AF$5*Liste!AF48,AF$6))) ->  | AG48: =IF(AG$4=0,"",IF(Liste!AG48="","",ROUND(AG$4/Liste!AG$5*Liste!AG48,AG$6))) ->  | AH48: =IF(AH$4=0,"",IF(Liste!AH48="","",ROUND(AH$4/Liste!AH$5*Liste!AH48,AH$6))) -> 
B49: =IF(Liste!B49="","",Liste!B49) -> Ingverpulver | C49: =IF(Liste!C49="","",Liste!C49) ->  | D49: =IF(Liste!D49="","",Liste!D49) -> [Tl.] | E49: =IF(E$4=0,"",IF(Liste!E49="","",ROUND(E$4/Liste!E$5*Liste!E49,E$6))) ->  | F49: =IF(F$4=0,"",IF(Liste!F49="","",ROUND(F$4/Liste!F$5*Liste!F49,F$6))) ->  | G49: =IF(G$4=0,"",IF(Liste!G49="","",ROUND(G$4/Liste!G$5*Liste!G49,G$6))) ->  | H49: =IF(H$4=0,"",IF(Liste!H49="","",ROUND(H$4/Liste!H$5*Liste!H49,H$6))) ->  | I49: =IF(I$4=0,"",IF(Liste!I49="","",ROUND(I$4/Liste!I$5*Liste!I49,I$6))) ->  | J49: =IF(J$4=0,"",IF(Liste!J49="","",ROUND(J$4/Liste!J$5*Liste!J49,J$6))) ->  | K49: =IF(K$4=0,"",IF(Liste!K49="","",ROUND(K$4/Liste!K$5*Liste!K49,K$6))) ->  | L49: =IF(L$4=0,"",IF(Liste!L49="","",ROUND(L$4/Liste!L$5*Liste!L49,L$6))) ->  | M49: =IF(M$4=0,"",IF(Liste!M49="","",ROUND(M$4/Liste!M$5*Liste!M49,M$6))) ->  | N49: =IF(N$4=0,"",IF(Liste!N49="","",ROUND(N$4/Liste!N$5*Liste!N49,N$6))) ->  | O49: =IF(O$4=0,"",IF(Liste!O49="","",ROUND(O$4/Liste!O$5*Liste!O49,O$6))) ->  | P49: =IF(P$4=0,"",IF(Liste!P49="","",ROUND(P$4/Liste!P$5*Liste!P49,P$6))) ->  | Q49: =IF(Q$4=0,"",IF(Liste!Q49="","",ROUND(Q$4/Liste!Q$5*Liste!Q49,Q$6))) ->  | R49: =IF(R$4=0,"",IF(Liste!R49="","",ROUND(R$4/Liste!R$5*Liste!R49,R$6))) ->  | S49: =IF(S$4=0,"",IF(Liste!S49="","",ROUND(S$4/Liste!S$5*Liste!S49,S$6))) ->  | T49: =IF(T$4=0,"",IF(Liste!T49="","",ROUND(T$4/Liste!T$5*Liste!T49,T$6))) ->  | U49: =IF(U$4=0,"",IF(Liste!U49="","",ROUND(U$4/Liste!U$5*Liste!U49,U$6))) ->  | V49: =IF(V$4=0,"",IF(Liste!V49="","",ROUND(V$4/Liste!V$5*Liste!V49,V$6))) ->  | W49: =IF(W$4=0,"",IF(Liste!W49="","",ROUND(W$4/Liste!W$5*Liste!W49,W$6))) ->  | X49: =IF(X$4=0,"",IF(Liste!X49="","",ROUND(X$4/Liste!X$5*Liste!X49,X$6))) ->  | Y49: =IF(Y$4=0,"",IF(Liste!Y49="","",ROUND(Y$4/Liste!Y$5*Liste!Y49,Y$6))) ->  | Z49: =IF(Z$4=0,"",IF(Liste!Z49="","",ROUND(Z$4/Liste!Z$5*Liste!Z49,Z$6))) ->  | AA49: =IF(AA$4=0,"",IF(Liste!AA49="","",ROUND(AA$4/Liste!AA$5*Liste!AA49,AA$6))) ->  | AB49: =IF(AB$4=0,"",IF(Liste!AB49="","",ROUND(AB$4/Liste!AB$5*Liste!AB49,AB$6))) ->  | AC49: =IF(AC$4=0,"",IF(Liste!AC49="","",ROUND(AC$4/Liste!AC$5*Liste!AC49,AC$6))) ->  | AD49: =IF(AD$4=0,"",IF(Liste!AD49="","",ROUND(AD$4/Liste!AD$5*Liste!AD49,AD$6))) ->  | AE49: =IF(AE$4=0,"",IF(Liste!AE49="","",ROUND(AE$4/Liste!AE$5*Liste!AE49,AE$6))) ->  | AF49: =IF(AF$4=0,"",IF(Liste!AF49="","",ROUND(AF$4/Liste!AF$5*Liste!AF49,AF$6))) ->  | AG49: =IF(AG$4=0,"",IF(Liste!AG49="","",ROUND(AG$4/Liste!AG$5*Liste!AG49,AG$6))) ->  | AH49: =IF(AH$4=0,"",IF(Liste!AH49="","",ROUND(AH$4/Liste!AH$5*Liste!AH49,AH$6))) -> 
B50: =IF(Liste!B50="","",Liste!B50) -> Kardamon | C50: =IF(Liste!C50="","",Liste!C50) ->  | D50: =IF(Liste!D50="","",Liste!D50) -> [Tl.] | E50: =IF(E$4=0,"",IF(Liste!E50="","",ROUND(E$4/Liste!E$5*Liste!E50,E$6))) ->  | F50: =IF(F$4=0,"",IF(Liste!F50="","",ROUND(F$4/Liste!F$5*Liste!F50,F$6))) ->  | G50: =IF(G$4=0,"",IF(Liste!G50="","",ROUND(G$4/Liste!G$5*Liste!G50,G$6))) ->  | H50: =IF(H$4=0,"",IF(Liste!H50="","",ROUND(H$4/Liste!H$5*Liste!H50,H$6))) ->  | I50: =IF(I$4=0,"",IF(Liste!I50="","",ROUND(I$4/Liste!I$5*Liste!I50,I$6))) ->  | J50: =IF(J$4=0,"",IF(Liste!J50="","",ROUND(J$4/Liste!J$5*Liste!J50,J$6))) ->  | K50: =IF(K$4=0,"",IF(Liste!K50="","",ROUND(K$4/Liste!K$5*Liste!K50,K$6))) ->  | L50: =IF(L$4=0,"",IF(Liste!L50="","",ROUND(L$4/Liste!L$5*Liste!L50,L$6))) ->  | M50: =IF(M$4=0,"",IF(Liste!M50="","",ROUND(M$4/Liste!M$5*Liste!M50,M$6))) ->  | N50: =IF(N$4=0,"",IF(Liste!N50="","",ROUND(N$4/Liste!N$5*Liste!N50,N$6))) ->  | O50: =IF(O$4=0,"",IF(Liste!O50="","",ROUND(O$4/Liste!O$5*Liste!O50,O$6))) ->  | P50: =IF(P$4=0,"",IF(Liste!P50="","",ROUND(P$4/Liste!P$5*Liste!P50,P$6))) ->  | Q50: =IF(Q$4=0,"",IF(Liste!Q50="","",ROUND(Q$4/Liste!Q$5*Liste!Q50,Q$6))) ->  | R50: =IF(R$4=0,"",IF(Liste!R50="","",ROUND(R$4/Liste!R$5*Liste!R50,R$6))) ->  | S50: =IF(S$4=0,"",IF(Liste!S50="","",ROUND(S$4/Liste!S$5*Liste!S50,S$6))) ->  | T50: =IF(T$4=0,"",IF(Liste!T50="","",ROUND(T$4/Liste!T$5*Liste!T50,T$6))) ->  | U50: =IF(U$4=0,"",IF(Liste!U50="","",ROUND(U$4/Liste!U$5*Liste!U50,U$6))) ->  | V50: =IF(V$4=0,"",IF(Liste!V50="","",ROUND(V$4/Liste!V$5*Liste!V50,V$6))) ->  | W50: =IF(W$4=0,"",IF(Liste!W50="","",ROUND(W$4/Liste!W$5*Liste!W50,W$6))) ->  | X50: =IF(X$4=0,"",IF(Liste!X50="","",ROUND(X$4/Liste!X$5*Liste!X50,X$6))) ->  | Y50: =IF(Y$4=0,"",IF(Liste!Y50="","",ROUND(Y$4/Liste!Y$5*Liste!Y50,Y$6))) ->  | Z50: =IF(Z$4=0,"",IF(Liste!Z50="","",ROUND(Z$4/Liste!Z$5*Liste!Z50,Z$6))) ->  | AA50: =IF(AA$4=0,"",IF(Liste!AA50="","",ROUND(AA$4/Liste!AA$5*Liste!AA50,AA$6))) ->  | AB50: =IF(AB$4=0,"",IF(Liste!AB50="","",ROUND(AB$4/Liste!AB$5*Liste!AB50,AB$6))) ->  | AC50: =IF(AC$4=0,"",IF(Liste!AC50="","",ROUND(AC$4/Liste!AC$5*Liste!AC50,AC$6))) ->  | AD50: =IF(AD$4=0,"",IF(Liste!AD50="","",ROUND(AD$4/Liste!AD$5*Liste!AD50,AD$6))) ->  | AE50: =IF(AE$4=0,"",IF(Liste!AE50="","",ROUND(AE$4/Liste!AE$5*Liste!AE50,AE$6))) ->  | AF50: =IF(AF$4=0,"",IF(Liste!AF50="","",ROUND(AF$4/Liste!AF$5*Liste!AF50,AF$6))) ->  | AG50: =IF(AG$4=0,"",IF(Liste!AG50="","",ROUND(AG$4/Liste!AG$5*Liste!AG50,AG$6))) ->  | AH50: =IF(AH$4=0,"",IF(Liste!AH50="","",ROUND(AH$4/Liste!AH$5*Liste!AH50,AH$6))) -> 
A51: 4 | B51: =IF(Liste!B51="","",Liste!B51) -> Backpulver | C51: =IF(Liste!C51="","",Liste!C51) ->  | D51: =IF(Liste!D51="","",Liste!D51) -> [Tl.] | E51: =IF(E$4=0,"",IF(Liste!E51="","",ROUND(E$4/Liste!E$5*Liste!E51,E$6))) ->  | F51: =IF(F$4=0,"",IF(Liste!F51="","",ROUND(F$4/Liste!F$5*Liste!F51,F$6))) ->  | G51: =IF(G$4=0,"",IF(Liste!G51="","",ROUND(G$4/Liste!G$5*Liste!G51,G$6))) ->  | H51: =IF(H$4=0,"",IF(Liste!H51="","",ROUND(H$4/Liste!H$5*Liste!H51,H$6))) ->  | I51: =IF(I$4=0,"",IF(Liste!I51="","",ROUND(I$4/Liste!I$5*Liste!I51,I$6))) ->  | J51: =IF(J$4=0,"",IF(Liste!J51="","",ROUND(J$4/Liste!J$5*Liste!J51,J$6))) ->  | K51: =IF(K$4=0,"",IF(Liste!K51="","",ROUND(K$4/Liste!K$5*Liste!K51,K$6))) -> 1 | L51: =IF(L$4=0,"",IF(Liste!L51="","",ROUND(L$4/Liste!L$5*Liste!L51,L$6))) -> 1 | M51: =IF(M$4=0,"",IF(Liste!M51="","",ROUND(M$4/Liste!M$5*Liste!M51,M$6))) ->  | N51: =IF(N$4=0,"",IF(Liste!N51="","",ROUND(N$4/Liste!N$5*Liste!N51,N$6))) ->  | O51: =IF(O$4=0,"",IF(Liste!O51="","",ROUND(O$4/Liste!O$5*Liste!O51,O$6))) -> 1 | P51: =IF(P$4=0,"",IF(Liste!P51="","",ROUND(P$4/Liste!P$5*Liste!P51,P$6))) ->  | Q51: =IF(Q$4=0,"",IF(Liste!Q51="","",ROUND(Q$4/Liste!Q$5*Liste!Q51,Q$6))) ->  | R51: =IF(R$4=0,"",IF(Liste!R51="","",ROUND(R$4/Liste!R$5*Liste!R51,R$6))) ->  | S51: =IF(S$4=0,"",IF(Liste!S51="","",ROUND(S$4/Liste!S$5*Liste!S51,S$6))) ->  | T51: =IF(T$4=0,"",IF(Liste!T51="","",ROUND(T$4/Liste!T$5*Liste!T51,T$6))) ->  | U51: =IF(U$4=0,"",IF(Liste!U51="","",ROUND(U$4/Liste!U$5*Liste!U51,U$6))) ->  | V51: =IF(V$4=0,"",IF(Liste!V51="","",ROUND(V$4/Liste!V$5*Liste!V51,V$6))) ->  | W51: =IF(W$4=0,"",IF(Liste!W51="","",ROUND(W$4/Liste!W$5*Liste!W51,W$6))) ->  | X51: =IF(X$4=0,"",IF(Liste!X51="","",ROUND(X$4/Liste!X$5*Liste!X51,X$6))) -> 1 | Y51: =IF(Y$4=0,"",IF(Liste!Y51="","",ROUND(Y$4/Liste!Y$5*Liste!Y51,Y$6))) ->  | Z51: =IF(Z$4=0,"",IF(Liste!Z51="","",ROUND(Z$4/Liste!Z$5*Liste!Z51,Z$6))) ->  | AA51: =IF(AA$4=0,"",IF(Liste!AA51="","",ROUND(AA$4/Liste!AA$5*Liste!AA51,AA$6))) ->  | AB51: =IF(AB$4=0,"",IF(Liste!AB51="","",ROUND(AB$4/Liste!AB$5*Liste!AB51,AB$6))) ->  | AC51: =IF(AC$4=0,"",IF(Liste!AC51="","",ROUND(AC$4/Liste!AC$5*Liste!AC51,AC$6))) ->  | AD51: =IF(AD$4=0,"",IF(Liste!AD51="","",ROUND(AD$4/Liste!AD$5*Liste!AD51,AD$6))) ->  | AE51: =IF(AE$4=0,"",IF(Liste!AE51="","",ROUND(AE$4/Liste!AE$5*Liste!AE51,AE$6))) ->  | AF51: =IF(AF$4=0,"",IF(Liste!AF51="","",ROUND(AF$4/Liste!AF$5*Liste!AF51,AF$6))) ->  | AG51: =IF(AG$4=0,"",IF(Liste!AG51="","",ROUND(AG$4/Liste!AG$5*Liste!AG51,AG$6))) ->  | AH51: =IF(AH$4=0,"",IF(Liste!AH51="","",ROUND(AH$4/Liste!AH$5*Liste!AH51,AH$6))) -> 
B52: =IF(Liste!B52="","",Liste!B52) -> Milch | C52: =IF(Liste!C52="","",Liste!C52) ->  | D52: =IF(Liste!D52="","",Liste!D52) -> [Eßl.] | E52: =IF(E$4=0,"",IF(Liste!E52="","",ROUND(E$4/Liste!E$5*Liste!E52,E$6))) ->  | F52: =IF(F$4=0,"",IF(Liste!F52="","",ROUND(F$4/Liste!F$5*Liste!F52,F$6))) ->  | G52: =IF(G$4=0,"",IF(Liste!G52="","",ROUND(G$4/Liste!G$5*Liste!G52,G$6))) ->  | H52: =IF(H$4=0,"",IF(Liste!H52="","",ROUND(H$4/Liste!H$5*Liste!H52,H$6))) ->  | I52: =IF(I$4=0,"",IF(Liste!I52="","",ROUND(I$4/Liste!I$5*Liste!I52,I$6))) ->  | J52: =IF(J$4=0,"",IF(Liste!J52="","",ROUND(J$4/Liste!J$5*Liste!J52,J$6))) ->  | K52: =IF(K$4=0,"",IF(Liste!K52="","",ROUND(K$4/Liste!K$5*Liste!K52,K$6))) ->  | L52: =IF(L$4=0,"",IF(Liste!L52="","",ROUND(L$4/Liste!L$5*Liste!L52,L$6))) ->  | M52: =IF(M$4=0,"",IF(Liste!M52="","",ROUND(M$4/Liste!M$5*Liste!M52,M$6))) ->  | N52: =IF(N$4=0,"",IF(Liste!N52="","",ROUND(N$4/Liste!N$5*Liste!N52,N$6))) ->  | O52: =IF(O$4=0,"",IF(Liste!O52="","",ROUND(O$4/Liste!O$5*Liste!O52,O$6))) ->  | P52: =IF(P$4=0,"",IF(Liste!P52="","",ROUND(P$4/Liste!P$5*Liste!P52,P$6))) ->  | Q52: =IF(Q$4=0,"",IF(Liste!Q52="","",ROUND(Q$4/Liste!Q$5*Liste!Q52,Q$6))) ->  | R52: =IF(R$4=0,"",IF(Liste!R52="","",ROUND(R$4/Liste!R$5*Liste!R52,R$6))) ->  | S52: =IF(S$4=0,"",IF(Liste!S52="","",ROUND(S$4/Liste!S$5*Liste!S52,S$6))) ->  | T52: =IF(T$4=0,"",IF(Liste!T52="","",ROUND(T$4/Liste!T$5*Liste!T52,T$6))) ->  | U52: =IF(U$4=0,"",IF(Liste!U52="","",ROUND(U$4/Liste!U$5*Liste!U52,U$6))) ->  | V52: =IF(V$4=0,"",IF(Liste!V52="","",ROUND(V$4/Liste!V$5*Liste!V52,V$6))) ->  | W52: =IF(W$4=0,"",IF(Liste!W52="","",ROUND(W$4/Liste!W$5*Liste!W52,W$6))) ->  | X52: =IF(X$4=0,"",IF(Liste!X52="","",ROUND(X$4/Liste!X$5*Liste!X52,X$6))) ->  | Y52: =IF(Y$4=0,"",IF(Liste!Y52="","",ROUND(Y$4/Liste!Y$5*Liste!Y52,Y$6))) ->  | Z52: =IF(Z$4=0,"",IF(Liste!Z52="","",ROUND(Z$4/Liste!Z$5*Liste!Z52,Z$6))) ->  | AA52: =IF(AA$4=0,"",IF(Liste!AA52="","",ROUND(AA$4/Liste!AA$5*Liste!AA52,AA$6))) ->  | AB52: =IF(AB$4=0,"",IF(Liste!AB52="","",ROUND(AB$4/Liste!AB$5*Liste!AB52,AB$6))) ->  | AC52: =IF(AC$4=0,"",IF(Liste!AC52="","",ROUND(AC$4/Liste!AC$5*Liste!AC52,AC$6))) ->  | AD52: =IF(AD$4=0,"",IF(Liste!AD52="","",ROUND(AD$4/Liste!AD$5*Liste!AD52,AD$6))) ->  | AE52: =IF(AE$4=0,"",IF(Liste!AE52="","",ROUND(AE$4/Liste!AE$5*Liste!AE52,AE$6))) ->  | AF52: =IF(AF$4=0,"",IF(Liste!AF52="","",ROUND(AF$4/Liste!AF$5*Liste!AF52,AF$6))) ->  | AG52: =IF(AG$4=0,"",IF(Liste!AG52="","",ROUND(AG$4/Liste!AG$5*Liste!AG52,AG$6))) ->  | AH52: =IF(AH$4=0,"",IF(Liste!AH52="","",ROUND(AH$4/Liste!AH$5*Liste!AH52,AH$6))) -> 
A53: 100 | B53: =IF(Liste!B53="","",Liste!B53) -> Sahne | C53: =IF(Liste!C53="","",Liste!C53) -> (1 Eß = 15 ml = 10 g) | D53: =IF(Liste!D53="","",Liste!D53) -> [g] | E53: =IF(E$4=0,"",IF(Liste!E53="","",ROUND(E$4/Liste!E$5*Liste!E53,E$6))) ->  | F53: =IF(F$4=0,"",IF(Liste!F53="","",ROUND(F$4/Liste!F$5*Liste!F53,F$6))) ->  | G53: =IF(G$4=0,"",IF(Liste!G53="","",ROUND(G$4/Liste!G$5*Liste!G53,G$6))) ->  | H53: =IF(H$4=0,"",IF(Liste!H53="","",ROUND(H$4/Liste!H$5*Liste!H53,H$6))) ->  | I53: =IF(I$4=0,"",IF(Liste!I53="","",ROUND(I$4/Liste!I$5*Liste!I53,I$6))) ->  | J53: =IF(J$4=0,"",IF(Liste!J53="","",ROUND(J$4/Liste!J$5*Liste!J53,J$6))) ->  | K53: =IF(K$4=0,"",IF(Liste!K53="","",ROUND(K$4/Liste!K$5*Liste!K53,K$6))) ->  | L53: =IF(L$4=0,"",IF(Liste!L53="","",ROUND(L$4/Liste!L$5*Liste!L53,L$6))) ->  | M53: =IF(M$4=0,"",IF(Liste!M53="","",ROUND(M$4/Liste!M$5*Liste!M53,M$6))) ->  | N53: =IF(N$4=0,"",IF(Liste!N53="","",ROUND(N$4/Liste!N$5*Liste!N53,N$6))) ->  | O53: =IF(O$4=0,"",IF(Liste!O53="","",ROUND(O$4/Liste!O$5*Liste!O53,O$6))) ->  | P53: =IF(P$4=0,"",IF(Liste!P53="","",ROUND(P$4/Liste!P$5*Liste!P53,P$6))) -> 80 | Q53: =IF(Q$4=0,"",IF(Liste!Q53="","",ROUND(Q$4/Liste!Q$5*Liste!Q53,Q$6))) ->  | R53: =IF(R$4=0,"",IF(Liste!R53="","",ROUND(R$4/Liste!R$5*Liste!R53,R$6))) ->  | S53: =IF(S$4=0,"",IF(Liste!S53="","",ROUND(S$4/Liste!S$5*Liste!S53,S$6))) -> 20 | T53: =IF(T$4=0,"",IF(Liste!T53="","",ROUND(T$4/Liste!T$5*Liste!T53,T$6))) ->  | U53: =IF(U$4=0,"",IF(Liste!U53="","",ROUND(U$4/Liste!U$5*Liste!U53,U$6))) ->  | V53: =IF(V$4=0,"",IF(Liste!V53="","",ROUND(V$4/Liste!V$5*Liste!V53,V$6))) ->  | W53: =IF(W$4=0,"",IF(Liste!W53="","",ROUND(W$4/Liste!W$5*Liste!W53,W$6))) ->  | X53: =IF(X$4=0,"",IF(Liste!X53="","",ROUND(X$4/Liste!X$5*Liste!X53,X$6))) ->  | Y53: =IF(Y$4=0,"",IF(Liste!Y53="","",ROUND(Y$4/Liste!Y$5*Liste!Y53,Y$6))) ->  | Z53: =IF(Z$4=0,"",IF(Liste!Z53="","",ROUND(Z$4/Liste!Z$5*Liste!Z53,Z$6))) ->  | AA53: =IF(AA$4=0,"",IF(Liste!AA53="","",ROUND(AA$4/Liste!AA$5*Liste!AA53,AA$6))) ->  | AB53: =IF(AB$4=0,"",IF(Liste!AB53="","",ROUND(AB$4/Liste!AB$5*Liste!AB53,AB$6))) ->  | AC53: =IF(AC$4=0,"",IF(Liste!AC53="","",ROUND(AC$4/Liste!AC$5*Liste!AC53,AC$6))) ->  | AD53: =IF(AD$4=0,"",IF(Liste!AD53="","",ROUND(AD$4/Liste!AD$5*Liste!AD53,AD$6))) ->  | AE53: =IF(AE$4=0,"",IF(Liste!AE53="","",ROUND(AE$4/Liste!AE$5*Liste!AE53,AE$6))) ->  | AF53: =IF(AF$4=0,"",IF(Liste!AF53="","",ROUND(AF$4/Liste!AF$5*Liste!AF53,AF$6))) ->  | AG53: =IF(AG$4=0,"",IF(Liste!AG53="","",ROUND(AG$4/Liste!AG$5*Liste!AG53,AG$6))) ->  | AH53: =IF(AH$4=0,"",IF(Liste!AH53="","",ROUND(AH$4/Liste!AH$5*Liste!AH53,AH$6))) -> 
A54: 3 | B54: =IF(Liste!B54="","",Liste!B54) -> Salz | C54: =IF(Liste!C54="","",Liste!C54) ->  | D54: =IF(Liste!D54="","",Liste!D54) -> [Pr.] | E54: =IF(E$4=0,"",IF(Liste!E54="","",ROUND(E$4/Liste!E$5*Liste!E54,E$6))) ->  | F54: =IF(F$4=0,"",IF(Liste!F54="","",ROUND(F$4/Liste!F$5*Liste!F54,F$6))) ->  | G54: =IF(G$4=0,"",IF(Liste!G54="","",ROUND(G$4/Liste!G$5*Liste!G54,G$6))) ->  | H54: =IF(H$4=0,"",IF(Liste!H54="","",ROUND(H$4/Liste!H$5*Liste!H54,H$6))) ->  | I54: =IF(I$4=0,"",IF(Liste!I54="","",ROUND(I$4/Liste!I$5*Liste!I54,I$6))) ->  | J54: =IF(J$4=0,"",IF(Liste!J54="","",ROUND(J$4/Liste!J$5*Liste!J54,J$6))) ->  | K54: =IF(K$4=0,"",IF(Liste!K54="","",ROUND(K$4/Liste!K$5*Liste!K54,K$6))) ->  | L54: =IF(L$4=0,"",IF(Liste!L54="","",ROUND(L$4/Liste!L$5*Liste!L54,L$6))) -> 1 | M54: =IF(M$4=0,"",IF(Liste!M54="","",ROUND(M$4/Liste!M$5*Liste!M54,M$6))) ->  | N54: =IF(N$4=0,"",IF(Liste!N54="","",ROUND(N$4/Liste!N$5*Liste!N54,N$6))) ->  | O54: =IF(O$4=0,"",IF(Liste!O54="","",ROUND(O$4/Liste!O$5*Liste!O54,O$6))) ->  | P54: =IF(P$4=0,"",IF(Liste!P54="","",ROUND(P$4/Liste!P$5*Liste!P54,P$6))) ->  | Q54: =IF(Q$4=0,"",IF(Liste!Q54="","",ROUND(Q$4/Liste!Q$5*Liste!Q54,Q$6))) ->  | R54: =IF(R$4=0,"",IF(Liste!R54="","",ROUND(R$4/Liste!R$5*Liste!R54,R$6))) ->  | S54: =IF(S$4=0,"",IF(Liste!S54="","",ROUND(S$4/Liste!S$5*Liste!S54,S$6))) ->  | T54: =IF(T$4=0,"",IF(Liste!T54="","",ROUND(T$4/Liste!T$5*Liste!T54,T$6))) ->  | U54: =IF(U$4=0,"",IF(Liste!U54="","",ROUND(U$4/Liste!U$5*Liste!U54,U$6))) ->  | V54: =IF(V$4=0,"",IF(Liste!V54="","",ROUND(V$4/Liste!V$5*Liste!V54,V$6))) -> 1 | W54: =IF(W$4=0,"",IF(Liste!W54="","",ROUND(W$4/Liste!W$5*Liste!W54,W$6))) ->  | X54: =IF(X$4=0,"",IF(Liste!X54="","",ROUND(X$4/Liste!X$5*Liste!X54,X$6))) -> 1 | Y54: =IF(Y$4=0,"",IF(Liste!Y54="","",ROUND(Y$4/Liste!Y$5*Liste!Y54,Y$6))) ->  | Z54: =IF(Z$4=0,"",IF(Liste!Z54="","",ROUND(Z$4/Liste!Z$5*Liste!Z54,Z$6))) ->  | AA54: =IF(AA$4=0,"",IF(Liste!AA54="","",ROUND(AA$4/Liste!AA$5*Liste!AA54,AA$6))) ->  | AB54: =IF(AB$4=0,"",IF(Liste!AB54="","",ROUND(AB$4/Liste!AB$5*Liste!AB54,AB$6))) ->  | AC54: =IF(AC$4=0,"",IF(Liste!AC54="","",ROUND(AC$4/Liste!AC$5*Liste!AC54,AC$6))) ->  | AD54: =IF(AD$4=0,"",IF(Liste!AD54="","",ROUND(AD$4/Liste!AD$5*Liste!AD54,AD$6))) ->  | AE54: =IF(AE$4=0,"",IF(Liste!AE54="","",ROUND(AE$4/Liste!AE$5*Liste!AE54,AE$6))) ->  | AF54: =IF(AF$4=0,"",IF(Liste!AF54="","",ROUND(AF$4/Liste!AF$5*Liste!AF54,AF$6))) ->  | AG54: =IF(AG$4=0,"",IF(Liste!AG54="","",ROUND(AG$4/Liste!AG$5*Liste!AG54,AG$6))) ->  | AH54: =IF(AH$4=0,"",IF(Liste!AH54="","",ROUND(AH$4/Liste!AH$5*Liste!AH54,AH$6))) -> 
B55: =IF(Liste!B55="","",Liste!B55) -> Rum | C55: =IF(Liste!C55="","",Liste!C55) -> (Tl = 5 ml) | D55: =IF(Liste!D55="","",Liste!D55) -> [cl] | E55: =IF(E$4=0,"",IF(Liste!E55="","",ROUND(E$4/Liste!E$5*Liste!E55,E$6))) ->  | F55: =IF(F$4=0,"",IF(Liste!F55="","",ROUND(F$4/Liste!F$5*Liste!F55,F$6))) ->  | G55: =IF(G$4=0,"",IF(Liste!G55="","",ROUND(G$4/Liste!G$5*Liste!G55,G$6))) ->  | H55: =IF(H$4=0,"",IF(Liste!H55="","",ROUND(H$4/Liste!H$5*Liste!H55,H$6))) ->  | I55: =IF(I$4=0,"",IF(Liste!I55="","",ROUND(I$4/Liste!I$5*Liste!I55,I$6))) ->  | J55: =IF(J$4=0,"",IF(Liste!J55="","",ROUND(J$4/Liste!J$5*Liste!J55,J$6))) ->  | K55: =IF(K$4=0,"",IF(Liste!K55="","",ROUND(K$4/Liste!K$5*Liste!K55,K$6))) ->  | L55: =IF(L$4=0,"",IF(Liste!L55="","",ROUND(L$4/Liste!L$5*Liste!L55,L$6))) ->  | M55: =IF(M$4=0,"",IF(Liste!M55="","",ROUND(M$4/Liste!M$5*Liste!M55,M$6))) ->  | N55: =IF(N$4=0,"",IF(Liste!N55="","",ROUND(N$4/Liste!N$5*Liste!N55,N$6))) ->  | O55: =IF(O$4=0,"",IF(Liste!O55="","",ROUND(O$4/Liste!O$5*Liste!O55,O$6))) ->  | P55: =IF(P$4=0,"",IF(Liste!P55="","",ROUND(P$4/Liste!P$5*Liste!P55,P$6))) ->  | Q55: =IF(Q$4=0,"",IF(Liste!Q55="","",ROUND(Q$4/Liste!Q$5*Liste!Q55,Q$6))) ->  | R55: =IF(R$4=0,"",IF(Liste!R55="","",ROUND(R$4/Liste!R$5*Liste!R55,R$6))) ->  | S55: =IF(S$4=0,"",IF(Liste!S55="","",ROUND(S$4/Liste!S$5*Liste!S55,S$6))) ->  | T55: =IF(T$4=0,"",IF(Liste!T55="","",ROUND(T$4/Liste!T$5*Liste!T55,T$6))) ->  | U55: =IF(U$4=0,"",IF(Liste!U55="","",ROUND(U$4/Liste!U$5*Liste!U55,U$6))) ->  | V55: =IF(V$4=0,"",IF(Liste!V55="","",ROUND(V$4/Liste!V$5*Liste!V55,V$6))) ->  | W55: =IF(W$4=0,"",IF(Liste!W55="","",ROUND(W$4/Liste!W$5*Liste!W55,W$6))) ->  | X55: =IF(X$4=0,"",IF(Liste!X55="","",ROUND(X$4/Liste!X$5*Liste!X55,X$6))) ->  | Y55: =IF(Y$4=0,"",IF(Liste!Y55="","",ROUND(Y$4/Liste!Y$5*Liste!Y55,Y$6))) ->  | Z55: =IF(Z$4=0,"",IF(Liste!Z55="","",ROUND(Z$4/Liste!Z$5*Liste!Z55,Z$6))) ->  | AA55: =IF(AA$4=0,"",IF(Liste!AA55="","",ROUND(AA$4/Liste!AA$5*Liste!AA55,AA$6))) ->  | AB55: =IF(AB$4=0,"",IF(Liste!AB55="","",ROUND(AB$4/Liste!AB$5*Liste!AB55,AB$6))) ->  | AC55: =IF(AC$4=0,"",IF(Liste!AC55="","",ROUND(AC$4/Liste!AC$5*Liste!AC55,AC$6))) ->  | AD55: =IF(AD$4=0,"",IF(Liste!AD55="","",ROUND(AD$4/Liste!AD$5*Liste!AD55,AD$6))) ->  | AE55: =IF(AE$4=0,"",IF(Liste!AE55="","",ROUND(AE$4/Liste!AE$5*Liste!AE55,AE$6))) ->  | AF55: =IF(AF$4=0,"",IF(Liste!AF55="","",ROUND(AF$4/Liste!AF$5*Liste!AF55,AF$6))) ->  | AG55: =IF(AG$4=0,"",IF(Liste!AG55="","",ROUND(AG$4/Liste!AG$5*Liste!AG55,AG$6))) ->  | AH55: =IF(AH$4=0,"",IF(Liste!AH55="","",ROUND(AH$4/Liste!AH$5*Liste!AH55,AH$6))) -> 
B56: =IF(Liste!B56="","",Liste!B56) -> Hirschhornsalz | C56: =IF(Liste!C56="","",Liste!C56) ->  | D56: =IF(Liste!D56="","",Liste!D56) -> [g] | E56: =IF(E$4=0,"",IF(Liste!E56="","",ROUND(E$4/Liste!E$5*Liste!E56,E$6))) ->  | F56: =IF(F$4=0,"",IF(Liste!F56="","",ROUND(F$4/Liste!F$5*Liste!F56,F$6))) ->  | G56: =IF(G$4=0,"",IF(Liste!G56="","",ROUND(G$4/Liste!G$5*Liste!G56,G$6))) ->  | H56: =IF(H$4=0,"",IF(Liste!H56="","",ROUND(H$4/Liste!H$5*Liste!H56,H$6))) ->  | I56: =IF(I$4=0,"",IF(Liste!I56="","",ROUND(I$4/Liste!I$5*Liste!I56,I$6))) ->  | J56: =IF(J$4=0,"",IF(Liste!J56="","",ROUND(J$4/Liste!J$5*Liste!J56,J$6))) ->  | K56: =IF(K$4=0,"",IF(Liste!K56="","",ROUND(K$4/Liste!K$5*Liste!K56,K$6))) ->  | L56: =IF(L$4=0,"",IF(Liste!L56="","",ROUND(L$4/Liste!L$5*Liste!L56,L$6))) ->  | M56: =IF(M$4=0,"",IF(Liste!M56="","",ROUND(M$4/Liste!M$5*Liste!M56,M$6))) ->  | N56: =IF(N$4=0,"",IF(Liste!N56="","",ROUND(N$4/Liste!N$5*Liste!N56,N$6))) ->  | O56: =IF(O$4=0,"",IF(Liste!O56="","",ROUND(O$4/Liste!O$5*Liste!O56,O$6))) ->  | P56: =IF(P$4=0,"",IF(Liste!P56="","",ROUND(P$4/Liste!P$5*Liste!P56,P$6))) ->  | Q56: =IF(Q$4=0,"",IF(Liste!Q56="","",ROUND(Q$4/Liste!Q$5*Liste!Q56,Q$6))) ->  | R56: =IF(R$4=0,"",IF(Liste!R56="","",ROUND(R$4/Liste!R$5*Liste!R56,R$6))) ->  | S56: =IF(S$4=0,"",IF(Liste!S56="","",ROUND(S$4/Liste!S$5*Liste!S56,S$6))) ->  | T56: =IF(T$4=0,"",IF(Liste!T56="","",ROUND(T$4/Liste!T$5*Liste!T56,T$6))) ->  | U56: =IF(U$4=0,"",IF(Liste!U56="","",ROUND(U$4/Liste!U$5*Liste!U56,U$6))) ->  | V56: =IF(V$4=0,"",IF(Liste!V56="","",ROUND(V$4/Liste!V$5*Liste!V56,V$6))) ->  | W56: =IF(W$4=0,"",IF(Liste!W56="","",ROUND(W$4/Liste!W$5*Liste!W56,W$6))) ->  | X56: =IF(X$4=0,"",IF(Liste!X56="","",ROUND(X$4/Liste!X$5*Liste!X56,X$6))) ->  | Y56: =IF(Y$4=0,"",IF(Liste!Y56="","",ROUND(Y$4/Liste!Y$5*Liste!Y56,Y$6))) ->  | Z56: =IF(Z$4=0,"",IF(Liste!Z56="","",ROUND(Z$4/Liste!Z$5*Liste!Z56,Z$6))) ->  | AA56: =IF(AA$4=0,"",IF(Liste!AA56="","",ROUND(AA$4/Liste!AA$5*Liste!AA56,AA$6))) ->  | AB56: =IF(AB$4=0,"",IF(Liste!AB56="","",ROUND(AB$4/Liste!AB$5*Liste!AB56,AB$6))) ->  | AC56: =IF(AC$4=0,"",IF(Liste!AC56="","",ROUND(AC$4/Liste!AC$5*Liste!AC56,AC$6))) ->  | AD56: =IF(AD$4=0,"",IF(Liste!AD56="","",ROUND(AD$4/Liste!AD$5*Liste!AD56,AD$6))) ->  | AE56: =IF(AE$4=0,"",IF(Liste!AE56="","",ROUND(AE$4/Liste!AE$5*Liste!AE56,AE$6))) ->  | AF56: =IF(AF$4=0,"",IF(Liste!AF56="","",ROUND(AF$4/Liste!AF$5*Liste!AF56,AF$6))) ->  | AG56: =IF(AG$4=0,"",IF(Liste!AG56="","",ROUND(AG$4/Liste!AG$5*Liste!AG56,AG$6))) ->  | AH56: =IF(AH$4=0,"",IF(Liste!AH56="","",ROUND(AH$4/Liste!AH$5*Liste!AH56,AH$6))) -> 
B57: =IF(Liste!B57="","",Liste!B57) -> Muskat | C57: =IF(Liste!C57="","",Liste!C57) ->  | D57: =IF(Liste!D57="","",Liste!D57) -> [Tl.] | E57: =IF(E$4=0,"",IF(Liste!E57="","",ROUND(E$4/Liste!E$5*Liste!E57,E$6))) ->  | F57: =IF(F$4=0,"",IF(Liste!F57="","",ROUND(F$4/Liste!F$5*Liste!F57,F$6))) ->  | G57: =IF(G$4=0,"",IF(Liste!G57="","",ROUND(G$4/Liste!G$5*Liste!G57,G$6))) ->  | H57: =IF(H$4=0,"",IF(Liste!H57="","",ROUND(H$4/Liste!H$5*Liste!H57,H$6))) ->  | I57: =IF(I$4=0,"",IF(Liste!I57="","",ROUND(I$4/Liste!I$5*Liste!I57,I$6))) ->  | J57: =IF(J$4=0,"",IF(Liste!J57="","",ROUND(J$4/Liste!J$5*Liste!J57,J$6))) ->  | K57: =IF(K$4=0,"",IF(Liste!K57="","",ROUND(K$4/Liste!K$5*Liste!K57,K$6))) ->  | L57: =IF(L$4=0,"",IF(Liste!L57="","",ROUND(L$4/Liste!L$5*Liste!L57,L$6))) ->  | M57: =IF(M$4=0,"",IF(Liste!M57="","",ROUND(M$4/Liste!M$5*Liste!M57,M$6))) ->  | N57: =IF(N$4=0,"",IF(Liste!N57="","",ROUND(N$4/Liste!N$5*Liste!N57,N$6))) ->  | O57: =IF(O$4=0,"",IF(Liste!O57="","",ROUND(O$4/Liste!O$5*Liste!O57,O$6))) ->  | P57: =IF(P$4=0,"",IF(Liste!P57="","",ROUND(P$4/Liste!P$5*Liste!P57,P$6))) ->  | Q57: =IF(Q$4=0,"",IF(Liste!Q57="","",ROUND(Q$4/Liste!Q$5*Liste!Q57,Q$6))) ->  | R57: =IF(R$4=0,"",IF(Liste!R57="","",ROUND(R$4/Liste!R$5*Liste!R57,R$6))) ->  | S57: =IF(S$4=0,"",IF(Liste!S57="","",ROUND(S$4/Liste!S$5*Liste!S57,S$6))) ->  | T57: =IF(T$4=0,"",IF(Liste!T57="","",ROUND(T$4/Liste!T$5*Liste!T57,T$6))) ->  | U57: =IF(U$4=0,"",IF(Liste!U57="","",ROUND(U$4/Liste!U$5*Liste!U57,U$6))) ->  | V57: =IF(V$4=0,"",IF(Liste!V57="","",ROUND(V$4/Liste!V$5*Liste!V57,V$6))) ->  | W57: =IF(W$4=0,"",IF(Liste!W57="","",ROUND(W$4/Liste!W$5*Liste!W57,W$6))) ->  | X57: =IF(X$4=0,"",IF(Liste!X57="","",ROUND(X$4/Liste!X$5*Liste!X57,X$6))) ->  | Y57: =IF(Y$4=0,"",IF(Liste!Y57="","",ROUND(Y$4/Liste!Y$5*Liste!Y57,Y$6))) ->  | Z57: =IF(Z$4=0,"",IF(Liste!Z57="","",ROUND(Z$4/Liste!Z$5*Liste!Z57,Z$6))) ->  | AA57: =IF(AA$4=0,"",IF(Liste!AA57="","",ROUND(AA$4/Liste!AA$5*Liste!AA57,AA$6))) ->  | AB57: =IF(AB$4=0,"",IF(Liste!AB57="","",ROUND(AB$4/Liste!AB$5*Liste!AB57,AB$6))) ->  | AC57: =IF(AC$4=0,"",IF(Liste!AC57="","",ROUND(AC$4/Liste!AC$5*Liste!AC57,AC$6))) ->  | AD57: =IF(AD$4=0,"",IF(Liste!AD57="","",ROUND(AD$4/Liste!AD$5*Liste!AD57,AD$6))) ->  | AE57: =IF(AE$4=0,"",IF(Liste!AE57="","",ROUND(AE$4/Liste!AE$5*Liste!AE57,AE$6))) ->  | AF57: =IF(AF$4=0,"",IF(Liste!AF57="","",ROUND(AF$4/Liste!AF$5*Liste!AF57,AF$6))) ->  | AG57: =IF(AG$4=0,"",IF(Liste!AG57="","",ROUND(AG$4/Liste!AG$5*Liste!AG57,AG$6))) ->  | AH57: =IF(AH$4=0,"",IF(Liste!AH57="","",ROUND(AH$4/Liste!AH$5*Liste!AH57,AH$6))) -> 
B58: =IF(Liste!B58="","",Liste!B58) -> Macis | C58: =IF(Liste!C58="","",Liste!C58) ->  | D58: =IF(Liste!D58="","",Liste!D58) -> [Pr.] | E58: =IF(E$4=0,"",IF(Liste!E58="","",ROUND(E$4/Liste!E$5*Liste!E58,E$6))) ->  | F58: =IF(F$4=0,"",IF(Liste!F58="","",ROUND(F$4/Liste!F$5*Liste!F58,F$6))) ->  | G58: =IF(G$4=0,"",IF(Liste!G58="","",ROUND(G$4/Liste!G$5*Liste!G58,G$6))) ->  | H58: =IF(H$4=0,"",IF(Liste!H58="","",ROUND(H$4/Liste!H$5*Liste!H58,H$6))) ->  | I58: =IF(I$4=0,"",IF(Liste!I58="","",ROUND(I$4/Liste!I$5*Liste!I58,I$6))) ->  | J58: =IF(J$4=0,"",IF(Liste!J58="","",ROUND(J$4/Liste!J$5*Liste!J58,J$6))) ->  | K58: =IF(K$4=0,"",IF(Liste!K58="","",ROUND(K$4/Liste!K$5*Liste!K58,K$6))) ->  | L58: =IF(L$4=0,"",IF(Liste!L58="","",ROUND(L$4/Liste!L$5*Liste!L58,L$6))) ->  | M58: =IF(M$4=0,"",IF(Liste!M58="","",ROUND(M$4/Liste!M$5*Liste!M58,M$6))) ->  | N58: =IF(N$4=0,"",IF(Liste!N58="","",ROUND(N$4/Liste!N$5*Liste!N58,N$6))) ->  | O58: =IF(O$4=0,"",IF(Liste!O58="","",ROUND(O$4/Liste!O$5*Liste!O58,O$6))) ->  | P58: =IF(P$4=0,"",IF(Liste!P58="","",ROUND(P$4/Liste!P$5*Liste!P58,P$6))) ->  | Q58: =IF(Q$4=0,"",IF(Liste!Q58="","",ROUND(Q$4/Liste!Q$5*Liste!Q58,Q$6))) ->  | R58: =IF(R$4=0,"",IF(Liste!R58="","",ROUND(R$4/Liste!R$5*Liste!R58,R$6))) ->  | S58: =IF(S$4=0,"",IF(Liste!S58="","",ROUND(S$4/Liste!S$5*Liste!S58,S$6))) ->  | T58: =IF(T$4=0,"",IF(Liste!T58="","",ROUND(T$4/Liste!T$5*Liste!T58,T$6))) ->  | U58: =IF(U$4=0,"",IF(Liste!U58="","",ROUND(U$4/Liste!U$5*Liste!U58,U$6))) ->  | V58: =IF(V$4=0,"",IF(Liste!V58="","",ROUND(V$4/Liste!V$5*Liste!V58,V$6))) ->  | W58: =IF(W$4=0,"",IF(Liste!W58="","",ROUND(W$4/Liste!W$5*Liste!W58,W$6))) ->  | X58: =IF(X$4=0,"",IF(Liste!X58="","",ROUND(X$4/Liste!X$5*Liste!X58,X$6))) ->  | Y58: =IF(Y$4=0,"",IF(Liste!Y58="","",ROUND(Y$4/Liste!Y$5*Liste!Y58,Y$6))) ->  | Z58: =IF(Z$4=0,"",IF(Liste!Z58="","",ROUND(Z$4/Liste!Z$5*Liste!Z58,Z$6))) ->  | AA58: =IF(AA$4=0,"",IF(Liste!AA58="","",ROUND(AA$4/Liste!AA$5*Liste!AA58,AA$6))) ->  | AB58: =IF(AB$4=0,"",IF(Liste!AB58="","",ROUND(AB$4/Liste!AB$5*Liste!AB58,AB$6))) ->  | AC58: =IF(AC$4=0,"",IF(Liste!AC58="","",ROUND(AC$4/Liste!AC$5*Liste!AC58,AC$6))) ->  | AD58: =IF(AD$4=0,"",IF(Liste!AD58="","",ROUND(AD$4/Liste!AD$5*Liste!AD58,AD$6))) ->  | AE58: =IF(AE$4=0,"",IF(Liste!AE58="","",ROUND(AE$4/Liste!AE$5*Liste!AE58,AE$6))) ->  | AF58: =IF(AF$4=0,"",IF(Liste!AF58="","",ROUND(AF$4/Liste!AF$5*Liste!AF58,AF$6))) ->  | AG58: =IF(AG$4=0,"",IF(Liste!AG58="","",ROUND(AG$4/Liste!AG$5*Liste!AG58,AG$6))) ->  | AH58: =IF(AH$4=0,"",IF(Liste!AH58="","",ROUND(AH$4/Liste!AH$5*Liste!AH58,AH$6))) -> 
B59: =IF(Liste!B59="","",Liste!B59) -> Natron | C59: =IF(Liste!C59="","",Liste!C59) ->  | D59: =IF(Liste!D59="","",Liste!D59) -> [TL] | E59: =IF(E$4=0,"",IF(Liste!E59="","",ROUND(E$4/Liste!E$5*Liste!E59,E$6))) ->  | F59: =IF(F$4=0,"",IF(Liste!F59="","",ROUND(F$4/Liste!F$5*Liste!F59,F$6))) ->  | G59: =IF(G$4=0,"",IF(Liste!G59="","",ROUND(G$4/Liste!G$5*Liste!G59,G$6))) ->  | H59: =IF(H$4=0,"",IF(Liste!H59="","",ROUND(H$4/Liste!H$5*Liste!H59,H$6))) ->  | I59: =IF(I$4=0,"",IF(Liste!I59="","",ROUND(I$4/Liste!I$5*Liste!I59,I$6))) ->  | J59: =IF(J$4=0,"",IF(Liste!J59="","",ROUND(J$4/Liste!J$5*Liste!J59,J$6))) ->  | K59: =IF(K$4=0,"",IF(Liste!K59="","",ROUND(K$4/Liste!K$5*Liste!K59,K$6))) ->  | L59: =IF(L$4=0,"",IF(Liste!L59="","",ROUND(L$4/Liste!L$5*Liste!L59,L$6))) ->  | M59: =IF(M$4=0,"",IF(Liste!M59="","",ROUND(M$4/Liste!M$5*Liste!M59,M$6))) ->  | N59: =IF(N$4=0,"",IF(Liste!N59="","",ROUND(N$4/Liste!N$5*Liste!N59,N$6))) ->  | O59: =IF(O$4=0,"",IF(Liste!O59="","",ROUND(O$4/Liste!O$5*Liste!O59,O$6))) ->  | P59: =IF(P$4=0,"",IF(Liste!P59="","",ROUND(P$4/Liste!P$5*Liste!P59,P$6))) ->  | Q59: =IF(Q$4=0,"",IF(Liste!Q59="","",ROUND(Q$4/Liste!Q$5*Liste!Q59,Q$6))) ->  | R59: =IF(R$4=0,"",IF(Liste!R59="","",ROUND(R$4/Liste!R$5*Liste!R59,R$6))) ->  | S59: =IF(S$4=0,"",IF(Liste!S59="","",ROUND(S$4/Liste!S$5*Liste!S59,S$6))) ->  | T59: =IF(T$4=0,"",IF(Liste!T59="","",ROUND(T$4/Liste!T$5*Liste!T59,T$6))) ->  | U59: =IF(U$4=0,"",IF(Liste!U59="","",ROUND(U$4/Liste!U$5*Liste!U59,U$6))) ->  | V59: =IF(V$4=0,"",IF(Liste!V59="","",ROUND(V$4/Liste!V$5*Liste!V59,V$6))) ->  | W59: =IF(W$4=0,"",IF(Liste!W59="","",ROUND(W$4/Liste!W$5*Liste!W59,W$6))) ->  | X59: =IF(X$4=0,"",IF(Liste!X59="","",ROUND(X$4/Liste!X$5*Liste!X59,X$6))) ->  | Y59: =IF(Y$4=0,"",IF(Liste!Y59="","",ROUND(Y$4/Liste!Y$5*Liste!Y59,Y$6))) ->  | Z59: =IF(Z$4=0,"",IF(Liste!Z59="","",ROUND(Z$4/Liste!Z$5*Liste!Z59,Z$6))) ->  | AA59: =IF(AA$4=0,"",IF(Liste!AA59="","",ROUND(AA$4/Liste!AA$5*Liste!AA59,AA$6))) ->  | AB59: =IF(AB$4=0,"",IF(Liste!AB59="","",ROUND(AB$4/Liste!AB$5*Liste!AB59,AB$6))) ->  | AC59: =IF(AC$4=0,"",IF(Liste!AC59="","",ROUND(AC$4/Liste!AC$5*Liste!AC59,AC$6))) ->  | AD59: =IF(AD$4=0,"",IF(Liste!AD59="","",ROUND(AD$4/Liste!AD$5*Liste!AD59,AD$6))) ->  | AE59: =IF(AE$4=0,"",IF(Liste!AE59="","",ROUND(AE$4/Liste!AE$5*Liste!AE59,AE$6))) ->  | AF59: =IF(AF$4=0,"",IF(Liste!AF59="","",ROUND(AF$4/Liste!AF$5*Liste!AF59,AF$6))) ->  | AG59: =IF(AG$4=0,"",IF(Liste!AG59="","",ROUND(AG$4/Liste!AG$5*Liste!AG59,AG$6))) ->  | AH59: =IF(AH$4=0,"",IF(Liste!AH59="","",ROUND(AH$4/Liste!AH$5*Liste!AH59,AH$6))) -> 
A60: 2 | B60: =IF(Liste!B60="","",Liste!B60) -> Buttermandelaroma | C60: =IF(Liste!C60="","",Liste!C60) ->  | D60: =IF(Liste!D60="","",Liste!D60) -> [Tr] | E60: =IF(E$4=0,"",IF(Liste!E60="","",ROUND(E$4/Liste!E$5*Liste!E60,E$6))) ->  | F60: =IF(F$4=0,"",IF(Liste!F60="","",ROUND(F$4/Liste!F$5*Liste!F60,F$6))) ->  | G60: =IF(G$4=0,"",IF(Liste!G60="","",ROUND(G$4/Liste!G$5*Liste!G60,G$6))) ->  | H60: =IF(H$4=0,"",IF(Liste!H60="","",ROUND(H$4/Liste!H$5*Liste!H60,H$6))) ->  | I60: =IF(I$4=0,"",IF(Liste!I60="","",ROUND(I$4/Liste!I$5*Liste!I60,I$6))) ->  | J60: =IF(J$4=0,"",IF(Liste!J60="","",ROUND(J$4/Liste!J$5*Liste!J60,J$6))) ->  | K60: =IF(K$4=0,"",IF(Liste!K60="","",ROUND(K$4/Liste!K$5*Liste!K60,K$6))) ->  | L60: =IF(L$4=0,"",IF(Liste!L60="","",ROUND(L$4/Liste!L$5*Liste!L60,L$6))) ->  | M60: =IF(M$4=0,"",IF(Liste!M60="","",ROUND(M$4/Liste!M$5*Liste!M60,M$6))) ->  | N60: =IF(N$4=0,"",IF(Liste!N60="","",ROUND(N$4/Liste!N$5*Liste!N60,N$6))) ->  | O60: =IF(O$4=0,"",IF(Liste!O60="","",ROUND(O$4/Liste!O$5*Liste!O60,O$6))) ->  | P60: =IF(P$4=0,"",IF(Liste!P60="","",ROUND(P$4/Liste!P$5*Liste!P60,P$6))) ->  | Q60: =IF(Q$4=0,"",IF(Liste!Q60="","",ROUND(Q$4/Liste!Q$5*Liste!Q60,Q$6))) ->  | R60: =IF(R$4=0,"",IF(Liste!R60="","",ROUND(R$4/Liste!R$5*Liste!R60,R$6))) ->  | S60: =IF(S$4=0,"",IF(Liste!S60="","",ROUND(S$4/Liste!S$5*Liste!S60,S$6))) -> 2 | T60: =IF(T$4=0,"",IF(Liste!T60="","",ROUND(T$4/Liste!T$5*Liste!T60,T$6))) ->  | U60: =IF(U$4=0,"",IF(Liste!U60="","",ROUND(U$4/Liste!U$5*Liste!U60,U$6))) ->  | V60: =IF(V$4=0,"",IF(Liste!V60="","",ROUND(V$4/Liste!V$5*Liste!V60,V$6))) ->  | W60: =IF(W$4=0,"",IF(Liste!W60="","",ROUND(W$4/Liste!W$5*Liste!W60,W$6))) ->  | X60: =IF(X$4=0,"",IF(Liste!X60="","",ROUND(X$4/Liste!X$5*Liste!X60,X$6))) ->  | Y60: =IF(Y$4=0,"",IF(Liste!Y60="","",ROUND(Y$4/Liste!Y$5*Liste!Y60,Y$6))) ->  | Z60: =IF(Z$4=0,"",IF(Liste!Z60="","",ROUND(Z$4/Liste!Z$5*Liste!Z60,Z$6))) ->  | AA60: =IF(AA$4=0,"",IF(Liste!AA60="","",ROUND(AA$4/Liste!AA$5*Liste!AA60,AA$6))) ->  | AB60: =IF(AB$4=0,"",IF(Liste!AB60="","",ROUND(AB$4/Liste!AB$5*Liste!AB60,AB$6))) ->  | AC60: =IF(AC$4=0,"",IF(Liste!AC60="","",ROUND(AC$4/Liste!AC$5*Liste!AC60,AC$6))) ->  | AD60: =IF(AD$4=0,"",IF(Liste!AD60="","",ROUND(AD$4/Liste!AD$5*Liste!AD60,AD$6))) ->  | AE60: =IF(AE$4=0,"",IF(Liste!AE60="","",ROUND(AE$4/Liste!AE$5*Liste!AE60,AE$6))) ->  | AF60: =IF(AF$4=0,"",IF(Liste!AF60="","",ROUND(AF$4/Liste!AF$5*Liste!AF60,AF$6))) ->  | AG60: =IF(AG$4=0,"",IF(Liste!AG60="","",ROUND(AG$4/Liste!AG$5*Liste!AG60,AG$6))) ->  | AH60: =IF(AH$4=0,"",IF(Liste!AH60="","",ROUND(AH$4/Liste!AH$5*Liste!AH60,AH$6))) -> 
B61: =IF(Liste!B61="","",Liste!B61) ->  | C61: =IF(Liste!C61="","",Liste!C61) ->  | D61: =IF(Liste!D61="","",Liste!D61) ->  | E61: =IF(E$4=0,"",IF(Liste!E61="","",ROUND(E$4/Liste!E$5*Liste!E61,E$6))) ->  | F61: =IF(F$4=0,"",IF(Liste!F61="","",ROUND(F$4/Liste!F$5*Liste!F61,F$6))) ->  | G61: =IF(G$4=0,"",IF(Liste!G61="","",ROUND(G$4/Liste!G$5*Liste!G61,G$6))) ->  | H61: =IF(H$4=0,"",IF(Liste!H61="","",ROUND(H$4/Liste!H$5*Liste!H61,H$6))) ->  | I61: =IF(I$4=0,"",IF(Liste!I61="","",ROUND(I$4/Liste!I$5*Liste!I61,I$6))) ->  | J61: =IF(J$4=0,"",IF(Liste!J61="","",ROUND(J$4/Liste!J$5*Liste!J61,J$6))) ->  | K61: =IF(K$4=0,"",IF(Liste!K61="","",ROUND(K$4/Liste!K$5*Liste!K61,K$6))) ->  | L61: =IF(L$4=0,"",IF(Liste!L61="","",ROUND(L$4/Liste!L$5*Liste!L61,L$6))) ->  | M61: =IF(M$4=0,"",IF(Liste!M61="","",ROUND(M$4/Liste!M$5*Liste!M61,M$6))) ->  | N61: =IF(N$4=0,"",IF(Liste!N61="","",ROUND(N$4/Liste!N$5*Liste!N61,N$6))) ->  | O61: =IF(O$4=0,"",IF(Liste!O61="","",ROUND(O$4/Liste!O$5*Liste!O61,O$6))) ->  | P61: =IF(P$4=0,"",IF(Liste!P61="","",ROUND(P$4/Liste!P$5*Liste!P61,P$6))) ->  | Q61: =IF(Q$4=0,"",IF(Liste!Q61="","",ROUND(Q$4/Liste!Q$5*Liste!Q61,Q$6))) ->  | R61: =IF(R$4=0,"",IF(Liste!R61="","",ROUND(R$4/Liste!R$5*Liste!R61,R$6))) ->  | S61: =IF(S$4=0,"",IF(Liste!S61="","",ROUND(S$4/Liste!S$5*Liste!S61,S$6))) ->  | T61: =IF(T$4=0,"",IF(Liste!T61="","",ROUND(T$4/Liste!T$5*Liste!T61,T$6))) ->  | U61: =IF(U$4=0,"",IF(Liste!U61="","",ROUND(U$4/Liste!U$5*Liste!U61,U$6))) ->  | V61: =IF(V$4=0,"",IF(Liste!V61="","",ROUND(V$4/Liste!V$5*Liste!V61,V$6))) ->  | W61: =IF(W$4=0,"",IF(Liste!W61="","",ROUND(W$4/Liste!W$5*Liste!W61,W$6))) ->  | X61: =IF(X$4=0,"",IF(Liste!X61="","",ROUND(X$4/Liste!X$5*Liste!X61,X$6))) ->  | Y61: =IF(Y$4=0,"",IF(Liste!Y61="","",ROUND(Y$4/Liste!Y$5*Liste!Y61,Y$6))) ->  | Z61: =IF(Z$4=0,"",IF(Liste!Z61="","",ROUND(Z$4/Liste!Z$5*Liste!Z61,Z$6))) ->  | AA61: =IF(AA$4=0,"",IF(Liste!AA61="","",ROUND(AA$4/Liste!AA$5*Liste!AA61,AA$6))) ->  | AB61: =IF(AB$4=0,"",IF(Liste!AB61="","",ROUND(AB$4/Liste!AB$5*Liste!AB61,AB$6))) ->  | AC61: =IF(AC$4=0,"",IF(Liste!AC61="","",ROUND(AC$4/Liste!AC$5*Liste!AC61,AC$6))) ->  | AD61: =IF(AD$4=0,"",IF(Liste!AD61="","",ROUND(AD$4/Liste!AD$5*Liste!AD61,AD$6))) ->  | AE61: =IF(AE$4=0,"",IF(Liste!AE61="","",ROUND(AE$4/Liste!AE$5*Liste!AE61,AE$6))) ->  | AF61: =IF(AF$4=0,"",IF(Liste!AF61="","",ROUND(AF$4/Liste!AF$5*Liste!AF61,AF$6))) ->  | AG61: =IF(AG$4=0,"",IF(Liste!AG61="","",ROUND(AG$4/Liste!AG$5*Liste!AG61,AG$6))) ->  | AH61: =IF(AH$4=0,"",IF(Liste!AH61="","",ROUND(AH$4/Liste!AH$5*Liste!AH61,AH$6))) -> 
B62: =IF(Liste!B62="","",Liste!B62) ->  | C62: =IF(Liste!C62="","",Liste!C62) ->  | D62: =IF(Liste!D62="","",Liste!D62) ->  | E62: =IF(E$4=0,"",IF(Liste!E62="","",ROUND(E$4/Liste!E$5*Liste!E62,E$6))) ->  | F62: =IF(F$4=0,"",IF(Liste!F62="","",ROUND(F$4/Liste!F$5*Liste!F62,F$6))) ->  | G62: =IF(G$4=0,"",IF(Liste!G62="","",ROUND(G$4/Liste!G$5*Liste!G62,G$6))) ->  | H62: =IF(H$4=0,"",IF(Liste!H62="","",ROUND(H$4/Liste!H$5*Liste!H62,H$6))) ->  | I62: =IF(I$4=0,"",IF(Liste!I62="","",ROUND(I$4/Liste!I$5*Liste!I62,I$6))) ->  | J62: =IF(J$4=0,"",IF(Liste!J62="","",ROUND(J$4/Liste!J$5*Liste!J62,J$6))) ->  | K62: =IF(K$4=0,"",IF(Liste!K62="","",ROUND(K$4/Liste!K$5*Liste!K62,K$6))) ->  | L62: =IF(L$4=0,"",IF(Liste!L62="","",ROUND(L$4/Liste!L$5*Liste!L62,L$6))) ->  | M62: =IF(M$4=0,"",IF(Liste!M62="","",ROUND(M$4/Liste!M$5*Liste!M62,M$6))) ->  | N62: =IF(N$4=0,"",IF(Liste!N62="","",ROUND(N$4/Liste!N$5*Liste!N62,N$6))) ->  | O62: =IF(O$4=0,"",IF(Liste!O62="","",ROUND(O$4/Liste!O$5*Liste!O62,O$6))) ->  | P62: =IF(P$4=0,"",IF(Liste!P62="","",ROUND(P$4/Liste!P$5*Liste!P62,P$6))) ->  | Q62: =IF(Q$4=0,"",IF(Liste!Q62="","",ROUND(Q$4/Liste!Q$5*Liste!Q62,Q$6))) ->  | R62: =IF(R$4=0,"",IF(Liste!R62="","",ROUND(R$4/Liste!R$5*Liste!R62,R$6))) ->  | S62: =IF(S$4=0,"",IF(Liste!S62="","",ROUND(S$4/Liste!S$5*Liste!S62,S$6))) ->  | T62: =IF(T$4=0,"",IF(Liste!T62="","",ROUND(T$4/Liste!T$5*Liste!T62,T$6))) ->  | U62: =IF(U$4=0,"",IF(Liste!U62="","",ROUND(U$4/Liste!U$5*Liste!U62,U$6))) ->  | V62: =IF(V$4=0,"",IF(Liste!V62="","",ROUND(V$4/Liste!V$5*Liste!V62,V$6))) ->  | W62: =IF(W$4=0,"",IF(Liste!W62="","",ROUND(W$4/Liste!W$5*Liste!W62,W$6))) ->  | X62: =IF(X$4=0,"",IF(Liste!X62="","",ROUND(X$4/Liste!X$5*Liste!X62,X$6))) ->  | Y62: =IF(Y$4=0,"",IF(Liste!Y62="","",ROUND(Y$4/Liste!Y$5*Liste!Y62,Y$6))) ->  | Z62: =IF(Z$4=0,"",IF(Liste!Z62="","",ROUND(Z$4/Liste!Z$5*Liste!Z62,Z$6))) ->  | AA62: =IF(AA$4=0,"",IF(Liste!AA62="","",ROUND(AA$4/Liste!AA$5*Liste!AA62,AA$6))) ->  | AB62: =IF(AB$4=0,"",IF(Liste!AB62="","",ROUND(AB$4/Liste!AB$5*Liste!AB62,AB$6))) ->  | AC62: =IF(AC$4=0,"",IF(Liste!AC62="","",ROUND(AC$4/Liste!AC$5*Liste!AC62,AC$6))) ->  | AD62: =IF(AD$4=0,"",IF(Liste!AD62="","",ROUND(AD$4/Liste!AD$5*Liste!AD62,AD$6))) ->  | AE62: =IF(AE$4=0,"",IF(Liste!AE62="","",ROUND(AE$4/Liste!AE$5*Liste!AE62,AE$6))) ->  | AF62: =IF(AF$4=0,"",IF(Liste!AF62="","",ROUND(AF$4/Liste!AF$5*Liste!AF62,AF$6))) ->  | AG62: =IF(AG$4=0,"",IF(Liste!AG62="","",ROUND(AG$4/Liste!AG$5*Liste!AG62,AG$6))) ->  | AH62: =IF(AH$4=0,"",IF(Liste!AH62="","",ROUND(AH$4/Liste!AH$5*Liste!AH62,AH$6))) -> 
A63: =IF(SUM(E63:AA63)=0,"",SUM(E63:AA63)) ->  | B63: =IF(Liste!B68="","",Liste!B68) ->  | C63: =IF(Liste!C68="","",Liste!C68) ->  | D63: =IF(Liste!D68="","",Liste!D68) ->  | E63: =IF(E$4=0,"",IF(Liste!E68="","",E$4/Liste!E$5*Liste!E68)) ->  | F63: =IF(F$4=0,"",IF(Liste!F68="","",F$4/Liste!F$5*Liste!F68)) ->  | G63: =IF(G$4=0,"",IF(Liste!G68="","",G$4/Liste!G$5*Liste!G68)) ->  | H63: =IF(H$4=0,"",IF(Liste!H68="","",H$4/Liste!H$5*Liste!H68)) ->  | I63: =IF(I$4=0,"",IF(Liste!I68="","",I$4/Liste!I$5*Liste!I68)) ->  | J63: =IF(J$4=0,"",IF(Liste!J68="","",J$4/Liste!J$5*Liste!J68)) ->  | K63: =IF(K$4=0,"",IF(Liste!K68="","",K$4/Liste!K$5*Liste!K68)) ->  | L63: =IF(L$4=0,"",IF(Liste!L68="","",L$4/Liste!L$5*Liste!L68)) ->  | M63: =IF(M$4=0,"",IF(Liste!M68="","",M$4/Liste!M$5*Liste!M68)) ->  | N63: =IF(N$4=0,"",IF(Liste!N68="","",N$4/Liste!N$5*Liste!N68)) ->  | O63: =IF(O$4=0,"",IF(Liste!O68="","",O$4/Liste!O$5*Liste!O68)) ->  | P63: =IF(P$4=0,"",IF(Liste!P68="","",P$4/Liste!P$5*Liste!P68)) ->  | Q63: =IF(Q$4=0,"",IF(Liste!Q68="","",Q$4/Liste!Q$5*Liste!Q68)) -> 
B64: =IF(Liste!B69="","",Liste!B69) ->  | C64: =IF(Liste!C69="","",Liste!C69) ->  | D64: =IF(Liste!D69="","",Liste!D69) ->  | E64: =IF(E$4=0,"",IF(Liste!E69="","",E$4/Liste!E$5*Liste!E69)) ->  | F64: =IF(F$4=0,"",IF(Liste!F69="","",F$4/Liste!F$5*Liste!F69)) ->  | G64: =IF(G$4=0,"",IF(Liste!G69="","",G$4/Liste!G$5*Liste!G69)) ->  | H64: =IF(H$4=0,"",IF(Liste!H69="","",H$4/Liste!H$5*Liste!H69)) ->  | I64: =IF(I$4=0,"",IF(Liste!I69="","",I$4/Liste!I$5*Liste!I69)) ->  | J64: =IF(J$4=0,"",IF(Liste!J69="","",J$4/Liste!J$5*Liste!J69)) ->  | K64: =IF(K$4=0,"",IF(Liste!K69="","",K$4/Liste!K$5*Liste!K69)) ->  | L64: =IF(L$4=0,"",IF(Liste!L69="","",L$4/Liste!L$5*Liste!L69)) ->  | M64: =IF(M$4=0,"",IF(Liste!M69="","",M$4/Liste!M$5*Liste!M69)) ->  | N64: =IF(N$4=0,"",IF(Liste!N69="","",N$4/Liste!N$5*Liste!N69)) ->  | O64: =IF(O$4=0,"",IF(Liste!O69="","",O$4/Liste!O$5*Liste!O69)) ->  | P64: =IF(P$4=0,"",IF(Liste!P69="","",P$4/Liste!P$5*Liste!P69)) ->  | Q64: =IF(Q$4=0,"",IF(Liste!Q69="","",Q$4/Liste!Q$5*Liste!Q69)) -> 
A65: =IF(SUM(E65:H65)=0,"",SUM(E65:H65)) ->  | B65: =IF(Liste!B70="","",Liste!B70) ->  | C65: =IF(Liste!C70="","",Liste!C70) ->  | D65: =IF(Liste!D70="","",Liste!D70) ->  | E65: =IF(E$4=0,"",IF(Liste!E70="","",E$4/Liste!E$5*Liste!E70)) ->  | F65: =IF(F$4=0,"",IF(Liste!F70="","",F$4/Liste!F$5*Liste!F70)) ->  | G65: =IF(G$4=0,"",IF(Liste!G70="","",G$4/Liste!G$5*Liste!G70)) ->  | H65: =IF(H$4=0,"",IF(Liste!H70="","",H$4/Liste!H$5*Liste!H70)) ->  | I65: =IF(I$4=0,"",IF(Liste!I70="","",I$4/Liste!I$5*Liste!I70)) ->  | J65: =IF(J$4=0,"",IF(Liste!J70="","",J$4/Liste!J$5*Liste!J70)) ->  | K65: =IF(K$4=0,"",IF(Liste!K70="","",K$4/Liste!K$5*Liste!K70)) ->  | L65: =IF(L$4=0,"",IF(Liste!L70="","",L$4/Liste!L$5*Liste!L70)) ->  | M65: =IF(M$4=0,"",IF(Liste!M70="","",M$4/Liste!M$5*Liste!M70)) ->  | N65: =IF(N$4=0,"",IF(Liste!N70="","",N$4/Liste!N$5*Liste!N70)) ->  | O65: =IF(O$4=0,"",IF(Liste!O70="","",O$4/Liste!O$5*Liste!O70)) ->  | P65: =IF(P$4=0,"",IF(Liste!P70="","",P$4/Liste!P$5*Liste!P70)) ->  | Q65: =IF(Q$4=0,"",IF(Liste!Q70="","",Q$4/Liste!Q$5*Liste!Q70)) -> 
B66: =IF(Liste!B71="","",Liste!B71) ->  | C66: =IF(Liste!C71="","",Liste!C71) ->  | D66: =IF(Liste!D71="","",Liste!D71) ->  | E66: =IF(E$4=0,"",IF(Liste!E71="","",E$4/Liste!E$5*Liste!E71)) ->  | F66: =IF(F$4=0,"",IF(Liste!F71="","",F$4/Liste!F$5*Liste!F71)) ->  | G66: =IF(G$4=0,"",IF(Liste!G71="","",G$4/Liste!G$5*Liste!G71)) ->  | H66: =IF(H$4=0,"",IF(Liste!H71="","",H$4/Liste!H$5*Liste!H71)) ->  | I66: =IF(I$4=0,"",IF(Liste!I71="","",I$4/Liste!I$5*Liste!I71)) ->  | J66: =IF(J$4=0,"",IF(Liste!J71="","",J$4/Liste!J$5*Liste!J71)) ->  | K66: =IF(K$4=0,"",IF(Liste!K71="","",K$4/Liste!K$5*Liste!K71)) ->  | L66: =IF(L$4=0,"",IF(Liste!L71="","",L$4/Liste!L$5*Liste!L71)) ->  | M66: =IF(M$4=0,"",IF(Liste!M71="","",M$4/Liste!M$5*Liste!M71)) ->  | N66: =IF(N$4=0,"",IF(Liste!N71="","",N$4/Liste!N$5*Liste!N71)) ->  | O66: =IF(O$4=0,"",IF(Liste!O71="","",O$4/Liste!O$5*Liste!O71)) ->  | P66: =IF(P$4=0,"",IF(Liste!P71="","",P$4/Liste!P$5*Liste!P71)) ->  | Q66: =IF(Q$4=0,"",IF(Liste!Q71="","",Q$4/Liste!Q$5*Liste!Q71)) -> 
B67: =IF(Liste!B72="","",Liste!B72) ->  | C67: =IF(Liste!C72="","",Liste!C72) ->  | D67: =IF(Liste!D72="","",Liste!D72) ->  | E67: =IF(E$4=0,"",IF(Liste!E72="","",E$4/Liste!E$5*Liste!E72)) ->  | F67: =IF(F$4=0,"",IF(Liste!F72="","",F$4/Liste!F$5*Liste!F72)) ->  | G67: =IF(G$4=0,"",IF(Liste!G72="","",G$4/Liste!G$5*Liste!G72)) ->  | H67: =IF(H$4=0,"",IF(Liste!H72="","",H$4/Liste!H$5*Liste!H72)) ->  | I67: =IF(I$4=0,"",IF(Liste!I72="","",I$4/Liste!I$5*Liste!I72)) ->  | J67: =IF(J$4=0,"",IF(Liste!J72="","",J$4/Liste!J$5*Liste!J72)) ->  | K67: =IF(K$4=0,"",IF(Liste!K72="","",K$4/Liste!K$5*Liste!K72)) ->  | L67: =IF(L$4=0,"",IF(Liste!L72="","",L$4/Liste!L$5*Liste!L72)) ->  | M67: =IF(M$4=0,"",IF(Liste!M72="","",M$4/Liste!M$5*Liste!M72)) ->  | N67: =IF(N$4=0,"",IF(Liste!N72="","",N$4/Liste!N$5*Liste!N72)) ->  | O67: =IF(O$4=0,"",IF(Liste!O72="","",O$4/Liste!O$5*Liste!O72)) ->  | P67: =IF(P$4=0,"",IF(Liste!P72="","",P$4/Liste!P$5*Liste!P72)) ->  | Q67: =IF(Q$4=0,"",IF(Liste!Q72="","",Q$4/Liste!Q$5*Liste!Q72)) -> 
B68: =IF(Liste!B73="","",Liste!B73) ->  | C68: =IF(Liste!C73="","",Liste!C73) ->  | D68: =IF(Liste!D73="","",Liste!D73) ->  | E68: =IF(E$4=0,"",IF(Liste!E73="","",E$4/Liste!E$5*Liste!E73)) ->  | F68: =IF(F$4=0,"",IF(Liste!F73="","",F$4/Liste!F$5*Liste!F73)) ->  | G68: =IF(G$4=0,"",IF(Liste!G73="","",G$4/Liste!G$5*Liste!G73)) ->  | H68: =IF(H$4=0,"",IF(Liste!H73="","",H$4/Liste!H$5*Liste!H73)) ->  | I68: =IF(I$4=0,"",IF(Liste!I73="","",I$4/Liste!I$5*Liste!I73)) ->  | J68: =IF(J$4=0,"",IF(Liste!J73="","",J$4/Liste!J$5*Liste!J73)) ->  | K68: =IF(K$4=0,"",IF(Liste!K73="","",K$4/Liste!K$5*Liste!K73)) ->  | L68: =IF(L$4=0,"",IF(Liste!L73="","",L$4/Liste!L$5*Liste!L73)) ->  | M68: =IF(M$4=0,"",IF(Liste!M73="","",M$4/Liste!M$5*Liste!M73)) ->  | N68: =IF(N$4=0,"",IF(Liste!N73="","",N$4/Liste!N$5*Liste!N73)) ->  | O68: =IF(O$4=0,"",IF(Liste!O73="","",O$4/Liste!O$5*Liste!O73)) ->  | P68: =IF(P$4=0,"",IF(Liste!P73="","",P$4/Liste!P$5*Liste!P73)) ->  | Q68: =IF(Q$4=0,"",IF(Liste!Q73="","",Q$4/Liste!Q$5*Liste!Q73)) -> 
B69: =IF(Liste!B74="","",Liste!B74) ->  | C69: =IF(Liste!C74="","",Liste!C74) ->  | D69: =IF(Liste!D74="","",Liste!D74) ->  | E69: =IF(E$4=0,"",IF(Liste!E74="","",E$4/Liste!E$5*Liste!E74)) ->  | F69: =IF(F$4=0,"",IF(Liste!F74="","",F$4/Liste!F$5*Liste!F74)) ->  | G69: =IF(G$4=0,"",IF(Liste!G74="","",G$4/Liste!G$5*Liste!G74)) ->  | H69: =IF(H$4=0,"",IF(Liste!H74="","",H$4/Liste!H$5*Liste!H74)) ->  | I69: =IF(I$4=0,"",IF(Liste!I74="","",I$4/Liste!I$5*Liste!I74)) ->  | J69: =IF(J$4=0,"",IF(Liste!J74="","",J$4/Liste!J$5*Liste!J74)) ->  | K69: =IF(K$4=0,"",IF(Liste!K74="","",K$4/Liste!K$5*Liste!K74)) ->  | L69: =IF(L$4=0,"",IF(Liste!L74="","",L$4/Liste!L$5*Liste!L74)) ->  | M69: =IF(M$4=0,"",IF(Liste!M74="","",M$4/Liste!M$5*Liste!M74)) ->  | N69: =IF(N$4=0,"",IF(Liste!N74="","",N$4/Liste!N$5*Liste!N74)) ->  | O69: =IF(O$4=0,"",IF(Liste!O74="","",O$4/Liste!O$5*Liste!O74)) ->  | P69: =IF(P$4=0,"",IF(Liste!P74="","",P$4/Liste!P$5*Liste!P74)) ->  | Q69: =IF(Q$4=0,"",IF(Liste!Q74="","",Q$4/Liste!Q$5*Liste!Q74)) -> 
B70: =IF(Liste!B75="","",Liste!B75) ->  | C70: =IF(Liste!C75="","",Liste!C75) ->  | D70: =IF(Liste!D75="","",Liste!D75) ->  | E70: =IF(E$4=0,"",IF(Liste!E75="","",E$4/Liste!E$5*Liste!E75)) ->  | F70: =IF(F$4=0,"",IF(Liste!F75="","",F$4/Liste!F$5*Liste!F75)) ->  | G70: =IF(G$4=0,"",IF(Liste!G75="","",G$4/Liste!G$5*Liste!G75)) ->  | H70: =IF(H$4=0,"",IF(Liste!H75="","",H$4/Liste!H$5*Liste!H75)) ->  | I70: =IF(I$4=0,"",IF(Liste!I75="","",I$4/Liste!I$5*Liste!I75)) ->  | J70: =IF(J$4=0,"",IF(Liste!J75="","",J$4/Liste!J$5*Liste!J75)) ->  | K70: =IF(K$4=0,"",IF(Liste!K75="","",K$4/Liste!K$5*Liste!K75)) ->  | L70: =IF(L$4=0,"",IF(Liste!L75="","",L$4/Liste!L$5*Liste!L75)) ->  | M70: =IF(M$4=0,"",IF(Liste!M75="","",M$4/Liste!M$5*Liste!M75)) ->  | N70: =IF(N$4=0,"",IF(Liste!N75="","",N$4/Liste!N$5*Liste!N75)) ->  | O70: =IF(O$4=0,"",IF(Liste!O75="","",O$4/Liste!O$5*Liste!O75)) ->  | P70: =IF(P$4=0,"",IF(Liste!P75="","",P$4/Liste!P$5*Liste!P75)) ->  | Q70: =IF(Q$4=0,"",IF(Liste!Q75="","",Q$4/Liste!Q$5*Liste!Q75)) -> 
B71: =IF(Liste!B76="","",Liste!B76) ->  | C71: =IF(Liste!C76="","",Liste!C76) ->  | D71: =IF(Liste!D76="","",Liste!D76) ->  | E71: =IF(E$4=0,"",IF(Liste!E76="","",E$4/Liste!E$5*Liste!E76)) ->  | F71: =IF(F$4=0,"",IF(Liste!F76="","",F$4/Liste!F$5*Liste!F76)) ->  | G71: =IF(G$4=0,"",IF(Liste!G76="","",G$4/Liste!G$5*Liste!G76)) ->  | H71: =IF(H$4=0,"",IF(Liste!H76="","",H$4/Liste!H$5*Liste!H76)) ->  | I71: =IF(I$4=0,"",IF(Liste!I76="","",I$4/Liste!I$5*Liste!I76)) ->  | J71: =IF(J$4=0,"",IF(Liste!J76="","",J$4/Liste!J$5*Liste!J76)) ->  | K71: =IF(K$4=0,"",IF(Liste!K76="","",K$4/Liste!K$5*Liste!K76)) ->  | L71: =IF(L$4=0,"",IF(Liste!L76="","",L$4/Liste!L$5*Liste!L76)) ->  | M71: =IF(M$4=0,"",IF(Liste!M76="","",M$4/Liste!M$5*Liste!M76)) ->  | N71: =IF(N$4=0,"",IF(Liste!N76="","",N$4/Liste!N$5*Liste!N76)) ->  | O71: =IF(O$4=0,"",IF(Liste!O76="","",O$4/Liste!O$5*Liste!O76)) ->  | P71: =IF(P$4=0,"",IF(Liste!P76="","",P$4/Liste!P$5*Liste!P76)) ->  | Q71: =IF(Q$4=0,"",IF(Liste!Q76="","",Q$4/Liste!Q$5*Liste!Q76)) -> 
A72: =IF(SUM(E72:H72)=0,"",SUM(E72:H72)) ->  | B72: =IF(Liste!B77="","",Liste!B77) ->  | C72: =IF(Liste!C77="","",Liste!C77) ->  | D72: =IF(Liste!D77="","",Liste!D77) ->  | E72: =IF(E$4=0,"",IF(Liste!E77="","",E$4/Liste!E$5*Liste!E77)) ->  | F72: =IF(F$4=0,"",IF(Liste!F77="","",F$4/Liste!F$5*Liste!F77)) ->  | G72: =IF(G$4=0,"",IF(Liste!G77="","",G$4/Liste!G$5*Liste!G77)) ->  | H72: =IF(H$4=0,"",IF(Liste!H77="","",H$4/Liste!H$5*Liste!H77)) ->  | I72: =IF(I$4=0,"",IF(Liste!I77="","",I$4/Liste!I$5*Liste!I77)) ->  | J72: =IF(J$4=0,"",IF(Liste!J77="","",J$4/Liste!J$5*Liste!J77)) ->  | K72: =IF(K$4=0,"",IF(Liste!K77="","",K$4/Liste!K$5*Liste!K77)) ->  | L72: =IF(L$4=0,"",IF(Liste!L77="","",L$4/Liste!L$5*Liste!L77)) ->  | M72: =IF(M$4=0,"",IF(Liste!M77="","",M$4/Liste!M$5*Liste!M77)) ->  | N72: =IF(N$4=0,"",IF(Liste!N77="","",N$4/Liste!N$5*Liste!N77)) ->  | O72: =IF(O$4=0,"",IF(Liste!O77="","",O$4/Liste!O$5*Liste!O77)) ->  | P72: =IF(P$4=0,"",IF(Liste!P77="","",P$4/Liste!P$5*Liste!P77)) ->  | Q72: =IF(Q$4=0,"",IF(Liste!Q77="","",Q$4/Liste!Q$5*Liste!Q77)) -> 
B73: =IF(Liste!B78="","",Liste!B78) ->  | C73: =IF(Liste!C78="","",Liste!C78) ->  | D73: =IF(Liste!D78="","",Liste!D78) ->  | E73: =IF(E$4=0,"",IF(Liste!E78="","",E$4/Liste!E$5*Liste!E78)) ->  | F73: =IF(F$4=0,"",IF(Liste!F78="","",F$4/Liste!F$5*Liste!F78)) ->  | G73: =IF(G$4=0,"",IF(Liste!G78="","",G$4/Liste!G$5*Liste!G78)) ->  | H73: =IF(H$4=0,"",IF(Liste!H78="","",H$4/Liste!H$5*Liste!H78)) ->  | I73: =IF(I$4=0,"",IF(Liste!I78="","",I$4/Liste!I$5*Liste!I78)) ->  | J73: =IF(J$4=0,"",IF(Liste!J78="","",J$4/Liste!J$5*Liste!J78)) ->  | K73: =IF(K$4=0,"",IF(Liste!K78="","",K$4/Liste!K$5*Liste!K78)) ->  | L73: =IF(L$4=0,"",IF(Liste!L78="","",L$4/Liste!L$5*Liste!L78)) ->  | M73: =IF(M$4=0,"",IF(Liste!M78="","",M$4/Liste!M$5*Liste!M78)) ->  | N73: =IF(N$4=0,"",IF(Liste!N78="","",N$4/Liste!N$5*Liste!N78)) ->  | O73: =IF(O$4=0,"",IF(Liste!O78="","",O$4/Liste!O$5*Liste!O78)) ->  | P73: =IF(P$4=0,"",IF(Liste!P78="","",P$4/Liste!P$5*Liste!P78)) ->  | Q73: =IF(Q$4=0,"",IF(Liste!Q78="","",Q$4/Liste!Q$5*Liste!Q78)) -> 
B74: =IF(Liste!B79="","",Liste!B79) ->  | C74: =IF(Liste!C79="","",Liste!C79) ->  | D74: =IF(Liste!D79="","",Liste!D79) ->  | E74: =IF(E$4=0,"",IF(Liste!E79="","",E$4/Liste!E$5*Liste!E79)) ->  | F74: =IF(F$4=0,"",IF(Liste!F79="","",F$4/Liste!F$5*Liste!F79)) ->  | G74: =IF(G$4=0,"",IF(Liste!G79="","",G$4/Liste!G$5*Liste!G79)) ->  | H74: =IF(H$4=0,"",IF(Liste!H79="","",H$4/Liste!H$5*Liste!H79)) ->  | I74: =IF(I$4=0,"",IF(Liste!I79="","",I$4/Liste!I$5*Liste!I79)) ->  | J74: =IF(J$4=0,"",IF(Liste!J79="","",J$4/Liste!J$5*Liste!J79)) ->  | K74: =IF(K$4=0,"",IF(Liste!K79="","",K$4/Liste!K$5*Liste!K79)) ->  | L74: =IF(L$4=0,"",IF(Liste!L79="","",L$4/Liste!L$5*Liste!L79)) ->  | M74: =IF(M$4=0,"",IF(Liste!M79="","",M$4/Liste!M$5*Liste!M79)) ->  | N74: =IF(N$4=0,"",IF(Liste!N79="","",N$4/Liste!N$5*Liste!N79)) ->  | O74: =IF(O$4=0,"",IF(Liste!O79="","",O$4/Liste!O$5*Liste!O79)) ->  | P74: =IF(P$4=0,"",IF(Liste!P79="","",P$4/Liste!P$5*Liste!P79)) ->  | Q74: =IF(Q$4=0,"",IF(Liste!Q79="","",Q$4/Liste!Q$5*Liste!Q79)) -> 
B75: =IF(Liste!B80="","",Liste!B80) ->  | C75: =IF(Liste!C80="","",Liste!C80) ->  | D75: =IF(Liste!D80="","",Liste!D80) ->  | E75: =IF(E$4=0,"",IF(Liste!E80="","",E$4/Liste!E$5*Liste!E80)) ->  | F75: =IF(F$4=0,"",IF(Liste!F80="","",F$4/Liste!F$5*Liste!F80)) ->  | G75: =IF(G$4=0,"",IF(Liste!G80="","",G$4/Liste!G$5*Liste!G80)) ->  | H75: =IF(H$4=0,"",IF(Liste!H80="","",H$4/Liste!H$5*Liste!H80)) ->  | I75: =IF(I$4=0,"",IF(Liste!I80="","",I$4/Liste!I$5*Liste!I80)) ->  | J75: =IF(J$4=0,"",IF(Liste!J80="","",J$4/Liste!J$5*Liste!J80)) ->  | K75: =IF(K$4=0,"",IF(Liste!K80="","",K$4/Liste!K$5*Liste!K80)) ->  | L75: =IF(L$4=0,"",IF(Liste!L80="","",L$4/Liste!L$5*Liste!L80)) ->  | M75: =IF(M$4=0,"",IF(Liste!M80="","",M$4/Liste!M$5*Liste!M80)) ->  | N75: =IF(N$4=0,"",IF(Liste!N80="","",N$4/Liste!N$5*Liste!N80)) ->  | O75: =IF(O$4=0,"",IF(Liste!O80="","",O$4/Liste!O$5*Liste!O80)) ->  | P75: =IF(P$4=0,"",IF(Liste!P80="","",P$4/Liste!P$5*Liste!P80)) ->  | Q75: =IF(Q$4=0,"",IF(Liste!Q80="","",Q$4/Liste!Q$5*Liste!Q80)) -> 
B76: =IF(Liste!B81="","",Liste!B81) ->  | C76: =IF(Liste!C81="","",Liste!C81) ->  | D76: =IF(Liste!D81="","",Liste!D81) ->  | E76: =IF(E$4=0,"",IF(Liste!E81="","",E$4/Liste!E$5*Liste!E81)) ->  | F76: =IF(F$4=0,"",IF(Liste!F81="","",F$4/Liste!F$5*Liste!F81)) ->  | G76: =IF(G$4=0,"",IF(Liste!G81="","",G$4/Liste!G$5*Liste!G81)) ->  | H76: =IF(H$4=0,"",IF(Liste!H81="","",H$4/Liste!H$5*Liste!H81)) ->  | I76: =IF(I$4=0,"",IF(Liste!I81="","",I$4/Liste!I$5*Liste!I81)) ->  | J76: =IF(J$4=0,"",IF(Liste!J81="","",J$4/Liste!J$5*Liste!J81)) ->  | K76: =IF(K$4=0,"",IF(Liste!K81="","",K$4/Liste!K$5*Liste!K81)) ->  | L76: =IF(L$4=0,"",IF(Liste!L81="","",L$4/Liste!L$5*Liste!L81)) ->  | M76: =IF(M$4=0,"",IF(Liste!M81="","",M$4/Liste!M$5*Liste!M81)) ->  | N76: =IF(N$4=0,"",IF(Liste!N81="","",N$4/Liste!N$5*Liste!N81)) ->  | O76: =IF(O$4=0,"",IF(Liste!O81="","",O$4/Liste!O$5*Liste!O81)) ->  | P76: =IF(P$4=0,"",IF(Liste!P81="","",P$4/Liste!P$5*Liste!P81)) ->  | Q76: =IF(Q$4=0,"",IF(Liste!Q81="","",Q$4/Liste!Q$5*Liste!Q81)) -> 
B77: =IF(Liste!B82="","",Liste!B82) ->  | C77: =IF(Liste!C82="","",Liste!C82) ->  | D77: =IF(Liste!D82="","",Liste!D82) ->  | E77: =IF(E$4=0,"",IF(Liste!E82="","",E$4/Liste!E$5*Liste!E82)) ->  | F77: =IF(F$4=0,"",IF(Liste!F82="","",F$4/Liste!F$5*Liste!F82)) ->  | G77: =IF(G$4=0,"",IF(Liste!G82="","",G$4/Liste!G$5*Liste!G82)) ->  | H77: =IF(H$4=0,"",IF(Liste!H82="","",H$4/Liste!H$5*Liste!H82)) ->  | I77: =IF(I$4=0,"",IF(Liste!I82="","",I$4/Liste!I$5*Liste!I82)) ->  | J77: =IF(J$4=0,"",IF(Liste!J82="","",J$4/Liste!J$5*Liste!J82)) ->  | K77: =IF(K$4=0,"",IF(Liste!K82="","",K$4/Liste!K$5*Liste!K82)) ->  | L77: =IF(L$4=0,"",IF(Liste!L82="","",L$4/Liste!L$5*Liste!L82)) ->  | M77: =IF(M$4=0,"",IF(Liste!M82="","",M$4/Liste!M$5*Liste!M82)) ->  | N77: =IF(N$4=0,"",IF(Liste!N82="","",N$4/Liste!N$5*Liste!N82)) ->  | O77: =IF(O$4=0,"",IF(Liste!O82="","",O$4/Liste!O$5*Liste!O82)) ->  | P77: =IF(P$4=0,"",IF(Liste!P82="","",P$4/Liste!P$5*Liste!P82)) ->  | Q77: =IF(Q$4=0,"",IF(Liste!Q82="","",Q$4/Liste!Q$5*Liste!Q82)) -> 
B78: =IF(Liste!B83="","",Liste!B83) ->  | C78: =IF(Liste!C83="","",Liste!C83) ->  | D78: =IF(Liste!D83="","",Liste!D83) ->  | E78: =IF(E$4=0,"",IF(Liste!E83="","",E$4/Liste!E$5*Liste!E83)) ->  | F78: =IF(F$4=0,"",IF(Liste!F83="","",F$4/Liste!F$5*Liste!F83)) ->  | G78: =IF(G$4=0,"",IF(Liste!G83="","",G$4/Liste!G$5*Liste!G83)) ->  | H78: =IF(H$4=0,"",IF(Liste!H83="","",H$4/Liste!H$5*Liste!H83)) ->  | I78: =IF(I$4=0,"",IF(Liste!I83="","",I$4/Liste!I$5*Liste!I83)) ->  | J78: =IF(J$4=0,"",IF(Liste!J83="","",J$4/Liste!J$5*Liste!J83)) ->  | K78: =IF(K$4=0,"",IF(Liste!K83="","",K$4/Liste!K$5*Liste!K83)) ->  | L78: =IF(L$4=0,"",IF(Liste!L83="","",L$4/Liste!L$5*Liste!L83)) ->  | M78: =IF(M$4=0,"",IF(Liste!M83="","",M$4/Liste!M$5*Liste!M83)) ->  | N78: =IF(N$4=0,"",IF(Liste!N83="","",N$4/Liste!N$5*Liste!N83)) ->  | O78: =IF(O$4=0,"",IF(Liste!O83="","",O$4/Liste!O$5*Liste!O83)) ->  | P78: =IF(P$4=0,"",IF(Liste!P83="","",P$4/Liste!P$5*Liste!P83)) ->  | Q78: =IF(Q$4=0,"",IF(Liste!Q83="","",Q$4/Liste!Q$5*Liste!Q83)) -> 
B79: =IF(Liste!B84="","",Liste!B84) ->  | C79: =IF(Liste!C84="","",Liste!C84) ->  | D79: =IF(Liste!D84="","",Liste!D84) ->  | E79: =IF(E$4=0,"",IF(Liste!E84="","",E$4/Liste!E$5*Liste!E84)) ->  | F79: =IF(F$4=0,"",IF(Liste!F84="","",F$4/Liste!F$5*Liste!F84)) ->  | G79: =IF(G$4=0,"",IF(Liste!G84="","",G$4/Liste!G$5*Liste!G84)) ->  | H79: =IF(H$4=0,"",IF(Liste!H84="","",H$4/Liste!H$5*Liste!H84)) ->  | I79: =IF(I$4=0,"",IF(Liste!I84="","",I$4/Liste!I$5*Liste!I84)) ->  | J79: =IF(J$4=0,"",IF(Liste!J84="","",J$4/Liste!J$5*Liste!J84)) ->  | K79: =IF(K$4=0,"",IF(Liste!K84="","",K$4/Liste!K$5*Liste!K84)) ->  | L79: =IF(L$4=0,"",IF(Liste!L84="","",L$4/Liste!L$5*Liste!L84)) ->  | M79: =IF(M$4=0,"",IF(Liste!M84="","",M$4/Liste!M$5*Liste!M84)) ->  | N79: =IF(N$4=0,"",IF(Liste!N84="","",N$4/Liste!N$5*Liste!N84)) ->  | O79: =IF(O$4=0,"",IF(Liste!O84="","",O$4/Liste!O$5*Liste!O84)) ->  | P79: =IF(P$4=0,"",IF(Liste!P84="","",P$4/Liste!P$5*Liste!P84)) ->  | Q79: =IF(Q$4=0,"",IF(Liste!Q84="","",Q$4/Liste!Q$5*Liste!Q84)) -> 
B80: =IF(Liste!B85="","",Liste!B85) ->  | C80: =IF(Liste!C85="","",Liste!C85) ->  | D80: =IF(Liste!D85="","",Liste!D85) ->  | E80: =IF(E$4=0,"",IF(Liste!E85="","",E$4/Liste!E$5*Liste!E85)) ->  | F80: =IF(F$4=0,"",IF(Liste!F85="","",F$4/Liste!F$5*Liste!F85)) ->  | G80: =IF(G$4=0,"",IF(Liste!G85="","",G$4/Liste!G$5*Liste!G85)) ->  | H80: =IF(H$4=0,"",IF(Liste!H85="","",H$4/Liste!H$5*Liste!H85)) ->  | I80: =IF(I$4=0,"",IF(Liste!I85="","",I$4/Liste!I$5*Liste!I85)) ->  | J80: =IF(J$4=0,"",IF(Liste!J85="","",J$4/Liste!J$5*Liste!J85)) ->  | K80: =IF(K$4=0,"",IF(Liste!K85="","",K$4/Liste!K$5*Liste!K85)) ->  | L80: =IF(L$4=0,"",IF(Liste!L85="","",L$4/Liste!L$5*Liste!L85)) ->  | M80: =IF(M$4=0,"",IF(Liste!M85="","",M$4/Liste!M$5*Liste!M85)) ->  | N80: =IF(N$4=0,"",IF(Liste!N85="","",N$4/Liste!N$5*Liste!N85)) ->  | O80: =IF(O$4=0,"",IF(Liste!O85="","",O$4/Liste!O$5*Liste!O85)) ->  | P80: =IF(P$4=0,"",IF(Liste!P85="","",P$4/Liste!P$5*Liste!P85)) ->  | Q80: =IF(Q$4=0,"",IF(Liste!Q85="","",Q$4/Liste!Q$5*Liste!Q85)) -> 
B81: =IF(Liste!B86="","",Liste!B86) ->  | C81: =IF(Liste!C86="","",Liste!C86) ->  | D81: =IF(Liste!D86="","",Liste!D86) ->  | E81: =IF(E$4=0,"",IF(Liste!E86="","",E$4/Liste!E$5*Liste!E86)) ->  | F81: =IF(F$4=0,"",IF(Liste!F86="","",F$4/Liste!F$5*Liste!F86)) ->  | G81: =IF(G$4=0,"",IF(Liste!G86="","",G$4/Liste!G$5*Liste!G86)) ->  | H81: =IF(H$4=0,"",IF(Liste!H86="","",H$4/Liste!H$5*Liste!H86)) ->  | I81: =IF(I$4=0,"",IF(Liste!I86="","",I$4/Liste!I$5*Liste!I86)) ->  | J81: =IF(J$4=0,"",IF(Liste!J86="","",J$4/Liste!J$5*Liste!J86)) ->  | K81: =IF(K$4=0,"",IF(Liste!K86="","",K$4/Liste!K$5*Liste!K86)) ->  | L81: =IF(L$4=0,"",IF(Liste!L86="","",L$4/Liste!L$5*Liste!L86)) ->  | M81: =IF(M$4=0,"",IF(Liste!M86="","",M$4/Liste!M$5*Liste!M86)) ->  | N81: =IF(N$4=0,"",IF(Liste!N86="","",N$4/Liste!N$5*Liste!N86)) ->  | O81: =IF(O$4=0,"",IF(Liste!O86="","",O$4/Liste!O$5*Liste!O86)) ->  | P81: =IF(P$4=0,"",IF(Liste!P86="","",P$4/Liste!P$5*Liste!P86)) ->  | Q81: =IF(Q$4=0,"",IF(Liste!Q86="","",Q$4/Liste!Q$5*Liste!Q86)) -> 
B82: =IF(Liste!B87="","",Liste!B87) ->  | C82: =IF(Liste!C87="","",Liste!C87) ->  | D82: =IF(Liste!D87="","",Liste!D87) ->  | E82: =IF(E$4=0,"",IF(Liste!E87="","",E$4/Liste!E$5*Liste!E87)) ->  | F82: =IF(F$4=0,"",IF(Liste!F87="","",F$4/Liste!F$5*Liste!F87)) ->  | G82: =IF(G$4=0,"",IF(Liste!G87="","",G$4/Liste!G$5*Liste!G87)) ->  | H82: =IF(H$4=0,"",IF(Liste!H87="","",H$4/Liste!H$5*Liste!H87)) ->  | I82: =IF(I$4=0,"",IF(Liste!I87="","",I$4/Liste!I$5*Liste!I87)) ->  | J82: =IF(J$4=0,"",IF(Liste!J87="","",J$4/Liste!J$5*Liste!J87)) ->  | K82: =IF(K$4=0,"",IF(Liste!K87="","",K$4/Liste!K$5*Liste!K87)) ->  | L82: =IF(L$4=0,"",IF(Liste!L87="","",L$4/Liste!L$5*Liste!L87)) ->  | M82: =IF(M$4=0,"",IF(Liste!M87="","",M$4/Liste!M$5*Liste!M87)) ->  | N82: =IF(N$4=0,"",IF(Liste!N87="","",N$4/Liste!N$5*Liste!N87)) ->  | O82: =IF(O$4=0,"",IF(Liste!O87="","",O$4/Liste!O$5*Liste!O87)) ->  | P82: =IF(P$4=0,"",IF(Liste!P87="","",P$4/Liste!P$5*Liste!P87)) ->  | Q82: =IF(Q$4=0,"",IF(Liste!Q87="","",Q$4/Liste!Q$5*Liste!Q87)) -> 
B83: =IF(Liste!B88="","",Liste!B88) ->  | C83: =IF(Liste!C88="","",Liste!C88) ->  | D83: =IF(Liste!D88="","",Liste!D88) ->  | E83: =IF(E$4=0,"",IF(Liste!E88="","",E$4/Liste!E$5*Liste!E88)) ->  | F83: =IF(F$4=0,"",IF(Liste!F88="","",F$4/Liste!F$5*Liste!F88)) ->  | G83: =IF(G$4=0,"",IF(Liste!G88="","",G$4/Liste!G$5*Liste!G88)) ->  | H83: =IF(H$4=0,"",IF(Liste!H88="","",H$4/Liste!H$5*Liste!H88)) ->  | I83: =IF(I$4=0,"",IF(Liste!I88="","",I$4/Liste!I$5*Liste!I88)) ->  | J83: =IF(J$4=0,"",IF(Liste!J88="","",J$4/Liste!J$5*Liste!J88)) ->  | K83: =IF(K$4=0,"",IF(Liste!K88="","",K$4/Liste!K$5*Liste!K88)) ->  | L83: =IF(L$4=0,"",IF(Liste!L88="","",L$4/Liste!L$5*Liste!L88)) ->  | M83: =IF(M$4=0,"",IF(Liste!M88="","",M$4/Liste!M$5*Liste!M88)) ->  | N83: =IF(N$4=0,"",IF(Liste!N88="","",N$4/Liste!N$5*Liste!N88)) ->  | O83: =IF(O$4=0,"",IF(Liste!O88="","",O$4/Liste!O$5*Liste!O88)) ->  | P83: =IF(P$4=0,"",IF(Liste!P88="","",P$4/Liste!P$5*Liste!P88)) ->  | Q83: =IF(Q$4=0,"",IF(Liste!Q88="","",Q$4/Liste!Q$5*Liste!Q88)) -> 
B84: =IF(Liste!B89="","",Liste!B89) ->  | C84: =IF(Liste!C89="","",Liste!C89) ->  | D84: =IF(Liste!D89="","",Liste!D89) ->  | E84: =IF(E$4=0,"",IF(Liste!E89="","",E$4/Liste!E$5*Liste!E89)) ->  | F84: =IF(F$4=0,"",IF(Liste!F89="","",F$4/Liste!F$5*Liste!F89)) ->  | G84: =IF(G$4=0,"",IF(Liste!G89="","",G$4/Liste!G$5*Liste!G89)) ->  | H84: =IF(H$4=0,"",IF(Liste!H89="","",H$4/Liste!H$5*Liste!H89)) ->  | I84: =IF(I$4=0,"",IF(Liste!I89="","",I$4/Liste!I$5*Liste!I89)) ->  | J84: =IF(J$4=0,"",IF(Liste!J89="","",J$4/Liste!J$5*Liste!J89)) ->  | K84: =IF(K$4=0,"",IF(Liste!K89="","",K$4/Liste!K$5*Liste!K89)) ->  | L84: =IF(L$4=0,"",IF(Liste!L89="","",L$4/Liste!L$5*Liste!L89)) ->  | M84: =IF(M$4=0,"",IF(Liste!M89="","",M$4/Liste!M$5*Liste!M89)) ->  | N84: =IF(N$4=0,"",IF(Liste!N89="","",N$4/Liste!N$5*Liste!N89)) ->  | O84: =IF(O$4=0,"",IF(Liste!O89="","",O$4/Liste!O$5*Liste!O89)) ->  | P84: =IF(P$4=0,"",IF(Liste!P89="","",P$4/Liste!P$5*Liste!P89)) ->  | Q84: =IF(Q$4=0,"",IF(Liste!Q89="","",Q$4/Liste!Q$5*Liste!Q89)) -> 
B85: =IF(Liste!B90="","",Liste!B90) ->  | C85: =IF(Liste!C90="","",Liste!C90) ->  | D85: =IF(Liste!D90="","",Liste!D90) ->  | E85: =IF(E$4=0,"",IF(Liste!E90="","",E$4/Liste!E$5*Liste!E90)) ->  | F85: =IF(F$4=0,"",IF(Liste!F90="","",F$4/Liste!F$5*Liste!F90)) ->  | G85: =IF(G$4=0,"",IF(Liste!G90="","",G$4/Liste!G$5*Liste!G90)) ->  | H85: =IF(H$4=0,"",IF(Liste!H90="","",H$4/Liste!H$5*Liste!H90)) ->  | I85: =IF(I$4=0,"",IF(Liste!I90="","",I$4/Liste!I$5*Liste!I90)) ->  | J85: =IF(J$4=0,"",IF(Liste!J90="","",J$4/Liste!J$5*Liste!J90)) ->  | K85: =IF(K$4=0,"",IF(Liste!K90="","",K$4/Liste!K$5*Liste!K90)) ->  | L85: =IF(L$4=0,"",IF(Liste!L90="","",L$4/Liste!L$5*Liste!L90)) ->  | M85: =IF(M$4=0,"",IF(Liste!M90="","",M$4/Liste!M$5*Liste!M90)) ->  | N85: =IF(N$4=0,"",IF(Liste!N90="","",N$4/Liste!N$5*Liste!N90)) ->  | O85: =IF(O$4=0,"",IF(Liste!O90="","",O$4/Liste!O$5*Liste!O90)) ->  | P85: =IF(P$4=0,"",IF(Liste!P90="","",P$4/Liste!P$5*Liste!P90)) ->  | Q85: =IF(Q$4=0,"",IF(Liste!Q90="","",Q$4/Liste!Q$5*Liste!Q90)) -> 
B86: =IF(Liste!B91="","",Liste!B91) ->  | C86: =IF(Liste!C91="","",Liste!C91) ->  | D86: =IF(Liste!D91="","",Liste!D91) ->  | E86: =IF(E$4=0,"",IF(Liste!E91="","",E$4/Liste!E$5*Liste!E91)) ->  | F86: =IF(F$4=0,"",IF(Liste!F91="","",F$4/Liste!F$5*Liste!F91)) ->  | G86: =IF(G$4=0,"",IF(Liste!G91="","",G$4/Liste!G$5*Liste!G91)) ->  | H86: =IF(H$4=0,"",IF(Liste!H91="","",H$4/Liste!H$5*Liste!H91)) ->  | I86: =IF(I$4=0,"",IF(Liste!I91="","",I$4/Liste!I$5*Liste!I91)) ->  | J86: =IF(J$4=0,"",IF(Liste!J91="","",J$4/Liste!J$5*Liste!J91)) ->  | K86: =IF(K$4=0,"",IF(Liste!K91="","",K$4/Liste!K$5*Liste!K91)) ->  | L86: =IF(L$4=0,"",IF(Liste!L91="","",L$4/Liste!L$5*Liste!L91)) ->  | M86: =IF(M$4=0,"",IF(Liste!M91="","",M$4/Liste!M$5*Liste!M91)) ->  | N86: =IF(N$4=0,"",IF(Liste!N91="","",N$4/Liste!N$5*Liste!N91)) ->  | O86: =IF(O$4=0,"",IF(Liste!O91="","",O$4/Liste!O$5*Liste!O91)) ->  | P86: =IF(P$4=0,"",IF(Liste!P91="","",P$4/Liste!P$5*Liste!P91)) ->  | Q86: =IF(Q$4=0,"",IF(Liste!Q91="","",Q$4/Liste!Q$5*Liste!Q91)) -> 
B87: =IF(Liste!B92="","",Liste!B92) ->  | C87: =IF(Liste!C92="","",Liste!C92) ->  | D87: =IF(Liste!D92="","",Liste!D92) ->  | E87: =IF(E$4=0,"",IF(Liste!E92="","",E$4/Liste!E$5*Liste!E92)) ->  | F87: =IF(F$4=0,"",IF(Liste!F92="","",F$4/Liste!F$5*Liste!F92)) ->  | G87: =IF(G$4=0,"",IF(Liste!G92="","",G$4/Liste!G$5*Liste!G92)) ->  | H87: =IF(H$4=0,"",IF(Liste!H92="","",H$4/Liste!H$5*Liste!H92)) ->  | I87: =IF(I$4=0,"",IF(Liste!I92="","",I$4/Liste!I$5*Liste!I92)) ->  | J87: =IF(J$4=0,"",IF(Liste!J92="","",J$4/Liste!J$5*Liste!J92)) ->  | K87: =IF(K$4=0,"",IF(Liste!K92="","",K$4/Liste!K$5*Liste!K92)) ->  | L87: =IF(L$4=0,"",IF(Liste!L92="","",L$4/Liste!L$5*Liste!L92)) ->  | M87: =IF(M$4=0,"",IF(Liste!M92="","",M$4/Liste!M$5*Liste!M92)) ->  | N87: =IF(N$4=0,"",IF(Liste!N92="","",N$4/Liste!N$5*Liste!N92)) ->  | O87: =IF(O$4=0,"",IF(Liste!O92="","",O$4/Liste!O$5*Liste!O92)) ->  | P87: =IF(P$4=0,"",IF(Liste!P92="","",P$4/Liste!P$5*Liste!P92)) ->  | Q87: =IF(Q$4=0,"",IF(Liste!Q92="","",Q$4/Liste!Q$5*Liste!Q92)) -> 
B88: =IF(Liste!B93="","",Liste!B93) ->  | C88: =IF(Liste!C93="","",Liste!C93) ->  | D88: =IF(Liste!D93="","",Liste!D93) ->  | E88: =IF(E$4=0,"",IF(Liste!E93="","",E$4/Liste!E$5*Liste!E93)) ->  | F88: =IF(F$4=0,"",IF(Liste!F93="","",F$4/Liste!F$5*Liste!F93)) ->  | G88: =IF(G$4=0,"",IF(Liste!G93="","",G$4/Liste!G$5*Liste!G93)) ->  | H88: =IF(H$4=0,"",IF(Liste!H93="","",H$4/Liste!H$5*Liste!H93)) ->  | I88: =IF(I$4=0,"",IF(Liste!I93="","",I$4/Liste!I$5*Liste!I93)) ->  | J88: =IF(J$4=0,"",IF(Liste!J93="","",J$4/Liste!J$5*Liste!J93)) ->  | K88: =IF(K$4=0,"",IF(Liste!K93="","",K$4/Liste!K$5*Liste!K93)) ->  | L88: =IF(L$4=0,"",IF(Liste!L93="","",L$4/Liste!L$5*Liste!L93)) ->  | M88: =IF(M$4=0,"",IF(Liste!M93="","",M$4/Liste!M$5*Liste!M93)) ->  | N88: =IF(N$4=0,"",IF(Liste!N93="","",N$4/Liste!N$5*Liste!N93)) ->  | O88: =IF(O$4=0,"",IF(Liste!O93="","",O$4/Liste!O$5*Liste!O93)) ->  | P88: =IF(P$4=0,"",IF(Liste!P93="","",P$4/Liste!P$5*Liste!P93)) ->  | Q88: =IF(Q$4=0,"",IF(Liste!Q93="","",Q$4/Liste!Q$5*Liste!Q93)) -> 
B89: =IF(Liste!B94="","",Liste!B94) ->  | C89: =IF(Liste!C94="","",Liste!C94) ->  | D89: =IF(Liste!D94="","",Liste!D94) ->  | E89: =IF(E$4=0,"",IF(Liste!E94="","",E$4/Liste!E$5*Liste!E94)) ->  | F89: =IF(F$4=0,"",IF(Liste!F94="","",F$4/Liste!F$5*Liste!F94)) ->  | G89: =IF(G$4=0,"",IF(Liste!G94="","",G$4/Liste!G$5*Liste!G94)) ->  | H89: =IF(H$4=0,"",IF(Liste!H94="","",H$4/Liste!H$5*Liste!H94)) ->  | I89: =IF(I$4=0,"",IF(Liste!I94="","",I$4/Liste!I$5*Liste!I94)) ->  | J89: =IF(J$4=0,"",IF(Liste!J94="","",J$4/Liste!J$5*Liste!J94)) ->  | K89: =IF(K$4=0,"",IF(Liste!K94="","",K$4/Liste!K$5*Liste!K94)) ->  | L89: =IF(L$4=0,"",IF(Liste!L94="","",L$4/Liste!L$5*Liste!L94)) ->  | M89: =IF(M$4=0,"",IF(Liste!M94="","",M$4/Liste!M$5*Liste!M94)) ->  | N89: =IF(N$4=0,"",IF(Liste!N94="","",N$4/Liste!N$5*Liste!N94)) ->  | O89: =IF(O$4=0,"",IF(Liste!O94="","",O$4/Liste!O$5*Liste!O94)) ->  | P89: =IF(P$4=0,"",IF(Liste!P94="","",P$4/Liste!P$5*Liste!P94)) ->  | Q89: =IF(Q$4=0,"",IF(Liste!Q94="","",Q$4/Liste!Q$5*Liste!Q94)) -> 
B90: =IF(Liste!B95="","",Liste!B95) ->  | C90: =IF(Liste!C95="","",Liste!C95) ->  | D90: =IF(Liste!D95="","",Liste!D95) ->  | E90: =IF(E$4=0,"",IF(Liste!E95="","",E$4/Liste!E$5*Liste!E95)) ->  | F90: =IF(F$4=0,"",IF(Liste!F95="","",F$4/Liste!F$5*Liste!F95)) ->  | G90: =IF(G$4=0,"",IF(Liste!G95="","",G$4/Liste!G$5*Liste!G95)) ->  | H90: =IF(H$4=0,"",IF(Liste!H95="","",H$4/Liste!H$5*Liste!H95)) ->  | I90: =IF(I$4=0,"",IF(Liste!I95="","",I$4/Liste!I$5*Liste!I95)) ->  | J90: =IF(J$4=0,"",IF(Liste!J95="","",J$4/Liste!J$5*Liste!J95)) ->  | K90: =IF(K$4=0,"",IF(Liste!K95="","",K$4/Liste!K$5*Liste!K95)) ->  | L90: =IF(L$4=0,"",IF(Liste!L95="","",L$4/Liste!L$5*Liste!L95)) ->  | M90: =IF(M$4=0,"",IF(Liste!M95="","",M$4/Liste!M$5*Liste!M95)) ->  | N90: =IF(N$4=0,"",IF(Liste!N95="","",N$4/Liste!N$5*Liste!N95)) ->  | O90: =IF(O$4=0,"",IF(Liste!O95="","",O$4/Liste!O$5*Liste!O95)) ->  | P90: =IF(P$4=0,"",IF(Liste!P95="","",P$4/Liste!P$5*Liste!P95)) ->  | Q90: =IF(Q$4=0,"",IF(Liste!Q95="","",Q$4/Liste!Q$5*Liste!Q95)) -> 
B91: =IF(Liste!B96="","",Liste!B96) ->  | C91: =IF(Liste!C96="","",Liste!C96) ->  | D91: =IF(Liste!D96="","",Liste!D96) ->  | E91: =IF(E$4=0,"",IF(Liste!E96="","",E$4/Liste!E$5*Liste!E96)) ->  | F91: =IF(F$4=0,"",IF(Liste!F96="","",F$4/Liste!F$5*Liste!F96)) ->  | G91: =IF(G$4=0,"",IF(Liste!G96="","",G$4/Liste!G$5*Liste!G96)) ->  | H91: =IF(H$4=0,"",IF(Liste!H96="","",H$4/Liste!H$5*Liste!H96)) ->  | I91: =IF(I$4=0,"",IF(Liste!I96="","",I$4/Liste!I$5*Liste!I96)) ->  | J91: =IF(J$4=0,"",IF(Liste!J96="","",J$4/Liste!J$5*Liste!J96)) ->  | K91: =IF(K$4=0,"",IF(Liste!K96="","",K$4/Liste!K$5*Liste!K96)) ->  | L91: =IF(L$4=0,"",IF(Liste!L96="","",L$4/Liste!L$5*Liste!L96)) ->  | M91: =IF(M$4=0,"",IF(Liste!M96="","",M$4/Liste!M$5*Liste!M96)) ->  | N91: =IF(N$4=0,"",IF(Liste!N96="","",N$4/Liste!N$5*Liste!N96)) ->  | O91: =IF(O$4=0,"",IF(Liste!O96="","",O$4/Liste!O$5*Liste!O96)) ->  | P91: =IF(P$4=0,"",IF(Liste!P96="","",P$4/Liste!P$5*Liste!P96)) ->  | Q91: =IF(Q$4=0,"",IF(Liste!Q96="","",Q$4/Liste!Q$5*Liste!Q96)) -> 
B92: =IF(Liste!B97="","",Liste!B97) ->  | C92: =IF(Liste!C97="","",Liste!C97) ->  | D92: =IF(Liste!D97="","",Liste!D97) ->  | E92: =IF(E$4=0,"",IF(Liste!E97="","",E$4/Liste!E$5*Liste!E97)) ->  | F92: =IF(F$4=0,"",IF(Liste!F97="","",F$4/Liste!F$5*Liste!F97)) ->  | G92: =IF(G$4=0,"",IF(Liste!G97="","",G$4/Liste!G$5*Liste!G97)) ->  | H92: =IF(H$4=0,"",IF(Liste!H97="","",H$4/Liste!H$5*Liste!H97)) ->  | I92: =IF(I$4=0,"",IF(Liste!I97="","",I$4/Liste!I$5*Liste!I97)) ->  | J92: =IF(J$4=0,"",IF(Liste!J97="","",J$4/Liste!J$5*Liste!J97)) ->  | K92: =IF(K$4=0,"",IF(Liste!K97="","",K$4/Liste!K$5*Liste!K97)) ->  | L92: =IF(L$4=0,"",IF(Liste!L97="","",L$4/Liste!L$5*Liste!L97)) ->  | M92: =IF(M$4=0,"",IF(Liste!M97="","",M$4/Liste!M$5*Liste!M97)) ->  | N92: =IF(N$4=0,"",IF(Liste!N97="","",N$4/Liste!N$5*Liste!N97)) ->  | O92: =IF(O$4=0,"",IF(Liste!O97="","",O$4/Liste!O$5*Liste!O97)) ->  | P92: =IF(P$4=0,"",IF(Liste!P97="","",P$4/Liste!P$5*Liste!P97)) ->  | Q92: =IF(Q$4=0,"",IF(Liste!Q97="","",Q$4/Liste!Q$5*Liste!Q97)) -> 
B93: =IF(Liste!B98="","",Liste!B98) ->  | C93: =IF(Liste!C98="","",Liste!C98) ->  | D93: =IF(Liste!D98="","",Liste!D98) ->  | E93: =IF(E$4=0,"",IF(Liste!E98="","",E$4/Liste!E$5*Liste!E98)) ->  | F93: =IF(F$4=0,"",IF(Liste!F98="","",F$4/Liste!F$5*Liste!F98)) ->  | G93: =IF(G$4=0,"",IF(Liste!G98="","",G$4/Liste!G$5*Liste!G98)) ->  | H93: =IF(H$4=0,"",IF(Liste!H98="","",H$4/Liste!H$5*Liste!H98)) ->  | I93: =IF(I$4=0,"",IF(Liste!I98="","",I$4/Liste!I$5*Liste!I98)) ->  | J93: =IF(J$4=0,"",IF(Liste!J98="","",J$4/Liste!J$5*Liste!J98)) ->  | K93: =IF(K$4=0,"",IF(Liste!K98="","",K$4/Liste!K$5*Liste!K98)) ->  | L93: =IF(L$4=0,"",IF(Liste!L98="","",L$4/Liste!L$5*Liste!L98)) ->  | M93: =IF(M$4=0,"",IF(Liste!M98="","",M$4/Liste!M$5*Liste!M98)) ->  | N93: =IF(N$4=0,"",IF(Liste!N98="","",N$4/Liste!N$5*Liste!N98)) ->  | O93: =IF(O$4=0,"",IF(Liste!O98="","",O$4/Liste!O$5*Liste!O98)) ->  | P93: =IF(P$4=0,"",IF(Liste!P98="","",P$4/Liste!P$5*Liste!P98)) ->  | Q93: =IF(Q$4=0,"",IF(Liste!Q98="","",Q$4/Liste!Q$5*Liste!Q98)) -> 
B94: =IF(Liste!B99="","",Liste!B99) ->  | C94: =IF(Liste!C99="","",Liste!C99) ->  | D94: =IF(Liste!D99="","",Liste!D99) ->  | E94: =IF(E$4=0,"",IF(Liste!E99="","",E$4/Liste!E$5*Liste!E99)) ->  | F94: =IF(F$4=0,"",IF(Liste!F99="","",F$4/Liste!F$5*Liste!F99)) ->  | G94: =IF(G$4=0,"",IF(Liste!G99="","",G$4/Liste!G$5*Liste!G99)) ->  | H94: =IF(H$4=0,"",IF(Liste!H99="","",H$4/Liste!H$5*Liste!H99)) ->  | I94: =IF(I$4=0,"",IF(Liste!I99="","",I$4/Liste!I$5*Liste!I99)) ->  | J94: =IF(J$4=0,"",IF(Liste!J99="","",J$4/Liste!J$5*Liste!J99)) ->  | K94: =IF(K$4=0,"",IF(Liste!K99="","",K$4/Liste!K$5*Liste!K99)) ->  | L94: =IF(L$4=0,"",IF(Liste!L99="","",L$4/Liste!L$5*Liste!L99)) ->  | M94: =IF(M$4=0,"",IF(Liste!M99="","",M$4/Liste!M$5*Liste!M99)) ->  | N94: =IF(N$4=0,"",IF(Liste!N99="","",N$4/Liste!N$5*Liste!N99)) ->  | O94: =IF(O$4=0,"",IF(Liste!O99="","",O$4/Liste!O$5*Liste!O99)) ->  | P94: =IF(P$4=0,"",IF(Liste!P99="","",P$4/Liste!P$5*Liste!P99)) ->  | Q94: =IF(Q$4=0,"",IF(Liste!Q99="","",Q$4/Liste!Q$5*Liste!Q99)) -> 
B95: =IF(Liste!B100="","",Liste!B100) ->  | C95: =IF(Liste!C100="","",Liste!C100) ->  | D95: =IF(Liste!D100="","",Liste!D100) ->  | E95: =IF(E$4=0,"",IF(Liste!E100="","",E$4/Liste!E$5*Liste!E100)) ->  | F95: =IF(F$4=0,"",IF(Liste!F100="","",F$4/Liste!F$5*Liste!F100)) ->  | G95: =IF(G$4=0,"",IF(Liste!G100="","",G$4/Liste!G$5*Liste!G100)) ->  | H95: =IF(H$4=0,"",IF(Liste!H100="","",H$4/Liste!H$5*Liste!H100)) ->  | I95: =IF(I$4=0,"",IF(Liste!I100="","",I$4/Liste!I$5*Liste!I100)) ->  | J95: =IF(J$4=0,"",IF(Liste!J100="","",J$4/Liste!J$5*Liste!J100)) ->  | K95: =IF(K$4=0,"",IF(Liste!K100="","",K$4/Liste!K$5*Liste!K100)) ->  | L95: =IF(L$4=0,"",IF(Liste!L100="","",L$4/Liste!L$5*Liste!L100)) ->  | M95: =IF(M$4=0,"",IF(Liste!M100="","",M$4/Liste!M$5*Liste!M100)) ->  | N95: =IF(N$4=0,"",IF(Liste!N100="","",N$4/Liste!N$5*Liste!N100)) ->  | O95: =IF(O$4=0,"",IF(Liste!O100="","",O$4/Liste!O$5*Liste!O100)) ->  | P95: =IF(P$4=0,"",IF(Liste!P100="","",P$4/Liste!P$5*Liste!P100)) ->  | Q95: =IF(Q$4=0,"",IF(Liste!Q100="","",Q$4/Liste!Q$5*Liste!Q100)) -> 
B96: =IF(Liste!B101="","",Liste!B101) ->  | C96: =IF(Liste!C101="","",Liste!C101) ->  | D96: =IF(Liste!D101="","",Liste!D101) ->  | E96: =IF(E$4=0,"",IF(Liste!E101="","",E$4/Liste!E$5*Liste!E101)) ->  | F96: =IF(F$4=0,"",IF(Liste!F101="","",F$4/Liste!F$5*Liste!F101)) ->  | G96: =IF(G$4=0,"",IF(Liste!G101="","",G$4/Liste!G$5*Liste!G101)) ->  | H96: =IF(H$4=0,"",IF(Liste!H101="","",H$4/Liste!H$5*Liste!H101)) ->  | I96: =IF(I$4=0,"",IF(Liste!I101="","",I$4/Liste!I$5*Liste!I101)) ->  | J96: =IF(J$4=0,"",IF(Liste!J101="","",J$4/Liste!J$5*Liste!J101)) ->  | K96: =IF(K$4=0,"",IF(Liste!K101="","",K$4/Liste!K$5*Liste!K101)) ->  | L96: =IF(L$4=0,"",IF(Liste!L101="","",L$4/Liste!L$5*Liste!L101)) ->  | M96: =IF(M$4=0,"",IF(Liste!M101="","",M$4/Liste!M$5*Liste!M101)) ->  | N96: =IF(N$4=0,"",IF(Liste!N101="","",N$4/Liste!N$5*Liste!N101)) ->  | O96: =IF(O$4=0,"",IF(Liste!O101="","",O$4/Liste!O$5*Liste!O101)) ->  | P96: =IF(P$4=0,"",IF(Liste!P101="","",P$4/Liste!P$5*Liste!P101)) ->  | Q96: =IF(Q$4=0,"",IF(Liste!Q101="","",Q$4/Liste!Q$5*Liste!Q101)) -> 
B97: =IF(Liste!B102="","",Liste!B102) ->  | C97: =IF(Liste!C102="","",Liste!C102) ->  | D97: =IF(Liste!D102="","",Liste!D102) ->  | E97: =IF(E$4=0,"",IF(Liste!E102="","",E$4/Liste!E$5*Liste!E102)) ->  | F97: =IF(F$4=0,"",IF(Liste!F102="","",F$4/Liste!F$5*Liste!F102)) ->  | G97: =IF(G$4=0,"",IF(Liste!G102="","",G$4/Liste!G$5*Liste!G102)) ->  | H97: =IF(H$4=0,"",IF(Liste!H102="","",H$4/Liste!H$5*Liste!H102)) ->  | I97: =IF(I$4=0,"",IF(Liste!I102="","",I$4/Liste!I$5*Liste!I102)) ->  | J97: =IF(J$4=0,"",IF(Liste!J102="","",J$4/Liste!J$5*Liste!J102)) ->  | K97: =IF(K$4=0,"",IF(Liste!K102="","",K$4/Liste!K$5*Liste!K102)) ->  | L97: =IF(L$4=0,"",IF(Liste!L102="","",L$4/Liste!L$5*Liste!L102)) ->  | M97: =IF(M$4=0,"",IF(Liste!M102="","",M$4/Liste!M$5*Liste!M102)) ->  | N97: =IF(N$4=0,"",IF(Liste!N102="","",N$4/Liste!N$5*Liste!N102)) ->  | O97: =IF(O$4=0,"",IF(Liste!O102="","",O$4/Liste!O$5*Liste!O102)) ->  | P97: =IF(P$4=0,"",IF(Liste!P102="","",P$4/Liste!P$5*Liste!P102)) ->  | Q97: =IF(Q$4=0,"",IF(Liste!Q102="","",Q$4/Liste!Q$5*Liste!Q102)) -> 
B98: =IF(Liste!B103="","",Liste!B103) ->  | C98: =IF(Liste!C103="","",Liste!C103) ->  | D98: =IF(Liste!D103="","",Liste!D103) ->  | E98: =IF(E$4=0,"",IF(Liste!E103="","",E$4/Liste!E$5*Liste!E103)) ->  | F98: =IF(F$4=0,"",IF(Liste!F103="","",F$4/Liste!F$5*Liste!F103)) ->  | G98: =IF(G$4=0,"",IF(Liste!G103="","",G$4/Liste!G$5*Liste!G103)) ->  | H98: =IF(H$4=0,"",IF(Liste!H103="","",H$4/Liste!H$5*Liste!H103)) ->  | I98: =IF(I$4=0,"",IF(Liste!I103="","",I$4/Liste!I$5*Liste!I103)) ->  | J98: =IF(J$4=0,"",IF(Liste!J103="","",J$4/Liste!J$5*Liste!J103)) ->  | K98: =IF(K$4=0,"",IF(Liste!K103="","",K$4/Liste!K$5*Liste!K103)) ->  | L98: =IF(L$4=0,"",IF(Liste!L103="","",L$4/Liste!L$5*Liste!L103)) ->  | M98: =IF(M$4=0,"",IF(Liste!M103="","",M$4/Liste!M$5*Liste!M103)) ->  | N98: =IF(N$4=0,"",IF(Liste!N103="","",N$4/Liste!N$5*Liste!N103)) ->  | O98: =IF(O$4=0,"",IF(Liste!O103="","",O$4/Liste!O$5*Liste!O103)) ->  | P98: =IF(P$4=0,"",IF(Liste!P103="","",P$4/Liste!P$5*Liste!P103)) ->  | Q98: =IF(Q$4=0,"",IF(Liste!Q103="","",Q$4/Liste!Q$5*Liste!Q103)) -> 
B99: =IF(Liste!B104="","",Liste!B104) ->  | C99: =IF(Liste!C104="","",Liste!C104) ->  | D99: =IF(Liste!D104="","",Liste!D104) ->  | E99: =IF(E$4=0,"",IF(Liste!E104="","",E$4/Liste!E$5*Liste!E104)) ->  | F99: =IF(F$4=0,"",IF(Liste!F104="","",F$4/Liste!F$5*Liste!F104)) ->  | G99: =IF(G$4=0,"",IF(Liste!G104="","",G$4/Liste!G$5*Liste!G104)) ->  | H99: =IF(H$4=0,"",IF(Liste!H104="","",H$4/Liste!H$5*Liste!H104)) ->  | I99: =IF(I$4=0,"",IF(Liste!I104="","",I$4/Liste!I$5*Liste!I104)) ->  | J99: =IF(J$4=0,"",IF(Liste!J104="","",J$4/Liste!J$5*Liste!J104)) ->  | K99: =IF(K$4=0,"",IF(Liste!K104="","",K$4/Liste!K$5*Liste!K104)) ->  | L99: =IF(L$4=0,"",IF(Liste!L104="","",L$4/Liste!L$5*Liste!L104)) ->  | M99: =IF(M$4=0,"",IF(Liste!M104="","",M$4/Liste!M$5*Liste!M104)) ->  | N99: =IF(N$4=0,"",IF(Liste!N104="","",N$4/Liste!N$5*Liste!N104)) ->  | O99: =IF(O$4=0,"",IF(Liste!O104="","",O$4/Liste!O$5*Liste!O104)) ->  | P99: =IF(P$4=0,"",IF(Liste!P104="","",P$4/Liste!P$5*Liste!P104)) ->  | Q99: =IF(Q$4=0,"",IF(Liste!Q104="","",Q$4/Liste!Q$5*Liste!Q104)) -> 
B100: =IF(Liste!B105="","",Liste!B105) ->  | C100: =IF(Liste!C105="","",Liste!C105) ->  | D100: =IF(Liste!D105="","",Liste!D105) ->  | E100: =IF(E$4=0,"",IF(Liste!E105="","",E$4/Liste!E$5*Liste!E105)) ->  | F100: =IF(F$4=0,"",IF(Liste!F105="","",F$4/Liste!F$5*Liste!F105)) ->  | G100: =IF(G$4=0,"",IF(Liste!G105="","",G$4/Liste!G$5*Liste!G105)) ->  | H100: =IF(H$4=0,"",IF(Liste!H105="","",H$4/Liste!H$5*Liste!H105)) ->  | I100: =IF(I$4=0,"",IF(Liste!I105="","",I$4/Liste!I$5*Liste!I105)) ->  | J100: =IF(J$4=0,"",IF(Liste!J105="","",J$4/Liste!J$5*Liste!J105)) ->  | K100: =IF(K$4=0,"",IF(Liste!K105="","",K$4/Liste!K$5*Liste!K105)) ->  | L100: =IF(L$4=0,"",IF(Liste!L105="","",L$4/Liste!L$5*Liste!L105)) ->  | M100: =IF(M$4=0,"",IF(Liste!M105="","",M$4/Liste!M$5*Liste!M105)) ->  | N100: =IF(N$4=0,"",IF(Liste!N105="","",N$4/Liste!N$5*Liste!N105)) ->  | O100: =IF(O$4=0,"",IF(Liste!O105="","",O$4/Liste!O$5*Liste!O105)) ->  | P100: =IF(P$4=0,"",IF(Liste!P105="","",P$4/Liste!P$5*Liste!P105)) ->  | Q100: =IF(Q$4=0,"",IF(Liste!Q105="","",Q$4/Liste!Q$5*Liste!Q105)) -> 
B101: =IF(Liste!B106="","",Liste!B106) ->  | C101: =IF(Liste!C106="","",Liste!C106) ->  | D101: =IF(Liste!D106="","",Liste!D106) ->  | E101: =IF(E$4=0,"",IF(Liste!E106="","",E$4/Liste!E$5*Liste!E106)) ->  | F101: =IF(F$4=0,"",IF(Liste!F106="","",F$4/Liste!F$5*Liste!F106)) ->  | G101: =IF(G$4=0,"",IF(Liste!G106="","",G$4/Liste!G$5*Liste!G106)) ->  | H101: =IF(H$4=0,"",IF(Liste!H106="","",H$4/Liste!H$5*Liste!H106)) ->  | I101: =IF(I$4=0,"",IF(Liste!I106="","",I$4/Liste!I$5*Liste!I106)) ->  | J101: =IF(J$4=0,"",IF(Liste!J106="","",J$4/Liste!J$5*Liste!J106)) ->  | K101: =IF(K$4=0,"",IF(Liste!K106="","",K$4/Liste!K$5*Liste!K106)) ->  | L101: =IF(L$4=0,"",IF(Liste!L106="","",L$4/Liste!L$5*Liste!L106)) ->  | M101: =IF(M$4=0,"",IF(Liste!M106="","",M$4/Liste!M$5*Liste!M106)) ->  | N101: =IF(N$4=0,"",IF(Liste!N106="","",N$4/Liste!N$5*Liste!N106)) ->  | O101: =IF(O$4=0,"",IF(Liste!O106="","",O$4/Liste!O$5*Liste!O106)) ->  | P101: =IF(P$4=0,"",IF(Liste!P106="","",P$4/Liste!P$5*Liste!P106)) ->  | Q101: =IF(Q$4=0,"",IF(Liste!Q106="","",Q$4/Liste!Q$5*Liste!Q106)) -> 
B102: =IF(Liste!B107="","",Liste!B107) ->  | C102: =IF(Liste!C107="","",Liste!C107) ->  | D102: =IF(Liste!D107="","",Liste!D107) ->  | E102: =IF(E$4=0,"",IF(Liste!E107="","",E$4/Liste!E$5*Liste!E107)) ->  | F102: =IF(F$4=0,"",IF(Liste!F107="","",F$4/Liste!F$5*Liste!F107)) ->  | G102: =IF(G$4=0,"",IF(Liste!G107="","",G$4/Liste!G$5*Liste!G107)) ->  | H102: =IF(H$4=0,"",IF(Liste!H107="","",H$4/Liste!H$5*Liste!H107)) ->  | I102: =IF(I$4=0,"",IF(Liste!I107="","",I$4/Liste!I$5*Liste!I107)) ->  | J102: =IF(J$4=0,"",IF(Liste!J107="","",J$4/Liste!J$5*Liste!J107)) ->  | K102: =IF(K$4=0,"",IF(Liste!K107="","",K$4/Liste!K$5*Liste!K107)) ->  | L102: =IF(L$4=0,"",IF(Liste!L107="","",L$4/Liste!L$5*Liste!L107)) ->  | M102: =IF(M$4=0,"",IF(Liste!M107="","",M$4/Liste!M$5*Liste!M107)) ->  | N102: =IF(N$4=0,"",IF(Liste!N107="","",N$4/Liste!N$5*Liste!N107)) ->  | O102: =IF(O$4=0,"",IF(Liste!O107="","",O$4/Liste!O$5*Liste!O107)) ->  | P102: =IF(P$4=0,"",IF(Liste!P107="","",P$4/Liste!P$5*Liste!P107)) ->  | Q102: =IF(Q$4=0,"",IF(Liste!Q107="","",Q$4/Liste!Q$5*Liste!Q107)) -> 
B103: =IF(Liste!B108="","",Liste!B108) ->  | C103: =IF(Liste!C108="","",Liste!C108) ->  | D103: =IF(Liste!D108="","",Liste!D108) ->  | E103: =IF(E$4=0,"",IF(Liste!E108="","",E$4/Liste!E$5*Liste!E108)) ->  | F103: =IF(F$4=0,"",IF(Liste!F108="","",F$4/Liste!F$5*Liste!F108)) ->  | G103: =IF(G$4=0,"",IF(Liste!G108="","",G$4/Liste!G$5*Liste!G108)) ->  | H103: =IF(H$4=0,"",IF(Liste!H108="","",H$4/Liste!H$5*Liste!H108)) ->  | I103: =IF(I$4=0,"",IF(Liste!I108="","",I$4/Liste!I$5*Liste!I108)) ->  | J103: =IF(J$4=0,"",IF(Liste!J108="","",J$4/Liste!J$5*Liste!J108)) ->  | K103: =IF(K$4=0,"",IF(Liste!K108="","",K$4/Liste!K$5*Liste!K108)) ->  | L103: =IF(L$4=0,"",IF(Liste!L108="","",L$4/Liste!L$5*Liste!L108)) ->  | M103: =IF(M$4=0,"",IF(Liste!M108="","",M$4/Liste!M$5*Liste!M108)) ->  | N103: =IF(N$4=0,"",IF(Liste!N108="","",N$4/Liste!N$5*Liste!N108)) ->  | O103: =IF(O$4=0,"",IF(Liste!O108="","",O$4/Liste!O$5*Liste!O108)) ->  | P103: =IF(P$4=0,"",IF(Liste!P108="","",P$4/Liste!P$5*Liste!P108)) ->  | Q103: =IF(Q$4=0,"",IF(Liste!Q108="","",Q$4/Liste!Q$5*Liste!Q108)) -> 
B104: =IF(Liste!B109="","",Liste!B109) ->  | C104: =IF(Liste!C109="","",Liste!C109) ->  | D104: =IF(Liste!D109="","",Liste!D109) ->  | E104: =IF(E$4=0,"",IF(Liste!E109="","",E$4/Liste!E$5*Liste!E109)) ->  | F104: =IF(F$4=0,"",IF(Liste!F109="","",F$4/Liste!F$5*Liste!F109)) ->  | G104: =IF(G$4=0,"",IF(Liste!G109="","",G$4/Liste!G$5*Liste!G109)) ->  | H104: =IF(H$4=0,"",IF(Liste!H109="","",H$4/Liste!H$5*Liste!H109)) ->  | I104: =IF(I$4=0,"",IF(Liste!I109="","",I$4/Liste!I$5*Liste!I109)) ->  | J104: =IF(J$4=0,"",IF(Liste!J109="","",J$4/Liste!J$5*Liste!J109)) ->  | K104: =IF(K$4=0,"",IF(Liste!K109="","",K$4/Liste!K$5*Liste!K109)) ->  | L104: =IF(L$4=0,"",IF(Liste!L109="","",L$4/Liste!L$5*Liste!L109)) ->  | M104: =IF(M$4=0,"",IF(Liste!M109="","",M$4/Liste!M$5*Liste!M109)) ->  | N104: =IF(N$4=0,"",IF(Liste!N109="","",N$4/Liste!N$5*Liste!N109)) ->  | O104: =IF(O$4=0,"",IF(Liste!O109="","",O$4/Liste!O$5*Liste!O109)) ->  | P104: =IF(P$4=0,"",IF(Liste!P109="","",P$4/Liste!P$5*Liste!P109)) ->  | Q104: =IF(Q$4=0,"",IF(Liste!Q109="","",Q$4/Liste!Q$5*Liste!Q109)) -> 
B105: =IF(Liste!B110="","",Liste!B110) ->  | C105: =IF(Liste!C110="","",Liste!C110) ->  | D105: =IF(Liste!D110="","",Liste!D110) ->  | E105: =IF(E$4=0,"",IF(Liste!E110="","",E$4/Liste!E$5*Liste!E110)) ->  | F105: =IF(F$4=0,"",IF(Liste!F110="","",F$4/Liste!F$5*Liste!F110)) ->  | G105: =IF(G$4=0,"",IF(Liste!G110="","",G$4/Liste!G$5*Liste!G110)) ->  | H105: =IF(H$4=0,"",IF(Liste!H110="","",H$4/Liste!H$5*Liste!H110)) ->  | I105: =IF(I$4=0,"",IF(Liste!I110="","",I$4/Liste!I$5*Liste!I110)) ->  | J105: =IF(J$4=0,"",IF(Liste!J110="","",J$4/Liste!J$5*Liste!J110)) ->  | K105: =IF(K$4=0,"",IF(Liste!K110="","",K$4/Liste!K$5*Liste!K110)) ->  | L105: =IF(L$4=0,"",IF(Liste!L110="","",L$4/Liste!L$5*Liste!L110)) ->  | M105: =IF(M$4=0,"",IF(Liste!M110="","",M$4/Liste!M$5*Liste!M110)) ->  | N105: =IF(N$4=0,"",IF(Liste!N110="","",N$4/Liste!N$5*Liste!N110)) ->  | O105: =IF(O$4=0,"",IF(Liste!O110="","",O$4/Liste!O$5*Liste!O110)) ->  | P105: =IF(P$4=0,"",IF(Liste!P110="","",P$4/Liste!P$5*Liste!P110)) ->  | Q105: =IF(Q$4=0,"",IF(Liste!Q110="","",Q$4/Liste!Q$5*Liste!Q110)) -> 
B106: =IF(Liste!B111="","",Liste!B111) ->  | C106: =IF(Liste!C111="","",Liste!C111) ->  | D106: =IF(Liste!D111="","",Liste!D111) ->  | E106: =IF(E$4=0,"",IF(Liste!E111="","",E$4/Liste!E$5*Liste!E111)) ->  | F106: =IF(F$4=0,"",IF(Liste!F111="","",F$4/Liste!F$5*Liste!F111)) ->  | G106: =IF(G$4=0,"",IF(Liste!G111="","",G$4/Liste!G$5*Liste!G111)) ->  | H106: =IF(H$4=0,"",IF(Liste!H111="","",H$4/Liste!H$5*Liste!H111)) ->  | I106: =IF(I$4=0,"",IF(Liste!I111="","",I$4/Liste!I$5*Liste!I111)) ->  | J106: =IF(J$4=0,"",IF(Liste!J111="","",J$4/Liste!J$5*Liste!J111)) ->  | K106: =IF(K$4=0,"",IF(Liste!K111="","",K$4/Liste!K$5*Liste!K111)) ->  | L106: =IF(L$4=0,"",IF(Liste!L111="","",L$4/Liste!L$5*Liste!L111)) ->  | M106: =IF(M$4=0,"",IF(Liste!M111="","",M$4/Liste!M$5*Liste!M111)) ->  | N106: =IF(N$4=0,"",IF(Liste!N111="","",N$4/Liste!N$5*Liste!N111)) ->  | O106: =IF(O$4=0,"",IF(Liste!O111="","",O$4/Liste!O$5*Liste!O111)) ->  | P106: =IF(P$4=0,"",IF(Liste!P111="","",P$4/Liste!P$5*Liste!P111)) ->  | Q106: =IF(Q$4=0,"",IF(Liste!Q111="","",Q$4/Liste!Q$5*Liste!Q111)) -> 
B107: =IF(Liste!B112="","",Liste!B112) ->  | C107: =IF(Liste!C112="","",Liste!C112) ->  | D107: =IF(Liste!D112="","",Liste!D112) ->  | E107: =IF(E$4=0,"",IF(Liste!E112="","",E$4/Liste!E$5*Liste!E112)) ->  | F107: =IF(F$4=0,"",IF(Liste!F112="","",F$4/Liste!F$5*Liste!F112)) ->  | G107: =IF(G$4=0,"",IF(Liste!G112="","",G$4/Liste!G$5*Liste!G112)) ->  | H107: =IF(H$4=0,"",IF(Liste!H112="","",H$4/Liste!H$5*Liste!H112)) ->  | I107: =IF(I$4=0,"",IF(Liste!I112="","",I$4/Liste!I$5*Liste!I112)) ->  | J107: =IF(J$4=0,"",IF(Liste!J112="","",J$4/Liste!J$5*Liste!J112)) ->  | K107: =IF(K$4=0,"",IF(Liste!K112="","",K$4/Liste!K$5*Liste!K112)) ->  | L107: =IF(L$4=0,"",IF(Liste!L112="","",L$4/Liste!L$5*Liste!L112)) ->  | M107: =IF(M$4=0,"",IF(Liste!M112="","",M$4/Liste!M$5*Liste!M112)) ->  | N107: =IF(N$4=0,"",IF(Liste!N112="","",N$4/Liste!N$5*Liste!N112)) ->  | O107: =IF(O$4=0,"",IF(Liste!O112="","",O$4/Liste!O$5*Liste!O112)) ->  | P107: =IF(P$4=0,"",IF(Liste!P112="","",P$4/Liste!P$5*Liste!P112)) ->  | Q107: =IF(Q$4=0,"",IF(Liste!Q112="","",Q$4/Liste!Q$5*Liste!Q112)) -> 
B108: =IF(Liste!B113="","",Liste!B113) ->  | C108: =IF(Liste!C113="","",Liste!C113) ->  | D108: =IF(Liste!D113="","",Liste!D113) ->  | E108: =IF(E$4=0,"",IF(Liste!E113="","",E$4/Liste!E$5*Liste!E113)) ->  | F108: =IF(F$4=0,"",IF(Liste!F113="","",F$4/Liste!F$5*Liste!F113)) ->  | G108: =IF(G$4=0,"",IF(Liste!G113="","",G$4/Liste!G$5*Liste!G113)) ->  | H108: =IF(H$4=0,"",IF(Liste!H113="","",H$4/Liste!H$5*Liste!H113)) ->  | I108: =IF(I$4=0,"",IF(Liste!I113="","",I$4/Liste!I$5*Liste!I113)) ->  | J108: =IF(J$4=0,"",IF(Liste!J113="","",J$4/Liste!J$5*Liste!J113)) ->  | K108: =IF(K$4=0,"",IF(Liste!K113="","",K$4/Liste!K$5*Liste!K113)) ->  | L108: =IF(L$4=0,"",IF(Liste!L113="","",L$4/Liste!L$5*Liste!L113)) ->  | M108: =IF(M$4=0,"",IF(Liste!M113="","",M$4/Liste!M$5*Liste!M113)) ->  | N108: =IF(N$4=0,"",IF(Liste!N113="","",N$4/Liste!N$5*Liste!N113)) ->  | O108: =IF(O$4=0,"",IF(Liste!O113="","",O$4/Liste!O$5*Liste!O113)) ->  | P108: =IF(P$4=0,"",IF(Liste!P113="","",P$4/Liste!P$5*Liste!P113)) ->  | Q108: =IF(Q$4=0,"",IF(Liste!Q113="","",Q$4/Liste!Q$5*Liste!Q113)) -> 
B109: =IF(Liste!B114="","",Liste!B114) ->  | C109: =IF(Liste!C114="","",Liste!C114) ->  | D109: =IF(Liste!D114="","",Liste!D114) ->  | E109: =IF(E$4=0,"",IF(Liste!E114="","",E$4/Liste!E$5*Liste!E114)) ->  | F109: =IF(F$4=0,"",IF(Liste!F114="","",F$4/Liste!F$5*Liste!F114)) ->  | G109: =IF(G$4=0,"",IF(Liste!G114="","",G$4/Liste!G$5*Liste!G114)) ->  | H109: =IF(H$4=0,"",IF(Liste!H114="","",H$4/Liste!H$5*Liste!H114)) ->  | I109: =IF(I$4=0,"",IF(Liste!I114="","",I$4/Liste!I$5*Liste!I114)) ->  | J109: =IF(J$4=0,"",IF(Liste!J114="","",J$4/Liste!J$5*Liste!J114)) ->  | K109: =IF(K$4=0,"",IF(Liste!K114="","",K$4/Liste!K$5*Liste!K114)) ->  | L109: =IF(L$4=0,"",IF(Liste!L114="","",L$4/Liste!L$5*Liste!L114)) ->  | M109: =IF(M$4=0,"",IF(Liste!M114="","",M$4/Liste!M$5*Liste!M114)) ->  | N109: =IF(N$4=0,"",IF(Liste!N114="","",N$4/Liste!N$5*Liste!N114)) ->  | O109: =IF(O$4=0,"",IF(Liste!O114="","",O$4/Liste!O$5*Liste!O114)) ->  | P109: =IF(P$4=0,"",IF(Liste!P114="","",P$4/Liste!P$5*Liste!P114)) ->  | Q109: =IF(Q$4=0,"",IF(Liste!Q114="","",Q$4/Liste!Q$5*Liste!Q114)) -> 
B110: =IF(Liste!B115="","",Liste!B115) ->  | C110: =IF(Liste!C115="","",Liste!C115) ->  | D110: =IF(Liste!D115="","",Liste!D115) ->  | E110: =IF(E$4=0,"",IF(Liste!E115="","",E$4/Liste!E$5*Liste!E115)) ->  | F110: =IF(F$4=0,"",IF(Liste!F115="","",F$4/Liste!F$5*Liste!F115)) ->  | G110: =IF(G$4=0,"",IF(Liste!G115="","",G$4/Liste!G$5*Liste!G115)) ->  | H110: =IF(H$4=0,"",IF(Liste!H115="","",H$4/Liste!H$5*Liste!H115)) ->  | I110: =IF(I$4=0,"",IF(Liste!I115="","",I$4/Liste!I$5*Liste!I115)) ->  | J110: =IF(J$4=0,"",IF(Liste!J115="","",J$4/Liste!J$5*Liste!J115)) ->  | K110: =IF(K$4=0,"",IF(Liste!K115="","",K$4/Liste!K$5*Liste!K115)) ->  | L110: =IF(L$4=0,"",IF(Liste!L115="","",L$4/Liste!L$5*Liste!L115)) ->  | M110: =IF(M$4=0,"",IF(Liste!M115="","",M$4/Liste!M$5*Liste!M115)) ->  | N110: =IF(N$4=0,"",IF(Liste!N115="","",N$4/Liste!N$5*Liste!N115)) ->  | O110: =IF(O$4=0,"",IF(Liste!O115="","",O$4/Liste!O$5*Liste!O115)) ->  | P110: =IF(P$4=0,"",IF(Liste!P115="","",P$4/Liste!P$5*Liste!P115)) ->  | Q110: =IF(Q$4=0,"",IF(Liste!Q115="","",Q$4/Liste!Q$5*Liste!Q115)) -> 
B111: =IF(Liste!B116="","",Liste!B116) ->  | C111: =IF(Liste!C116="","",Liste!C116) ->  | D111: =IF(Liste!D116="","",Liste!D116) ->  | E111: =IF(E$4=0,"",IF(Liste!E116="","",E$4/Liste!E$5*Liste!E116)) ->  | F111: =IF(F$4=0,"",IF(Liste!F116="","",F$4/Liste!F$5*Liste!F116)) ->  | G111: =IF(G$4=0,"",IF(Liste!G116="","",G$4/Liste!G$5*Liste!G116)) ->  | H111: =IF(H$4=0,"",IF(Liste!H116="","",H$4/Liste!H$5*Liste!H116)) ->  | I111: =IF(I$4=0,"",IF(Liste!I116="","",I$4/Liste!I$5*Liste!I116)) ->  | J111: =IF(J$4=0,"",IF(Liste!J116="","",J$4/Liste!J$5*Liste!J116)) ->  | K111: =IF(K$4=0,"",IF(Liste!K116="","",K$4/Liste!K$5*Liste!K116)) ->  | L111: =IF(L$4=0,"",IF(Liste!L116="","",L$4/Liste!L$5*Liste!L116)) ->  | M111: =IF(M$4=0,"",IF(Liste!M116="","",M$4/Liste!M$5*Liste!M116)) ->  | N111: =IF(N$4=0,"",IF(Liste!N116="","",N$4/Liste!N$5*Liste!N116)) ->  | O111: =IF(O$4=0,"",IF(Liste!O116="","",O$4/Liste!O$5*Liste!O116)) ->  | P111: =IF(P$4=0,"",IF(Liste!P116="","",P$4/Liste!P$5*Liste!P116)) ->  | Q111: =IF(Q$4=0,"",IF(Liste!Q116="","",Q$4/Liste!Q$5*Liste!Q116)) -> 
B112: =IF(Liste!B117="","",Liste!B117) ->  | C112: =IF(Liste!C117="","",Liste!C117) ->  | D112: =IF(Liste!D117="","",Liste!D117) ->  | E112: =IF(E$4=0,"",IF(Liste!E117="","",E$4/Liste!E$5*Liste!E117)) ->  | F112: =IF(F$4=0,"",IF(Liste!F117="","",F$4/Liste!F$5*Liste!F117)) ->  | G112: =IF(G$4=0,"",IF(Liste!G117="","",G$4/Liste!G$5*Liste!G117)) ->  | H112: =IF(H$4=0,"",IF(Liste!H117="","",H$4/Liste!H$5*Liste!H117)) ->  | I112: =IF(I$4=0,"",IF(Liste!I117="","",I$4/Liste!I$5*Liste!I117)) ->  | J112: =IF(J$4=0,"",IF(Liste!J117="","",J$4/Liste!J$5*Liste!J117)) ->  | K112: =IF(K$4=0,"",IF(Liste!K117="","",K$4/Liste!K$5*Liste!K117)) ->  | L112: =IF(L$4=0,"",IF(Liste!L117="","",L$4/Liste!L$5*Liste!L117)) ->  | M112: =IF(M$4=0,"",IF(Liste!M117="","",M$4/Liste!M$5*Liste!M117)) ->  | N112: =IF(N$4=0,"",IF(Liste!N117="","",N$4/Liste!N$5*Liste!N117)) ->  | O112: =IF(O$4=0,"",IF(Liste!O117="","",O$4/Liste!O$5*Liste!O117)) ->  | P112: =IF(P$4=0,"",IF(Liste!P117="","",P$4/Liste!P$5*Liste!P117)) ->  | Q112: =IF(Q$4=0,"",IF(Liste!Q117="","",Q$4/Liste!Q$5*Liste!Q117)) -> 
B113: =IF(Liste!B118="","",Liste!B118) ->  | C113: =IF(Liste!C118="","",Liste!C118) ->  | D113: =IF(Liste!D118="","",Liste!D118) ->  | E113: =IF(E$4=0,"",IF(Liste!E118="","",E$4/Liste!E$5*Liste!E118)) ->  | F113: =IF(F$4=0,"",IF(Liste!F118="","",F$4/Liste!F$5*Liste!F118)) ->  | G113: =IF(G$4=0,"",IF(Liste!G118="","",G$4/Liste!G$5*Liste!G118)) ->  | H113: =IF(H$4=0,"",IF(Liste!H118="","",H$4/Liste!H$5*Liste!H118)) ->  | I113: =IF(I$4=0,"",IF(Liste!I118="","",I$4/Liste!I$5*Liste!I118)) ->  | J113: =IF(J$4=0,"",IF(Liste!J118="","",J$4/Liste!J$5*Liste!J118)) ->  | K113: =IF(K$4=0,"",IF(Liste!K118="","",K$4/Liste!K$5*Liste!K118)) ->  | L113: =IF(L$4=0,"",IF(Liste!L118="","",L$4/Liste!L$5*Liste!L118)) ->  | M113: =IF(M$4=0,"",IF(Liste!M118="","",M$4/Liste!M$5*Liste!M118)) ->  | N113: =IF(N$4=0,"",IF(Liste!N118="","",N$4/Liste!N$5*Liste!N118)) ->  | O113: =IF(O$4=0,"",IF(Liste!O118="","",O$4/Liste!O$5*Liste!O118)) ->  | P113: =IF(P$4=0,"",IF(Liste!P118="","",P$4/Liste!P$5*Liste!P118)) ->  | Q113: =IF(Q$4=0,"",IF(Liste!Q118="","",Q$4/Liste!Q$5*Liste!Q118)) -> 
B114: =IF(Liste!B119="","",Liste!B119) ->  | C114: =IF(Liste!C119="","",Liste!C119) ->  | D114: =IF(Liste!D119="","",Liste!D119) ->  | E114: =IF(E$4=0,"",IF(Liste!E119="","",E$4/Liste!E$5*Liste!E119)) ->  | F114: =IF(F$4=0,"",IF(Liste!F119="","",F$4/Liste!F$5*Liste!F119)) ->  | G114: =IF(G$4=0,"",IF(Liste!G119="","",G$4/Liste!G$5*Liste!G119)) ->  | H114: =IF(H$4=0,"",IF(Liste!H119="","",H$4/Liste!H$5*Liste!H119)) ->  | I114: =IF(I$4=0,"",IF(Liste!I119="","",I$4/Liste!I$5*Liste!I119)) ->  | J114: =IF(J$4=0,"",IF(Liste!J119="","",J$4/Liste!J$5*Liste!J119)) ->  | K114: =IF(K$4=0,"",IF(Liste!K119="","",K$4/Liste!K$5*Liste!K119)) ->  | L114: =IF(L$4=0,"",IF(Liste!L119="","",L$4/Liste!L$5*Liste!L119)) ->  | M114: =IF(M$4=0,"",IF(Liste!M119="","",M$4/Liste!M$5*Liste!M119)) ->  | N114: =IF(N$4=0,"",IF(Liste!N119="","",N$4/Liste!N$5*Liste!N119)) ->  | O114: =IF(O$4=0,"",IF(Liste!O119="","",O$4/Liste!O$5*Liste!O119)) ->  | P114: =IF(P$4=0,"",IF(Liste!P119="","",P$4/Liste!P$5*Liste!P119)) ->  | Q114: =IF(Q$4=0,"",IF(Liste!Q119="","",Q$4/Liste!Q$5*Liste!Q119)) -> 
B115: =IF(Liste!B120="","",Liste!B120) ->  | C115: =IF(Liste!C120="","",Liste!C120) ->  | D115: =IF(Liste!D120="","",Liste!D120) ->  | E115: =IF(E$4=0,"",IF(Liste!E120="","",E$4/Liste!E$5*Liste!E120)) ->  | F115: =IF(F$4=0,"",IF(Liste!F120="","",F$4/Liste!F$5*Liste!F120)) ->  | G115: =IF(G$4=0,"",IF(Liste!G120="","",G$4/Liste!G$5*Liste!G120)) ->  | H115: =IF(H$4=0,"",IF(Liste!H120="","",H$4/Liste!H$5*Liste!H120)) ->  | I115: =IF(I$4=0,"",IF(Liste!I120="","",I$4/Liste!I$5*Liste!I120)) ->  | J115: =IF(J$4=0,"",IF(Liste!J120="","",J$4/Liste!J$5*Liste!J120)) ->  | K115: =IF(K$4=0,"",IF(Liste!K120="","",K$4/Liste!K$5*Liste!K120)) ->  | L115: =IF(L$4=0,"",IF(Liste!L120="","",L$4/Liste!L$5*Liste!L120)) ->  | M115: =IF(M$4=0,"",IF(Liste!M120="","",M$4/Liste!M$5*Liste!M120)) ->  | N115: =IF(N$4=0,"",IF(Liste!N120="","",N$4/Liste!N$5*Liste!N120)) ->  | O115: =IF(O$4=0,"",IF(Liste!O120="","",O$4/Liste!O$5*Liste!O120)) ->  | P115: =IF(P$4=0,"",IF(Liste!P120="","",P$4/Liste!P$5*Liste!P120)) ->  | Q115: =IF(Q$4=0,"",IF(Liste!Q120="","",Q$4/Liste!Q$5*Liste!Q120)) -> 
B116: =IF(Liste!B121="","",Liste!B121) ->  | C116: =IF(Liste!C121="","",Liste!C121) ->  | D116: =IF(Liste!D121="","",Liste!D121) ->  | E116: =IF(E$4=0,"",IF(Liste!E121="","",E$4/Liste!E$5*Liste!E121)) ->  | F116: =IF(F$4=0,"",IF(Liste!F121="","",F$4/Liste!F$5*Liste!F121)) ->  | G116: =IF(G$4=0,"",IF(Liste!G121="","",G$4/Liste!G$5*Liste!G121)) ->  | H116: =IF(H$4=0,"",IF(Liste!H121="","",H$4/Liste!H$5*Liste!H121)) ->  | I116: =IF(I$4=0,"",IF(Liste!I121="","",I$4/Liste!I$5*Liste!I121)) ->  | J116: =IF(J$4=0,"",IF(Liste!J121="","",J$4/Liste!J$5*Liste!J121)) ->  | K116: =IF(K$4=0,"",IF(Liste!K121="","",K$4/Liste!K$5*Liste!K121)) ->  | L116: =IF(L$4=0,"",IF(Liste!L121="","",L$4/Liste!L$5*Liste!L121)) ->  | M116: =IF(M$4=0,"",IF(Liste!M121="","",M$4/Liste!M$5*Liste!M121)) ->  | N116: =IF(N$4=0,"",IF(Liste!N121="","",N$4/Liste!N$5*Liste!N121)) ->  | O116: =IF(O$4=0,"",IF(Liste!O121="","",O$4/Liste!O$5*Liste!O121)) ->  | P116: =IF(P$4=0,"",IF(Liste!P121="","",P$4/Liste!P$5*Liste!P121)) ->  | Q116: =IF(Q$4=0,"",IF(Liste!Q121="","",Q$4/Liste!Q$5*Liste!Q121)) -> 
B117: =IF(Liste!B122="","",Liste!B122) ->  | C117: =IF(Liste!C122="","",Liste!C122) ->  | D117: =IF(Liste!D122="","",Liste!D122) ->  | E117: =IF(E$4=0,"",IF(Liste!E122="","",E$4/Liste!E$5*Liste!E122)) ->  | F117: =IF(F$4=0,"",IF(Liste!F122="","",F$4/Liste!F$5*Liste!F122)) ->  | G117: =IF(G$4=0,"",IF(Liste!G122="","",G$4/Liste!G$5*Liste!G122)) ->  | H117: =IF(H$4=0,"",IF(Liste!H122="","",H$4/Liste!H$5*Liste!H122)) ->  | I117: =IF(I$4=0,"",IF(Liste!I122="","",I$4/Liste!I$5*Liste!I122)) ->  | J117: =IF(J$4=0,"",IF(Liste!J122="","",J$4/Liste!J$5*Liste!J122)) ->  | K117: =IF(K$4=0,"",IF(Liste!K122="","",K$4/Liste!K$5*Liste!K122)) ->  | L117: =IF(L$4=0,"",IF(Liste!L122="","",L$4/Liste!L$5*Liste!L122)) ->  | M117: =IF(M$4=0,"",IF(Liste!M122="","",M$4/Liste!M$5*Liste!M122)) ->  | N117: =IF(N$4=0,"",IF(Liste!N122="","",N$4/Liste!N$5*Liste!N122)) ->  | O117: =IF(O$4=0,"",IF(Liste!O122="","",O$4/Liste!O$5*Liste!O122)) ->  | P117: =IF(P$4=0,"",IF(Liste!P122="","",P$4/Liste!P$5*Liste!P122)) ->  | Q117: =IF(Q$4=0,"",IF(Liste!Q122="","",Q$4/Liste!Q$5*Liste!Q122)) -> 
B118: =IF(Liste!B123="","",Liste!B123) ->  | C118: =IF(Liste!C123="","",Liste!C123) ->  | D118: =IF(Liste!D123="","",Liste!D123) ->  | E118: =IF(E$4=0,"",IF(Liste!E123="","",E$4/Liste!E$5*Liste!E123)) ->  | F118: =IF(F$4=0,"",IF(Liste!F123="","",F$4/Liste!F$5*Liste!F123)) ->  | G118: =IF(G$4=0,"",IF(Liste!G123="","",G$4/Liste!G$5*Liste!G123)) ->  | H118: =IF(H$4=0,"",IF(Liste!H123="","",H$4/Liste!H$5*Liste!H123)) ->  | I118: =IF(I$4=0,"",IF(Liste!I123="","",I$4/Liste!I$5*Liste!I123)) ->  | J118: =IF(J$4=0,"",IF(Liste!J123="","",J$4/Liste!J$5*Liste!J123)) ->  | K118: =IF(K$4=0,"",IF(Liste!K123="","",K$4/Liste!K$5*Liste!K123)) ->  | L118: =IF(L$4=0,"",IF(Liste!L123="","",L$4/Liste!L$5*Liste!L123)) ->  | M118: =IF(M$4=0,"",IF(Liste!M123="","",M$4/Liste!M$5*Liste!M123)) ->  | N118: =IF(N$4=0,"",IF(Liste!N123="","",N$4/Liste!N$5*Liste!N123)) ->  | O118: =IF(O$4=0,"",IF(Liste!O123="","",O$4/Liste!O$5*Liste!O123)) ->  | P118: =IF(P$4=0,"",IF(Liste!P123="","",P$4/Liste!P$5*Liste!P123)) ->  | Q118: =IF(Q$4=0,"",IF(Liste!Q123="","",Q$4/Liste!Q$5*Liste!Q123)) -> 
B119: =IF(Liste!B124="","",Liste!B124) ->  | C119: =IF(Liste!C124="","",Liste!C124) ->  | D119: =IF(Liste!D124="","",Liste!D124) ->  | E119: =IF(E$4=0,"",IF(Liste!E124="","",E$4/Liste!E$5*Liste!E124)) ->  | F119: =IF(F$4=0,"",IF(Liste!F124="","",F$4/Liste!F$5*Liste!F124)) ->  | G119: =IF(G$4=0,"",IF(Liste!G124="","",G$4/Liste!G$5*Liste!G124)) ->  | H119: =IF(H$4=0,"",IF(Liste!H124="","",H$4/Liste!H$5*Liste!H124)) ->  | I119: =IF(I$4=0,"",IF(Liste!I124="","",I$4/Liste!I$5*Liste!I124)) ->  | J119: =IF(J$4=0,"",IF(Liste!J124="","",J$4/Liste!J$5*Liste!J124)) ->  | K119: =IF(K$4=0,"",IF(Liste!K124="","",K$4/Liste!K$5*Liste!K124)) ->  | L119: =IF(L$4=0,"",IF(Liste!L124="","",L$4/Liste!L$5*Liste!L124)) ->  | M119: =IF(M$4=0,"",IF(Liste!M124="","",M$4/Liste!M$5*Liste!M124)) ->  | N119: =IF(N$4=0,"",IF(Liste!N124="","",N$4/Liste!N$5*Liste!N124)) ->  | O119: =IF(O$4=0,"",IF(Liste!O124="","",O$4/Liste!O$5*Liste!O124)) ->  | P119: =IF(P$4=0,"",IF(Liste!P124="","",P$4/Liste!P$5*Liste!P124)) ->  | Q119: =IF(Q$4=0,"",IF(Liste!Q124="","",Q$4/Liste!Q$5*Liste!Q124)) -> 
B120: =IF(Liste!B125="","",Liste!B125) ->  | C120: =IF(Liste!C125="","",Liste!C125) ->  | D120: =IF(Liste!D125="","",Liste!D125) ->  | E120: =IF(E$4=0,"",IF(Liste!E125="","",E$4/Liste!E$5*Liste!E125)) ->  | F120: =IF(F$4=0,"",IF(Liste!F125="","",F$4/Liste!F$5*Liste!F125)) ->  | G120: =IF(G$4=0,"",IF(Liste!G125="","",G$4/Liste!G$5*Liste!G125)) ->  | H120: =IF(H$4=0,"",IF(Liste!H125="","",H$4/Liste!H$5*Liste!H125)) ->  | I120: =IF(I$4=0,"",IF(Liste!I125="","",I$4/Liste!I$5*Liste!I125)) ->  | J120: =IF(J$4=0,"",IF(Liste!J125="","",J$4/Liste!J$5*Liste!J125)) ->  | K120: =IF(K$4=0,"",IF(Liste!K125="","",K$4/Liste!K$5*Liste!K125)) ->  | L120: =IF(L$4=0,"",IF(Liste!L125="","",L$4/Liste!L$5*Liste!L125)) ->  | M120: =IF(M$4=0,"",IF(Liste!M125="","",M$4/Liste!M$5*Liste!M125)) ->  | N120: =IF(N$4=0,"",IF(Liste!N125="","",N$4/Liste!N$5*Liste!N125)) ->  | O120: =IF(O$4=0,"",IF(Liste!O125="","",O$4/Liste!O$5*Liste!O125)) ->  | P120: =IF(P$4=0,"",IF(Liste!P125="","",P$4/Liste!P$5*Liste!P125)) ->  | Q120: =IF(Q$4=0,"",IF(Liste!Q125="","",Q$4/Liste!Q$5*Liste!Q125)) -> 
B121: =IF(Liste!B126="","",Liste!B126) ->  | C121: =IF(Liste!C126="","",Liste!C126) ->  | D121: =IF(Liste!D126="","",Liste!D126) ->  | E121: =IF(E$4=0,"",IF(Liste!E126="","",E$4/Liste!E$5*Liste!E126)) ->  | F121: =IF(F$4=0,"",IF(Liste!F126="","",F$4/Liste!F$5*Liste!F126)) ->  | G121: =IF(G$4=0,"",IF(Liste!G126="","",G$4/Liste!G$5*Liste!G126)) ->  | H121: =IF(H$4=0,"",IF(Liste!H126="","",H$4/Liste!H$5*Liste!H126)) ->  | I121: =IF(I$4=0,"",IF(Liste!I126="","",I$4/Liste!I$5*Liste!I126)) ->  | J121: =IF(J$4=0,"",IF(Liste!J126="","",J$4/Liste!J$5*Liste!J126)) ->  | K121: =IF(K$4=0,"",IF(Liste!K126="","",K$4/Liste!K$5*Liste!K126)) ->  | L121: =IF(L$4=0,"",IF(Liste!L126="","",L$4/Liste!L$5*Liste!L126)) ->  | M121: =IF(M$4=0,"",IF(Liste!M126="","",M$4/Liste!M$5*Liste!M126)) ->  | N121: =IF(N$4=0,"",IF(Liste!N126="","",N$4/Liste!N$5*Liste!N126)) ->  | O121: =IF(O$4=0,"",IF(Liste!O126="","",O$4/Liste!O$5*Liste!O126)) ->  | P121: =IF(P$4=0,"",IF(Liste!P126="","",P$4/Liste!P$5*Liste!P126)) ->  | Q121: =IF(Q$4=0,"",IF(Liste!Q126="","",Q$4/Liste!Q$5*Liste!Q126)) -> 
B122: =IF(Liste!B127="","",Liste!B127) ->  | C122: =IF(Liste!C127="","",Liste!C127) ->  | D122: =IF(Liste!D127="","",Liste!D127) ->  | E122: =IF(E$4=0,"",IF(Liste!E127="","",E$4/Liste!E$5*Liste!E127)) ->  | F122: =IF(F$4=0,"",IF(Liste!F127="","",F$4/Liste!F$5*Liste!F127)) ->  | G122: =IF(G$4=0,"",IF(Liste!G127="","",G$4/Liste!G$5*Liste!G127)) ->  | H122: =IF(H$4=0,"",IF(Liste!H127="","",H$4/Liste!H$5*Liste!H127)) ->  | I122: =IF(I$4=0,"",IF(Liste!I127="","",I$4/Liste!I$5*Liste!I127)) ->  | J122: =IF(J$4=0,"",IF(Liste!J127="","",J$4/Liste!J$5*Liste!J127)) ->  | K122: =IF(K$4=0,"",IF(Liste!K127="","",K$4/Liste!K$5*Liste!K127)) ->  | L122: =IF(L$4=0,"",IF(Liste!L127="","",L$4/Liste!L$5*Liste!L127)) ->  | M122: =IF(M$4=0,"",IF(Liste!M127="","",M$4/Liste!M$5*Liste!M127)) ->  | N122: =IF(N$4=0,"",IF(Liste!N127="","",N$4/Liste!N$5*Liste!N127)) ->  | O122: =IF(O$4=0,"",IF(Liste!O127="","",O$4/Liste!O$5*Liste!O127)) ->  | P122: =IF(P$4=0,"",IF(Liste!P127="","",P$4/Liste!P$5*Liste!P127)) ->  | Q122: =IF(Q$4=0,"",IF(Liste!Q127="","",Q$4/Liste!Q$5*Liste!Q127)) -> 
B123: =IF(Liste!B128="","",Liste!B128) ->  | C123: =IF(Liste!C128="","",Liste!C128) ->  | D123: =IF(Liste!D128="","",Liste!D128) ->  | E123: =IF(E$4=0,"",IF(Liste!E128="","",E$4/Liste!E$5*Liste!E128)) ->  | F123: =IF(F$4=0,"",IF(Liste!F128="","",F$4/Liste!F$5*Liste!F128)) ->  | G123: =IF(G$4=0,"",IF(Liste!G128="","",G$4/Liste!G$5*Liste!G128)) ->  | H123: =IF(H$4=0,"",IF(Liste!H128="","",H$4/Liste!H$5*Liste!H128)) ->  | I123: =IF(I$4=0,"",IF(Liste!I128="","",I$4/Liste!I$5*Liste!I128)) ->  | J123: =IF(J$4=0,"",IF(Liste!J128="","",J$4/Liste!J$5*Liste!J128)) ->  | K123: =IF(K$4=0,"",IF(Liste!K128="","",K$4/Liste!K$5*Liste!K128)) ->  | L123: =IF(L$4=0,"",IF(Liste!L128="","",L$4/Liste!L$5*Liste!L128)) ->  | M123: =IF(M$4=0,"",IF(Liste!M128="","",M$4/Liste!M$5*Liste!M128)) ->  | N123: =IF(N$4=0,"",IF(Liste!N128="","",N$4/Liste!N$5*Liste!N128)) ->  | O123: =IF(O$4=0,"",IF(Liste!O128="","",O$4/Liste!O$5*Liste!O128)) ->  | P123: =IF(P$4=0,"",IF(Liste!P128="","",P$4/Liste!P$5*Liste!P128)) ->  | Q123: =IF(Q$4=0,"",IF(Liste!Q128="","",Q$4/Liste!Q$5*Liste!Q128)) -> 
B124: =IF(Liste!B129="","",Liste!B129) ->  | C124: =IF(Liste!C129="","",Liste!C129) ->  | D124: =IF(Liste!D129="","",Liste!D129) ->  | E124: =IF(E$4=0,"",IF(Liste!E129="","",E$4/Liste!E$5*Liste!E129)) ->  | F124: =IF(F$4=0,"",IF(Liste!F129="","",F$4/Liste!F$5*Liste!F129)) ->  | G124: =IF(G$4=0,"",IF(Liste!G129="","",G$4/Liste!G$5*Liste!G129)) ->  | H124: =IF(H$4=0,"",IF(Liste!H129="","",H$4/Liste!H$5*Liste!H129)) ->  | I124: =IF(I$4=0,"",IF(Liste!I129="","",I$4/Liste!I$5*Liste!I129)) ->  | J124: =IF(J$4=0,"",IF(Liste!J129="","",J$4/Liste!J$5*Liste!J129)) ->  | K124: =IF(K$4=0,"",IF(Liste!K129="","",K$4/Liste!K$5*Liste!K129)) ->  | L124: =IF(L$4=0,"",IF(Liste!L129="","",L$4/Liste!L$5*Liste!L129)) ->  | M124: =IF(M$4=0,"",IF(Liste!M129="","",M$4/Liste!M$5*Liste!M129)) ->  | N124: =IF(N$4=0,"",IF(Liste!N129="","",N$4/Liste!N$5*Liste!N129)) ->  | O124: =IF(O$4=0,"",IF(Liste!O129="","",O$4/Liste!O$5*Liste!O129)) ->  | P124: =IF(P$4=0,"",IF(Liste!P129="","",P$4/Liste!P$5*Liste!P129)) ->  | Q124: =IF(Q$4=0,"",IF(Liste!Q129="","",Q$4/Liste!Q$5*Liste!Q129)) -> 
B125: =IF(Liste!B130="","",Liste!B130) ->  | C125: =IF(Liste!C130="","",Liste!C130) ->  | D125: =IF(Liste!D130="","",Liste!D130) ->  | E125: =IF(E$4=0,"",IF(Liste!E130="","",E$4/Liste!E$5*Liste!E130)) ->  | F125: =IF(F$4=0,"",IF(Liste!F130="","",F$4/Liste!F$5*Liste!F130)) ->  | G125: =IF(G$4=0,"",IF(Liste!G130="","",G$4/Liste!G$5*Liste!G130)) ->  | H125: =IF(H$4=0,"",IF(Liste!H130="","",H$4/Liste!H$5*Liste!H130)) ->  | I125: =IF(I$4=0,"",IF(Liste!I130="","",I$4/Liste!I$5*Liste!I130)) ->  | J125: =IF(J$4=0,"",IF(Liste!J130="","",J$4/Liste!J$5*Liste!J130)) ->  | K125: =IF(K$4=0,"",IF(Liste!K130="","",K$4/Liste!K$5*Liste!K130)) ->  | L125: =IF(L$4=0,"",IF(Liste!L130="","",L$4/Liste!L$5*Liste!L130)) ->  | M125: =IF(M$4=0,"",IF(Liste!M130="","",M$4/Liste!M$5*Liste!M130)) ->  | N125: =IF(N$4=0,"",IF(Liste!N130="","",N$4/Liste!N$5*Liste!N130)) ->  | O125: =IF(O$4=0,"",IF(Liste!O130="","",O$4/Liste!O$5*Liste!O130)) ->  | P125: =IF(P$4=0,"",IF(Liste!P130="","",P$4/Liste!P$5*Liste!P130)) ->  | Q125: =IF(Q$4=0,"",IF(Liste!Q130="","",Q$4/Liste!Q$5*Liste!Q130)) -> 
B126: =IF(Liste!B131="","",Liste!B131) ->  | C126: =IF(Liste!C131="","",Liste!C131) ->  | D126: =IF(Liste!D131="","",Liste!D131) ->  | E126: =IF(E$4=0,"",IF(Liste!E131="","",E$4/Liste!E$5*Liste!E131)) ->  | F126: =IF(F$4=0,"",IF(Liste!F131="","",F$4/Liste!F$5*Liste!F131)) ->  | G126: =IF(G$4=0,"",IF(Liste!G131="","",G$4/Liste!G$5*Liste!G131)) ->  | H126: =IF(H$4=0,"",IF(Liste!H131="","",H$4/Liste!H$5*Liste!H131)) ->  | I126: =IF(I$4=0,"",IF(Liste!I131="","",I$4/Liste!I$5*Liste!I131)) ->  | J126: =IF(J$4=0,"",IF(Liste!J131="","",J$4/Liste!J$5*Liste!J131)) ->  | K126: =IF(K$4=0,"",IF(Liste!K131="","",K$4/Liste!K$5*Liste!K131)) ->  | L126: =IF(L$4=0,"",IF(Liste!L131="","",L$4/Liste!L$5*Liste!L131)) ->  | M126: =IF(M$4=0,"",IF(Liste!M131="","",M$4/Liste!M$5*Liste!M131)) ->  | N126: =IF(N$4=0,"",IF(Liste!N131="","",N$4/Liste!N$5*Liste!N131)) ->  | O126: =IF(O$4=0,"",IF(Liste!O131="","",O$4/Liste!O$5*Liste!O131)) ->  | P126: =IF(P$4=0,"",IF(Liste!P131="","",P$4/Liste!P$5*Liste!P131)) ->  | Q126: =IF(Q$4=0,"",IF(Liste!Q131="","",Q$4/Liste!Q$5*Liste!Q131)) -> 
B127: =IF(Liste!B132="","",Liste!B132) ->  | C127: =IF(Liste!C132="","",Liste!C132) ->  | D127: =IF(Liste!D132="","",Liste!D132) ->  | E127: =IF(E$4=0,"",IF(Liste!E132="","",E$4/Liste!E$5*Liste!E132)) ->  | F127: =IF(F$4=0,"",IF(Liste!F132="","",F$4/Liste!F$5*Liste!F132)) ->  | G127: =IF(G$4=0,"",IF(Liste!G132="","",G$4/Liste!G$5*Liste!G132)) ->  | H127: =IF(H$4=0,"",IF(Liste!H132="","",H$4/Liste!H$5*Liste!H132)) ->  | I127: =IF(I$4=0,"",IF(Liste!I132="","",I$4/Liste!I$5*Liste!I132)) ->  | J127: =IF(J$4=0,"",IF(Liste!J132="","",J$4/Liste!J$5*Liste!J132)) ->  | K127: =IF(K$4=0,"",IF(Liste!K132="","",K$4/Liste!K$5*Liste!K132)) ->  | L127: =IF(L$4=0,"",IF(Liste!L132="","",L$4/Liste!L$5*Liste!L132)) ->  | M127: =IF(M$4=0,"",IF(Liste!M132="","",M$4/Liste!M$5*Liste!M132)) ->  | N127: =IF(N$4=0,"",IF(Liste!N132="","",N$4/Liste!N$5*Liste!N132)) ->  | O127: =IF(O$4=0,"",IF(Liste!O132="","",O$4/Liste!O$5*Liste!O132)) ->  | P127: =IF(P$4=0,"",IF(Liste!P132="","",P$4/Liste!P$5*Liste!P132)) ->  | Q127: =IF(Q$4=0,"",IF(Liste!Q132="","",Q$4/Liste!Q$5*Liste!Q132)) -> 
B128: =IF(Liste!B133="","",Liste!B133) ->  | C128: =IF(Liste!C133="","",Liste!C133) ->  | D128: =IF(Liste!D133="","",Liste!D133) ->  | E128: =IF(E$4=0,"",IF(Liste!E133="","",E$4/Liste!E$5*Liste!E133)) ->  | F128: =IF(F$4=0,"",IF(Liste!F133="","",F$4/Liste!F$5*Liste!F133)) ->  | G128: =IF(G$4=0,"",IF(Liste!G133="","",G$4/Liste!G$5*Liste!G133)) ->  | H128: =IF(H$4=0,"",IF(Liste!H133="","",H$4/Liste!H$5*Liste!H133)) ->  | I128: =IF(I$4=0,"",IF(Liste!I133="","",I$4/Liste!I$5*Liste!I133)) ->  | J128: =IF(J$4=0,"",IF(Liste!J133="","",J$4/Liste!J$5*Liste!J133)) ->  | K128: =IF(K$4=0,"",IF(Liste!K133="","",K$4/Liste!K$5*Liste!K133)) ->  | L128: =IF(L$4=0,"",IF(Liste!L133="","",L$4/Liste!L$5*Liste!L133)) ->  | M128: =IF(M$4=0,"",IF(Liste!M133="","",M$4/Liste!M$5*Liste!M133)) ->  | N128: =IF(N$4=0,"",IF(Liste!N133="","",N$4/Liste!N$5*Liste!N133)) ->  | O128: =IF(O$4=0,"",IF(Liste!O133="","",O$4/Liste!O$5*Liste!O133)) ->  | P128: =IF(P$4=0,"",IF(Liste!P133="","",P$4/Liste!P$5*Liste!P133)) ->  | Q128: =IF(Q$4=0,"",IF(Liste!Q133="","",Q$4/Liste!Q$5*Liste!Q133)) -> 
B129: =IF(Liste!B134="","",Liste!B134) ->  | C129: =IF(Liste!C134="","",Liste!C134) ->  | D129: =IF(Liste!D134="","",Liste!D134) ->  | E129: =IF(E$4=0,"",IF(Liste!E134="","",E$4/Liste!E$5*Liste!E134)) ->  | F129: =IF(F$4=0,"",IF(Liste!F134="","",F$4/Liste!F$5*Liste!F134)) ->  | G129: =IF(G$4=0,"",IF(Liste!G134="","",G$4/Liste!G$5*Liste!G134)) ->  | H129: =IF(H$4=0,"",IF(Liste!H134="","",H$4/Liste!H$5*Liste!H134)) ->  | I129: =IF(I$4=0,"",IF(Liste!I134="","",I$4/Liste!I$5*Liste!I134)) ->  | J129: =IF(J$4=0,"",IF(Liste!J134="","",J$4/Liste!J$5*Liste!J134)) ->  | K129: =IF(K$4=0,"",IF(Liste!K134="","",K$4/Liste!K$5*Liste!K134)) ->  | L129: =IF(L$4=0,"",IF(Liste!L134="","",L$4/Liste!L$5*Liste!L134)) ->  | M129: =IF(M$4=0,"",IF(Liste!M134="","",M$4/Liste!M$5*Liste!M134)) ->  | N129: =IF(N$4=0,"",IF(Liste!N134="","",N$4/Liste!N$5*Liste!N134)) ->  | O129: =IF(O$4=0,"",IF(Liste!O134="","",O$4/Liste!O$5*Liste!O134)) ->  | P129: =IF(P$4=0,"",IF(Liste!P134="","",P$4/Liste!P$5*Liste!P134)) ->  | Q129: =IF(Q$4=0,"",IF(Liste!Q134="","",Q$4/Liste!Q$5*Liste!Q134)) -> 
B130: =IF(Liste!B135="","",Liste!B135) ->  | C130: =IF(Liste!C135="","",Liste!C135) ->  | D130: =IF(Liste!D135="","",Liste!D135) ->  | E130: =IF(E$4=0,"",IF(Liste!E135="","",E$4/Liste!E$5*Liste!E135)) ->  | F130: =IF(F$4=0,"",IF(Liste!F135="","",F$4/Liste!F$5*Liste!F135)) ->  | G130: =IF(G$4=0,"",IF(Liste!G135="","",G$4/Liste!G$5*Liste!G135)) ->  | H130: =IF(H$4=0,"",IF(Liste!H135="","",H$4/Liste!H$5*Liste!H135)) ->  | I130: =IF(I$4=0,"",IF(Liste!I135="","",I$4/Liste!I$5*Liste!I135)) ->  | J130: =IF(J$4=0,"",IF(Liste!J135="","",J$4/Liste!J$5*Liste!J135)) ->  | K130: =IF(K$4=0,"",IF(Liste!K135="","",K$4/Liste!K$5*Liste!K135)) ->  | L130: =IF(L$4=0,"",IF(Liste!L135="","",L$4/Liste!L$5*Liste!L135)) ->  | M130: =IF(M$4=0,"",IF(Liste!M135="","",M$4/Liste!M$5*Liste!M135)) ->  | N130: =IF(N$4=0,"",IF(Liste!N135="","",N$4/Liste!N$5*Liste!N135)) ->  | O130: =IF(O$4=0,"",IF(Liste!O135="","",O$4/Liste!O$5*Liste!O135)) ->  | P130: =IF(P$4=0,"",IF(Liste!P135="","",P$4/Liste!P$5*Liste!P135)) ->  | Q130: =IF(Q$4=0,"",IF(Liste!Q135="","",Q$4/Liste!Q$5*Liste!Q135)) -> 
B131: =IF(Liste!B136="","",Liste!B136) ->  | C131: =IF(Liste!C136="","",Liste!C136) ->  | D131: =IF(Liste!D136="","",Liste!D136) ->  | E131: =IF(E$4=0,"",IF(Liste!E136="","",E$4/Liste!E$5*Liste!E136)) ->  | F131: =IF(F$4=0,"",IF(Liste!F136="","",F$4/Liste!F$5*Liste!F136)) ->  | G131: =IF(G$4=0,"",IF(Liste!G136="","",G$4/Liste!G$5*Liste!G136)) ->  | H131: =IF(H$4=0,"",IF(Liste!H136="","",H$4/Liste!H$5*Liste!H136)) ->  | I131: =IF(I$4=0,"",IF(Liste!I136="","",I$4/Liste!I$5*Liste!I136)) ->  | J131: =IF(J$4=0,"",IF(Liste!J136="","",J$4/Liste!J$5*Liste!J136)) ->  | K131: =IF(K$4=0,"",IF(Liste!K136="","",K$4/Liste!K$5*Liste!K136)) ->  | L131: =IF(L$4=0,"",IF(Liste!L136="","",L$4/Liste!L$5*Liste!L136)) ->  | M131: =IF(M$4=0,"",IF(Liste!M136="","",M$4/Liste!M$5*Liste!M136)) ->  | N131: =IF(N$4=0,"",IF(Liste!N136="","",N$4/Liste!N$5*Liste!N136)) ->  | O131: =IF(O$4=0,"",IF(Liste!O136="","",O$4/Liste!O$5*Liste!O136)) ->  | P131: =IF(P$4=0,"",IF(Liste!P136="","",P$4/Liste!P$5*Liste!P136)) ->  | Q131: =IF(Q$4=0,"",IF(Liste!Q136="","",Q$4/Liste!Q$5*Liste!Q136)) -> 
B132: =IF(Liste!B137="","",Liste!B137) ->  | C132: =IF(Liste!C137="","",Liste!C137) ->  | D132: =IF(Liste!D137="","",Liste!D137) ->  | E132: =IF(E$4=0,"",IF(Liste!E137="","",E$4/Liste!E$5*Liste!E137)) ->  | F132: =IF(F$4=0,"",IF(Liste!F137="","",F$4/Liste!F$5*Liste!F137)) ->  | G132: =IF(G$4=0,"",IF(Liste!G137="","",G$4/Liste!G$5*Liste!G137)) ->  | H132: =IF(H$4=0,"",IF(Liste!H137="","",H$4/Liste!H$5*Liste!H137)) ->  | I132: =IF(I$4=0,"",IF(Liste!I137="","",I$4/Liste!I$5*Liste!I137)) ->  | J132: =IF(J$4=0,"",IF(Liste!J137="","",J$4/Liste!J$5*Liste!J137)) ->  | K132: =IF(K$4=0,"",IF(Liste!K137="","",K$4/Liste!K$5*Liste!K137)) ->  | L132: =IF(L$4=0,"",IF(Liste!L137="","",L$4/Liste!L$5*Liste!L137)) ->  | M132: =IF(M$4=0,"",IF(Liste!M137="","",M$4/Liste!M$5*Liste!M137)) ->  | N132: =IF(N$4=0,"",IF(Liste!N137="","",N$4/Liste!N$5*Liste!N137)) ->  | O132: =IF(O$4=0,"",IF(Liste!O137="","",O$4/Liste!O$5*Liste!O137)) ->  | P132: =IF(P$4=0,"",IF(Liste!P137="","",P$4/Liste!P$5*Liste!P137)) ->  | Q132: =IF(Q$4=0,"",IF(Liste!Q137="","",Q$4/Liste!Q$5*Liste!Q137)) -> 
B133: =IF(Liste!B138="","",Liste!B138) ->  | C133: =IF(Liste!C138="","",Liste!C138) ->  | D133: =IF(Liste!D138="","",Liste!D138) ->  | E133: =IF(E$4=0,"",IF(Liste!E138="","",E$4/Liste!E$5*Liste!E138)) ->  | F133: =IF(F$4=0,"",IF(Liste!F138="","",F$4/Liste!F$5*Liste!F138)) ->  | G133: =IF(G$4=0,"",IF(Liste!G138="","",G$4/Liste!G$5*Liste!G138)) ->  | H133: =IF(H$4=0,"",IF(Liste!H138="","",H$4/Liste!H$5*Liste!H138)) ->  | I133: =IF(I$4=0,"",IF(Liste!I138="","",I$4/Liste!I$5*Liste!I138)) ->  | J133: =IF(J$4=0,"",IF(Liste!J138="","",J$4/Liste!J$5*Liste!J138)) ->  | K133: =IF(K$4=0,"",IF(Liste!K138="","",K$4/Liste!K$5*Liste!K138)) ->  | L133: =IF(L$4=0,"",IF(Liste!L138="","",L$4/Liste!L$5*Liste!L138)) ->  | M133: =IF(M$4=0,"",IF(Liste!M138="","",M$4/Liste!M$5*Liste!M138)) ->  | N133: =IF(N$4=0,"",IF(Liste!N138="","",N$4/Liste!N$5*Liste!N138)) ->  | O133: =IF(O$4=0,"",IF(Liste!O138="","",O$4/Liste!O$5*Liste!O138)) ->  | P133: =IF(P$4=0,"",IF(Liste!P138="","",P$4/Liste!P$5*Liste!P138)) ->  | Q133: =IF(Q$4=0,"",IF(Liste!Q138="","",Q$4/Liste!Q$5*Liste!Q138)) -> 
B134: =IF(Liste!B139="","",Liste!B139) ->  | C134: =IF(Liste!C139="","",Liste!C139) ->  | D134: =IF(Liste!D139="","",Liste!D139) ->  | E134: =IF(E$4=0,"",IF(Liste!E139="","",E$4/Liste!E$5*Liste!E139)) ->  | F134: =IF(F$4=0,"",IF(Liste!F139="","",F$4/Liste!F$5*Liste!F139)) ->  | G134: =IF(G$4=0,"",IF(Liste!G139="","",G$4/Liste!G$5*Liste!G139)) ->  | H134: =IF(H$4=0,"",IF(Liste!H139="","",H$4/Liste!H$5*Liste!H139)) ->  | I134: =IF(I$4=0,"",IF(Liste!I139="","",I$4/Liste!I$5*Liste!I139)) ->  | J134: =IF(J$4=0,"",IF(Liste!J139="","",J$4/Liste!J$5*Liste!J139)) ->  | K134: =IF(K$4=0,"",IF(Liste!K139="","",K$4/Liste!K$5*Liste!K139)) ->  | L134: =IF(L$4=0,"",IF(Liste!L139="","",L$4/Liste!L$5*Liste!L139)) ->  | M134: =IF(M$4=0,"",IF(Liste!M139="","",M$4/Liste!M$5*Liste!M139)) ->  | N134: =IF(N$4=0,"",IF(Liste!N139="","",N$4/Liste!N$5*Liste!N139)) ->  | O134: =IF(O$4=0,"",IF(Liste!O139="","",O$4/Liste!O$5*Liste!O139)) ->  | P134: =IF(P$4=0,"",IF(Liste!P139="","",P$4/Liste!P$5*Liste!P139)) ->  | Q134: =IF(Q$4=0,"",IF(Liste!Q139="","",Q$4/Liste!Q$5*Liste!Q139)) -> 
B135: =IF(Liste!B140="","",Liste!B140) ->  | C135: =IF(Liste!C140="","",Liste!C140) ->  | D135: =IF(Liste!D140="","",Liste!D140) ->  | E135: =IF(E$4=0,"",IF(Liste!E140="","",E$4/Liste!E$5*Liste!E140)) ->  | F135: =IF(F$4=0,"",IF(Liste!F140="","",F$4/Liste!F$5*Liste!F140)) ->  | G135: =IF(G$4=0,"",IF(Liste!G140="","",G$4/Liste!G$5*Liste!G140)) ->  | H135: =IF(H$4=0,"",IF(Liste!H140="","",H$4/Liste!H$5*Liste!H140)) ->  | I135: =IF(I$4=0,"",IF(Liste!I140="","",I$4/Liste!I$5*Liste!I140)) ->  | J135: =IF(J$4=0,"",IF(Liste!J140="","",J$4/Liste!J$5*Liste!J140)) ->  | K135: =IF(K$4=0,"",IF(Liste!K140="","",K$4/Liste!K$5*Liste!K140)) ->  | L135: =IF(L$4=0,"",IF(Liste!L140="","",L$4/Liste!L$5*Liste!L140)) ->  | M135: =IF(M$4=0,"",IF(Liste!M140="","",M$4/Liste!M$5*Liste!M140)) ->  | N135: =IF(N$4=0,"",IF(Liste!N140="","",N$4/Liste!N$5*Liste!N140)) ->  | O135: =IF(O$4=0,"",IF(Liste!O140="","",O$4/Liste!O$5*Liste!O140)) ->  | P135: =IF(P$4=0,"",IF(Liste!P140="","",P$4/Liste!P$5*Liste!P140)) ->  | Q135: =IF(Q$4=0,"",IF(Liste!Q140="","",Q$4/Liste!Q$5*Liste!Q140)) -> 
A136: =IF(SUM(E136:H136)=0,"",SUM(E136:H136)) ->  | B136: =IF(Liste!B141="","",Liste!B141) ->  | C136: =IF(Liste!C141="","",Liste!C141) ->  | D136: =IF(Liste!D141="","",Liste!D141) ->  | E136: =IF(E$4=0,"",IF(Liste!E141="","",E$4/Liste!E$5*Liste!E141)) ->  | F136: =IF(F$4=0,"",IF(Liste!F141="","",F$4/Liste!F$5*Liste!F141)) ->  | G136: =IF(G$4=0,"",IF(Liste!G141="","",G$4/Liste!G$5*Liste!G141)) ->  | H136: =IF(H$4=0,"",IF(Liste!H141="","",H$4/Liste!H$5*Liste!H141)) ->  | I136: =IF(I$4=0,"",IF(Liste!I141="","",I$4/Liste!I$5*Liste!I141)) ->  | J136: =IF(J$4=0,"",IF(Liste!J141="","",J$4/Liste!J$5*Liste!J141)) ->  | K136: =IF(K$4=0,"",IF(Liste!K141="","",K$4/Liste!K$5*Liste!K141)) ->  | L136: =IF(L$4=0,"",IF(Liste!L141="","",L$4/Liste!L$5*Liste!L141)) ->  | M136: =IF(M$4=0,"",IF(Liste!M141="","",M$4/Liste!M$5*Liste!M141)) ->  | N136: =IF(N$4=0,"",IF(Liste!N141="","",N$4/Liste!N$5*Liste!N141)) ->  | O136: =IF(O$4=0,"",IF(Liste!O141="","",O$4/Liste!O$5*Liste!O141)) ->  | P136: =IF(P$4=0,"",IF(Liste!P141="","",P$4/Liste!P$5*Liste!P141)) ->  | Q136: =IF(Q$4=0,"",IF(Liste!Q141="","",Q$4/Liste!Q$5*Liste!Q141)) -> 
B137: =IF(Liste!B142="","",Liste!B142) ->  | C137: =IF(Liste!C142="","",Liste!C142) ->  | D137: =IF(Liste!D142="","",Liste!D142) ->  | E137: =IF(E$4=0,"",IF(Liste!E142="","",E$4/Liste!E$5*Liste!E142)) ->  | F137: =IF(F$4=0,"",IF(Liste!F142="","",F$4/Liste!F$5*Liste!F142)) ->  | G137: =IF(G$4=0,"",IF(Liste!G142="","",G$4/Liste!G$5*Liste!G142)) ->  | H137: =IF(H$4=0,"",IF(Liste!H142="","",H$4/Liste!H$5*Liste!H142)) ->  | I137: =IF(I$4=0,"",IF(Liste!I142="","",I$4/Liste!I$5*Liste!I142)) ->  | J137: =IF(J$4=0,"",IF(Liste!J142="","",J$4/Liste!J$5*Liste!J142)) ->  | K137: =IF(K$4=0,"",IF(Liste!K142="","",K$4/Liste!K$5*Liste!K142)) ->  | L137: =IF(L$4=0,"",IF(Liste!L142="","",L$4/Liste!L$5*Liste!L142)) ->  | M137: =IF(M$4=0,"",IF(Liste!M142="","",M$4/Liste!M$5*Liste!M142)) ->  | N137: =IF(N$4=0,"",IF(Liste!N142="","",N$4/Liste!N$5*Liste!N142)) ->  | O137: =IF(O$4=0,"",IF(Liste!O142="","",O$4/Liste!O$5*Liste!O142)) ->  | P137: =IF(P$4=0,"",IF(Liste!P142="","",P$4/Liste!P$5*Liste!P142)) ->  | Q137: =IF(Q$4=0,"",IF(Liste!Q142="","",Q$4/Liste!Q$5*Liste!Q142)) -> 
B138: =IF(Liste!B143="","",Liste!B143) ->  | C138: =IF(Liste!C143="","",Liste!C143) ->  | D138: =IF(Liste!D143="","",Liste!D143) ->  | E138: =IF(E$4=0,"",IF(Liste!E143="","",E$4/Liste!E$5*Liste!E143)) ->  | F138: =IF(F$4=0,"",IF(Liste!F143="","",F$4/Liste!F$5*Liste!F143)) ->  | G138: =IF(G$4=0,"",IF(Liste!G143="","",G$4/Liste!G$5*Liste!G143)) ->  | H138: =IF(H$4=0,"",IF(Liste!H143="","",H$4/Liste!H$5*Liste!H143)) ->  | I138: =IF(I$4=0,"",IF(Liste!I143="","",I$4/Liste!I$5*Liste!I143)) ->  | J138: =IF(J$4=0,"",IF(Liste!J143="","",J$4/Liste!J$5*Liste!J143)) ->  | K138: =IF(K$4=0,"",IF(Liste!K143="","",K$4/Liste!K$5*Liste!K143)) ->  | L138: =IF(L$4=0,"",IF(Liste!L143="","",L$4/Liste!L$5*Liste!L143)) ->  | M138: =IF(M$4=0,"",IF(Liste!M143="","",M$4/Liste!M$5*Liste!M143)) ->  | N138: =IF(N$4=0,"",IF(Liste!N143="","",N$4/Liste!N$5*Liste!N143)) ->  | O138: =IF(O$4=0,"",IF(Liste!O143="","",O$4/Liste!O$5*Liste!O143)) ->  | P138: =IF(P$4=0,"",IF(Liste!P143="","",P$4/Liste!P$5*Liste!P143)) ->  | Q138: =IF(Q$4=0,"",IF(Liste!Q143="","",Q$4/Liste!Q$5*Liste!Q143)) -> 
B139: =IF(Liste!B144="","",Liste!B144) ->  | C139: =IF(Liste!C144="","",Liste!C144) ->  | D139: =IF(Liste!D144="","",Liste!D144) ->  | E139: =IF(E$4=0,"",IF(Liste!E144="","",E$4/Liste!E$5*Liste!E144)) ->  | F139: =IF(F$4=0,"",IF(Liste!F144="","",F$4/Liste!F$5*Liste!F144)) ->  | G139: =IF(G$4=0,"",IF(Liste!G144="","",G$4/Liste!G$5*Liste!G144)) ->  | H139: =IF(H$4=0,"",IF(Liste!H144="","",H$4/Liste!H$5*Liste!H144)) ->  | I139: =IF(I$4=0,"",IF(Liste!I144="","",I$4/Liste!I$5*Liste!I144)) ->  | J139: =IF(J$4=0,"",IF(Liste!J144="","",J$4/Liste!J$5*Liste!J144)) ->  | K139: =IF(K$4=0,"",IF(Liste!K144="","",K$4/Liste!K$5*Liste!K144)) ->  | L139: =IF(L$4=0,"",IF(Liste!L144="","",L$4/Liste!L$5*Liste!L144)) ->  | M139: =IF(M$4=0,"",IF(Liste!M144="","",M$4/Liste!M$5*Liste!M144)) ->  | N139: =IF(N$4=0,"",IF(Liste!N144="","",N$4/Liste!N$5*Liste!N144)) ->  | O139: =IF(O$4=0,"",IF(Liste!O144="","",O$4/Liste!O$5*Liste!O144)) ->  | P139: =IF(P$4=0,"",IF(Liste!P144="","",P$4/Liste!P$5*Liste!P144)) ->  | Q139: =IF(Q$4=0,"",IF(Liste!Q144="","",Q$4/Liste!Q$5*Liste!Q144)) -> 
B140: =IF(Liste!B145="","",Liste!B145) ->  | C140: =IF(Liste!C145="","",Liste!C145) ->  | D140: =IF(Liste!D145="","",Liste!D145) ->  | E140: =IF(E$4=0,"",IF(Liste!E145="","",E$4/Liste!E$5*Liste!E145)) ->  | F140: =IF(F$4=0,"",IF(Liste!F145="","",F$4/Liste!F$5*Liste!F145)) ->  | G140: =IF(G$4=0,"",IF(Liste!G145="","",G$4/Liste!G$5*Liste!G145)) ->  | H140: =IF(H$4=0,"",IF(Liste!H145="","",H$4/Liste!H$5*Liste!H145)) ->  | I140: =IF(I$4=0,"",IF(Liste!I145="","",I$4/Liste!I$5*Liste!I145)) ->  | J140: =IF(J$4=0,"",IF(Liste!J145="","",J$4/Liste!J$5*Liste!J145)) ->  | K140: =IF(K$4=0,"",IF(Liste!K145="","",K$4/Liste!K$5*Liste!K145)) ->  | L140: =IF(L$4=0,"",IF(Liste!L145="","",L$4/Liste!L$5*Liste!L145)) ->  | M140: =IF(M$4=0,"",IF(Liste!M145="","",M$4/Liste!M$5*Liste!M145)) ->  | N140: =IF(N$4=0,"",IF(Liste!N145="","",N$4/Liste!N$5*Liste!N145)) ->  | O140: =IF(O$4=0,"",IF(Liste!O145="","",O$4/Liste!O$5*Liste!O145)) ->  | P140: =IF(P$4=0,"",IF(Liste!P145="","",P$4/Liste!P$5*Liste!P145)) ->  | Q140: =IF(Q$4=0,"",IF(Liste!Q145="","",Q$4/Liste!Q$5*Liste!Q145)) -> 
B141: =IF(Liste!B146="","",Liste!B146) ->  | C141: =IF(Liste!C146="","",Liste!C146) ->  | D141: =IF(Liste!D146="","",Liste!D146) ->  | E141: =IF(E$4=0,"",IF(Liste!E146="","",E$4/Liste!E$5*Liste!E146)) ->  | F141: =IF(F$4=0,"",IF(Liste!F146="","",F$4/Liste!F$5*Liste!F146)) ->  | G141: =IF(G$4=0,"",IF(Liste!G146="","",G$4/Liste!G$5*Liste!G146)) ->  | H141: =IF(H$4=0,"",IF(Liste!H146="","",H$4/Liste!H$5*Liste!H146)) ->  | I141: =IF(I$4=0,"",IF(Liste!I146="","",I$4/Liste!I$5*Liste!I146)) ->  | J141: =IF(J$4=0,"",IF(Liste!J146="","",J$4/Liste!J$5*Liste!J146)) ->  | K141: =IF(K$4=0,"",IF(Liste!K146="","",K$4/Liste!K$5*Liste!K146)) ->  | L141: =IF(L$4=0,"",IF(Liste!L146="","",L$4/Liste!L$5*Liste!L146)) ->  | M141: =IF(M$4=0,"",IF(Liste!M146="","",M$4/Liste!M$5*Liste!M146)) ->  | N141: =IF(N$4=0,"",IF(Liste!N146="","",N$4/Liste!N$5*Liste!N146)) ->  | O141: =IF(O$4=0,"",IF(Liste!O146="","",O$4/Liste!O$5*Liste!O146)) ->  | P141: =IF(P$4=0,"",IF(Liste!P146="","",P$4/Liste!P$5*Liste!P146)) ->  | Q141: =IF(Q$4=0,"",IF(Liste!Q146="","",Q$4/Liste!Q$5*Liste!Q146)) -> 
B142: =IF(Liste!B147="","",Liste!B147) ->  | C142: =IF(Liste!C147="","",Liste!C147) ->  | D142: =IF(Liste!D147="","",Liste!D147) ->  | E142: =IF(E$4=0,"",IF(Liste!E147="","",E$4/Liste!E$5*Liste!E147)) ->  | F142: =IF(F$4=0,"",IF(Liste!F147="","",F$4/Liste!F$5*Liste!F147)) ->  | G142: =IF(G$4=0,"",IF(Liste!G147="","",G$4/Liste!G$5*Liste!G147)) ->  | H142: =IF(H$4=0,"",IF(Liste!H147="","",H$4/Liste!H$5*Liste!H147)) ->  | I142: =IF(I$4=0,"",IF(Liste!I147="","",I$4/Liste!I$5*Liste!I147)) ->  | J142: =IF(J$4=0,"",IF(Liste!J147="","",J$4/Liste!J$5*Liste!J147)) ->  | K142: =IF(K$4=0,"",IF(Liste!K147="","",K$4/Liste!K$5*Liste!K147)) ->  | L142: =IF(L$4=0,"",IF(Liste!L147="","",L$4/Liste!L$5*Liste!L147)) ->  | M142: =IF(M$4=0,"",IF(Liste!M147="","",M$4/Liste!M$5*Liste!M147)) ->  | N142: =IF(N$4=0,"",IF(Liste!N147="","",N$4/Liste!N$5*Liste!N147)) ->  | O142: =IF(O$4=0,"",IF(Liste!O147="","",O$4/Liste!O$5*Liste!O147)) ->  | P142: =IF(P$4=0,"",IF(Liste!P147="","",P$4/Liste!P$5*Liste!P147)) ->  | Q142: =IF(Q$4=0,"",IF(Liste!Q147="","",Q$4/Liste!Q$5*Liste!Q147)) -> 
B143: =IF(Liste!B148="","",Liste!B148) ->  | C143: =IF(Liste!C148="","",Liste!C148) ->  | D143: =IF(Liste!D148="","",Liste!D148) ->  | E143: =IF(E$4=0,"",IF(Liste!E148="","",E$4/Liste!E$5*Liste!E148)) ->  | F143: =IF(F$4=0,"",IF(Liste!F148="","",F$4/Liste!F$5*Liste!F148)) ->  | G143: =IF(G$4=0,"",IF(Liste!G148="","",G$4/Liste!G$5*Liste!G148)) ->  | H143: =IF(H$4=0,"",IF(Liste!H148="","",H$4/Liste!H$5*Liste!H148)) ->  | I143: =IF(I$4=0,"",IF(Liste!I148="","",I$4/Liste!I$5*Liste!I148)) ->  | J143: =IF(J$4=0,"",IF(Liste!J148="","",J$4/Liste!J$5*Liste!J148)) ->  | K143: =IF(K$4=0,"",IF(Liste!K148="","",K$4/Liste!K$5*Liste!K148)) ->  | L143: =IF(L$4=0,"",IF(Liste!L148="","",L$4/Liste!L$5*Liste!L148)) ->  | M143: =IF(M$4=0,"",IF(Liste!M148="","",M$4/Liste!M$5*Liste!M148)) ->  | N143: =IF(N$4=0,"",IF(Liste!N148="","",N$4/Liste!N$5*Liste!N148)) ->  | O143: =IF(O$4=0,"",IF(Liste!O148="","",O$4/Liste!O$5*Liste!O148)) ->  | P143: =IF(P$4=0,"",IF(Liste!P148="","",P$4/Liste!P$5*Liste!P148)) ->  | Q143: =IF(Q$4=0,"",IF(Liste!Q148="","",Q$4/Liste!Q$5*Liste!Q148)) -> 
B144: =IF(Liste!B149="","",Liste!B149) ->  | C144: =IF(Liste!C149="","",Liste!C149) ->  | D144: =IF(Liste!D149="","",Liste!D149) ->  | E144: =IF(E$4=0,"",IF(Liste!E149="","",E$4/Liste!E$5*Liste!E149)) ->  | F144: =IF(F$4=0,"",IF(Liste!F149="","",F$4/Liste!F$5*Liste!F149)) ->  | G144: =IF(G$4=0,"",IF(Liste!G149="","",G$4/Liste!G$5*Liste!G149)) ->  | H144: =IF(H$4=0,"",IF(Liste!H149="","",H$4/Liste!H$5*Liste!H149)) ->  | I144: =IF(I$4=0,"",IF(Liste!I149="","",I$4/Liste!I$5*Liste!I149)) ->  | J144: =IF(J$4=0,"",IF(Liste!J149="","",J$4/Liste!J$5*Liste!J149)) ->  | K144: =IF(K$4=0,"",IF(Liste!K149="","",K$4/Liste!K$5*Liste!K149)) ->  | L144: =IF(L$4=0,"",IF(Liste!L149="","",L$4/Liste!L$5*Liste!L149)) ->  | M144: =IF(M$4=0,"",IF(Liste!M149="","",M$4/Liste!M$5*Liste!M149)) ->  | N144: =IF(N$4=0,"",IF(Liste!N149="","",N$4/Liste!N$5*Liste!N149)) ->  | O144: =IF(O$4=0,"",IF(Liste!O149="","",O$4/Liste!O$5*Liste!O149)) ->  | P144: =IF(P$4=0,"",IF(Liste!P149="","",P$4/Liste!P$5*Liste!P149)) ->  | Q144: =IF(Q$4=0,"",IF(Liste!Q149="","",Q$4/Liste!Q$5*Liste!Q149)) -> 
B145: =IF(Liste!B150="","",Liste!B150) ->  | C145: =IF(Liste!C150="","",Liste!C150) ->  | D145: =IF(Liste!D150="","",Liste!D150) ->  | E145: =IF(E$4=0,"",IF(Liste!E150="","",E$4/Liste!E$5*Liste!E150)) ->  | F145: =IF(F$4=0,"",IF(Liste!F150="","",F$4/Liste!F$5*Liste!F150)) ->  | G145: =IF(G$4=0,"",IF(Liste!G150="","",G$4/Liste!G$5*Liste!G150)) ->  | H145: =IF(H$4=0,"",IF(Liste!H150="","",H$4/Liste!H$5*Liste!H150)) ->  | I145: =IF(I$4=0,"",IF(Liste!I150="","",I$4/Liste!I$5*Liste!I150)) ->  | J145: =IF(J$4=0,"",IF(Liste!J150="","",J$4/Liste!J$5*Liste!J150)) ->  | K145: =IF(K$4=0,"",IF(Liste!K150="","",K$4/Liste!K$5*Liste!K150)) ->  | L145: =IF(L$4=0,"",IF(Liste!L150="","",L$4/Liste!L$5*Liste!L150)) ->  | M145: =IF(M$4=0,"",IF(Liste!M150="","",M$4/Liste!M$5*Liste!M150)) ->  | N145: =IF(N$4=0,"",IF(Liste!N150="","",N$4/Liste!N$5*Liste!N150)) ->  | O145: =IF(O$4=0,"",IF(Liste!O150="","",O$4/Liste!O$5*Liste!O150)) ->  | P145: =IF(P$4=0,"",IF(Liste!P150="","",P$4/Liste!P$5*Liste!P150)) ->  | Q145: =IF(Q$4=0,"",IF(Liste!Q150="","",Q$4/Liste!Q$5*Liste!Q150)) -> 
B146: =IF(Liste!B151="","",Liste!B151) ->  | C146: =IF(Liste!C151="","",Liste!C151) ->  | D146: =IF(Liste!D151="","",Liste!D151) ->  | E146: =IF(E$4=0,"",IF(Liste!E151="","",E$4/Liste!E$5*Liste!E151)) ->  | F146: =IF(F$4=0,"",IF(Liste!F151="","",F$4/Liste!F$5*Liste!F151)) ->  | G146: =IF(G$4=0,"",IF(Liste!G151="","",G$4/Liste!G$5*Liste!G151)) ->  | H146: =IF(H$4=0,"",IF(Liste!H151="","",H$4/Liste!H$5*Liste!H151)) ->  | I146: =IF(I$4=0,"",IF(Liste!I151="","",I$4/Liste!I$5*Liste!I151)) ->  | J146: =IF(J$4=0,"",IF(Liste!J151="","",J$4/Liste!J$5*Liste!J151)) ->  | K146: =IF(K$4=0,"",IF(Liste!K151="","",K$4/Liste!K$5*Liste!K151)) ->  | L146: =IF(L$4=0,"",IF(Liste!L151="","",L$4/Liste!L$5*Liste!L151)) ->  | M146: =IF(M$4=0,"",IF(Liste!M151="","",M$4/Liste!M$5*Liste!M151)) ->  | N146: =IF(N$4=0,"",IF(Liste!N151="","",N$4/Liste!N$5*Liste!N151)) ->  | O146: =IF(O$4=0,"",IF(Liste!O151="","",O$4/Liste!O$5*Liste!O151)) ->  | P146: =IF(P$4=0,"",IF(Liste!P151="","",P$4/Liste!P$5*Liste!P151)) ->  | Q146: =IF(Q$4=0,"",IF(Liste!Q151="","",Q$4/Liste!Q$5*Liste!Q151)) -> 
B147: =IF(Liste!B152="","",Liste!B152) ->  | C147: =IF(Liste!C152="","",Liste!C152) ->  | D147: =IF(Liste!D152="","",Liste!D152) ->  | E147: =IF(E$4=0,"",IF(Liste!E152="","",E$4/Liste!E$5*Liste!E152)) ->  | F147: =IF(F$4=0,"",IF(Liste!F152="","",F$4/Liste!F$5*Liste!F152)) ->  | G147: =IF(G$4=0,"",IF(Liste!G152="","",G$4/Liste!G$5*Liste!G152)) ->  | H147: =IF(H$4=0,"",IF(Liste!H152="","",H$4/Liste!H$5*Liste!H152)) ->  | I147: =IF(I$4=0,"",IF(Liste!I152="","",I$4/Liste!I$5*Liste!I152)) ->  | J147: =IF(J$4=0,"",IF(Liste!J152="","",J$4/Liste!J$5*Liste!J152)) ->  | K147: =IF(K$4=0,"",IF(Liste!K152="","",K$4/Liste!K$5*Liste!K152)) ->  | L147: =IF(L$4=0,"",IF(Liste!L152="","",L$4/Liste!L$5*Liste!L152)) ->  | M147: =IF(M$4=0,"",IF(Liste!M152="","",M$4/Liste!M$5*Liste!M152)) ->  | N147: =IF(N$4=0,"",IF(Liste!N152="","",N$4/Liste!N$5*Liste!N152)) ->  | O147: =IF(O$4=0,"",IF(Liste!O152="","",O$4/Liste!O$5*Liste!O152)) ->  | P147: =IF(P$4=0,"",IF(Liste!P152="","",P$4/Liste!P$5*Liste!P152)) ->  | Q147: =IF(Q$4=0,"",IF(Liste!Q152="","",Q$4/Liste!Q$5*Liste!Q152)) -> 
B148: =IF(Liste!B153="","",Liste!B153) ->  | C148: =IF(Liste!C153="","",Liste!C153) ->  | D148: =IF(Liste!D153="","",Liste!D153) ->  | E148: =IF(E$4=0,"",IF(Liste!E153="","",E$4/Liste!E$5*Liste!E153)) ->  | F148: =IF(F$4=0,"",IF(Liste!F153="","",F$4/Liste!F$5*Liste!F153)) ->  | G148: =IF(G$4=0,"",IF(Liste!G153="","",G$4/Liste!G$5*Liste!G153)) ->  | H148: =IF(H$4=0,"",IF(Liste!H153="","",H$4/Liste!H$5*Liste!H153)) ->  | I148: =IF(I$4=0,"",IF(Liste!I153="","",I$4/Liste!I$5*Liste!I153)) ->  | J148: =IF(J$4=0,"",IF(Liste!J153="","",J$4/Liste!J$5*Liste!J153)) ->  | K148: =IF(K$4=0,"",IF(Liste!K153="","",K$4/Liste!K$5*Liste!K153)) ->  | L148: =IF(L$4=0,"",IF(Liste!L153="","",L$4/Liste!L$5*Liste!L153)) ->  | M148: =IF(M$4=0,"",IF(Liste!M153="","",M$4/Liste!M$5*Liste!M153)) ->  | N148: =IF(N$4=0,"",IF(Liste!N153="","",N$4/Liste!N$5*Liste!N153)) ->  | O148: =IF(O$4=0,"",IF(Liste!O153="","",O$4/Liste!O$5*Liste!O153)) ->  | P148: =IF(P$4=0,"",IF(Liste!P153="","",P$4/Liste!P$5*Liste!P153)) ->  | Q148: =IF(Q$4=0,"",IF(Liste!Q153="","",Q$4/Liste!Q$5*Liste!Q153)) -> 
B149: =IF(Liste!B154="","",Liste!B154) ->  | C149: =IF(Liste!C154="","",Liste!C154) ->  | D149: =IF(Liste!D154="","",Liste!D154) ->  | E149: =IF(E$4=0,"",IF(Liste!E154="","",E$4/Liste!E$5*Liste!E154)) ->  | F149: =IF(F$4=0,"",IF(Liste!F154="","",F$4/Liste!F$5*Liste!F154)) ->  | G149: =IF(G$4=0,"",IF(Liste!G154="","",G$4/Liste!G$5*Liste!G154)) ->  | H149: =IF(H$4=0,"",IF(Liste!H154="","",H$4/Liste!H$5*Liste!H154)) ->  | I149: =IF(I$4=0,"",IF(Liste!I154="","",I$4/Liste!I$5*Liste!I154)) ->  | J149: =IF(J$4=0,"",IF(Liste!J154="","",J$4/Liste!J$5*Liste!J154)) ->  | K149: =IF(K$4=0,"",IF(Liste!K154="","",K$4/Liste!K$5*Liste!K154)) ->  | L149: =IF(L$4=0,"",IF(Liste!L154="","",L$4/Liste!L$5*Liste!L154)) ->  | M149: =IF(M$4=0,"",IF(Liste!M154="","",M$4/Liste!M$5*Liste!M154)) ->  | N149: =IF(N$4=0,"",IF(Liste!N154="","",N$4/Liste!N$5*Liste!N154)) ->  | O149: =IF(O$4=0,"",IF(Liste!O154="","",O$4/Liste!O$5*Liste!O154)) ->  | P149: =IF(P$4=0,"",IF(Liste!P154="","",P$4/Liste!P$5*Liste!P154)) ->  | Q149: =IF(Q$4=0,"",IF(Liste!Q154="","",Q$4/Liste!Q$5*Liste!Q154)) -> 
B150: =IF(Liste!B155="","",Liste!B155) ->  | C150: =IF(Liste!C155="","",Liste!C155) ->  | D150: =IF(Liste!D155="","",Liste!D155) ->  | E150: =IF(E$4=0,"",IF(Liste!E155="","",E$4/Liste!E$5*Liste!E155)) ->  | F150: =IF(F$4=0,"",IF(Liste!F155="","",F$4/Liste!F$5*Liste!F155)) ->  | G150: =IF(G$4=0,"",IF(Liste!G155="","",G$4/Liste!G$5*Liste!G155)) ->  | H150: =IF(H$4=0,"",IF(Liste!H155="","",H$4/Liste!H$5*Liste!H155)) ->  | I150: =IF(I$4=0,"",IF(Liste!I155="","",I$4/Liste!I$5*Liste!I155)) ->  | J150: =IF(J$4=0,"",IF(Liste!J155="","",J$4/Liste!J$5*Liste!J155)) ->  | K150: =IF(K$4=0,"",IF(Liste!K155="","",K$4/Liste!K$5*Liste!K155)) ->  | L150: =IF(L$4=0,"",IF(Liste!L155="","",L$4/Liste!L$5*Liste!L155)) ->  | M150: =IF(M$4=0,"",IF(Liste!M155="","",M$4/Liste!M$5*Liste!M155)) ->  | N150: =IF(N$4=0,"",IF(Liste!N155="","",N$4/Liste!N$5*Liste!N155)) ->  | O150: =IF(O$4=0,"",IF(Liste!O155="","",O$4/Liste!O$5*Liste!O155)) ->  | P150: =IF(P$4=0,"",IF(Liste!P155="","",P$4/Liste!P$5*Liste!P155)) ->  | Q150: =IF(Q$4=0,"",IF(Liste!Q155="","",Q$4/Liste!Q$5*Liste!Q155)) -> 
B151: =IF(Liste!B156="","",Liste!B156) ->  | C151: =IF(Liste!C156="","",Liste!C156) ->  | D151: =IF(Liste!D156="","",Liste!D156) ->  | E151: =IF(E$4=0,"",IF(Liste!E156="","",E$4/Liste!E$5*Liste!E156)) ->  | F151: =IF(F$4=0,"",IF(Liste!F156="","",F$4/Liste!F$5*Liste!F156)) ->  | G151: =IF(G$4=0,"",IF(Liste!G156="","",G$4/Liste!G$5*Liste!G156)) ->  | H151: =IF(H$4=0,"",IF(Liste!H156="","",H$4/Liste!H$5*Liste!H156)) ->  | I151: =IF(I$4=0,"",IF(Liste!I156="","",I$4/Liste!I$5*Liste!I156)) ->  | J151: =IF(J$4=0,"",IF(Liste!J156="","",J$4/Liste!J$5*Liste!J156)) ->  | K151: =IF(K$4=0,"",IF(Liste!K156="","",K$4/Liste!K$5*Liste!K156)) ->  | L151: =IF(L$4=0,"",IF(Liste!L156="","",L$4/Liste!L$5*Liste!L156)) ->  | M151: =IF(M$4=0,"",IF(Liste!M156="","",M$4/Liste!M$5*Liste!M156)) ->  | N151: =IF(N$4=0,"",IF(Liste!N156="","",N$4/Liste!N$5*Liste!N156)) ->  | O151: =IF(O$4=0,"",IF(Liste!O156="","",O$4/Liste!O$5*Liste!O156)) ->  | P151: =IF(P$4=0,"",IF(Liste!P156="","",P$4/Liste!P$5*Liste!P156)) ->  | Q151: =IF(Q$4=0,"",IF(Liste!Q156="","",Q$4/Liste!Q$5*Liste!Q156)) -> 
B152: =IF(Liste!B157="","",Liste!B157) ->  | C152: =IF(Liste!C157="","",Liste!C157) ->  | D152: =IF(Liste!D157="","",Liste!D157) ->  | E152: =IF(E$4=0,"",IF(Liste!E157="","",E$4/Liste!E$5*Liste!E157)) ->  | F152: =IF(F$4=0,"",IF(Liste!F157="","",F$4/Liste!F$5*Liste!F157)) ->  | G152: =IF(G$4=0,"",IF(Liste!G157="","",G$4/Liste!G$5*Liste!G157)) ->  | H152: =IF(H$4=0,"",IF(Liste!H157="","",H$4/Liste!H$5*Liste!H157)) ->  | I152: =IF(I$4=0,"",IF(Liste!I157="","",I$4/Liste!I$5*Liste!I157)) ->  | J152: =IF(J$4=0,"",IF(Liste!J157="","",J$4/Liste!J$5*Liste!J157)) ->  | K152: =IF(K$4=0,"",IF(Liste!K157="","",K$4/Liste!K$5*Liste!K157)) ->  | L152: =IF(L$4=0,"",IF(Liste!L157="","",L$4/Liste!L$5*Liste!L157)) ->  | M152: =IF(M$4=0,"",IF(Liste!M157="","",M$4/Liste!M$5*Liste!M157)) ->  | N152: =IF(N$4=0,"",IF(Liste!N157="","",N$4/Liste!N$5*Liste!N157)) ->  | O152: =IF(O$4=0,"",IF(Liste!O157="","",O$4/Liste!O$5*Liste!O157)) ->  | P152: =IF(P$4=0,"",IF(Liste!P157="","",P$4/Liste!P$5*Liste!P157)) ->  | Q152: =IF(Q$4=0,"",IF(Liste!Q157="","",Q$4/Liste!Q$5*Liste!Q157)) -> 
B153: =IF(Liste!B158="","",Liste!B158) ->  | C153: =IF(Liste!C158="","",Liste!C158) ->  | D153: =IF(Liste!D158="","",Liste!D158) ->  | E153: =IF(E$4=0,"",IF(Liste!E158="","",E$4/Liste!E$5*Liste!E158)) ->  | F153: =IF(F$4=0,"",IF(Liste!F158="","",F$4/Liste!F$5*Liste!F158)) ->  | G153: =IF(G$4=0,"",IF(Liste!G158="","",G$4/Liste!G$5*Liste!G158)) ->  | H153: =IF(H$4=0,"",IF(Liste!H158="","",H$4/Liste!H$5*Liste!H158)) ->  | I153: =IF(I$4=0,"",IF(Liste!I158="","",I$4/Liste!I$5*Liste!I158)) ->  | J153: =IF(J$4=0,"",IF(Liste!J158="","",J$4/Liste!J$5*Liste!J158)) ->  | K153: =IF(K$4=0,"",IF(Liste!K158="","",K$4/Liste!K$5*Liste!K158)) ->  | L153: =IF(L$4=0,"",IF(Liste!L158="","",L$4/Liste!L$5*Liste!L158)) ->  | M153: =IF(M$4=0,"",IF(Liste!M158="","",M$4/Liste!M$5*Liste!M158)) ->  | N153: =IF(N$4=0,"",IF(Liste!N158="","",N$4/Liste!N$5*Liste!N158)) ->  | O153: =IF(O$4=0,"",IF(Liste!O158="","",O$4/Liste!O$5*Liste!O158)) ->  | P153: =IF(P$4=0,"",IF(Liste!P158="","",P$4/Liste!P$5*Liste!P158)) ->  | Q153: =IF(Q$4=0,"",IF(Liste!Q158="","",Q$4/Liste!Q$5*Liste!Q158)) -> 
B154: =IF(Liste!B159="","",Liste!B159) ->  | C154: =IF(Liste!C159="","",Liste!C159) ->  | D154: =IF(Liste!D159="","",Liste!D159) ->  | E154: =IF(E$4=0,"",IF(Liste!E159="","",E$4/Liste!E$5*Liste!E159)) ->  | F154: =IF(F$4=0,"",IF(Liste!F159="","",F$4/Liste!F$5*Liste!F159)) ->  | G154: =IF(G$4=0,"",IF(Liste!G159="","",G$4/Liste!G$5*Liste!G159)) ->  | H154: =IF(H$4=0,"",IF(Liste!H159="","",H$4/Liste!H$5*Liste!H159)) ->  | I154: =IF(I$4=0,"",IF(Liste!I159="","",I$4/Liste!I$5*Liste!I159)) ->  | J154: =IF(J$4=0,"",IF(Liste!J159="","",J$4/Liste!J$5*Liste!J159)) ->  | K154: =IF(K$4=0,"",IF(Liste!K159="","",K$4/Liste!K$5*Liste!K159)) ->  | L154: =IF(L$4=0,"",IF(Liste!L159="","",L$4/Liste!L$5*Liste!L159)) ->  | M154: =IF(M$4=0,"",IF(Liste!M159="","",M$4/Liste!M$5*Liste!M159)) ->  | N154: =IF(N$4=0,"",IF(Liste!N159="","",N$4/Liste!N$5*Liste!N159)) ->  | O154: =IF(O$4=0,"",IF(Liste!O159="","",O$4/Liste!O$5*Liste!O159)) ->  | P154: =IF(P$4=0,"",IF(Liste!P159="","",P$4/Liste!P$5*Liste!P159)) ->  | Q154: =IF(Q$4=0,"",IF(Liste!Q159="","",Q$4/Liste!Q$5*Liste!Q159)) -> 
B155: =IF(Liste!B160="","",Liste!B160) ->  | C155: =IF(Liste!C160="","",Liste!C160) ->  | D155: =IF(Liste!D160="","",Liste!D160) ->  | E155: =IF(E$4=0,"",IF(Liste!E160="","",E$4/Liste!E$5*Liste!E160)) ->  | F155: =IF(F$4=0,"",IF(Liste!F160="","",F$4/Liste!F$5*Liste!F160)) ->  | G155: =IF(G$4=0,"",IF(Liste!G160="","",G$4/Liste!G$5*Liste!G160)) ->  | H155: =IF(H$4=0,"",IF(Liste!H160="","",H$4/Liste!H$5*Liste!H160)) ->  | I155: =IF(I$4=0,"",IF(Liste!I160="","",I$4/Liste!I$5*Liste!I160)) ->  | J155: =IF(J$4=0,"",IF(Liste!J160="","",J$4/Liste!J$5*Liste!J160)) ->  | K155: =IF(K$4=0,"",IF(Liste!K160="","",K$4/Liste!K$5*Liste!K160)) ->  | L155: =IF(L$4=0,"",IF(Liste!L160="","",L$4/Liste!L$5*Liste!L160)) ->  | M155: =IF(M$4=0,"",IF(Liste!M160="","",M$4/Liste!M$5*Liste!M160)) ->  | N155: =IF(N$4=0,"",IF(Liste!N160="","",N$4/Liste!N$5*Liste!N160)) ->  | O155: =IF(O$4=0,"",IF(Liste!O160="","",O$4/Liste!O$5*Liste!O160)) ->  | P155: =IF(P$4=0,"",IF(Liste!P160="","",P$4/Liste!P$5*Liste!P160)) ->  | Q155: =IF(Q$4=0,"",IF(Liste!Q160="","",Q$4/Liste!Q$5*Liste!Q160)) -> 
B156: =IF(Liste!B161="","",Liste!B161) ->  | C156: =IF(Liste!C161="","",Liste!C161) ->  | D156: =IF(Liste!D161="","",Liste!D161) ->  | E156: =IF(E$4=0,"",IF(Liste!E161="","",E$4/Liste!E$5*Liste!E161)) ->  | F156: =IF(F$4=0,"",IF(Liste!F161="","",F$4/Liste!F$5*Liste!F161)) ->  | G156: =IF(G$4=0,"",IF(Liste!G161="","",G$4/Liste!G$5*Liste!G161)) ->  | H156: =IF(H$4=0,"",IF(Liste!H161="","",H$4/Liste!H$5*Liste!H161)) ->  | I156: =IF(I$4=0,"",IF(Liste!I161="","",I$4/Liste!I$5*Liste!I161)) ->  | J156: =IF(J$4=0,"",IF(Liste!J161="","",J$4/Liste!J$5*Liste!J161)) ->  | K156: =IF(K$4=0,"",IF(Liste!K161="","",K$4/Liste!K$5*Liste!K161)) ->  | L156: =IF(L$4=0,"",IF(Liste!L161="","",L$4/Liste!L$5*Liste!L161)) ->  | M156: =IF(M$4=0,"",IF(Liste!M161="","",M$4/Liste!M$5*Liste!M161)) ->  | N156: =IF(N$4=0,"",IF(Liste!N161="","",N$4/Liste!N$5*Liste!N161)) ->  | O156: =IF(O$4=0,"",IF(Liste!O161="","",O$4/Liste!O$5*Liste!O161)) ->  | P156: =IF(P$4=0,"",IF(Liste!P161="","",P$4/Liste!P$5*Liste!P161)) ->  | Q156: =IF(Q$4=0,"",IF(Liste!Q161="","",Q$4/Liste!Q$5*Liste!Q161)) -> 
B157: =IF(Liste!B162="","",Liste!B162) ->  | C157: =IF(Liste!C162="","",Liste!C162) ->  | D157: =IF(Liste!D162="","",Liste!D162) ->  | E157: =IF(E$4=0,"",IF(Liste!E162="","",E$4/Liste!E$5*Liste!E162)) ->  | F157: =IF(F$4=0,"",IF(Liste!F162="","",F$4/Liste!F$5*Liste!F162)) ->  | G157: =IF(G$4=0,"",IF(Liste!G162="","",G$4/Liste!G$5*Liste!G162)) ->  | H157: =IF(H$4=0,"",IF(Liste!H162="","",H$4/Liste!H$5*Liste!H162)) ->  | I157: =IF(I$4=0,"",IF(Liste!I162="","",I$4/Liste!I$5*Liste!I162)) ->  | J157: =IF(J$4=0,"",IF(Liste!J162="","",J$4/Liste!J$5*Liste!J162)) ->  | K157: =IF(K$4=0,"",IF(Liste!K162="","",K$4/Liste!K$5*Liste!K162)) ->  | L157: =IF(L$4=0,"",IF(Liste!L162="","",L$4/Liste!L$5*Liste!L162)) ->  | M157: =IF(M$4=0,"",IF(Liste!M162="","",M$4/Liste!M$5*Liste!M162)) ->  | N157: =IF(N$4=0,"",IF(Liste!N162="","",N$4/Liste!N$5*Liste!N162)) ->  | O157: =IF(O$4=0,"",IF(Liste!O162="","",O$4/Liste!O$5*Liste!O162)) ->  | P157: =IF(P$4=0,"",IF(Liste!P162="","",P$4/Liste!P$5*Liste!P162)) ->  | Q157: =IF(Q$4=0,"",IF(Liste!Q162="","",Q$4/Liste!Q$5*Liste!Q162)) -> 
B158: =IF(Liste!B163="","",Liste!B163) ->  | C158: =IF(Liste!C163="","",Liste!C163) ->  | D158: =IF(Liste!D163="","",Liste!D163) ->  | E158: =IF(E$4=0,"",IF(Liste!E163="","",E$4/Liste!E$5*Liste!E163)) ->  | F158: =IF(F$4=0,"",IF(Liste!F163="","",F$4/Liste!F$5*Liste!F163)) ->  | G158: =IF(G$4=0,"",IF(Liste!G163="","",G$4/Liste!G$5*Liste!G163)) ->  | H158: =IF(H$4=0,"",IF(Liste!H163="","",H$4/Liste!H$5*Liste!H163)) ->  | I158: =IF(I$4=0,"",IF(Liste!I163="","",I$4/Liste!I$5*Liste!I163)) ->  | J158: =IF(J$4=0,"",IF(Liste!J163="","",J$4/Liste!J$5*Liste!J163)) ->  | K158: =IF(K$4=0,"",IF(Liste!K163="","",K$4/Liste!K$5*Liste!K163)) ->  | L158: =IF(L$4=0,"",IF(Liste!L163="","",L$4/Liste!L$5*Liste!L163)) ->  | M158: =IF(M$4=0,"",IF(Liste!M163="","",M$4/Liste!M$5*Liste!M163)) ->  | N158: =IF(N$4=0,"",IF(Liste!N163="","",N$4/Liste!N$5*Liste!N163)) ->  | O158: =IF(O$4=0,"",IF(Liste!O163="","",O$4/Liste!O$5*Liste!O163)) ->  | P158: =IF(P$4=0,"",IF(Liste!P163="","",P$4/Liste!P$5*Liste!P163)) ->  | Q158: =IF(Q$4=0,"",IF(Liste!Q163="","",Q$4/Liste!Q$5*Liste!Q163)) -> 
B159: =IF(Liste!B164="","",Liste!B164) ->  | C159: =IF(Liste!C164="","",Liste!C164) ->  | D159: =IF(Liste!D164="","",Liste!D164) ->  | E159: =IF(E$4=0,"",IF(Liste!E164="","",E$4/Liste!E$5*Liste!E164)) ->  | F159: =IF(F$4=0,"",IF(Liste!F164="","",F$4/Liste!F$5*Liste!F164)) ->  | G159: =IF(G$4=0,"",IF(Liste!G164="","",G$4/Liste!G$5*Liste!G164)) ->  | H159: =IF(H$4=0,"",IF(Liste!H164="","",H$4/Liste!H$5*Liste!H164)) ->  | I159: =IF(I$4=0,"",IF(Liste!I164="","",I$4/Liste!I$5*Liste!I164)) ->  | J159: =IF(J$4=0,"",IF(Liste!J164="","",J$4/Liste!J$5*Liste!J164)) ->  | K159: =IF(K$4=0,"",IF(Liste!K164="","",K$4/Liste!K$5*Liste!K164)) ->  | L159: =IF(L$4=0,"",IF(Liste!L164="","",L$4/Liste!L$5*Liste!L164)) ->  | M159: =IF(M$4=0,"",IF(Liste!M164="","",M$4/Liste!M$5*Liste!M164)) ->  | N159: =IF(N$4=0,"",IF(Liste!N164="","",N$4/Liste!N$5*Liste!N164)) ->  | O159: =IF(O$4=0,"",IF(Liste!O164="","",O$4/Liste!O$5*Liste!O164)) ->  | P159: =IF(P$4=0,"",IF(Liste!P164="","",P$4/Liste!P$5*Liste!P164)) ->  | Q159: =IF(Q$4=0,"",IF(Liste!Q164="","",Q$4/Liste!Q$5*Liste!Q164)) -> 
B160: =IF(Liste!B165="","",Liste!B165) ->  | C160: =IF(Liste!C165="","",Liste!C165) ->  | D160: =IF(Liste!D165="","",Liste!D165) ->  | E160: =IF(E$4=0,"",IF(Liste!E165="","",E$4/Liste!E$5*Liste!E165)) ->  | F160: =IF(F$4=0,"",IF(Liste!F165="","",F$4/Liste!F$5*Liste!F165)) ->  | G160: =IF(G$4=0,"",IF(Liste!G165="","",G$4/Liste!G$5*Liste!G165)) ->  | H160: =IF(H$4=0,"",IF(Liste!H165="","",H$4/Liste!H$5*Liste!H165)) ->  | I160: =IF(I$4=0,"",IF(Liste!I165="","",I$4/Liste!I$5*Liste!I165)) ->  | J160: =IF(J$4=0,"",IF(Liste!J165="","",J$4/Liste!J$5*Liste!J165)) ->  | K160: =IF(K$4=0,"",IF(Liste!K165="","",K$4/Liste!K$5*Liste!K165)) ->  | L160: =IF(L$4=0,"",IF(Liste!L165="","",L$4/Liste!L$5*Liste!L165)) ->  | M160: =IF(M$4=0,"",IF(Liste!M165="","",M$4/Liste!M$5*Liste!M165)) ->  | N160: =IF(N$4=0,"",IF(Liste!N165="","",N$4/Liste!N$5*Liste!N165)) ->  | O160: =IF(O$4=0,"",IF(Liste!O165="","",O$4/Liste!O$5*Liste!O165)) ->  | P160: =IF(P$4=0,"",IF(Liste!P165="","",P$4/Liste!P$5*Liste!P165)) ->  | Q160: =IF(Q$4=0,"",IF(Liste!Q165="","",Q$4/Liste!Q$5*Liste!Q165)) -> 
B161: =IF(Liste!B166="","",Liste!B166) ->  | C161: =IF(Liste!C166="","",Liste!C166) ->  | D161: =IF(Liste!D166="","",Liste!D166) ->  | E161: =IF(E$4=0,"",IF(Liste!E166="","",E$4/Liste!E$5*Liste!E166)) ->  | F161: =IF(F$4=0,"",IF(Liste!F166="","",F$4/Liste!F$5*Liste!F166)) ->  | G161: =IF(G$4=0,"",IF(Liste!G166="","",G$4/Liste!G$5*Liste!G166)) ->  | H161: =IF(H$4=0,"",IF(Liste!H166="","",H$4/Liste!H$5*Liste!H166)) ->  | I161: =IF(I$4=0,"",IF(Liste!I166="","",I$4/Liste!I$5*Liste!I166)) ->  | J161: =IF(J$4=0,"",IF(Liste!J166="","",J$4/Liste!J$5*Liste!J166)) ->  | K161: =IF(K$4=0,"",IF(Liste!K166="","",K$4/Liste!K$5*Liste!K166)) ->  | L161: =IF(L$4=0,"",IF(Liste!L166="","",L$4/Liste!L$5*Liste!L166)) ->  | M161: =IF(M$4=0,"",IF(Liste!M166="","",M$4/Liste!M$5*Liste!M166)) ->  | N161: =IF(N$4=0,"",IF(Liste!N166="","",N$4/Liste!N$5*Liste!N166)) ->  | O161: =IF(O$4=0,"",IF(Liste!O166="","",O$4/Liste!O$5*Liste!O166)) ->  | P161: =IF(P$4=0,"",IF(Liste!P166="","",P$4/Liste!P$5*Liste!P166)) ->  | Q161: =IF(Q$4=0,"",IF(Liste!Q166="","",Q$4/Liste!Q$5*Liste!Q166)) -> 
B162: =IF(Liste!B167="","",Liste!B167) ->  | C162: =IF(Liste!C167="","",Liste!C167) ->  | D162: =IF(Liste!D167="","",Liste!D167) ->  | E162: =IF(E$4=0,"",IF(Liste!E167="","",E$4/Liste!E$5*Liste!E167)) ->  | F162: =IF(F$4=0,"",IF(Liste!F167="","",F$4/Liste!F$5*Liste!F167)) ->  | G162: =IF(G$4=0,"",IF(Liste!G167="","",G$4/Liste!G$5*Liste!G167)) ->  | H162: =IF(H$4=0,"",IF(Liste!H167="","",H$4/Liste!H$5*Liste!H167)) ->  | I162: =IF(I$4=0,"",IF(Liste!I167="","",I$4/Liste!I$5*Liste!I167)) ->  | J162: =IF(J$4=0,"",IF(Liste!J167="","",J$4/Liste!J$5*Liste!J167)) ->  | K162: =IF(K$4=0,"",IF(Liste!K167="","",K$4/Liste!K$5*Liste!K167)) ->  | L162: =IF(L$4=0,"",IF(Liste!L167="","",L$4/Liste!L$5*Liste!L167)) ->  | M162: =IF(M$4=0,"",IF(Liste!M167="","",M$4/Liste!M$5*Liste!M167)) ->  | N162: =IF(N$4=0,"",IF(Liste!N167="","",N$4/Liste!N$5*Liste!N167)) ->  | O162: =IF(O$4=0,"",IF(Liste!O167="","",O$4/Liste!O$5*Liste!O167)) ->  | P162: =IF(P$4=0,"",IF(Liste!P167="","",P$4/Liste!P$5*Liste!P167)) ->  | Q162: =IF(Q$4=0,"",IF(Liste!Q167="","",Q$4/Liste!Q$5*Liste!Q167)) -> 
B163: =IF(Liste!B168="","",Liste!B168) ->  | C163: =IF(Liste!C168="","",Liste!C168) ->  | D163: =IF(Liste!D168="","",Liste!D168) ->  | E163: =IF(E$4=0,"",IF(Liste!E168="","",E$4/Liste!E$5*Liste!E168)) ->  | F163: =IF(F$4=0,"",IF(Liste!F168="","",F$4/Liste!F$5*Liste!F168)) ->  | G163: =IF(G$4=0,"",IF(Liste!G168="","",G$4/Liste!G$5*Liste!G168)) ->  | H163: =IF(H$4=0,"",IF(Liste!H168="","",H$4/Liste!H$5*Liste!H168)) ->  | I163: =IF(I$4=0,"",IF(Liste!I168="","",I$4/Liste!I$5*Liste!I168)) ->  | J163: =IF(J$4=0,"",IF(Liste!J168="","",J$4/Liste!J$5*Liste!J168)) ->  | K163: =IF(K$4=0,"",IF(Liste!K168="","",K$4/Liste!K$5*Liste!K168)) ->  | L163: =IF(L$4=0,"",IF(Liste!L168="","",L$4/Liste!L$5*Liste!L168)) ->  | M163: =IF(M$4=0,"",IF(Liste!M168="","",M$4/Liste!M$5*Liste!M168)) ->  | N163: =IF(N$4=0,"",IF(Liste!N168="","",N$4/Liste!N$5*Liste!N168)) ->  | O163: =IF(O$4=0,"",IF(Liste!O168="","",O$4/Liste!O$5*Liste!O168)) ->  | P163: =IF(P$4=0,"",IF(Liste!P168="","",P$4/Liste!P$5*Liste!P168)) ->  | Q163: =IF(Q$4=0,"",IF(Liste!Q168="","",Q$4/Liste!Q$5*Liste!Q168)) -> 
B164: =IF(Liste!B169="","",Liste!B169) ->  | C164: =IF(Liste!C169="","",Liste!C169) ->  | D164: =IF(Liste!D169="","",Liste!D169) ->  | E164: =IF(E$4=0,"",IF(Liste!E169="","",E$4/Liste!E$5*Liste!E169)) ->  | F164: =IF(F$4=0,"",IF(Liste!F169="","",F$4/Liste!F$5*Liste!F169)) ->  | G164: =IF(G$4=0,"",IF(Liste!G169="","",G$4/Liste!G$5*Liste!G169)) ->  | H164: =IF(H$4=0,"",IF(Liste!H169="","",H$4/Liste!H$5*Liste!H169)) ->  | I164: =IF(I$4=0,"",IF(Liste!I169="","",I$4/Liste!I$5*Liste!I169)) ->  | J164: =IF(J$4=0,"",IF(Liste!J169="","",J$4/Liste!J$5*Liste!J169)) ->  | K164: =IF(K$4=0,"",IF(Liste!K169="","",K$4/Liste!K$5*Liste!K169)) ->  | L164: =IF(L$4=0,"",IF(Liste!L169="","",L$4/Liste!L$5*Liste!L169)) ->  | M164: =IF(M$4=0,"",IF(Liste!M169="","",M$4/Liste!M$5*Liste!M169)) ->  | N164: =IF(N$4=0,"",IF(Liste!N169="","",N$4/Liste!N$5*Liste!N169)) ->  | O164: =IF(O$4=0,"",IF(Liste!O169="","",O$4/Liste!O$5*Liste!O169)) ->  | P164: =IF(P$4=0,"",IF(Liste!P169="","",P$4/Liste!P$5*Liste!P169)) ->  | Q164: =IF(Q$4=0,"",IF(Liste!Q169="","",Q$4/Liste!Q$5*Liste!Q169)) -> 
B165: =IF(Liste!B170="","",Liste!B170) ->  | C165: =IF(Liste!C170="","",Liste!C170) ->  | D165: =IF(Liste!D170="","",Liste!D170) ->  | E165: =IF(E$4=0,"",IF(Liste!E170="","",E$4/Liste!E$5*Liste!E170)) ->  | F165: =IF(F$4=0,"",IF(Liste!F170="","",F$4/Liste!F$5*Liste!F170)) ->  | G165: =IF(G$4=0,"",IF(Liste!G170="","",G$4/Liste!G$5*Liste!G170)) ->  | H165: =IF(H$4=0,"",IF(Liste!H170="","",H$4/Liste!H$5*Liste!H170)) ->  | I165: =IF(I$4=0,"",IF(Liste!I170="","",I$4/Liste!I$5*Liste!I170)) ->  | J165: =IF(J$4=0,"",IF(Liste!J170="","",J$4/Liste!J$5*Liste!J170)) ->  | K165: =IF(K$4=0,"",IF(Liste!K170="","",K$4/Liste!K$5*Liste!K170)) ->  | L165: =IF(L$4=0,"",IF(Liste!L170="","",L$4/Liste!L$5*Liste!L170)) ->  | M165: =IF(M$4=0,"",IF(Liste!M170="","",M$4/Liste!M$5*Liste!M170)) ->  | N165: =IF(N$4=0,"",IF(Liste!N170="","",N$4/Liste!N$5*Liste!N170)) ->  | O165: =IF(O$4=0,"",IF(Liste!O170="","",O$4/Liste!O$5*Liste!O170)) ->  | P165: =IF(P$4=0,"",IF(Liste!P170="","",P$4/Liste!P$5*Liste!P170)) ->  | Q165: =IF(Q$4=0,"",IF(Liste!Q170="","",Q$4/Liste!Q$5*Liste!Q170)) -> 
B166: =IF(Liste!B171="","",Liste!B171) ->  | C166: =IF(Liste!C171="","",Liste!C171) ->  | D166: =IF(Liste!D171="","",Liste!D171) ->  | E166: =IF(E$4=0,"",IF(Liste!E171="","",E$4/Liste!E$5*Liste!E171)) ->  | F166: =IF(F$4=0,"",IF(Liste!F171="","",F$4/Liste!F$5*Liste!F171)) ->  | G166: =IF(G$4=0,"",IF(Liste!G171="","",G$4/Liste!G$5*Liste!G171)) ->  | H166: =IF(H$4=0,"",IF(Liste!H171="","",H$4/Liste!H$5*Liste!H171)) ->  | I166: =IF(I$4=0,"",IF(Liste!I171="","",I$4/Liste!I$5*Liste!I171)) ->  | J166: =IF(J$4=0,"",IF(Liste!J171="","",J$4/Liste!J$5*Liste!J171)) ->  | K166: =IF(K$4=0,"",IF(Liste!K171="","",K$4/Liste!K$5*Liste!K171)) ->  | L166: =IF(L$4=0,"",IF(Liste!L171="","",L$4/Liste!L$5*Liste!L171)) ->  | M166: =IF(M$4=0,"",IF(Liste!M171="","",M$4/Liste!M$5*Liste!M171)) ->  | N166: =IF(N$4=0,"",IF(Liste!N171="","",N$4/Liste!N$5*Liste!N171)) ->  | O166: =IF(O$4=0,"",IF(Liste!O171="","",O$4/Liste!O$5*Liste!O171)) ->  | P166: =IF(P$4=0,"",IF(Liste!P171="","",P$4/Liste!P$5*Liste!P171)) ->  | Q166: =IF(Q$4=0,"",IF(Liste!Q171="","",Q$4/Liste!Q$5*Liste!Q171)) -> 
B167: =IF(Liste!B172="","",Liste!B172) ->  | C167: =IF(Liste!C172="","",Liste!C172) ->  | D167: =IF(Liste!D172="","",Liste!D172) ->  | E167: =IF(E$4=0,"",IF(Liste!E172="","",E$4/Liste!E$5*Liste!E172)) ->  | F167: =IF(F$4=0,"",IF(Liste!F172="","",F$4/Liste!F$5*Liste!F172)) ->  | G167: =IF(G$4=0,"",IF(Liste!G172="","",G$4/Liste!G$5*Liste!G172)) ->  | H167: =IF(H$4=0,"",IF(Liste!H172="","",H$4/Liste!H$5*Liste!H172)) ->  | I167: =IF(I$4=0,"",IF(Liste!I172="","",I$4/Liste!I$5*Liste!I172)) ->  | J167: =IF(J$4=0,"",IF(Liste!J172="","",J$4/Liste!J$5*Liste!J172)) ->  | K167: =IF(K$4=0,"",IF(Liste!K172="","",K$4/Liste!K$5*Liste!K172)) ->  | L167: =IF(L$4=0,"",IF(Liste!L172="","",L$4/Liste!L$5*Liste!L172)) ->  | M167: =IF(M$4=0,"",IF(Liste!M172="","",M$4/Liste!M$5*Liste!M172)) ->  | N167: =IF(N$4=0,"",IF(Liste!N172="","",N$4/Liste!N$5*Liste!N172)) ->  | O167: =IF(O$4=0,"",IF(Liste!O172="","",O$4/Liste!O$5*Liste!O172)) ->  | P167: =IF(P$4=0,"",IF(Liste!P172="","",P$4/Liste!P$5*Liste!P172)) ->  | Q167: =IF(Q$4=0,"",IF(Liste!Q172="","",Q$4/Liste!Q$5*Liste!Q172)) -> 
B168: =IF(Liste!B173="","",Liste!B173) ->  | C168: =IF(Liste!C173="","",Liste!C173) ->  | D168: =IF(Liste!D173="","",Liste!D173) ->  | E168: =IF(E$4=0,"",IF(Liste!E173="","",E$4/Liste!E$5*Liste!E173)) ->  | F168: =IF(F$4=0,"",IF(Liste!F173="","",F$4/Liste!F$5*Liste!F173)) ->  | G168: =IF(G$4=0,"",IF(Liste!G173="","",G$4/Liste!G$5*Liste!G173)) ->  | H168: =IF(H$4=0,"",IF(Liste!H173="","",H$4/Liste!H$5*Liste!H173)) ->  | I168: =IF(I$4=0,"",IF(Liste!I173="","",I$4/Liste!I$5*Liste!I173)) ->  | J168: =IF(J$4=0,"",IF(Liste!J173="","",J$4/Liste!J$5*Liste!J173)) ->  | K168: =IF(K$4=0,"",IF(Liste!K173="","",K$4/Liste!K$5*Liste!K173)) ->  | L168: =IF(L$4=0,"",IF(Liste!L173="","",L$4/Liste!L$5*Liste!L173)) ->  | M168: =IF(M$4=0,"",IF(Liste!M173="","",M$4/Liste!M$5*Liste!M173)) ->  | N168: =IF(N$4=0,"",IF(Liste!N173="","",N$4/Liste!N$5*Liste!N173)) ->  | O168: =IF(O$4=0,"",IF(Liste!O173="","",O$4/Liste!O$5*Liste!O173)) ->  | P168: =IF(P$4=0,"",IF(Liste!P173="","",P$4/Liste!P$5*Liste!P173)) ->  | Q168: =IF(Q$4=0,"",IF(Liste!Q173="","",Q$4/Liste!Q$5*Liste!Q173)) -> 
B169: =IF(Liste!B174="","",Liste!B174) ->  | C169: =IF(Liste!C174="","",Liste!C174) ->  | D169: =IF(Liste!D174="","",Liste!D174) ->  | E169: =IF(E$4=0,"",IF(Liste!E174="","",E$4/Liste!E$5*Liste!E174)) ->  | F169: =IF(F$4=0,"",IF(Liste!F174="","",F$4/Liste!F$5*Liste!F174)) ->  | G169: =IF(G$4=0,"",IF(Liste!G174="","",G$4/Liste!G$5*Liste!G174)) ->  | H169: =IF(H$4=0,"",IF(Liste!H174="","",H$4/Liste!H$5*Liste!H174)) ->  | I169: =IF(I$4=0,"",IF(Liste!I174="","",I$4/Liste!I$5*Liste!I174)) ->  | J169: =IF(J$4=0,"",IF(Liste!J174="","",J$4/Liste!J$5*Liste!J174)) ->  | K169: =IF(K$4=0,"",IF(Liste!K174="","",K$4/Liste!K$5*Liste!K174)) ->  | L169: =IF(L$4=0,"",IF(Liste!L174="","",L$4/Liste!L$5*Liste!L174)) ->  | M169: =IF(M$4=0,"",IF(Liste!M174="","",M$4/Liste!M$5*Liste!M174)) ->  | N169: =IF(N$4=0,"",IF(Liste!N174="","",N$4/Liste!N$5*Liste!N174)) ->  | O169: =IF(O$4=0,"",IF(Liste!O174="","",O$4/Liste!O$5*Liste!O174)) ->  | P169: =IF(P$4=0,"",IF(Liste!P174="","",P$4/Liste!P$5*Liste!P174)) ->  | Q169: =IF(Q$4=0,"",IF(Liste!Q174="","",Q$4/Liste!Q$5*Liste!Q174)) -> 
B170: =IF(Liste!B175="","",Liste!B175) ->  | C170: =IF(Liste!C175="","",Liste!C175) ->  | D170: =IF(Liste!D175="","",Liste!D175) ->  | E170: =IF(E$4=0,"",IF(Liste!E175="","",E$4/Liste!E$5*Liste!E175)) ->  | F170: =IF(F$4=0,"",IF(Liste!F175="","",F$4/Liste!F$5*Liste!F175)) ->  | G170: =IF(G$4=0,"",IF(Liste!G175="","",G$4/Liste!G$5*Liste!G175)) ->  | H170: =IF(H$4=0,"",IF(Liste!H175="","",H$4/Liste!H$5*Liste!H175)) ->  | I170: =IF(I$4=0,"",IF(Liste!I175="","",I$4/Liste!I$5*Liste!I175)) ->  | J170: =IF(J$4=0,"",IF(Liste!J175="","",J$4/Liste!J$5*Liste!J175)) ->  | K170: =IF(K$4=0,"",IF(Liste!K175="","",K$4/Liste!K$5*Liste!K175)) ->  | L170: =IF(L$4=0,"",IF(Liste!L175="","",L$4/Liste!L$5*Liste!L175)) ->  | M170: =IF(M$4=0,"",IF(Liste!M175="","",M$4/Liste!M$5*Liste!M175)) ->  | N170: =IF(N$4=0,"",IF(Liste!N175="","",N$4/Liste!N$5*Liste!N175)) ->  | O170: =IF(O$4=0,"",IF(Liste!O175="","",O$4/Liste!O$5*Liste!O175)) ->  | P170: =IF(P$4=0,"",IF(Liste!P175="","",P$4/Liste!P$5*Liste!P175)) ->  | Q170: =IF(Q$4=0,"",IF(Liste!Q175="","",Q$4/Liste!Q$5*Liste!Q175)) -> 
B171: =IF(Liste!B176="","",Liste!B176) ->  | C171: =IF(Liste!C176="","",Liste!C176) ->  | D171: =IF(Liste!D176="","",Liste!D176) ->  | E171: =IF(E$4=0,"",IF(Liste!E176="","",E$4/Liste!E$5*Liste!E176)) ->  | F171: =IF(F$4=0,"",IF(Liste!F176="","",F$4/Liste!F$5*Liste!F176)) ->  | G171: =IF(G$4=0,"",IF(Liste!G176="","",G$4/Liste!G$5*Liste!G176)) ->  | H171: =IF(H$4=0,"",IF(Liste!H176="","",H$4/Liste!H$5*Liste!H176)) ->  | I171: =IF(I$4=0,"",IF(Liste!I176="","",I$4/Liste!I$5*Liste!I176)) ->  | J171: =IF(J$4=0,"",IF(Liste!J176="","",J$4/Liste!J$5*Liste!J176)) ->  | K171: =IF(K$4=0,"",IF(Liste!K176="","",K$4/Liste!K$5*Liste!K176)) ->  | L171: =IF(L$4=0,"",IF(Liste!L176="","",L$4/Liste!L$5*Liste!L176)) ->  | M171: =IF(M$4=0,"",IF(Liste!M176="","",M$4/Liste!M$5*Liste!M176)) ->  | N171: =IF(N$4=0,"",IF(Liste!N176="","",N$4/Liste!N$5*Liste!N176)) ->  | O171: =IF(O$4=0,"",IF(Liste!O176="","",O$4/Liste!O$5*Liste!O176)) ->  | P171: =IF(P$4=0,"",IF(Liste!P176="","",P$4/Liste!P$5*Liste!P176)) ->  | Q171: =IF(Q$4=0,"",IF(Liste!Q176="","",Q$4/Liste!Q$5*Liste!Q176)) -> 
B172: =IF(Liste!B177="","",Liste!B177) ->  | C172: =IF(Liste!C177="","",Liste!C177) ->  | D172: =IF(Liste!D177="","",Liste!D177) ->  | E172: =IF(E$4=0,"",IF(Liste!E177="","",E$4/Liste!E$5*Liste!E177)) ->  | F172: =IF(F$4=0,"",IF(Liste!F177="","",F$4/Liste!F$5*Liste!F177)) ->  | G172: =IF(G$4=0,"",IF(Liste!G177="","",G$4/Liste!G$5*Liste!G177)) ->  | H172: =IF(H$4=0,"",IF(Liste!H177="","",H$4/Liste!H$5*Liste!H177)) ->  | I172: =IF(I$4=0,"",IF(Liste!I177="","",I$4/Liste!I$5*Liste!I177)) ->  | J172: =IF(J$4=0,"",IF(Liste!J177="","",J$4/Liste!J$5*Liste!J177)) ->  | K172: =IF(K$4=0,"",IF(Liste!K177="","",K$4/Liste!K$5*Liste!K177)) ->  | L172: =IF(L$4=0,"",IF(Liste!L177="","",L$4/Liste!L$5*Liste!L177)) ->  | M172: =IF(M$4=0,"",IF(Liste!M177="","",M$4/Liste!M$5*Liste!M177)) ->  | N172: =IF(N$4=0,"",IF(Liste!N177="","",N$4/Liste!N$5*Liste!N177)) ->  | O172: =IF(O$4=0,"",IF(Liste!O177="","",O$4/Liste!O$5*Liste!O177)) ->  | P172: =IF(P$4=0,"",IF(Liste!P177="","",P$4/Liste!P$5*Liste!P177)) ->  | Q172: =IF(Q$4=0,"",IF(Liste!Q177="","",Q$4/Liste!Q$5*Liste!Q177)) -> 
B173: =IF(Liste!B178="","",Liste!B178) ->  | C173: =IF(Liste!C178="","",Liste!C178) ->  | D173: =IF(Liste!D178="","",Liste!D178) ->  | E173: =IF(E$4=0,"",IF(Liste!E178="","",E$4/Liste!E$5*Liste!E178)) ->  | F173: =IF(F$4=0,"",IF(Liste!F178="","",F$4/Liste!F$5*Liste!F178)) ->  | G173: =IF(G$4=0,"",IF(Liste!G178="","",G$4/Liste!G$5*Liste!G178)) ->  | H173: =IF(H$4=0,"",IF(Liste!H178="","",H$4/Liste!H$5*Liste!H178)) ->  | I173: =IF(I$4=0,"",IF(Liste!I178="","",I$4/Liste!I$5*Liste!I178)) ->  | J173: =IF(J$4=0,"",IF(Liste!J178="","",J$4/Liste!J$5*Liste!J178)) ->  | K173: =IF(K$4=0,"",IF(Liste!K178="","",K$4/Liste!K$5*Liste!K178)) ->  | L173: =IF(L$4=0,"",IF(Liste!L178="","",L$4/Liste!L$5*Liste!L178)) ->  | M173: =IF(M$4=0,"",IF(Liste!M178="","",M$4/Liste!M$5*Liste!M178)) ->  | N173: =IF(N$4=0,"",IF(Liste!N178="","",N$4/Liste!N$5*Liste!N178)) ->  | O173: =IF(O$4=0,"",IF(Liste!O178="","",O$4/Liste!O$5*Liste!O178)) ->  | P173: =IF(P$4=0,"",IF(Liste!P178="","",P$4/Liste!P$5*Liste!P178)) ->  | Q173: =IF(Q$4=0,"",IF(Liste!Q178="","",Q$4/Liste!Q$5*Liste!Q178)) -> 
B174: =IF(Liste!B179="","",Liste!B179) ->  | C174: =IF(Liste!C179="","",Liste!C179) ->  | D174: =IF(Liste!D179="","",Liste!D179) ->  | E174: =IF(E$4=0,"",IF(Liste!E179="","",E$4/Liste!E$5*Liste!E179)) ->  | F174: =IF(F$4=0,"",IF(Liste!F179="","",F$4/Liste!F$5*Liste!F179)) ->  | G174: =IF(G$4=0,"",IF(Liste!G179="","",G$4/Liste!G$5*Liste!G179)) ->  | H174: =IF(H$4=0,"",IF(Liste!H179="","",H$4/Liste!H$5*Liste!H179)) ->  | I174: =IF(I$4=0,"",IF(Liste!I179="","",I$4/Liste!I$5*Liste!I179)) ->  | J174: =IF(J$4=0,"",IF(Liste!J179="","",J$4/Liste!J$5*Liste!J179)) ->  | K174: =IF(K$4=0,"",IF(Liste!K179="","",K$4/Liste!K$5*Liste!K179)) ->  | L174: =IF(L$4=0,"",IF(Liste!L179="","",L$4/Liste!L$5*Liste!L179)) ->  | M174: =IF(M$4=0,"",IF(Liste!M179="","",M$4/Liste!M$5*Liste!M179)) ->  | N174: =IF(N$4=0,"",IF(Liste!N179="","",N$4/Liste!N$5*Liste!N179)) ->  | O174: =IF(O$4=0,"",IF(Liste!O179="","",O$4/Liste!O$5*Liste!O179)) ->  | P174: =IF(P$4=0,"",IF(Liste!P179="","",P$4/Liste!P$5*Liste!P179)) ->  | Q174: =IF(Q$4=0,"",IF(Liste!Q179="","",Q$4/Liste!Q$5*Liste!Q179)) -> 
B175: =IF(Liste!B180="","",Liste!B180) ->  | C175: =IF(Liste!C180="","",Liste!C180) ->  | D175: =IF(Liste!D180="","",Liste!D180) ->  | E175: =IF(E$4=0,"",IF(Liste!E180="","",E$4/Liste!E$5*Liste!E180)) ->  | F175: =IF(F$4=0,"",IF(Liste!F180="","",F$4/Liste!F$5*Liste!F180)) ->  | G175: =IF(G$4=0,"",IF(Liste!G180="","",G$4/Liste!G$5*Liste!G180)) ->  | H175: =IF(H$4=0,"",IF(Liste!H180="","",H$4/Liste!H$5*Liste!H180)) ->  | I175: =IF(I$4=0,"",IF(Liste!I180="","",I$4/Liste!I$5*Liste!I180)) ->  | J175: =IF(J$4=0,"",IF(Liste!J180="","",J$4/Liste!J$5*Liste!J180)) ->  | K175: =IF(K$4=0,"",IF(Liste!K180="","",K$4/Liste!K$5*Liste!K180)) ->  | L175: =IF(L$4=0,"",IF(Liste!L180="","",L$4/Liste!L$5*Liste!L180)) ->  | M175: =IF(M$4=0,"",IF(Liste!M180="","",M$4/Liste!M$5*Liste!M180)) ->  | N175: =IF(N$4=0,"",IF(Liste!N180="","",N$4/Liste!N$5*Liste!N180)) ->  | O175: =IF(O$4=0,"",IF(Liste!O180="","",O$4/Liste!O$5*Liste!O180)) ->  | P175: =IF(P$4=0,"",IF(Liste!P180="","",P$4/Liste!P$5*Liste!P180)) ->  | Q175: =IF(Q$4=0,"",IF(Liste!Q180="","",Q$4/Liste!Q$5*Liste!Q180)) -> 
B176: =IF(Liste!B181="","",Liste!B181) ->  | C176: =IF(Liste!C181="","",Liste!C181) ->  | D176: =IF(Liste!D181="","",Liste!D181) ->  | E176: =IF(E$4=0,"",IF(Liste!E181="","",E$4/Liste!E$5*Liste!E181)) ->  | F176: =IF(F$4=0,"",IF(Liste!F181="","",F$4/Liste!F$5*Liste!F181)) ->  | G176: =IF(G$4=0,"",IF(Liste!G181="","",G$4/Liste!G$5*Liste!G181)) ->  | H176: =IF(H$4=0,"",IF(Liste!H181="","",H$4/Liste!H$5*Liste!H181)) ->  | I176: =IF(I$4=0,"",IF(Liste!I181="","",I$4/Liste!I$5*Liste!I181)) ->  | J176: =IF(J$4=0,"",IF(Liste!J181="","",J$4/Liste!J$5*Liste!J181)) ->  | K176: =IF(K$4=0,"",IF(Liste!K181="","",K$4/Liste!K$5*Liste!K181)) ->  | L176: =IF(L$4=0,"",IF(Liste!L181="","",L$4/Liste!L$5*Liste!L181)) ->  | M176: =IF(M$4=0,"",IF(Liste!M181="","",M$4/Liste!M$5*Liste!M181)) ->  | N176: =IF(N$4=0,"",IF(Liste!N181="","",N$4/Liste!N$5*Liste!N181)) ->  | O176: =IF(O$4=0,"",IF(Liste!O181="","",O$4/Liste!O$5*Liste!O181)) ->  | P176: =IF(P$4=0,"",IF(Liste!P181="","",P$4/Liste!P$5*Liste!P181)) ->  | Q176: =IF(Q$4=0,"",IF(Liste!Q181="","",Q$4/Liste!Q$5*Liste!Q181)) -> 
B177: =IF(Liste!B182="","",Liste!B182) ->  | C177: =IF(Liste!C182="","",Liste!C182) ->  | D177: =IF(Liste!D182="","",Liste!D182) ->  | E177: =IF(E$4=0,"",IF(Liste!E182="","",E$4/Liste!E$5*Liste!E182)) ->  | F177: =IF(F$4=0,"",IF(Liste!F182="","",F$4/Liste!F$5*Liste!F182)) ->  | G177: =IF(G$4=0,"",IF(Liste!G182="","",G$4/Liste!G$5*Liste!G182)) ->  | H177: =IF(H$4=0,"",IF(Liste!H182="","",H$4/Liste!H$5*Liste!H182)) ->  | I177: =IF(I$4=0,"",IF(Liste!I182="","",I$4/Liste!I$5*Liste!I182)) ->  | J177: =IF(J$4=0,"",IF(Liste!J182="","",J$4/Liste!J$5*Liste!J182)) ->  | K177: =IF(K$4=0,"",IF(Liste!K182="","",K$4/Liste!K$5*Liste!K182)) ->  | L177: =IF(L$4=0,"",IF(Liste!L182="","",L$4/Liste!L$5*Liste!L182)) ->  | M177: =IF(M$4=0,"",IF(Liste!M182="","",M$4/Liste!M$5*Liste!M182)) ->  | N177: =IF(N$4=0,"",IF(Liste!N182="","",N$4/Liste!N$5*Liste!N182)) ->  | O177: =IF(O$4=0,"",IF(Liste!O182="","",O$4/Liste!O$5*Liste!O182)) ->  | P177: =IF(P$4=0,"",IF(Liste!P182="","",P$4/Liste!P$5*Liste!P182)) ->  | Q177: =IF(Q$4=0,"",IF(Liste!Q182="","",Q$4/Liste!Q$5*Liste!Q182)) -> 
B178: =IF(Liste!B183="","",Liste!B183) ->  | C178: =IF(Liste!C183="","",Liste!C183) ->  | D178: =IF(Liste!D183="","",Liste!D183) ->  | E178: =IF(E$4=0,"",IF(Liste!E183="","",E$4/Liste!E$5*Liste!E183)) ->  | F178: =IF(F$4=0,"",IF(Liste!F183="","",F$4/Liste!F$5*Liste!F183)) ->  | G178: =IF(G$4=0,"",IF(Liste!G183="","",G$4/Liste!G$5*Liste!G183)) ->  | H178: =IF(H$4=0,"",IF(Liste!H183="","",H$4/Liste!H$5*Liste!H183)) ->  | I178: =IF(I$4=0,"",IF(Liste!I183="","",I$4/Liste!I$5*Liste!I183)) ->  | J178: =IF(J$4=0,"",IF(Liste!J183="","",J$4/Liste!J$5*Liste!J183)) ->  | K178: =IF(K$4=0,"",IF(Liste!K183="","",K$4/Liste!K$5*Liste!K183)) ->  | L178: =IF(L$4=0,"",IF(Liste!L183="","",L$4/Liste!L$5*Liste!L183)) ->  | M178: =IF(M$4=0,"",IF(Liste!M183="","",M$4/Liste!M$5*Liste!M183)) ->  | N178: =IF(N$4=0,"",IF(Liste!N183="","",N$4/Liste!N$5*Liste!N183)) ->  | O178: =IF(O$4=0,"",IF(Liste!O183="","",O$4/Liste!O$5*Liste!O183)) ->  | P178: =IF(P$4=0,"",IF(Liste!P183="","",P$4/Liste!P$5*Liste!P183)) ->  | Q178: =IF(Q$4=0,"",IF(Liste!Q183="","",Q$4/Liste!Q$5*Liste!Q183)) -> 
B179: =IF(Liste!B184="","",Liste!B184) ->  | C179: =IF(Liste!C184="","",Liste!C184) ->  | D179: =IF(Liste!D184="","",Liste!D184) ->  | E179: =IF(E$4=0,"",IF(Liste!E184="","",E$4/Liste!E$5*Liste!E184)) ->  | F179: =IF(F$4=0,"",IF(Liste!F184="","",F$4/Liste!F$5*Liste!F184)) ->  | G179: =IF(G$4=0,"",IF(Liste!G184="","",G$4/Liste!G$5*Liste!G184)) ->  | H179: =IF(H$4=0,"",IF(Liste!H184="","",H$4/Liste!H$5*Liste!H184)) ->  | I179: =IF(I$4=0,"",IF(Liste!I184="","",I$4/Liste!I$5*Liste!I184)) ->  | J179: =IF(J$4=0,"",IF(Liste!J184="","",J$4/Liste!J$5*Liste!J184)) ->  | K179: =IF(K$4=0,"",IF(Liste!K184="","",K$4/Liste!K$5*Liste!K184)) ->  | L179: =IF(L$4=0,"",IF(Liste!L184="","",L$4/Liste!L$5*Liste!L184)) ->  | M179: =IF(M$4=0,"",IF(Liste!M184="","",M$4/Liste!M$5*Liste!M184)) ->  | N179: =IF(N$4=0,"",IF(Liste!N184="","",N$4/Liste!N$5*Liste!N184)) ->  | O179: =IF(O$4=0,"",IF(Liste!O184="","",O$4/Liste!O$5*Liste!O184)) ->  | P179: =IF(P$4=0,"",IF(Liste!P184="","",P$4/Liste!P$5*Liste!P184)) ->  | Q179: =IF(Q$4=0,"",IF(Liste!Q184="","",Q$4/Liste!Q$5*Liste!Q184)) -> 
B180: =IF(Liste!B185="","",Liste!B185) ->  | C180: =IF(Liste!C185="","",Liste!C185) ->  | D180: =IF(Liste!D185="","",Liste!D185) ->  | E180: =IF(E$4=0,"",IF(Liste!E185="","",E$4/Liste!E$5*Liste!E185)) ->  | F180: =IF(F$4=0,"",IF(Liste!F185="","",F$4/Liste!F$5*Liste!F185)) ->  | G180: =IF(G$4=0,"",IF(Liste!G185="","",G$4/Liste!G$5*Liste!G185)) ->  | H180: =IF(H$4=0,"",IF(Liste!H185="","",H$4/Liste!H$5*Liste!H185)) ->  | I180: =IF(I$4=0,"",IF(Liste!I185="","",I$4/Liste!I$5*Liste!I185)) ->  | J180: =IF(J$4=0,"",IF(Liste!J185="","",J$4/Liste!J$5*Liste!J185)) ->  | K180: =IF(K$4=0,"",IF(Liste!K185="","",K$4/Liste!K$5*Liste!K185)) ->  | L180: =IF(L$4=0,"",IF(Liste!L185="","",L$4/Liste!L$5*Liste!L185)) ->  | M180: =IF(M$4=0,"",IF(Liste!M185="","",M$4/Liste!M$5*Liste!M185)) ->  | N180: =IF(N$4=0,"",IF(Liste!N185="","",N$4/Liste!N$5*Liste!N185)) ->  | O180: =IF(O$4=0,"",IF(Liste!O185="","",O$4/Liste!O$5*Liste!O185)) ->  | P180: =IF(P$4=0,"",IF(Liste!P185="","",P$4/Liste!P$5*Liste!P185)) ->  | Q180: =IF(Q$4=0,"",IF(Liste!Q185="","",Q$4/Liste!Q$5*Liste!Q185)) -> 
B181: =IF(Liste!B186="","",Liste!B186) ->  | C181: =IF(Liste!C186="","",Liste!C186) ->  | D181: =IF(Liste!D186="","",Liste!D186) ->  | E181: =IF(E$4=0,"",IF(Liste!E186="","",E$4/Liste!E$5*Liste!E186)) ->  | F181: =IF(F$4=0,"",IF(Liste!F186="","",F$4/Liste!F$5*Liste!F186)) ->  | G181: =IF(G$4=0,"",IF(Liste!G186="","",G$4/Liste!G$5*Liste!G186)) ->  | H181: =IF(H$4=0,"",IF(Liste!H186="","",H$4/Liste!H$5*Liste!H186)) ->  | I181: =IF(I$4=0,"",IF(Liste!I186="","",I$4/Liste!I$5*Liste!I186)) ->  | J181: =IF(J$4=0,"",IF(Liste!J186="","",J$4/Liste!J$5*Liste!J186)) ->  | K181: =IF(K$4=0,"",IF(Liste!K186="","",K$4/Liste!K$5*Liste!K186)) ->  | L181: =IF(L$4=0,"",IF(Liste!L186="","",L$4/Liste!L$5*Liste!L186)) ->  | M181: =IF(M$4=0,"",IF(Liste!M186="","",M$4/Liste!M$5*Liste!M186)) ->  | N181: =IF(N$4=0,"",IF(Liste!N186="","",N$4/Liste!N$5*Liste!N186)) ->  | O181: =IF(O$4=0,"",IF(Liste!O186="","",O$4/Liste!O$5*Liste!O186)) ->  | P181: =IF(P$4=0,"",IF(Liste!P186="","",P$4/Liste!P$5*Liste!P186)) ->  | Q181: =IF(Q$4=0,"",IF(Liste!Q186="","",Q$4/Liste!Q$5*Liste!Q186)) -> 
